{"text_format":"1","workbook":"xlsx","n_sheets":8,"sheets":["DESCRIZIONE","TFR","TCM","M&R","CALCOLI1","CALCOLI","CALCOLO PENSIONE","RENDITE VITALIZIE"],"not_rendered":{"charts":5,"images":2,"macros":1,"external_links":0,"defined_names":5,"comments":0,"pivot_tables":0},"unopened":[],"bounds":{"document_bytes":16777216,"sheet_cells":100000,"rows_first":2000,"rows_last":500,"rows_between":2000,"halvings":0,"cell_chars":16384,"cell_head_chars":4096},"cells_cut":0,"cells_raw":0,"read":"whole","date_system":"1900"}

{"sheet":"DESCRIZIONE","index":0,"n_rows":31,"n_cols":16369,"rows_kept":31,"cut":false,"hidden":false,"merged":[[25,7,25,10],[18,464,18,479],[18,480,18,495],[18,496,18,511],[18,512,18,527],[18,528,18,543],[18,384,18,399],[18,400,18,415],[18,416,18,431],[18,432,18,447],[18,448,18,463],[4,0,4,19],[18,32,18,47],[18,48,18,63],[18,304,18,319],[18,320,18,335],[18,336,18,351],[18,352,18,367],[18,368,18,383],[18,224,18,239],[18,240,18,255],[18,256,18,271],[18,272,18,287],[18,288,18,303],[18,144,18,159],[18,160,18,175],[18,176,18,191],[18,192,18,207],[18,208,18,223],[18,64,18,79],[18,80,18,95],[18,96,18,111],[18,112,18,127],[18,784,18,799],[18,800,18,815],[18,816,18,831],[18,832,18,847],[18,848,18,863],[18,704,18,719],[18,720,18,735],[18,736,18,751],[18,752,18,767],[18,768,18,783],[18,624,18,639],[18,640,18,655],[18,656,18,671],[18,672,18,687],[18,688,18,703],[18,544,18,559],[18,560,18,575],[18,576,18,591],[18,592,18,607],[18,608,18,623],[18,128,18,143],[18,1104,18,1119],[18,1120,18,1135],[18,1136,18,1151],[18,1152,18,1167],[18,1168,18,1183],[18,1024,18,1039],[18,1040,18,1055],[18,1056,18,1071],[18,1072,18,1087],[18,1088,18,1103],[18,944,18,959],[18,960,18,975],[18,976,18,991],[18,992,18,1007],[18,1008,18,1023],[18,864,18,879],[18,880,18,895],[18,896,18,911],[18,912,18,927],[18,928,18,943],[18,1424,18,1439],[18,1440,18,1455],[18,1456,18,1471],[18,1472,18,1487],[18,1488,18,1503],[18,1344,18,1359],[18,1360,18,1375],[18,1376,18,1391],[18,1392,18,1407],[18,1408,18,1423],[18,1264,18,1279],[18,1280,18,1295],[18,1296,18,1311],[18,1312,18,1327],[18,1328,18,1343],[18,1184,18,1199],[18,1200,18,1215],[18,1216,18,1231],[18,1232,18,1247],[18,1248,18,1263],[18,1744,18,1759],[18,1760,18,1775],[18,1776,18,1791],[18,1792,18,1807],[18,1808,18,1823],[18,1664,18,1679],[18,1680,18,1695],[18,1696,18,1711],[18,1712,18,1727],[18,1728,18,1743],[18,1584,18,1599],[18,1600,18,1615],[18,1616,18,1631],[18,1632,18,1647],[18,1648,18,1663],[18,1504,18,1519],[18,1520,18,1535],[18,1536,18,1551],[18,1552,18,1567],[18,1568,18,1583],[18,2064,18,2079],[18,2080,18,2095],[18,2096,18,2111],[18,2112,18,2127],[18,2128,18,2143],[18,1984,18,1999],[18,2000,18,2015],[18,2016,18,2031],[18,2032,18,2047],[18,2048,18,2063],[18,1904,18,1919],[18,1920,18,1935],[18,1936,18,1951],[18,1952,18,1967],[18,1968,18,1983],[18,1824,18,1839],[18,1840,18,1855],[18,1856,18,1871],[18,1872,18,1887],[18,1888,18,1903],[18,2384,18,2399],[18,2400,18,2415],[18,2416,18,2431],[18,2432,18,2447],[18,2448,18,2463],[18,2304,18,2319],[18,2320,18,2335],[18,2336,18,2351],[18,2352,18,2367],[18,2368,18,2383],[18,2224,18,2239],[18,2240,18,2255],[18,2256,18,2271],[18,2272,18,2287],[18,2288,18,2303],[18,2144,18,2159],[18,2160,18,2175],[18,2176,18,2191],[18,2192,18,2207],[18,2208,18,2223],[18,2704,18,2719],[18,2720,18,2735],[18,2736,18,2751],[18,2752,18,2767],[18,2768,18,2783],[18,2624,18,2639],[18,2640,18,2655],[18,2656,18,2671],[18,2672,18,2687],[18,2688,18,2703],[18,2544,18,2559],[18,2560,18,2575],[18,2576,18,2591],[18,2592,18,2607],[18,2608,18,2623],[18,2464,18,2479],[18,2480,18,2495],[18,2496,18,2511],[18,2512,18,2527],[18,2528,18,2543],[18,3024,18,3039],[18,3040,18,3055],[18,3056,18,3071],[18,3072,18,3087],[18,3088,18,3103],[18,2944,18,2959],[18,2960,18,2975],[18,2976,18,2991],[18,2992,18,3007],[18,3008,18,3023],[18,2864,18,2879],[18,2880,18,2895],[18,2896,18,2911],[18,2912,18,2927],[18,2928,18,2943],[18,2784,18,2799],[18,2800,18,2815],[18,2816,18,2831],[18,2832,18,2847],[18,2848,18,2863],[18,3344,18,3359],[18,3360,18,3375],[18,3376,18,3391],[18,3392,18,3407],[18,3408,18,3423],[18,3264,18,3279],[18,3280,18,3295],[18,3296,18,3311],[18,3312,18,3327],[18,3328,18,3343],[18,3184,18,3199],[18,3200,18,3215],[18,3216,18,3231],[18,3232,18,3247],[18,3248,18,3263],[18,3104,18,3119],[18,3120,18,3135],[18,3136,18,3151],[18,3152,18,3167],[18,3168,18,3183],[18,3664,18,3679],[18,3680,18,3695],[18,3696,18,3711],[18,3712,18,3727],[18,3728,18,3743],[18,3584,18,3599],[18,3600,18,3615],[18,3616,18,3631],[18,3632,18,3647],[18,3648,18,3663],[18,3504,18,3519],[18,3520,18,3535],[18,3536,18,3551],[18,3552,18,3567],[18,3568,18,3583],[18,3424,18,3439],[18,3440,18,3455],[18,3456,18,3471],[18,3472,18,3487],[18,3488,18,3503],[18,3984,18,3999],[18,4000,18,4015],[18,4016,18,4031],[18,4032,18,4047],[18,4048,18,4063],[18,3904,18,3919],[18,3920,18,3935],[18,3936,18,3951],[18,3952,18,3967],[18,3968,18,3983],[18,3824,18,3839],[18,3840,18,3855],[18,3856,18,3871],[18,3872,18,3887],[18,3888,18,3903],[18,3744,18,3759],[18,3760,18,3775],[18,3776,18,3791],[18,3792,18,3807],[18,3808,18,3823],[18,4304,18,4319],[18,4320,18,4335],[18,4336,18,4351],[18,4352,18,4367],[18,4368,18,4383],[18,4224,18,4239],[18,4240,18,4255],[18,4256,18,4271],[18,4272,18,4287],[18,4288,18,4303],[18,4144,18,4159],[18,4160,18,4175],[18,4176,18,4191],[18,4192,18,4207],[18,4208,18,4223],[18,4064,18,4079],[18,4080,18,4095],[18,4096,18,4111],[18,4112,18,4127],[18,4128,18,4143],[18,4624,18,4639],[18,4640,18,4655],[18,4656,18,4671],[18,4672,18,4687],[18,4688,18,4703],[18,4544,18,4559],[18,4560,18,4575],[18,4576,18,4591],[18,4592,18,4607],[18,4608,18,4623],[18,4464,18,4479],[18,4480,18,4495],[18,4496,18,4511],[18,4512,18,4527],[18,4528,18,4543],[18,4384,18,4399],[18,4400,18,4415],[18,4416,18,4431],[18,4432,18,4447],[18,4448,18,4463],[18,4944,18,4959],[18,4960,18,4975],[18,4976,18,4991],[18,4992,18,5007],[18,5008,18,5023],[18,4864,18,4879],[18,4880,18,4895],[18,4896,18,4911],[18,4912,18,4927],[18,4928,18,4943],[18,4784,18,4799],[18,4800,18,4815],[18,4816,18,4831],[18,4832,18,4847],[18,4848,18,4863],[18,4704,18,4719],[18,4720,18,4735],[18,4736,18,4751],[18,4752,18,4767],[18,4768,18,4783],[18,5264,18,5279],[18,5280,18,5295],[18,5296,18,5311],[18,5312,18,5327],[18,5328,18,5343],[18,5184,18,5199],[18,5200,18,5215],[18,5216,18,5231],[18,5232,18,5247],[18,5248,18,5263],[18,5104,18,5119],[18,5120,18,5135],[18,5136,18,5151],[18,5152,18,5167],[18,5168,18,5183],[18,5024,18,5039],[18,5040,18,5055],[18,5056,18,5071],[18,5072,18,5087],[18,5088,18,5103],[18,5584,18,5599],[18,5600,18,5615],[18,5616,18,5631],[18,5632,18,5647],[18,5648,18,5663],[18,5504,18,5519],[18,5520,18,5535],[18,5536,18,5551],[18,5552,18,5567],[18,5568,18,5583],[18,5424,18,5439],[18,5440,18,5455],[18,5456,18,5471],[18,5472,18,5487],[18,5488,18,5503],[18,5344,18,5359],[18,5360,18,5375],[18,5376,18,5391],[18,5392,18,5407],[18,5408,18,5423],[18,5904,18,5919],[18,5920,18,5935],[18,5936,18,5951],[18,5952,18,5967],[18,5968,18,5983],[18,5824,18,5839],[18,5840,18,5855],[18,5856,18,5871],[18,5872,18,5887],[18,5888,18,5903],[18,5744,18,5759],[18,5760,18,5775],[18,5776,18,5791],[18,5792,18,5807],[18,5808,18,5823],[18,5664,18,5679],[18,5680,18,5695],[18,5696,18,5711],[18,5712,18,5727],[18,5728,18,5743],[18,6224,18,6239],[18,6240,18,6255],[18,6256,18,6271],[18,6272,18,6287],[18,6288,18,6303],[18,6144,18,6159],[18,6160,18,6175],[18,6176,18,6191],[18,6192,18,6207],[18,6208,18,6223],[18,6064,18,6079],[18,6080,18,6095],[18,6096,18,6111],[18,6112,18,6127],[18,6128,18,6143],[18,5984,18,5999],[18,6000,18,6015],[18,6016,18,6031],[18,6032,18,6047],[18,6048,18,6063],[18,6544,18,6559],[18,6560,18,6575],[18,6576,18,6591],[18,6592,18,6607],[18,6608,18,6623],[18,6464,18,6479],[18,6480,18,6495],[18,6496,18,6511],[18,6512,18,6527],[18,6528,18,6543],[18,6384,18,6399],[18,6400,18,6415],[18,6416,18,6431],[18,6432,18,6447],[18,6448,18,6463],[18,6304,18,6319],[18,6320,18,6335],[18,6336,18,6351],[18,6352,18,6367],[18,6368,18,6383],[18,6864,18,6879],[18,6880,18,6895],[18,6896,18,6911],[18,6912,18,6927],[18,6928,18,6943],[18,6784,18,6799],[18,6800,18,6815],[18,6816,18,6831],[18,6832,18,6847],[18,6848,18,6863],[18,6704,18,6719],[18,6720,18,6735],[18,6736,18,6751],[18,6752,18,6767],[18,6768,18,6783],[18,6624,18,6639],[18,6640,18,6655],[18,6656,18,6671],[18,6672,18,6687],[18,6688,18,6703],[18,7184,18,7199],[18,7200,18,7215],[18,7216,18,7231],[18,7232,18,7247],[18,7248,18,7263],[18,7104,18,7119],[18,7120,18,7135],[18,7136,18,7151],[18,7152,18,7167],[18,7168,18,7183],[18,7024,18,7039],[18,7040,18,7055],[18,7056,18,7071],[18,7072,18,7087],[18,7088,18,7103],[18,6944,18,6959],[18,6960,18,6975],[18,6976,18,6991],[18,6992,18,7007],[18,7008,18,7023],[18,7504,18,7519],[18,7520,18,7535],[18,7536,18,7551],[18,7552,18,7567],[18,7568,18,7583],[18,7424,18,7439],[18,7440,18,7455],[18,7456,18,7471],[18,7472,18,7487],[18,7488,18,7503],[18,7344,18,7359],[18,7360,18,7375],[18,7376,18,7391],[18,7392,18,7407],[18,7408,18,7423],[18,7264,18,7279],[18,7280,18,7295],[18,7296,18,7311],[18,7312,18,7327],[18,7328,18,7343],[18,7824,18,7839],[18,7840,18,7855],[18,7856,18,7871],[18,7872,18,7887],[18,7888,18,7903],[18,7744,18,7759],[18,7760,18,7775],[18,7776,18,7791],[18,7792,18,7807],[18,7808,18,7823],[18,7664,18,7679],[18,7680,18,7695],[18,7696,18,7711],[18,7712,18,7727],[18,7728,18,7743],[18,7584,18,7599],[18,7600,18,7615],[18,7616,18,7631],[18,7632,18,7647],[18,7648,18,7663],[18,8144,18,8159],[18,8160,18,8175],[18,8176,18,8191],[18,8192,18,8207],[18,8208,18,8223],[18,8064,18,8079],[18,8080,18,8095],[18,8096,18,8111],[18,8112,18,8127],[18,8128,18,8143],[18,7984,18,7999],[18,8000,18,8015],[18,8016,18,8031],[18,8032,18,8047],[18,8048,18,8063],[18,7904,18,7919],[18,7920,18,7935],[18,7936,18,7951],[18,7952,18,7967],[18,7968,18,7983],[18,8464,18,8479],[18,8480,18,8495],[18,8496,18,8511],[18,8512,18,8527],[18,8528,18,8543],[18,8384,18,8399],[18,8400,18,8415],[18,8416,18,8431],[18,8432,18,8447],[18,8448,18,8463],[18,8304,18,8319],[18,8320,18,8335],[18,8336,18,8351],[18,8352,18,8367],[18,8368,18,8383],[18,8224,18,8239],[18,8240,18,8255],[18,8256,18,8271],[18,8272,18,8287],[18,8288,18,8303],[18,8784,18,8799],[18,8800,18,8815],[18,8816,18,8831],[18,8832,18,8847],[18,8848,18,8863],[18,8704,18,8719],[18,8720,18,8735],[18,8736,18,8751],[18,8752,18,8767],[18,8768,18,8783],[18,8624,18,8639],[18,8640,18,8655],[18,8656,18,8671],[18,8672,18,8687],[18,8688,18,8703],[18,8544,18,8559],[18,8560,18,8575],[18,8576,18,8591],[18,8592,18,8607],[18,8608,18,8623],[18,9104,18,9119],[18,9120,18,9135],[18,9136,18,9151],[18,9152,18,9167],[18,9168,18,9183],[18,9024,18,9039],[18,9040,18,9055],[18,9056,18,9071],[18,9072,18,9087],[18,9088,18,9103],[18,8944,18,8959],[18,8960,18,8975],[18,8976,18,8991],[18,8992,18,9007],[18,9008,18,9023],[18,8864,18,8879],[18,8880,18,8895],[18,8896,18,8911],[18,8912,18,8927],[18,8928,18,8943],[18,9424,18,9439],[18,9440,18,9455],[18,9456,18,9471],[18,9472,18,9487],[18,9488,18,9503],[18,9344,18,9359],[18,9360,18,9375],[18,9376,18,9391],[18,9392,18,9407],[18,9408,18,9423],[18,9264,18,9279],[18,9280,18,9295],[18,9296,18,9311],[18,9312,18,9327],[18,9328,18,9343],[18,9184,18,9199],[18,9200,18,9215],[18,9216,18,9231],[18,9232,18,9247],[18,9248,18,9263],[18,9744,18,9759],[18,9760,18,9775],[18,9776,18,9791],[18,9792,18,9807],[18,9808,18,9823],[18,9664,18,9679],[18,9680,18,9695],[18,9696,18,9711],[18,9712,18,9727],[18,9728,18,9743],[18,9584,18,9599],[18,9600,18,9615],[18,9616,18,9631],[18,9632,18,9647],[18,9648,18,9663],[18,9504,18,9519],[18,9520,18,9535],[18,9536,18,9551],[18,9552,18,9567],[18,9568,18,9583],[18,10064,18,10079],[18,10080,18,10095],[18,10096,18,10111],[18,10112,18,10127],[18,10128,18,10143],[18,9984,18,9999],[18,10000,18,10015],[18,10016,18,10031],[18,10032,18,10047],[18,10048,18,10063],[18,9904,18,9919],[18,9920,18,9935],[18,9936,18,9951],[18,9952,18,9967],[18,9968,18,9983],[18,9824,18,9839],[18,9840,18,9855],[18,9856,18,9871],[18,9872,18,9887],[18,9888,18,9903],[18,10384,18,10399],[18,10400,18,10415],[18,10416,18,10431],[18,10432,18,10447],[18,10448,18,10463],[18,10304,18,10319],[18,10320,18,10335],[18,10336,18,10351],[18,10352,18,10367],[18,10368,18,10383],[18,10224,18,10239],[18,10240,18,10255],[18,10256,18,10271],[18,10272,18,10287],[18,10288,18,10303],[18,10144,18,10159],[18,10160,18,10175],[18,10176,18,10191],[18,10192,18,10207],[18,10208,18,10223],[18,10704,18,10719],[18,10720,18,10735],[18,10736,18,10751],[18,10752,18,10767],[18,10768,18,10783],[18,10624,18,10639],[18,10640,18,10655],[18,10656,18,10671],[18,10672,18,10687],[18,10688,18,10703],[18,10544,18,10559],[18,10560,18,10575],[18,10576,18,10591],[18,10592,18,10607],[18,10608,18,10623],[18,10464,18,10479],[18,10480,18,10495],[18,10496,18,10511],[18,10512,18,10527],[18,10528,18,10543],[18,11024,18,11039],[18,11040,18,11055],[18,11056,18,11071],[18,11072,18,11087],[18,11088,18,11103],[18,10944,18,10959],[18,10960,18,10975],[18,10976,18,10991],[18,10992,18,11007],[18,11008,18,11023],[18,10864,18,10879],[18,10880,18,10895],[18,10896,18,10911],[18,10912,18,10927],[18,10928,18,10943],[18,10784,18,10799],[18,10800,18,10815],[18,10816,18,10831],[18,10832,18,10847],[18,10848,18,10863],[18,11344,18,11359],[18,11360,18,11375],[18,11376,18,11391],[18,11392,18,11407],[18,11408,18,11423],[18,11264,18,11279],[18,11280,18,11295],[18,11296,18,11311],[18,11312,18,11327],[18,11328,18,11343],[18,11184,18,11199],[18,11200,18,11215],[18,11216,18,11231],[18,11232,18,11247],[18,11248,18,11263],[18,11104,18,11119],[18,11120,18,11135],[18,11136,18,11151],[18,11152,18,11167],[18,11168,18,11183],[18,11664,18,11679],[18,11680,18,11695],[18,11696,18,11711],[18,11712,18,11727],[18,11728,18,11743],[18,11584,18,11599],[18,11600,18,11615],[18,11616,18,11631],[18,11632,18,11647],[18,11648,18,11663],[18,11504,18,11519],[18,11520,18,11535],[18,11536,18,11551],[18,11552,18,11567],[18,11568,18,11583],[18,11424,18,11439],[18,11440,18,11455],[18,11456,18,11471],[18,11472,18,11487],[18,11488,18,11503],[18,11984,18,11999],[18,12000,18,12015],[18,12016,18,12031],[18,12032,18,12047],[18,12048,18,12063],[18,11904,18,11919],[18,11920,18,11935],[18,11936,18,11951],[18,11952,18,11967],[18,11968,18,11983],[18,11824,18,11839],[18,11840,18,11855],[18,11856,18,11871],[18,11872,18,11887],[18,11888,18,11903],[18,11744,18,11759],[18,11760,18,11775],[18,11776,18,11791],[18,11792,18,11807],[18,11808,18,11823],[18,12304,18,12319],[18,12320,18,12335],[18,12336,18,12351],[18,12352,18,12367],[18,12368,18,12383],[18,12224,18,12239],[18,12240,18,12255],[18,12256,18,12271],[18,12272,18,12287],[18,12288,18,12303],[18,12144,18,12159],[18,12160,18,12175],[18,12176,18,12191],[18,12192,18,12207],[18,12208,18,12223],[18,12064,18,12079],[18,12080,18,12095],[18,12096,18,12111],[18,12112,18,12127],[18,12128,18,12143],[18,12624,18,12639],[18,12640,18,12655],[18,12656,18,12671],[18,12672,18,12687],[18,12688,18,12703],[18,12544,18,12559],[18,12560,18,12575],[18,12576,18,12591],[18,12592,18,12607],[18,12608,18,12623],[18,12464,18,12479],[18,12480,18,12495],[18,12496,18,12511],[18,12512,18,12527],[18,12528,18,12543],[18,12384,18,12399],[18,12400,18,12415],[18,12416,18,12431],[18,12432,18,12447],[18,12448,18,12463],[18,12944,18,12959],[18,12960,18,12975],[18,12976,18,12991],[18,12992,18,13007],[18,13008,18,13023],[18,12864,18,12879],[18,12880,18,12895],[18,12896,18,12911],[18,12912,18,12927],[18,12928,18,12943],[18,12784,18,12799],[18,12800,18,12815],[18,12816,18,12831],[18,12832,18,12847],[18,12848,18,12863],[18,12704,18,12719],[18,12720,18,12735],[18,12736,18,12751],[18,12752,18,12767],[18,12768,18,12783],[18,13264,18,13279],[18,13280,18,13295],[18,13296,18,13311],[18,13312,18,13327],[18,13328,18,13343],[18,13184,18,13199],[18,13200,18,13215],[18,13216,18,13231],[18,13232,18,13247],[18,13248,18,13263],[18,13104,18,13119],[18,13120,18,13135],[18,13136,18,13151],[18,13152,18,13167],[18,13168,18,13183],[18,13024,18,13039],[18,13040,18,13055],[18,13056,18,13071],[18,13072,18,13087],[18,13088,18,13103],[18,13584,18,13599],[18,13600,18,13615],[18,13616,18,13631],[18,13632,18,13647],[18,13648,18,13663],[18,13504,18,13519],[18,13520,18,13535],[18,13536,18,13551],[18,13552,18,13567],[18,13568,18,13583],[18,13424,18,13439],[18,13440,18,13455],[18,13456,18,13471],[18,13472,18,13487],[18,13488,18,13503],[18,13344,18,13359],[18,13360,18,13375],[18,13376,18,13391],[18,13392,18,13407],[18,13408,18,13423],[18,13904,18,13919],[18,13920,18,13935],[18,13936,18,13951],[18,13952,18,13967],[18,13968,18,13983],[18,13824,18,13839],[18,13840,18,13855],[18,13856,18,13871],[18,13872,18,13887],[18,13888,18,13903],[18,13744,18,13759],[18,13760,18,13775],[18,13776,18,13791],[18,13792,18,13807],[18,13808,18,13823],[18,13664,18,13679],[18,13680,18,13695],[18,13696,18,13711],[18,13712,18,13727],[18,13728,18,13743],[18,14224,18,14239],[18,14240,18,14255],[18,14256,18,14271],[18,14272,18,14287],[18,14288,18,14303],[18,14144,18,14159],[18,14160,18,14175],[18,14176,18,14191],[18,14192,18,14207],[18,14208,18,14223],[18,14064,18,14079],[18,14080,18,14095],[18,14096,18,14111],[18,14112,18,14127],[18,14128,18,14143],[18,13984,18,13999],[18,14000,18,14015],[18,14016,18,14031],[18,14032,18,14047],[18,14048,18,14063],[18,14544,18,14559],[18,14560,18,14575],[18,14576,18,14591],[18,14592,18,14607],[18,14608,18,14623],[18,14464,18,14479],[18,14480,18,14495],[18,14496,18,14511],[18,14512,18,14527],[18,14528,18,14543],[18,14384,18,14399],[18,14400,18,14415],[18,14416,18,14431],[18,14432,18,14447],[18,14448,18,14463],[18,14304,18,14319],[18,14320,18,14335],[18,14336,18,14351],[18,14352,18,14367],[18,14368,18,14383],[18,14864,18,14879],[18,14880,18,14895],[18,14896,18,14911],[18,14912,18,14927],[18,14928,18,14943],[18,14784,18,14799],[18,14800,18,14815],[18,14816,18,14831],[18,14832,18,14847],[18,14848,18,14863],[18,14704,18,14719],[18,14720,18,14735],[18,14736,18,14751],[18,14752,18,14767],[18,14768,18,14783],[18,14624,18,14639],[18,14640,18,14655],[18,14656,18,14671],[18,14672,18,14687],[18,14688,18,14703],[18,15184,18,15199],[18,15200,18,15215],[18,15216,18,15231],[18,15232,18,15247],[18,15248,18,15263],[18,15104,18,15119],[18,15120,18,15135],[18,15136,18,15151],[18,15152,18,15167],[18,15168,18,15183],[18,15024,18,15039],[18,15040,18,15055],[18,15056,18,15071],[18,15072,18,15087],[18,15088,18,15103],[18,14944,18,14959],[18,14960,18,14975],[18,14976,18,14991],[18,14992,18,15007],[18,15008,18,15023],[18,15504,18,15519],[18,15520,18,15535],[18,15536,18,15551],[18,15552,18,15567],[18,15568,18,15583],[18,15424,18,15439],[18,15440,18,15455],[18,15456,18,15471],[18,15472,18,15487],[18,15488,18,15503],[18,15344,18,15359],[18,15360,18,15375],[18,15376,18,15391],[18,15392,18,15407],[18,15408,18,15423],[18,15264,18,15279],[18,15280,18,15295],[18,15296,18,15311],[18,15312,18,15327],[18,15328,18,15343],[18,15824,18,15839],[18,15840,18,15855],[18,15856,18,15871],[18,15872,18,15887],[18,15888,18,15903],[18,15744,18,15759],[18,15760,18,15775],[18,15776,18,15791],[18,15792,18,15807],[18,15808,18,15823],[18,15664,18,15679],[18,15680,18,15695],[18,15696,18,15711],[18,15712,18,15727],[18,15728,18,15743],[18,15584,18,15599],[18,15600,18,15615],[18,15616,18,15631],[18,15632,18,15647],[18,15648,18,15663],[30,4,30,17],[28,7,28,10],[18,16304,18,16319],[18,16320,18,16335],[18,16336,18,16351],[18,16352,18,16367]],"merged_total":1026,"flags":["merged_cut"]}
[]
[]
[]
["Il progetto esemplificativo individuale è dedicato, in modo specifico, ai nuovi iscritti (anche per i fiscalmente a carico) dal 2007 in poi. Vuole essere d'aiuto per valutare l'investimento nel Fondo Pensione. "]
["I risultati prodotti dai motori di calcolo non impegnano in alcun modo il Fondo Pensione"]
[]
[]
[]
[]
[]
[]
[]
[null,null,"TRA QUANTO TEMPO INVESTENDO UN CAPITALE NOTO A UN TASSO ANNUO DI RENDIMENTO NOTO POTRO' AVERE IL MONTANTE CHE MI SERVE?"]
[]
[]
[null,null,null,null,"QUANTO CAPITALE DEVO INVESTIRE PER OTTENERE TRA X ANNI IL MONTANTE DESIDERATO?"]
[]
[]
[null,"INVESTENDO UN CAPITALE ANNUALE CONOSCIUTO, CON O SENZA CAPITALE INIZIALE A UN TASSO ANNUO DI REND. CONOSCIUTO CHE MONTANTE AVRO' TRA X ANNI?",null,null,null,null,null,null,null,null,null,null,null,null,null,null,null,null,null,null,null,null,null,null,null,null,null,null,null,null,null,null,"INVESTENDO UN CAPITALE ANNUALE CONOSCIUTO, CON O SENZA CAPITALE INIZIALE A UN TASSO DI RIV CONOSCIUTO CHE MONTANTE AVRO' TRA X ANNI?",null,null,null,null,null,null,null,null,null,null,null,null,null,null,null,"INVESTENDO UN CAPITALE ANNUALE CONOSCIUTO, CON O SENZA CAPITALE INIZIALE A UN TASSO DI RIV CONOSCIUTO CHE MONTANTE AVRO' TRA X ANNI?",null,null,null,null,null,null,null,null,null,null,null,null,null,null,null,"INVESTENDO UN CAPITALE ANNUALE CONOSCIUTO, CON O SENZA CAPITALE INIZIALE A UN TASSO DI RIV CONOSCIUTO CHE MONTANTE AVRO' TRA X ANNI?",null,null,null,null,null,null,null,null,null,null,null,null,null,null,null,"INVESTENDO UN CAPITALE ANNUALE CONOSCIUTO, CON O SENZA CAPITALE INIZIALE A UN TASSO DI RIV CONOSCIUTO CHE MONTANTE AVRO' TRA X ANNI?",null,null,null,null,null,null,null,null,null,null,null,null,null,null,null,"INVESTENDO UN CAPITALE ANNUALE CONOSCIUTO, CON O SENZA CAPITALE INIZIALE A UN TASSO DI RIV CONOSCIUTO CHE MONTANTE AVRO' TRA X ANNI?",null,null,null,null,null,null,null,null,null,null,null,null,null,null,null,"INVESTENDO UN CAPITALE ANNUALE CONOSCIUTO, CON O SENZA CAPITALE INIZIALE A UN TASSO DI RIV CONOSCIUTO CHE MONTANTE AVRO' TRA X ANNI?",null,null,null,null,null,null,null,null,null,null,null,null,null,null,null,"INVESTENDO UN CAPITALE ANNUALE CONOSCIUTO, CON O SENZA CAPITALE INIZIALE A UN TASSO DI RIV CONOSCIUTO CHE MONTANTE AVRO' TRA X ANNI?",null,null,null,null,null,null,null,null,null,null,null,null,null,null,null,"INVESTENDO UN CAPITALE ANNUALE CONOSCIUTO, CON O SENZA CAPITALE INIZIALE A UN TASSO DI RIV CONOSCIUTO CHE MONTANTE AVRO' TRA X ANNI?",null,null,null,null,null,null,null,null,null,null,null,null,null,null,null,"INVESTENDO UN CAPITALE ANNUALE CONOSCIUTO, CON O SENZA CAPITALE INIZIALE A UN TASSO DI RIV CONOSCIUTO CHE MONTANTE AVRO' TRA X ANNI?",null,null,null,null,null,null,null,null,null,null,null,null,null,null,null,"INVESTENDO UN CAPITALE ANNUALE CONOSCIUTO, CON O SENZA CAPITALE INIZIALE A UN TASSO DI RIV CONOSCIUTO CHE MONTANTE AVRO' TRA X ANNI?",null,null,null,null,null,null,null,null,null,null,null,null,null,null,null,"INVESTENDO UN CAPITALE ANNUALE CONOSCIUTO, CON O SENZA CAPITALE INIZIALE A UN TASSO DI RIV CONOSCIUTO CHE MONTANTE AVRO' TRA X ANNI?",null,null,null,null,null,null,null,null,null,null,null,null,null,null,null,"INVESTENDO UN CAPITALE ANNUALE CONOSCIUTO, CON O SENZA CAPITALE INIZIALE A UN TASSO DI RIV CONOSCIUTO CHE MONTANTE AVRO' TRA X ANNI?",null,null,null,null,null,null,null,null,null,null,null,null,null,null,null,"INVESTENDO UN CAPITALE ANNUALE CONOSCIUTO, CON O SENZA CAPITALE INIZIALE A UN TASSO DI RIV CONOSCIUTO CHE MONTANTE AVRO' TRA X ANNI?",null,null,null,null,null,null,null,null,null,null,null,null,null,null,null,"INVESTENDO UN CAPITALE ANNUALE CONOSCIUTO, CON O SENZA CAPITALE INIZIALE A UN TASSO DI RIV CONOSCIUTO CHE MONTANTE AVRO' TRA X ANNI?",null,null,null,null,null,null,null,null,null,null,null,null,null,null,null,"INVESTENDO UN CAPITALE ANNUALE CONOSCIUTO, CON O SENZA CAPITALE INIZIALE A UN TASSO DI RIV CONOSCIUTO CHE MONTANTE AVRO' TRA X ANNI?",null,null,null,null,null,null,null,null,null,null,null,null,null,null,null,"INVESTENDO UN CAPITALE ANNUALE CONOSCIUTO, CON O SENZA CAPITALE INIZIALE A UN TASSO DI RIV CONOSCIUTO CHE MONTANTE AVRO' TRA X ANNI?",null,null,null,null,null,null,null,null,null,null,null,null,null,null,null,"INVESTENDO UN CAPITALE ANNUALE CONOSCIUTO, CON O SENZA CAPITALE INIZIALE A UN TASSO DI RIV CONOSCIUTO CHE MONTANTE AVRO' TRA X ANNI?",null,null,null,null,null,null,null,null,null,null,null,null,null,null,null,"INVESTENDO UN CAPITALE ANNUALE CONOSCIUTO, CON O SENZA CAPITALE INIZIALE A UN TASSO DI RIV CONOSCIUTO CHE MONTANTE AVRO' TRA X ANNI?",null,null,null,null,null,null,null,null,null,null,null,null,null,null,null,"INVESTENDO UN CAPITALE ANNUALE CONOSCIUTO, CON O SENZA CAPITALE INIZIALE A UN TASSO DI RIV CONOSCIUTO CHE MONTANTE AVRO' TRA X ANNI?",null,null,null,null,null,null,null,null,null,null,null,null,null,null,null,"INVESTENDO UN CAPITALE ANNUALE CONOSCIUTO, CON O SENZA CAPITALE INIZIALE A UN TASSO DI RIV CONOSCIUTO CHE MONTANTE AVRO' TRA X ANNI?",null,null,null,null,null,null,null,null,null,null,null,null,null,null,null,"INVESTENDO UN CAPITALE ANNUALE CONOSCIUTO, CON O SENZA CAPITALE INIZIALE A UN TASSO DI RIV CONOSCIUTO CHE MONTANTE AVRO' TRA X ANNI?",null,null,null,null,null,null,null,null,null,null,null,null,null,null,null,"INVESTENDO UN CAPITALE ANNUALE CONOSCIUTO, CON O SENZA CAPITALE INIZIALE A UN TASSO DI RIV CONOSCIUTO CHE MONTANTE AVRO' TRA X ANNI?",null,null,null,null,null,null,null,null,null,null,null,null,null,null,null,"INVESTENDO UN CAPITALE ANNUALE CONOSCIUTO, CON O SENZA CAPITALE INIZIALE A UN TASSO DI RIV CONOSCIUTO CHE MONTANTE AVRO' TRA X ANNI?",null,null,null,null,null,null,null,null,null,null,null,null,null,null,null,"INVESTENDO UN CAPITALE ANNUALE CONOSCIUTO, CON O SENZA CAPITALE INIZIALE A UN TASSO DI RIV CONOSCIUTO CHE MONTANTE AVRO' TRA X ANNI?",null,null,null,null,null,null,null,null,null,null,null,null,null,null,null,"INVESTENDO UN CAPITALE ANNUALE CONOSCIUTO, CON O SENZA CAPITALE INIZIALE A UN TASSO DI RIV CONOSCIUTO CHE MONTANTE AVRO' TRA X ANNI?",null,null,null,null,null,null,null,null,null,null,null,null,null,null,null,"INVESTENDO UN CAPITALE ANNUALE CONOSCIUTO, CON O SENZA CAPITALE INIZIALE A UN TASSO DI RIV CONOSCIUTO CHE MONTANTE AVRO' TRA X ANNI?",null,null,null,null,null,null,null,null,null,null,null,null,null,null,null,"INVESTENDO UN CAPITALE ANNUALE CONOSCIUTO, CON O SENZA CAPITALE INIZIALE A UN TASSO DI RIV CONOSCIUTO CHE MONTANTE AVRO' TRA X ANNI?",null,null,null,null,null,null,null,null,null,null,null,null,null,null,null,"INVESTENDO UN CAPITALE ANNUALE CONOSCIUTO, CON O SENZA CAPITALE INIZIALE A UN TASSO DI RIV CONOSCIUTO CHE MONTANTE AVRO' TRA X ANNI?",null,null,null,null,null,null,null,null,null,null,null,null,null,null,null,"INVESTENDO UN CAPITALE ANNUALE CONOSCIUTO, CON O SENZA CAPITALE INIZIALE A UN TASSO DI RIV CONOSCIUTO CHE MONTANTE AVRO' TRA X ANNI?",null,null,null,null,null,null,null,null,null,null,null,null,null,null,null,"INVESTENDO UN CAPITALE ANNUALE CONOSCIUTO, CON O SENZA CAPITALE INIZIALE A UN TASSO DI RIV CONOSCIUTO CHE MONTANTE AVRO' TRA X ANNI?",null,null,null,null,null,null,null,null,null,null,null,null,null,null,null,"INVESTENDO UN CAPITALE ANNUALE CONOSCIUTO, CON O SENZA CAPITALE INIZIALE A UN TASSO DI RIV CONOSCIUTO CHE MONTANTE AVRO' TRA X ANNI?",null,null,null,null,null,null,null,null,null,null,null,null,null,null,null,"INVESTENDO UN CAPITALE ANNUALE CONOSCIUTO, CON O SENZA CAPITALE INIZIALE A UN TASSO DI RIV CONOSCIUTO CHE MONTANTE AVRO' TRA X ANNI?",null,null,null,null,null,null,null,null,null,null,null,null,null,null,null,"INVESTENDO UN CAPITALE ANNUALE CONOSCIUTO, CON O SENZA CAPITALE INIZIALE A UN TASSO DI RIV CONOSCIUTO CHE MONTANTE AVRO' TRA X ANNI?",null,null,null,null,null,null,null,null,null,null,null,null,null,null,null,"INVESTENDO UN CAPITALE ANNUALE CONOSCIUTO, CON O SENZA CAPITALE INIZIALE A UN TASSO DI RIV CONOSCIUTO CHE MONTANTE AVRO' TRA X ANNI?",null,null,null,null,null,null,null,null,null,null,null,null,null,null,null,"INVESTENDO UN CAPITALE ANNUALE CONOSCIUTO, CON O SENZA CAPITALE INIZIALE A UN TASSO DI RIV CONOSCIUTO CHE MONTANTE AVRO' TRA X ANNI?",null,null,null,null,null,null,null,null,null,null,null,null,null,null,null,"INVESTENDO UN CAPITALE ANNUALE CONOSCIUTO, CON O SENZA CAPITALE INIZIALE A UN TASSO DI RIV CONOSCIUTO CHE MONTANTE AVRO' TRA X ANNI?",null,null,null,null,null,null,null,null,null,null,null,null,null,null,null,"INVESTENDO UN CAPITALE ANNUALE CONOSCIUTO, CON O SENZA CAPITALE INIZIALE A UN TASSO DI RIV CONOSCIUTO CHE MONTANTE AVRO' TRA X ANNI?",null,null,null,null,null,null,null,null,null,null,null,null,null,null,null,"INVESTENDO UN CAPITALE ANNUALE CONOSCIUTO, CON O SENZA CAPITALE INIZIALE A UN TASSO DI RIV CONOSCIUTO CHE MONTANTE AVRO' TRA X ANNI?",null,null,null,null,null,null,null,null,null,null,null,null,null,null,null,"INVESTENDO UN CAPITALE ANNUALE CONOSCIUTO, CON O SENZA CAPITALE INIZIALE A UN TASSO DI RIV CONOSCIUTO CHE MONTANTE AVRO' TRA X ANNI?",null,null,null,null,null,null,null,null,null,null,null,null,null,null,null,"INVESTENDO UN CAPITALE ANNUALE CONOSCIUTO, CON O SENZA CAPITALE INIZIALE A UN TASSO DI RIV CONOSCIUTO CHE MONTANTE AVRO' TRA X ANNI?",null,null,null,null,null,null,null,null,null,null,null,null,null,null,null,"INVESTENDO UN CAPITALE ANNUALE CONOSCIUTO, CON O SENZA CAPITALE INIZIALE A UN TASSO DI RIV CONOSCIUTO CHE MONTANTE AVRO' TRA X ANNI?",null,null,null,null,null,null,null,null,null,null,null,null,null,null,null,"INVESTENDO UN CAPITALE ANNUALE CONOSCIUTO, CON O SENZA CAPITALE INIZIALE A UN TASSO DI RIV CONOSCIUTO CHE MONTANTE AVRO' TRA X ANNI?",null,null,null,null,null,null,null,null,null,null,null,null,null,null,null,"INVESTENDO UN CAPITALE ANNUALE CONOSCIUTO, CON O SENZA CAPITALE INIZIALE A UN TASSO DI RIV CONOSCIUTO CHE MONTANTE AVRO' TRA X ANNI?",null,null,null,null,null,null,null,null,null,null,null,null,null,null,null,"INVESTENDO UN CAPITALE ANNUALE CONOSCIUTO, CON O SENZA CAPITALE INIZIALE A UN TASSO DI RIV CONOSCIUTO CHE MONTANTE AVRO' TRA X ANNI?",null,null,null,null,null,null,null,null,null,null,null,null,null,null,null,"INVESTENDO UN CAPITALE ANNUALE CONOSCIUTO, CON O SENZA CAPITALE INIZIALE A UN TASSO DI RIV CONOSCIUTO CHE MONTANTE AVRO' TRA X ANNI?",null,null,null,null,null,null,null,null,null,null,null,null,null,null,null,"INVESTENDO UN CAPITALE ANNUALE CONOSCIUTO, CON O SENZA CAPITALE INIZIALE A UN TASSO DI RIV CONOSCIUTO CHE MONTANTE AVRO' TRA X ANNI?",null,null,null,null,null,null,null,null,null,null,null,null,null,null,null,"INVESTENDO UN CAPITALE ANNUALE CONOSCIUTO, CON O SENZA CAPITALE INIZIALE A UN TASSO DI RIV CONOSCIUTO CHE MONTANTE AVRO' TRA X ANNI?",null,null,null,null,null,null,null,null,null,null,null,null,null,null,null,"INVESTENDO UN CAPITALE ANNUALE CONOSCIUTO, CON O SENZA CAPITALE INIZIALE A UN TASSO DI RIV CONOSCIUTO CHE MONTANTE AVRO' TRA X ANNI?",null,null,null,null,null,null,null,null,null,null,null,null,null,null,null,"INVESTENDO UN CAPITALE ANNUALE CONOSCIUTO, CON O SENZA CAPITALE INIZIALE A UN TASSO DI RIV CONOSCIUTO CHE MONTANTE AVRO' TRA X ANNI?",null,null,null,null,null,null,null,null,null,null,null,null,null,null,null,"INVESTENDO UN CAPITALE ANNUALE CONOSCIUTO, CON O SENZA CAPITALE INIZIALE A UN TASSO DI RIV CONOSCIUTO CHE MONTANTE AVRO' TRA X ANNI?",null,null,null,null,null,null,null,null,null,null,null,null,null,null,null,"INVESTENDO UN CAPITALE ANNUALE CONOSCIUTO, CON O SENZA CAPITALE INIZIALE A UN TASSO DI RIV CONOSCIUTO CHE MONTANTE AVRO' TRA X ANNI?",null,null,null,null,null,null,null,null,null,null,null,null,null,null,null,"INVESTENDO UN CAPITALE ANNUALE CONOSCIUTO, CON O SENZA CAPITALE INIZIALE A UN TASSO DI RIV CONOSCIUTO CHE MONTANTE AVRO' TRA X ANNI?",null,null,null,null,null,null,null,null,null,null,null,null,null,null,null,"INVESTENDO UN CAPITALE ANNUALE CONOSCIUTO, CON O SENZA CAPITALE INIZIALE A UN TASSO DI RIV CONOSCIUTO CHE MONTANTE AVRO' TRA X ANNI?",null,null,null,null,null,null,null,null,null,null,null,null,null,null,null,"INVESTENDO UN CAPITALE ANNUALE CONOSCIUTO, CON O SENZA CAPITALE INIZIALE A UN TASSO DI RIV CONOSCIUTO CHE MONTANTE AVRO' TRA X ANNI?",null,null,null,null,null,null,null,null,null,null,null,null,null,null,null,"INVESTENDO UN CAPITALE ANNUALE CONOSCIUTO, CON O SENZA CAPITALE INIZIALE A UN TASSO DI RIV CONOSCIUTO CHE MONTANTE AVRO' TRA X ANNI?",null,null,null,null,null,null,null,null,null,null,null,null,null,null,null,"INVESTENDO UN CAPITALE ANNUALE CONOSCIUTO, CON O SENZA CAPITALE INIZIALE A UN TASSO DI RIV CONOSCIUTO CHE MONTANTE AVRO' TRA X ANNI?",null,null,null,null,null,null,null,null,null,null,null,null,null,null,null,"INVESTENDO UN CAPITALE ANNUALE CONOSCIUTO, CON O SENZA CAPITALE INIZIALE A UN TASSO DI RIV CONOSCIUTO CHE MONTANTE AVRO' TRA X ANNI?",null,null,null,null,null,null,null,null,null,null,null,null,null,null,null,"INVESTENDO UN CAPITALE ANNUALE CONOSCIUTO, CON O SENZA CAPITALE INIZIALE A UN TASSO DI RIV CONOSCIUTO CHE MONTANTE AVRO' TRA X ANNI?",null,null,null,null,null,null,null,null,null,null,null,null,null,null,null,"INVESTENDO UN CAPITALE ANNUALE CONOSCIUTO, CON O SENZA CAPITALE INIZIALE A UN TASSO DI RIV CONOSCIUTO CHE MONTANTE AVRO' TRA X ANNI?",null,null,null,null,null,null,null,null,null,null,null,null,null,null,null,"INVESTENDO UN CAPITALE ANNUALE CONOSCIUTO, CON O SENZA CAPITALE INIZIALE A UN TASSO DI RIV CONOSCIUTO CHE MONTANTE AVRO' TRA X ANNI?",null,null,null,null,null,null,null,null,null,null,null,null,null,null,null,"INVESTENDO UN CAPITALE ANNUALE CONOSCIUTO, CON O SENZA CAPITALE INIZIALE A UN TASSO DI RIV CONOSCIUTO CHE MONTANTE AVRO' TRA X ANNI?",null,null,null,null,null,null,null,null,null,null,null,null,null,null,null,"INVESTENDO UN CAPITALE ANNUALE CONOSCIUTO, CON O SENZA CAPITALE INIZIALE A UN TASSO DI RIV CONOSCIUTO CHE MONTANTE AVRO' TRA X ANNI?",null,null,null,null,null,null,null,null,null,null,null,null,null,null,null,"INVESTENDO UN CAPITALE ANNUALE CONOSCIUTO, CON O SENZA CAPITALE INIZIALE A UN TASSO DI RIV CONOSCIUTO CHE MONTANTE AVRO' TRA X ANNI?",null,null,null,null,null,null,null,null,null,null,null,null,null,null,null,"INVESTENDO UN CAPITALE ANNUALE CONOSCIUTO, CON O SENZA CAPITALE INIZIALE A UN TASSO DI RIV CONOSCIUTO CHE MONTANTE AVRO' TRA X ANNI?",null,null,null,null,null,null,null,null,null,null,null,null,null,null,null,"INVESTENDO UN CAPITALE ANNUALE CONOSCIUTO, CON O SENZA CAPITALE INIZIALE A UN TASSO DI RIV CONOSCIUTO CHE MONTANTE AVRO' TRA X ANNI?",null,null,null,null,null,null,null,null,null,null,null,null,null,null,null,"INVESTENDO UN CAPITALE ANNUALE CONOSCIUTO, CON O SENZA CAPITALE INIZIALE A UN TASSO DI RIV CONOSCIUTO CHE MONTANTE AVRO' TRA X ANNI?",null,null,null,null,null,null,null,null,null,null,null,null,null,null,null,"INVESTENDO UN CAPITALE ANNUALE CONOSCIUTO, CON O SENZA CAPITALE INIZIALE A UN TASSO DI RIV CONOSCIUTO CHE MONTANTE AVRO' TRA X ANNI?",null,null,null,null,null,null,null,null,null,null,null,null,null,null,null,"INVESTENDO UN CAPITALE ANNUALE CONOSCIUTO, CON O SENZA CAPITALE INIZIALE A UN TASSO DI RIV CONOSCIUTO CHE MONTANTE AVRO' TRA X ANNI?",null,null,null,null,null,null,null,null,null,null,null,null,null,null,null,"INVESTENDO UN CAPITALE ANNUALE CONOSCIUTO, CON O SENZA CAPITALE INIZIALE A UN TASSO DI RIV CONOSCIUTO CHE MONTANTE AVRO' TRA X ANNI?",null,null,null,null,null,null,null,null,null,null,null,null,null,null,null,"INVESTENDO UN CAPITALE ANNUALE CONOSCIUTO, CON O SENZA CAPITALE INIZIALE A UN TASSO DI RIV CONOSCIUTO CHE MONTANTE AVRO' TRA X ANNI?",null,null,null,null,null,null,null,null,null,null,null,null,null,null,null,"INVESTENDO UN CAPITALE ANNUALE CONOSCIUTO, CON O SENZA CAPITALE INIZIALE A UN TASSO DI RIV CONOSCIUTO CHE MONTANTE AVRO' TRA X ANNI?",null,null,null,null,null,null,null,null,null,null,null,null,null,null,null,"INVESTENDO UN CAPITALE ANNUALE CONOSCIUTO, CON O SENZA CAPITALE INIZIALE A UN TASSO DI RIV CONOSCIUTO CHE MONTANTE AVRO' TRA X ANNI?",null,null,null,null,null,null,null,null,null,null,null,null,null,null,null,"INVESTENDO UN CAPITALE ANNUALE CONOSCIUTO, CON O SENZA CAPITALE INIZIALE A UN TASSO DI RIV CONOSCIUTO CHE MONTANTE AVRO' TRA X ANNI?",null,null,null,null,null,null,null,null,null,null,null,null,null,null,null,"INVESTENDO UN CAPITALE ANNUALE CONOSCIUTO, CON O SENZA CAPITALE INIZIALE A UN TASSO DI RIV CONOSCIUTO CHE MONTANTE AVRO' TRA X ANNI?",null,null,null,null,null,null,null,null,null,null,null,null,null,null,null,"INVESTENDO UN CAPITALE ANNUALE CONOSCIUTO, CON O SENZA CAPITALE INIZIALE A UN TASSO DI RIV CONOSCIUTO CHE MONTANTE AVRO' TRA X ANNI?",null,null,null,null,null,null,null,null,null,null,null,null,null,null,null,"INVESTENDO UN CAPITALE ANNUALE CONOSCIUTO, CON O SENZA CAPITALE INIZIALE A UN TASSO DI RIV CONOSCIUTO CHE MONTANTE AVRO' TRA X ANNI?",null,null,null,null,null,null,null,null,null,null,null,null,null,null,null,"INVESTENDO UN CAPITALE ANNUALE CONOSCIUTO, CON O SENZA CAPITALE INIZIALE A UN TASSO DI RIV CONOSCIUTO CHE MONTANTE AVRO' TRA X ANNI?",null,null,null,null,null,null,null,null,null,null,null,null,null,null,null,"INVESTENDO UN CAPITALE ANNUALE CONOSCIUTO, CON O SENZA CAPITALE INIZIALE A UN TASSO DI RIV CONOSCIUTO CHE MONTANTE AVRO' TRA X ANNI?",null,null,null,null,null,null,null,null,null,null,null,null,null,null,null,"INVESTENDO UN CAPITALE ANNUALE CONOSCIUTO, CON O SENZA CAPITALE INIZIALE A UN TASSO DI RIV CONOSCIUTO CHE MONTANTE AVRO' TRA X ANNI?",null,null,null,null,null,null,null,null,null,null,null,null,null,null,null,"INVESTENDO UN CAPITALE ANNUALE CONOSCIUTO, CON O SENZA CAPITALE INIZIALE A UN TASSO DI RIV CONOSCIUTO CHE MONTANTE AVRO' TRA X ANNI?",null,null,null,null,null,null,null,null,null,null,null,null,null,null,null,"INVESTENDO UN CAPITALE ANNUALE CONOSCIUTO, CON O SENZA CAPITALE INIZIALE A UN TASSO DI RIV CONOSCIUTO CHE MONTANTE AVRO' TRA X ANNI?",null,null,null,null,null,null,null,null,null,null,null,null,null,null,null,"INVESTENDO UN CAPITALE ANNUALE CONOSCIUTO, CON O SENZA CAPITALE INIZIALE A UN TASSO DI RIV CONOSCIUTO CHE MONTANTE AVRO' TRA X ANNI?",null,null,null,null,null,null,null,null,null,null,null,null,null,null,null,"INVESTENDO UN CAPITALE ANNUALE CONOSCIUTO, CON O SENZA CAPITALE INIZIALE A UN TASSO DI RIV CONOSCIUTO CHE MONTANTE AVRO' TRA X ANNI?",null,null,null,null,null,null,null,null,null,null,null,null,null,null,null,"INVESTENDO UN CAPITALE ANNUALE CONOSCIUTO, CON O SENZA CAPITALE INIZIALE A UN TASSO DI RIV CONOSCIUTO CHE MONTANTE AVRO' TRA X ANNI?",null,null,null,null,null,null,null,null,null,null,null,null,null,null,null,"INVESTENDO UN CAPITALE ANNUALE CONOSCIUTO, CON O SENZA CAPITALE INIZIALE A UN TASSO DI RIV CONOSCIUTO CHE MONTANTE AVRO' TRA X ANNI?",null,null,null,null,null,null,null,null,null,null,null,null,null,null,null,"INVESTENDO UN CAPITALE ANNUALE CONOSCIUTO, CON O SENZA CAPITALE INIZIALE A UN TASSO DI RIV CONOSCIUTO CHE MONTANTE AVRO' TRA X ANNI?",null,null,null,null,null,null,null,null,null,null,null,null,null,null,null,"INVESTENDO UN CAPITALE ANNUALE CONOSCIUTO, CON O SENZA CAPITALE INIZIALE A UN TASSO DI RIV CONOSCIUTO CHE MONTANTE AVRO' TRA X ANNI?",null,null,null,null,null,null,null,null,null,null,null,null,null,null,null,"INVESTENDO UN CAPITALE ANNUALE CONOSCIUTO, CON O SENZA CAPITALE INIZIALE A UN TASSO DI RIV CONOSCIUTO CHE MONTANTE AVRO' TRA X ANNI?",null,null,null,null,null,null,null,null,null,null,null,null,null,null,null,"INVESTENDO UN CAPITALE ANNUALE CONOSCIUTO, CON O SENZA CAPITALE INIZIALE A UN TASSO DI RIV CONOSCIUTO CHE MONTANTE AVRO' TRA X ANNI?",null,null,null,null,null,null,null,null,null,null,null,null,null,null,null,"INVESTENDO UN CAPITALE ANNUALE CONOSCIUTO, CON O SENZA CAPITALE INIZIALE A UN TASSO DI RIV CONOSCIUTO CHE MONTANTE AVRO' TRA X ANNI?",null,null,null,null,null,null,null,null,null,null,null,null,null,null,null,"INVESTENDO UN CAPITALE ANNUALE CONOSCIUTO, CON O SENZA CAPITALE INIZIALE A UN TASSO DI RIV CONOSCIUTO CHE MONTANTE AVRO' TRA X ANNI?",null,null,null,null,null,null,null,null,null,null,null,null,null,null,null,"INVESTENDO UN CAPITALE ANNUALE CONOSCIUTO, CON O SENZA CAPITALE INIZIALE A UN TASSO DI RIV CONOSCIUTO CHE MONTANTE AVRO' TRA X ANNI?",null,null,null,null,null,null,null,null,null,null,null,null,null,null,null,"INVESTENDO UN CAPITALE ANNUALE CONOSCIUTO, CON O SENZA CAPITALE INIZIALE A UN TASSO DI RIV CONOSCIUTO CHE MONTANTE AVRO' TRA X ANNI?",null,null,null,null,null,null,null,null,null,null,null,null,null,null,null,"INVESTENDO UN CAPITALE ANNUALE CONOSCIUTO, CON O SENZA CAPITALE INIZIALE A UN TASSO DI RIV CONOSCIUTO CHE MONTANTE AVRO' TRA X ANNI?",null,null,null,null,null,null,null,null,null,null,null,null,null,null,null,"INVESTENDO UN CAPITALE ANNUALE CONOSCIUTO, CON O SENZA CAPITALE INIZIALE A UN TASSO DI RIV CONOSCIUTO CHE MONTANTE AVRO' TRA X ANNI?",null,null,null,null,null,null,null,null,null,null,null,null,null,null,null,"INVESTENDO UN CAPITALE ANNUALE CONOSCIUTO, CON O SENZA CAPITALE INIZIALE A UN TASSO DI RIV CONOSCIUTO CHE MONTANTE AVRO' TRA X ANNI?",null,null,null,null,null,null,null,null,null,null,null,null,null,null,null,"INVESTENDO UN CAPITALE ANNUALE CONOSCIUTO, CON O SENZA CAPITALE INIZIALE A UN TASSO DI RIV CONOSCIUTO CHE MONTANTE AVRO' TRA X ANNI?",null,null,null,null,null,null,null,null,null,null,null,null,null,null,null,"INVESTENDO UN CAPITALE ANNUALE CONOSCIUTO, CON O SENZA CAPITALE INIZIALE A UN TASSO DI RIV CONOSCIUTO CHE MONTANTE AVRO' TRA X ANNI?",null,null,null,null,null,null,null,null,null,null,null,null,null,null,null,"INVESTENDO UN CAPITALE ANNUALE CONOSCIUTO, CON O SENZA CAPITALE INIZIALE A UN TASSO DI RIV CONOSCIUTO CHE MONTANTE AVRO' TRA X ANNI?",null,null,null,null,null,null,null,null,null,null,null,null,null,null,null,"INVESTENDO UN CAPITALE ANNUALE CONOSCIUTO, CON O SENZA CAPITALE INIZIALE A UN TASSO DI RIV CONOSCIUTO CHE MONTANTE AVRO' TRA X ANNI?",null,null,null,null,null,null,null,null,null,null,null,null,null,null,null,"INVESTENDO UN CAPITALE ANNUALE CONOSCIUTO, CON O SENZA CAPITALE INIZIALE A UN TASSO DI RIV CONOSCIUTO CHE MONTANTE AVRO' TRA X ANNI?",null,null,null,null,null,null,null,null,null,null,null,null,null,null,null,"INVESTENDO UN CAPITALE ANNUALE CONOSCIUTO, CON O SENZA CAPITALE INIZIALE A UN TASSO DI RIV CONOSCIUTO CHE MONTANTE AVRO' TRA X ANNI?",null,null,null,null,null,null,null,null,null,null,null,null,null,null,null,"INVESTENDO UN CAPITALE ANNUALE CONOSCIUTO, CON O SENZA CAPITALE INIZIALE A UN TASSO DI RIV CONOSCIUTO CHE MONTANTE AVRO' TRA X ANNI?",null,null,null,null,null,null,null,null,null,null,null,null,null,null,null,"INVESTENDO UN CAPITALE ANNUALE CONOSCIUTO, CON O SENZA CAPITALE INIZIALE A UN TASSO DI RIV CONOSCIUTO CHE MONTANTE AVRO' TRA X ANNI?",null,null,null,null,null,null,null,null,null,null,null,null,null,null,null,"INVESTENDO UN CAPITALE ANNUALE CONOSCIUTO, CON O SENZA CAPITALE INIZIALE A UN TASSO DI RIV CONOSCIUTO CHE MONTANTE AVRO' TRA X ANNI?",null,null,null,null,null,null,null,null,null,null,null,null,null,null,null,"INVESTENDO UN CAPITALE ANNUALE CONOSCIUTO, CON O SENZA CAPITALE INIZIALE A UN TASSO DI RIV CONOSCIUTO CHE MONTANTE AVRO' TRA X ANNI?",null,null,null,null,null,null,null,null,null,null,null,null,null,null,null,"INVESTENDO UN CAPITALE ANNUALE CONOSCIUTO, CON O SENZA CAPITALE INIZIALE A UN TASSO DI RIV CONOSCIUTO CHE MONTANTE AVRO' TRA X ANNI?",null,null,null,null,null,null,null,null,null,null,null,null,null,null,null,"INVESTENDO UN CAPITALE ANNUALE CONOSCIUTO, CON O SENZA CAPITALE INIZIALE A UN TASSO DI RIV CONOSCIUTO CHE MONTANTE AVRO' TRA X ANNI?",null,null,null,null,null,null,null,null,null,null,null,null,null,null,null,"INVESTENDO UN CAPITALE ANNUALE CONOSCIUTO, CON O SENZA CAPITALE INIZIALE A UN TASSO DI RIV CONOSCIUTO CHE MONTANTE AVRO' TRA X ANNI?",null,null,null,null,null,null,null,null,null,null,null,null,null,null,null,"INVESTENDO UN CAPITALE ANNUALE CONOSCIUTO, CON O SENZA CAPITALE INIZIALE A UN TASSO DI RIV CONOSCIUTO CHE MONTANTE AVRO' TRA X ANNI?",null,null,null,null,null,null,null,null,null,null,null,null,null,null,null,"INVESTENDO UN CAPITALE ANNUALE CONOSCIUTO, CON O SENZA CAPITALE INIZIALE A UN TASSO DI RIV CONOSCIUTO CHE MONTANTE AVRO' TRA X ANNI?",null,null,null,null,null,null,null,null,null,null,null,null,null,null,null,"INVESTENDO UN CAPITALE ANNUALE CONOSCIUTO, CON O SENZA CAPITALE INIZIALE A UN TASSO DI RIV CONOSCIUTO CHE MONTANTE AVRO' TRA X ANNI?",null,null,null,null,null,null,null,null,null,null,null,null,null,null,null,"INVESTENDO UN CAPITALE ANNUALE CONOSCIUTO, CON O SENZA CAPITALE INIZIALE A UN TASSO DI RIV CONOSCIUTO CHE MONTANTE AVRO' TRA X ANNI?",null,null,null,null,null,null,null,null,null,null,null,null,null,null,null,"INVESTENDO UN CAPITALE ANNUALE CONOSCIUTO, CON O SENZA CAPITALE INIZIALE A UN TASSO DI RIV CONOSCIUTO CHE MONTANTE AVRO' TRA X ANNI?",null,null,null,null,null,null,null,null,null,null,null,null,null,null,null,"INVESTENDO UN CAPITALE ANNUALE CONOSCIUTO, CON O SENZA CAPITALE INIZIALE A UN TASSO DI RIV CONOSCIUTO CHE MONTANTE AVRO' TRA X ANNI?",null,null,null,null,null,null,null,null,null,null,null,null,null,null,null,"INVESTENDO UN CAPITALE ANNUALE CONOSCIUTO, CON O SENZA CAPITALE INIZIALE A UN TASSO DI RIV CONOSCIUTO CHE MONTANTE AVRO' TRA X ANNI?",null,null,null,null,null,null,null,null,null,null,null,null,null,null,null,"INVESTENDO UN CAPITALE ANNUALE CONOSCIUTO, CON O SENZA CAPITALE INIZIALE A UN TASSO DI RIV CONOSCIUTO CHE MONTANTE AVRO' TRA X ANNI?",null,null,null,null,null,null,null,null,null,null,null,null,null,null,null,"INVESTENDO UN CAPITALE ANNUALE CONOSCIUTO, CON O SENZA CAPITALE INIZIALE A UN TASSO DI RIV CONOSCIUTO CHE MONTANTE AVRO' TRA X ANNI?",null,null,null,null,null,null,null,null,null,null,null,null,null,null,null,"INVESTENDO UN CAPITALE ANNUALE CONOSCIUTO, CON O SENZA CAPITALE INIZIALE A UN TASSO DI RIV CONOSCIUTO CHE MONTANTE AVRO' TRA X ANNI?",null,null,null,null,null,null,null,null,null,null,null,null,null,null,null,"INVESTENDO UN CAPITALE ANNUALE CONOSCIUTO, CON O SENZA CAPITALE INIZIALE A UN TASSO DI RIV CONOSCIUTO CHE MONTANTE AVRO' TRA X ANNI?",null,null,null,null,null,null,null,null,null,null,null,null,null,null,null,"INVESTENDO UN CAPITALE ANNUALE CONOSCIUTO, CON O SENZA CAPITALE INIZIALE A UN TASSO DI RIV CONOSCIUTO CHE MONTANTE AVRO' TRA X ANNI?",null,null,null,null,null,null,null,null,null,null,null,null,null,null,null,"INVESTENDO UN CAPITALE ANNUALE CONOSCIUTO, CON O SENZA CAPITALE INIZIALE A UN TASSO DI RIV CONOSCIUTO CHE MONTANTE AVRO' TRA X ANNI?",null,null,null,null,null,null,null,null,null,null,null,null,null,null,null,"INVESTENDO UN CAPITALE ANNUALE CONOSCIUTO, CON O SENZA CAPITALE INIZIALE A UN TASSO DI RIV CONOSCIUTO CHE MONTANTE AVRO' TRA X ANNI?",null,null,null,null,null,null,null,null,null,null,null,null,null,null,null,"INVESTENDO UN CAPITALE ANNUALE CONOSCIUTO, CON O SENZA CAPITALE INIZIALE A UN TASSO DI RIV CONOSCIUTO CHE MONTANTE AVRO' TRA X ANNI?",null,null,null,null,null,null,null,null,null,null,null,null,null,null,null,"INVESTENDO UN CAPITALE ANNUALE CONOSCIUTO, CON O SENZA CAPITALE INIZIALE A UN TASSO DI RIV CONOSCIUTO CHE MONTANTE AVRO' TRA X ANNI?",null,null,null,null,null,null,null,null,null,null,null,null,null,null,null,"INVESTENDO UN CAPITALE ANNUALE CONOSCIUTO, CON O SENZA CAPITALE INIZIALE A UN TASSO DI RIV CONOSCIUTO CHE MONTANTE AVRO' TRA X ANNI?",null,null,null,null,null,null,null,null,null,null,null,null,null,null,null,"INVESTENDO UN CAPITALE ANNUALE CONOSCIUTO, CON O SENZA CAPITALE INIZIALE A UN TASSO DI RIV CONOSCIUTO CHE MONTANTE AVRO' TRA X ANNI?",null,null,null,null,null,null,null,null,null,null,null,null,null,null,null,"INVESTENDO UN CAPITALE ANNUALE CONOSCIUTO, CON O SENZA CAPITALE INIZIALE A UN TASSO DI RIV CONOSCIUTO CHE MONTANTE AVRO' TRA X ANNI?",null,null,null,null,null,null,null,null,null,null,null,null,null,null,null,"INVESTENDO UN CAPITALE ANNUALE CONOSCIUTO, CON O SENZA CAPITALE INIZIALE A UN TASSO DI RIV CONOSCIUTO CHE MONTANTE AVRO' TRA X ANNI?",null,null,null,null,null,null,null,null,null,null,null,null,null,null,null,"INVESTENDO UN CAPITALE ANNUALE CONOSCIUTO, CON O SENZA CAPITALE INIZIALE A UN TASSO DI RIV CONOSCIUTO CHE MONTANTE AVRO' TRA X ANNI?",null,null,null,null,null,null,null,null,null,null,null,null,null,null,null,"INVESTENDO UN CAPITALE ANNUALE CONOSCIUTO, CON O SENZA CAPITALE INIZIALE A UN TASSO DI RIV CONOSCIUTO CHE MONTANTE AVRO' TRA X ANNI?",null,null,null,null,null,null,null,null,null,null,null,null,null,null,null,"INVESTENDO UN CAPITALE ANNUALE CONOSCIUTO, CON O SENZA CAPITALE INIZIALE A UN TASSO DI RIV CONOSCIUTO CHE MONTANTE AVRO' TRA X ANNI?",null,null,null,null,null,null,null,null,null,null,null,null,null,null,null,"INVESTENDO UN CAPITALE ANNUALE CONOSCIUTO, CON O SENZA CAPITALE INIZIALE A UN TASSO DI RIV CONOSCIUTO CHE MONTANTE AVRO' TRA X ANNI?",null,null,null,null,null,null,null,null,null,null,null,null,null,null,null,"INVESTENDO UN CAPITALE ANNUALE CONOSCIUTO, CON O SENZA CAPITALE INIZIALE A UN TASSO DI RIV CONOSCIUTO CHE MONTANTE AVRO' TRA X ANNI?",null,null,null,null,null,null,null,null,null,null,null,null,null,null,null,"INVESTENDO UN CAPITALE ANNUALE CONOSCIUTO, CON O SENZA CAPITALE INIZIALE A UN TASSO DI RIV CONOSCIUTO CHE MONTANTE AVRO' TRA X ANNI?",null,null,null,null,null,null,null,null,null,null,null,null,null,null,null,"INVESTENDO UN CAPITALE ANNUALE CONOSCIUTO, CON O SENZA CAPITALE INIZIALE A UN TASSO DI RIV CONOSCIUTO CHE MONTANTE AVRO' TRA X ANNI?",null,null,null,null,null,null,null,null,null,null,null,null,null,null,null,"INVESTENDO UN CAPITALE ANNUALE CONOSCIUTO, CON O SENZA CAPITALE INIZIALE A UN TASSO DI RIV CONOSCIUTO CHE MONTANTE AVRO' TRA X ANNI?",null,null,null,null,null,null,null,null,null,null,null,null,null,null,null,"INVESTENDO UN CAPITALE ANNUALE CONOSCIUTO, CON O SENZA CAPITALE INIZIALE A UN TASSO DI RIV CONOSCIUTO CHE MONTANTE AVRO' TRA X ANNI?",null,null,null,null,null,null,null,null,null,null,null,null,null,null,null,"INVESTENDO UN CAPITALE ANNUALE CONOSCIUTO, CON O SENZA CAPITALE INIZIALE A UN TASSO DI RIV CONOSCIUTO CHE MONTANTE AVRO' TRA X ANNI?",null,null,null,null,null,null,null,null,null,null,null,null,null,null,null,"INVESTENDO UN CAPITALE ANNUALE CONOSCIUTO, CON O SENZA CAPITALE INIZIALE A UN TASSO DI RIV CONOSCIUTO CHE MONTANTE AVRO' TRA X ANNI?",null,null,null,null,null,null,null,null,null,null,null,null,null,null,null,"INVESTENDO UN CAPITALE ANNUALE CONOSCIUTO, CON O SENZA CAPITALE INIZIALE A UN TASSO DI RIV CONOSCIUTO CHE MONTANTE AVRO' TRA X ANNI?",null,null,null,null,null,null,null,null,null,null,null,null,null,null,null,"INVESTENDO UN CAPITALE ANNUALE CONOSCIUTO, CON O SENZA CAPITALE INIZIALE A UN TASSO DI RIV CONOSCIUTO CHE MONTANTE AVRO' TRA X ANNI?",null,null,null,null,null,null,null,null,null,null,null,null,null,null,null,"INVESTENDO UN CAPITALE ANNUALE CONOSCIUTO, CON O SENZA CAPITALE INIZIALE A UN TASSO DI RIV CONOSCIUTO CHE MONTANTE AVRO' TRA X ANNI?",null,null,null,null,null,null,null,null,null,null,null,null,null,null,null,"INVESTENDO UN CAPITALE ANNUALE CONOSCIUTO, CON O SENZA CAPITALE INIZIALE A UN TASSO DI RIV CONOSCIUTO CHE MONTANTE AVRO' TRA X ANNI?",null,null,null,null,null,null,null,null,null,null,null,null,null,null,null,"INVESTENDO UN CAPITALE ANNUALE CONOSCIUTO, CON O SENZA CAPITALE INIZIALE A UN TASSO DI RIV CONOSCIUTO CHE MONTANTE AVRO' TRA X ANNI?",null,null,null,null,null,null,null,null,null,null,null,null,null,null,null,"INVESTENDO UN CAPITALE ANNUALE CONOSCIUTO, CON O SENZA CAPITALE INIZIALE A UN TASSO DI RIV CONOSCIUTO CHE MONTANTE AVRO' TRA X ANNI?",null,null,null,null,null,null,null,null,null,null,null,null,null,null,null,"INVESTENDO UN CAPITALE ANNUALE CONOSCIUTO, CON O SENZA CAPITALE INIZIALE A UN TASSO DI RIV CONOSCIUTO CHE MONTANTE AVRO' TRA X ANNI?",null,null,null,null,null,null,null,null,null,null,null,null,null,null,null,"INVESTENDO UN CAPITALE ANNUALE CONOSCIUTO, CON O SENZA CAPITALE INIZIALE A UN TASSO DI RIV CONOSCIUTO CHE MONTANTE AVRO' TRA X ANNI?",null,null,null,null,null,null,null,null,null,null,null,null,null,null,null,"INVESTENDO UN CAPITALE ANNUALE CONOSCIUTO, CON O SENZA CAPITALE INIZIALE A UN TASSO DI RIV CONOSCIUTO CHE MONTANTE AVRO' TRA X ANNI?",null,null,null,null,null,null,null,null,null,null,null,null,null,null,null,"INVESTENDO UN CAPITALE ANNUALE CONOSCIUTO, CON O SENZA CAPITALE INIZIALE A UN TASSO DI RIV CONOSCIUTO CHE MONTANTE AVRO' TRA X ANNI?",null,null,null,null,null,null,null,null,null,null,null,null,null,null,null,"INVESTENDO UN CAPITALE ANNUALE CONOSCIUTO, CON O SENZA CAPITALE INIZIALE A UN TASSO DI RIV CONOSCIUTO CHE MONTANTE AVRO' TRA X ANNI?",null,null,null,null,null,null,null,null,null,null,null,null,null,null,null,"INVESTENDO UN CAPITALE ANNUALE CONOSCIUTO, CON O SENZA CAPITALE INIZIALE A UN TASSO DI RIV CONOSCIUTO CHE MONTANTE AVRO' TRA X ANNI?",null,null,null,null,null,null,null,null,null,null,null,null,null,null,null,"INVESTENDO UN CAPITALE ANNUALE CONOSCIUTO, CON O SENZA CAPITALE INIZIALE A UN TASSO DI RIV CONOSCIUTO CHE MONTANTE AVRO' TRA X ANNI?",null,null,null,null,null,null,null,null,null,null,null,null,null,null,null,"INVESTENDO UN CAPITALE ANNUALE CONOSCIUTO, CON O SENZA CAPITALE INIZIALE A UN TASSO DI RIV CONOSCIUTO CHE MONTANTE AVRO' TRA X ANNI?",null,null,null,null,null,null,null,null,null,null,null,null,null,null,null,"INVESTENDO UN CAPITALE ANNUALE CONOSCIUTO, CON O SENZA CAPITALE INIZIALE A UN TASSO DI RIV CONOSCIUTO CHE MONTANTE AVRO' TRA X ANNI?",null,null,null,null,null,null,null,null,null,null,null,null,null,null,null,"INVESTENDO UN CAPITALE ANNUALE CONOSCIUTO, CON O SENZA CAPITALE INIZIALE A UN TASSO DI RIV CONOSCIUTO CHE MONTANTE AVRO' TRA X ANNI?",null,null,null,null,null,null,null,null,null,null,null,null,null,null,null,"INVESTENDO UN CAPITALE ANNUALE CONOSCIUTO, CON O SENZA CAPITALE INIZIALE A UN TASSO DI RIV CONOSCIUTO CHE MONTANTE AVRO' TRA X ANNI?",null,null,null,null,null,null,null,null,null,null,null,null,null,null,null,"INVESTENDO UN CAPITALE ANNUALE CONOSCIUTO, CON O SENZA CAPITALE INIZIALE A UN TASSO DI RIV CONOSCIUTO CHE MONTANTE AVRO' TRA X ANNI?",null,null,null,null,null,null,null,null,null,null,null,null,null,null,null,"INVESTENDO UN CAPITALE ANNUALE CONOSCIUTO, CON O SENZA CAPITALE INIZIALE A UN TASSO DI RIV CONOSCIUTO CHE MONTANTE AVRO' TRA X ANNI?",null,null,null,null,null,null,null,null,null,null,null,null,null,null,null,"INVESTENDO UN CAPITALE ANNUALE CONOSCIUTO, CON O SENZA CAPITALE INIZIALE A UN TASSO DI RIV CONOSCIUTO CHE MONTANTE AVRO' TRA X ANNI?",null,null,null,null,null,null,null,null,null,null,null,null,null,null,null,"INVESTENDO UN CAPITALE ANNUALE CONOSCIUTO, CON O SENZA CAPITALE INIZIALE A UN TASSO DI RIV CONOSCIUTO CHE MONTANTE AVRO' TRA X ANNI?",null,null,null,null,null,null,null,null,null,null,null,null,null,null,null,"INVESTENDO UN CAPITALE ANNUALE CONOSCIUTO, CON O SENZA CAPITALE INIZIALE A UN TASSO DI RIV CONOSCIUTO CHE MONTANTE AVRO' TRA X ANNI?",null,null,null,null,null,null,null,null,null,null,null,null,null,null,null,"INVESTENDO UN CAPITALE ANNUALE CONOSCIUTO, CON O SENZA CAPITALE INIZIALE A UN TASSO DI RIV CONOSCIUTO CHE MONTANTE AVRO' TRA X ANNI?",null,null,null,null,null,null,null,null,null,null,null,null,null,null,null,"INVESTENDO UN CAPITALE ANNUALE CONOSCIUTO, CON O SENZA CAPITALE INIZIALE A UN TASSO DI RIV CONOSCIUTO CHE MONTANTE AVRO' TRA X ANNI?",null,null,null,null,null,null,null,null,null,null,null,null,null,null,null,"INVESTENDO UN CAPITALE ANNUALE CONOSCIUTO, CON O SENZA CAPITALE INIZIALE A UN TASSO DI RIV CONOSCIUTO CHE MONTANTE AVRO' TRA X ANNI?",null,null,null,null,null,null,null,null,null,null,null,null,null,null,null,"INVESTENDO UN CAPITALE ANNUALE CONOSCIUTO, CON O SENZA CAPITALE INIZIALE A UN TASSO DI RIV CONOSCIUTO CHE MONTANTE AVRO' TRA X ANNI?",null,null,null,null,null,null,null,null,null,null,null,null,null,null,null,"INVESTENDO UN CAPITALE ANNUALE CONOSCIUTO, CON O SENZA CAPITALE INIZIALE A UN TASSO DI RIV CONOSCIUTO CHE MONTANTE AVRO' TRA X ANNI?",null,null,null,null,null,null,null,null,null,null,null,null,null,null,null,"INVESTENDO UN CAPITALE ANNUALE CONOSCIUTO, CON O SENZA CAPITALE INIZIALE A UN TASSO DI RIV CONOSCIUTO CHE MONTANTE AVRO' TRA X ANNI?",null,null,null,null,null,null,null,null,null,null,null,null,null,null,null,"INVESTENDO UN CAPITALE ANNUALE CONOSCIUTO, CON O SENZA CAPITALE INIZIALE A UN TASSO DI RIV CONOSCIUTO CHE MONTANTE AVRO' TRA X ANNI?",null,null,null,null,null,null,null,null,null,null,null,null,null,null,null,"INVESTENDO UN CAPITALE ANNUALE CONOSCIUTO, CON O SENZA CAPITALE INIZIALE A UN TASSO DI RIV CONOSCIUTO CHE MONTANTE AVRO' TRA X ANNI?",null,null,null,null,null,null,null,null,null,null,null,null,null,null,null,"INVESTENDO UN CAPITALE ANNUALE CONOSCIUTO, CON O SENZA CAPITALE INIZIALE A UN TASSO DI RIV CONOSCIUTO CHE MONTANTE AVRO' TRA X ANNI?",null,null,null,null,null,null,null,null,null,null,null,null,null,null,null,"INVESTENDO UN CAPITALE ANNUALE CONOSCIUTO, CON O SENZA CAPITALE INIZIALE A UN TASSO DI RIV CONOSCIUTO CHE MONTANTE AVRO' TRA X ANNI?",null,null,null,null,null,null,null,null,null,null,null,null,null,null,null,"INVESTENDO UN CAPITALE ANNUALE CONOSCIUTO, CON O SENZA CAPITALE INIZIALE A UN TASSO DI RIV CONOSCIUTO CHE MONTANTE AVRO' TRA X ANNI?",null,null,null,null,null,null,null,null,null,null,null,null,null,null,null,"INVESTENDO UN CAPITALE ANNUALE CONOSCIUTO, CON O SENZA CAPITALE INIZIALE A UN TASSO DI RIV CONOSCIUTO CHE MONTANTE AVRO' TRA X ANNI?",null,null,null,null,null,null,null,null,null,null,null,null,null,null,null,"INVESTENDO UN CAPITALE ANNUALE CONOSCIUTO, CON O SENZA CAPITALE INIZIALE A UN TASSO DI RIV CONOSCIUTO CHE MONTANTE AVRO' TRA X ANNI?",null,null,null,null,null,null,null,null,null,null,null,null,null,null,null,"INVESTENDO UN CAPITALE ANNUALE CONOSCIUTO, CON O SENZA CAPITALE INIZIALE A UN TASSO DI RIV CONOSCIUTO CHE MONTANTE AVRO' TRA X ANNI?",null,null,null,null,null,null,null,null,null,null,null,null,null,null,null,"INVESTENDO UN CAPITALE ANNUALE CONOSCIUTO, CON O SENZA CAPITALE INIZIALE A UN TASSO DI RIV CONOSCIUTO CHE MONTANTE AVRO' TRA X ANNI?",null,null,null,null,null,null,null,null,null,null,null,null,null,null,null,"INVESTENDO UN CAPITALE ANNUALE CONOSCIUTO, CON O SENZA CAPITALE INIZIALE A UN TASSO DI RIV CONOSCIUTO CHE MONTANTE AVRO' TRA X ANNI?",null,null,null,null,null,null,null,null,null,null,null,null,null,null,null,"INVESTENDO UN CAPITALE ANNUALE CONOSCIUTO, CON O SENZA CAPITALE INIZIALE A UN TASSO DI RIV CONOSCIUTO CHE MONTANTE AVRO' TRA X ANNI?",null,null,null,null,null,null,null,null,null,null,null,null,null,null,null,"INVESTENDO UN CAPITALE ANNUALE CONOSCIUTO, CON O SENZA CAPITALE INIZIALE A UN TASSO DI RIV CONOSCIUTO CHE MONTANTE AVRO' TRA X ANNI?",null,null,null,null,null,null,null,null,null,null,null,null,null,null,null,"INVESTENDO UN CAPITALE ANNUALE CONOSCIUTO, CON O SENZA CAPITALE INIZIALE A UN TASSO DI RIV CONOSCIUTO CHE MONTANTE AVRO' TRA X ANNI?",null,null,null,null,null,null,null,null,null,null,null,null,null,null,null,"INVESTENDO UN CAPITALE ANNUALE CONOSCIUTO, CON O SENZA CAPITALE INIZIALE A UN TASSO DI RIV CONOSCIUTO CHE MONTANTE AVRO' TRA X ANNI?",null,null,null,null,null,null,null,null,null,null,null,null,null,null,null,"INVESTENDO UN CAPITALE ANNUALE CONOSCIUTO, CON O SENZA CAPITALE INIZIALE A UN TASSO DI RIV CONOSCIUTO CHE MONTANTE AVRO' TRA X ANNI?",null,null,null,null,null,null,null,null,null,null,null,null,null,null,null,"INVESTENDO UN CAPITALE ANNUALE CONOSCIUTO, CON O SENZA CAPITALE INIZIALE A UN TASSO DI RIV CONOSCIUTO CHE MONTANTE AVRO' TRA X ANNI?",null,null,null,null,null,null,null,null,null,null,null,null,null,null,null,"INVESTENDO UN CAPITALE ANNUALE CONOSCIUTO, CON O SENZA CAPITALE INIZIALE A UN TASSO DI RIV CONOSCIUTO CHE MONTANTE AVRO' TRA X ANNI?",null,null,null,null,null,null,null,null,null,null,null,null,null,null,null,"INVESTENDO UN CAPITALE ANNUALE CONOSCIUTO, CON O SENZA CAPITALE INIZIALE A UN TASSO DI RIV CONOSCIUTO CHE MONTANTE AVRO' TRA X ANNI?",null,null,null,null,null,null,null,null,null,null,null,null,null,null,null,"INVESTENDO UN CAPITALE ANNUALE CONOSCIUTO, CON O SENZA CAPITALE INIZIALE A UN TASSO DI RIV CONOSCIUTO CHE MONTANTE AVRO' TRA X ANNI?",null,null,null,null,null,null,null,null,null,null,null,null,null,null,null,"INVESTENDO UN CAPITALE ANNUALE CONOSCIUTO, CON O SENZA CAPITALE INIZIALE A UN TASSO DI RIV CONOSCIUTO CHE MONTANTE AVRO' TRA X ANNI?",null,null,null,null,null,null,null,null,null,null,null,null,null,null,null,"INVESTENDO UN CAPITALE ANNUALE CONOSCIUTO, CON O SENZA CAPITALE INIZIALE A UN TASSO DI RIV CONOSCIUTO CHE MONTANTE AVRO' TRA X ANNI?",null,null,null,null,null,null,null,null,null,null,null,null,null,null,null,"INVESTENDO UN CAPITALE ANNUALE CONOSCIUTO, CON O SENZA CAPITALE INIZIALE A UN TASSO DI RIV CONOSCIUTO CHE MONTANTE AVRO' TRA X ANNI?",null,null,null,null,null,null,null,null,null,null,null,null,null,null,null,"INVESTENDO UN CAPITALE ANNUALE CONOSCIUTO, CON O SENZA CAPITALE INIZIALE A UN TASSO DI RIV CONOSCIUTO CHE MONTANTE AVRO' TRA X ANNI?",null,null,null,null,null,null,null,null,null,null,null,null,null,null,null,"INVESTENDO UN CAPITALE ANNUALE CONOSCIUTO, CON O SENZA CAPITALE INIZIALE A UN TASSO DI RIV CONOSCIUTO CHE MONTANTE AVRO' TRA X ANNI?",null,null,null,null,null,null,null,null,null,null,null,null,null,null,null,"INVESTENDO UN CAPITALE ANNUALE CONOSCIUTO, CON O SENZA CAPITALE INIZIALE A UN TASSO DI RIV CONOSCIUTO CHE MONTANTE AVRO' TRA X ANNI?",null,null,null,null,null,null,null,null,null,null,null,null,null,null,null,"INVESTENDO UN CAPITALE ANNUALE CONOSCIUTO, CON O SENZA CAPITALE INIZIALE A UN TASSO DI RIV CONOSCIUTO CHE MONTANTE AVRO' TRA X ANNI?",null,null,null,null,null,null,null,null,null,null,null,null,null,null,null,"INVESTENDO UN CAPITALE ANNUALE CONOSCIUTO, CON O SENZA CAPITALE INIZIALE A UN TASSO DI RIV CONOSCIUTO CHE MONTANTE AVRO' TRA X ANNI?",null,null,null,null,null,null,null,null,null,null,null,null,null,null,null,"INVESTENDO UN CAPITALE ANNUALE CONOSCIUTO, CON O SENZA CAPITALE INIZIALE A UN TASSO DI RIV CONOSCIUTO CHE MONTANTE AVRO' TRA X ANNI?",null,null,null,null,null,null,null,null,null,null,null,null,null,null,null,"INVESTENDO UN CAPITALE ANNUALE CONOSCIUTO, CON O SENZA CAPITALE INIZIALE A UN TASSO DI RIV CONOSCIUTO CHE MONTANTE AVRO' TRA X ANNI?",null,null,null,null,null,null,null,null,null,null,null,null,null,null,null,"INVESTENDO UN CAPITALE ANNUALE CONOSCIUTO, CON O SENZA CAPITALE INIZIALE A UN TASSO DI RIV CONOSCIUTO CHE MONTANTE AVRO' TRA X ANNI?",null,null,null,null,null,null,null,null,null,null,null,null,null,null,null,"INVESTENDO UN CAPITALE ANNUALE CONOSCIUTO, CON O SENZA CAPITALE INIZIALE A UN TASSO DI RIV CONOSCIUTO CHE MONTANTE AVRO' TRA X ANNI?",null,null,null,null,null,null,null,null,null,null,null,null,null,null,null,"INVESTENDO UN CAPITALE ANNUALE CONOSCIUTO, CON O SENZA CAPITALE INIZIALE A UN TASSO DI RIV CONOSCIUTO CHE MONTANTE AVRO' TRA X ANNI?",null,null,null,null,null,null,null,null,null,null,null,null,null,null,null,"INVESTENDO UN CAPITALE ANNUALE CONOSCIUTO, CON O SENZA CAPITALE INIZIALE A UN TASSO DI RIV CONOSCIUTO CHE MONTANTE AVRO' TRA X ANNI?",null,null,null,null,null,null,null,null,null,null,null,null,null,null,null,"INVESTENDO UN CAPITALE ANNUALE CONOSCIUTO, CON O SENZA CAPITALE INIZIALE A UN TASSO DI RIV CONOSCIUTO CHE MONTANTE AVRO' TRA X ANNI?",null,null,null,null,null,null,null,null,null,null,null,null,null,null,null,"INVESTENDO UN CAPITALE ANNUALE CONOSCIUTO, CON O SENZA CAPITALE INIZIALE A UN TASSO DI RIV CONOSCIUTO CHE MONTANTE AVRO' TRA X ANNI?",null,null,null,null,null,null,null,null,null,null,null,null,null,null,null,"INVESTENDO UN CAPITALE ANNUALE CONOSCIUTO, CON O SENZA CAPITALE INIZIALE A UN TASSO DI RIV CONOSCIUTO CHE MONTANTE AVRO' TRA X ANNI?",null,null,null,null,null,null,null,null,null,null,null,null,null,null,null,"INVESTENDO UN CAPITALE ANNUALE CONOSCIUTO, CON O SENZA CAPITALE INIZIALE A UN TASSO DI RIV CONOSCIUTO CHE MONTANTE AVRO' TRA X ANNI?",null,null,null,null,null,null,null,null,null,null,null,null,null,null,null,"INVESTENDO UN CAPITALE ANNUALE CONOSCIUTO, CON O SENZA CAPITALE INIZIALE A UN TASSO DI RIV CONOSCIUTO CHE MONTANTE AVRO' TRA X ANNI?",null,null,null,null,null,null,null,null,null,null,null,null,null,null,null,"INVESTENDO UN CAPITALE ANNUALE CONOSCIUTO, CON O SENZA CAPITALE INIZIALE A UN TASSO DI RIV CONOSCIUTO CHE MONTANTE AVRO' TRA X ANNI?",null,null,null,null,null,null,null,null,null,null,null,null,null,null,null,"INVESTENDO UN CAPITALE ANNUALE CONOSCIUTO, CON O SENZA CAPITALE INIZIALE A UN TASSO DI RIV CONOSCIUTO CHE MONTANTE AVRO' TRA X ANNI?",null,null,null,null,null,null,null,null,null,null,null,null,null,null,null,"INVESTENDO UN CAPITALE ANNUALE CONOSCIUTO, CON O SENZA CAPITALE INIZIALE A UN TASSO DI RIV CONOSCIUTO CHE MONTANTE AVRO' TRA X ANNI?",null,null,null,null,null,null,null,null,null,null,null,null,null,null,null,"INVESTENDO UN CAPITALE ANNUALE CONOSCIUTO, CON O SENZA CAPITALE INIZIALE A UN TASSO DI RIV CONOSCIUTO CHE MONTANTE AVRO' TRA X ANNI?",null,null,null,null,null,null,null,null,null,null,null,null,null,null,null,"INVESTENDO UN CAPITALE ANNUALE CONOSCIUTO, CON O SENZA CAPITALE INIZIALE A UN TASSO DI RIV CONOSCIUTO CHE MONTANTE AVRO' TRA X ANNI?",null,null,null,null,null,null,null,null,null,null,null,null,null,null,null,"INVESTENDO UN CAPITALE ANNUALE CONOSCIUTO, CON O SENZA CAPITALE INIZIALE A UN TASSO DI RIV CONOSCIUTO CHE MONTANTE AVRO' TRA X ANNI?",null,null,null,null,null,null,null,null,null,null,null,null,null,null,null,"INVESTENDO UN CAPITALE ANNUALE CONOSCIUTO, CON O SENZA CAPITALE INIZIALE A UN TASSO DI RIV CONOSCIUTO CHE MONTANTE AVRO' TRA X ANNI?",null,null,null,null,null,null,null,null,null,null,null,null,null,null,null,"INVESTENDO UN CAPITALE ANNUALE CONOSCIUTO, CON O SENZA CAPITALE INIZIALE A UN TASSO DI RIV CONOSCIUTO CHE MONTANTE AVRO' TRA X ANNI?",null,null,null,null,null,null,null,null,null,null,null,null,null,null,null,"INVESTENDO UN CAPITALE ANNUALE CONOSCIUTO, CON O SENZA CAPITALE INIZIALE A UN TASSO DI RIV CONOSCIUTO CHE MONTANTE AVRO' TRA X ANNI?",null,null,null,null,null,null,null,null,null,null,null,null,null,null,null,"INVESTENDO UN CAPITALE ANNUALE CONOSCIUTO, CON O SENZA CAPITALE INIZIALE A UN TASSO DI RIV CONOSCIUTO CHE MONTANTE AVRO' TRA X ANNI?",null,null,null,null,null,null,null,null,null,null,null,null,null,null,null,"INVESTENDO UN CAPITALE ANNUALE CONOSCIUTO, CON O SENZA CAPITALE INIZIALE A UN TASSO DI RIV CONOSCIUTO CHE MONTANTE AVRO' TRA X ANNI?",null,null,null,null,null,null,null,null,null,null,null,null,null,null,null,"INVESTENDO UN CAPITALE ANNUALE CONOSCIUTO, CON O SENZA CAPITALE INIZIALE A UN TASSO DI RIV CONOSCIUTO CHE MONTANTE AVRO' TRA X ANNI?",null,null,null,null,null,null,null,null,null,null,null,null,null,null,null,"INVESTENDO UN CAPITALE ANNUALE CONOSCIUTO, CON O SENZA CAPITALE INIZIALE A UN TASSO DI RIV CONOSCIUTO CHE MONTANTE AVRO' TRA X ANNI?",null,null,null,null,null,null,null,null,null,null,null,null,null,null,null,"INVESTENDO UN CAPITALE ANNUALE CONOSCIUTO, CON O SENZA CAPITALE INIZIALE A UN TASSO DI RIV CONOSCIUTO CHE MONTANTE AVRO' TRA X ANNI?",null,null,null,null,null,null,null,null,null,null,null,null,null,null,null,"INVESTENDO UN CAPITALE ANNUALE CONOSCIUTO, CON O SENZA CAPITALE INIZIALE A UN TASSO DI RIV CONOSCIUTO CHE MONTANTE AVRO' TRA X ANNI?",null,null,null,null,null,null,null,null,null,null,null,null,null,null,null,"INVESTENDO UN CAPITALE ANNUALE CONOSCIUTO, CON O SENZA CAPITALE INIZIALE A UN TASSO DI RIV CONOSCIUTO CHE MONTANTE AVRO' TRA X ANNI?",null,null,null,null,null,null,null,null,null,null,null,null,null,null,null,"INVESTENDO UN CAPITALE ANNUALE CONOSCIUTO, CON O SENZA CAPITALE INIZIALE A UN TASSO DI RIV CONOSCIUTO CHE MONTANTE AVRO' TRA X ANNI?",null,null,null,null,null,null,null,null,null,null,null,null,null,null,null,"INVESTENDO UN CAPITALE ANNUALE CONOSCIUTO, CON O SENZA CAPITALE INIZIALE A UN TASSO DI RIV CONOSCIUTO CHE MONTANTE AVRO' TRA X ANNI?",null,null,null,null,null,null,null,null,null,null,null,null,null,null,null,"INVESTENDO UN CAPITALE ANNUALE CONOSCIUTO, CON O SENZA CAPITALE INIZIALE A UN TASSO DI RIV CONOSCIUTO CHE MONTANTE AVRO' TRA X ANNI?",null,null,null,null,null,null,null,null,null,null,null,null,null,null,null,"INVESTENDO UN CAPITALE ANNUALE CONOSCIUTO, CON O SENZA CAPITALE INIZIALE A UN TASSO DI RIV CONOSCIUTO CHE MONTANTE AVRO' TRA X ANNI?",null,null,null,null,null,null,null,null,null,null,null,null,null,null,null,"INVESTENDO UN CAPITALE ANNUALE CONOSCIUTO, CON O SENZA CAPITALE INIZIALE A UN TASSO DI RIV CONOSCIUTO CHE MONTANTE AVRO' TRA X ANNI?",null,null,null,null,null,null,null,null,null,null,null,null,null,null,null,"INVESTENDO UN CAPITALE ANNUALE CONOSCIUTO, CON O SENZA CAPITALE INIZIALE A UN TASSO DI RIV CONOSCIUTO CHE MONTANTE AVRO' TRA X ANNI?",null,null,null,null,null,null,null,null,null,null,null,null,null,null,null,"INVESTENDO UN CAPITALE ANNUALE CONOSCIUTO, CON O SENZA CAPITALE INIZIALE A UN TASSO DI RIV CONOSCIUTO CHE MONTANTE AVRO' TRA X ANNI?",null,null,null,null,null,null,null,null,null,null,null,null,null,null,null,"INVESTENDO UN CAPITALE ANNUALE CONOSCIUTO, CON O SENZA CAPITALE INIZIALE A UN TASSO DI RIV CONOSCIUTO CHE MONTANTE AVRO' TRA X ANNI?",null,null,null,null,null,null,null,null,null,null,null,null,null,null,null,"INVESTENDO UN CAPITALE ANNUALE CONOSCIUTO, CON O SENZA CAPITALE INIZIALE A UN TASSO DI RIV CONOSCIUTO CHE MONTANTE AVRO' TRA X ANNI?",null,null,null,null,null,null,null,null,null,null,null,null,null,null,null,"INVESTENDO UN CAPITALE ANNUALE CONOSCIUTO, CON O SENZA CAPITALE INIZIALE A UN TASSO DI RIV CONOSCIUTO CHE MONTANTE AVRO' TRA X ANNI?",null,null,null,null,null,null,null,null,null,null,null,null,null,null,null,"INVESTENDO UN CAPITALE ANNUALE CONOSCIUTO, CON O SENZA CAPITALE INIZIALE A UN TASSO DI RIV CONOSCIUTO CHE MONTANTE AVRO' TRA X ANNI?",null,null,null,null,null,null,null,null,null,null,null,null,null,null,null,"INVESTENDO UN CAPITALE ANNUALE CONOSCIUTO, CON O SENZA CAPITALE INIZIALE A UN TASSO DI RIV CONOSCIUTO CHE MONTANTE AVRO' TRA X ANNI?",null,null,null,null,null,null,null,null,null,null,null,null,null,null,null,"INVESTENDO UN CAPITALE ANNUALE CONOSCIUTO, CON O SENZA CAPITALE INIZIALE A UN TASSO DI RIV CONOSCIUTO CHE MONTANTE AVRO' TRA X ANNI?",null,null,null,null,null,null,null,null,null,null,null,null,null,null,null,"INVESTENDO UN CAPITALE ANNUALE CONOSCIUTO, CON O SENZA CAPITALE INIZIALE A UN TASSO DI RIV CONOSCIUTO CHE MONTANTE AVRO' TRA X ANNI?",null,null,null,null,null,null,null,null,null,null,null,null,null,null,null,"INVESTENDO UN CAPITALE ANNUALE CONOSCIUTO, CON O SENZA CAPITALE INIZIALE A UN TASSO DI RIV CONOSCIUTO CHE MONTANTE AVRO' TRA X ANNI?",null,null,null,null,null,null,null,null,null,null,null,null,null,null,null,"INVESTENDO UN CAPITALE ANNUALE CONOSCIUTO, CON O SENZA CAPITALE INIZIALE A UN TASSO DI RIV CONOSCIUTO CHE MONTANTE AVRO' TRA X ANNI?",null,null,null,null,null,null,null,null,null,null,null,null,null,null,null,"INVESTENDO UN CAPITALE ANNUALE CONOSCIUTO, CON O SENZA CAPITALE INIZIALE A UN TASSO DI RIV CONOSCIUTO CHE MONTANTE AVRO' TRA X ANNI?",null,null,null,null,null,null,null,null,null,null,null,null,null,null,null,"INVESTENDO UN CAPITALE ANNUALE CONOSCIUTO, CON O SENZA CAPITALE INIZIALE A UN TASSO DI RIV CONOSCIUTO CHE MONTANTE AVRO' TRA X ANNI?",null,null,null,null,null,null,null,null,null,null,null,null,null,null,null,"INVESTENDO UN CAPITALE ANNUALE CONOSCIUTO, CON O SENZA CAPITALE INIZIALE A UN TASSO DI RIV CONOSCIUTO CHE MONTANTE AVRO' TRA X ANNI?",null,null,null,null,null,null,null,null,null,null,null,null,null,null,null,"INVESTENDO UN CAPITALE ANNUALE CONOSCIUTO, CON O SENZA CAPITALE INIZIALE A UN TASSO DI RIV CONOSCIUTO CHE MONTANTE AVRO' TRA X ANNI?",null,null,null,null,null,null,null,null,null,null,null,null,null,null,null,"INVESTENDO UN CAPITALE ANNUALE CONOSCIUTO, CON O SENZA CAPITALE INIZIALE A UN TASSO DI RIV CONOSCIUTO CHE MONTANTE AVRO' TRA X ANNI?",null,null,null,null,null,null,null,null,null,null,null,null,null,null,null,"INVESTENDO UN CAPITALE ANNUALE CONOSCIUTO, CON O SENZA CAPITALE INIZIALE A UN TASSO DI RIV CONOSCIUTO CHE MONTANTE AVRO' TRA X ANNI?",null,null,null,null,null,null,null,null,null,null,null,null,null,null,null,"INVESTENDO UN CAPITALE ANNUALE CONOSCIUTO, CON O SENZA CAPITALE INIZIALE A UN TASSO DI RIV CONOSCIUTO CHE MONTANTE AVRO' TRA X ANNI?",null,null,null,null,null,null,null,null,null,null,null,null,null,null,null,"INVESTENDO UN CAPITALE ANNUALE CONOSCIUTO, CON O SENZA CAPITALE INIZIALE A UN TASSO DI RIV CONOSCIUTO CHE MONTANTE AVRO' TRA X ANNI?",null,null,null,null,null,null,null,null,null,null,null,null,null,null,null,"INVESTENDO UN CAPITALE ANNUALE CONOSCIUTO, CON O SENZA CAPITALE INIZIALE A UN TASSO DI RIV CONOSCIUTO CHE MONTANTE AVRO' TRA X ANNI?",null,null,null,null,null,null,null,null,null,null,null,null,null,null,null,"INVESTENDO UN CAPITALE ANNUALE CONOSCIUTO, CON O SENZA CAPITALE INIZIALE A UN TASSO DI RIV CONOSCIUTO CHE MONTANTE AVRO' TRA X ANNI?",null,null,null,null,null,null,null,null,null,null,null,null,null,null,null,"INVESTENDO UN CAPITALE ANNUALE CONOSCIUTO, CON O SENZA CAPITALE INIZIALE A UN TASSO DI RIV CONOSCIUTO CHE MONTANTE AVRO' TRA X ANNI?",null,null,null,null,null,null,null,null,null,null,null,null,null,null,null,"INVESTENDO UN CAPITALE ANNUALE CONOSCIUTO, CON O SENZA CAPITALE INIZIALE A UN TASSO DI RIV CONOSCIUTO CHE MONTANTE AVRO' TRA X ANNI?",null,null,null,null,null,null,null,null,null,null,null,null,null,null,null,"INVESTENDO UN CAPITALE ANNUALE CONOSCIUTO, CON O SENZA CAPITALE INIZIALE A UN TASSO DI RIV CONOSCIUTO CHE MONTANTE AVRO' TRA X ANNI?",null,null,null,null,null,null,null,null,null,null,null,null,null,null,null,"INVESTENDO UN CAPITALE ANNUALE CONOSCIUTO, CON O SENZA CAPITALE INIZIALE A UN TASSO DI RIV CONOSCIUTO CHE MONTANTE AVRO' TRA X ANNI?",null,null,null,null,null,null,null,null,null,null,null,null,null,null,null,"INVESTENDO UN CAPITALE ANNUALE CONOSCIUTO, CON O SENZA CAPITALE INIZIALE A UN TASSO DI RIV CONOSCIUTO CHE MONTANTE AVRO' TRA X ANNI?",null,null,null,null,null,null,null,null,null,null,null,null,null,null,null,"INVESTENDO UN CAPITALE ANNUALE CONOSCIUTO, CON O SENZA CAPITALE INIZIALE A UN TASSO DI RIV CONOSCIUTO CHE MONTANTE AVRO' TRA X ANNI?",null,null,null,null,null,null,null,null,null,null,null,null,null,null,null,"INVESTENDO UN CAPITALE ANNUALE CONOSCIUTO, CON O SENZA CAPITALE INIZIALE A UN TASSO DI RIV CONOSCIUTO CHE MONTANTE AVRO' TRA X ANNI?",null,null,null,null,null,null,null,null,null,null,null,null,null,null,null,"INVESTENDO UN CAPITALE ANNUALE CONOSCIUTO, CON O SENZA CAPITALE INIZIALE A UN TASSO DI RIV CONOSCIUTO CHE MONTANTE AVRO' TRA X ANNI?",null,null,null,null,null,null,null,null,null,null,null,null,null,null,null,"INVESTENDO UN CAPITALE ANNUALE CONOSCIUTO, CON O SENZA CAPITALE INIZIALE A UN TASSO DI RIV CONOSCIUTO CHE MONTANTE AVRO' TRA X ANNI?",null,null,null,null,null,null,null,null,null,null,null,null,null,null,null,"INVESTENDO UN CAPITALE ANNUALE CONOSCIUTO, CON O SENZA CAPITALE INIZIALE A UN TASSO DI RIV CONOSCIUTO CHE MONTANTE AVRO' TRA X ANNI?",null,null,null,null,null,null,null,null,null,null,null,null,null,null,null,"INVESTENDO UN CAPITALE ANNUALE CONOSCIUTO, CON O SENZA CAPITALE INIZIALE A UN TASSO DI RIV CONOSCIUTO CHE MONTANTE AVRO' TRA X ANNI?",null,null,null,null,null,null,null,null,null,null,null,null,null,null,null,"INVESTENDO UN CAPITALE ANNUALE CONOSCIUTO, CON O SENZA CAPITALE INIZIALE A UN TASSO DI RIV CONOSCIUTO CHE MONTANTE AVRO' TRA X ANNI?",null,null,null,null,null,null,null,null,null,null,null,null,null,null,null,"INVESTENDO UN CAPITALE ANNUALE CONOSCIUTO, CON O SENZA CAPITALE INIZIALE A UN TASSO DI RIV CONOSCIUTO CHE MONTANTE AVRO' TRA X ANNI?",null,null,null,null,null,null,null,null,null,null,null,null,null,null,null,"INVESTENDO UN CAPITALE ANNUALE CONOSCIUTO, CON O SENZA CAPITALE INIZIALE A UN TASSO DI RIV CONOSCIUTO CHE MONTANTE AVRO' TRA X ANNI?",null,null,null,null,null,null,null,null,null,null,null,null,null,null,null,"INVESTENDO UN CAPITALE ANNUALE CONOSCIUTO, CON O SENZA CAPITALE INIZIALE A UN TASSO DI RIV CONOSCIUTO CHE MONTANTE AVRO' TRA X ANNI?",null,null,null,null,null,null,null,null,null,null,null,null,null,null,null,"INVESTENDO UN CAPITALE ANNUALE CONOSCIUTO, CON O SENZA CAPITALE INIZIALE A UN TASSO DI RIV CONOSCIUTO CHE MONTANTE AVRO' TRA X ANNI?",null,null,null,null,null,null,null,null,null,null,null,null,null,null,null,"INVESTENDO UN CAPITALE ANNUALE CONOSCIUTO, CON O SENZA CAPITALE INIZIALE A UN TASSO DI RIV CONOSCIUTO CHE MONTANTE AVRO' TRA X ANNI?",null,null,null,null,null,null,null,null,null,null,null,null,null,null,null,"INVESTENDO UN CAPITALE ANNUALE CONOSCIUTO, CON O SENZA CAPITALE INIZIALE A UN TASSO DI RIV CONOSCIUTO CHE MONTANTE AVRO' TRA X ANNI?",null,null,null,null,null,null,null,null,null,null,null,null,null,null,null,"INVESTENDO UN CAPITALE ANNUALE CONOSCIUTO, CON O SENZA CAPITALE INIZIALE A UN TASSO DI RIV CONOSCIUTO CHE MONTANTE AVRO' TRA X ANNI?",null,null,null,null,null,null,null,null,null,null,null,null,null,null,null,"INVESTENDO UN CAPITALE ANNUALE CONOSCIUTO, CON O SENZA CAPITALE INIZIALE A UN TASSO DI RIV CONOSCIUTO CHE MONTANTE AVRO' TRA X ANNI?",null,null,null,null,null,null,null,null,null,null,null,null,null,null,null,"INVESTENDO UN CAPITALE ANNUALE CONOSCIUTO, CON O SENZA CAPITALE INIZIALE A UN TASSO DI RIV CONOSCIUTO CHE MONTANTE AVRO' TRA X ANNI?",null,null,null,null,null,null,null,null,null,null,null,null,null,null,null,"INVESTENDO UN CAPITALE ANNUALE CONOSCIUTO, CON O SENZA CAPITALE INIZIALE A UN TASSO DI RIV CONOSCIUTO CHE MONTANTE AVRO' TRA X ANNI?",null,null,null,null,null,null,null,null,null,null,null,null,null,null,null,"INVESTENDO UN CAPITALE ANNUALE CONOSCIUTO, CON O SENZA CAPITALE INIZIALE A UN TASSO DI RIV CONOSCIUTO CHE MONTANTE AVRO' TRA X ANNI?",null,null,null,null,null,null,null,null,null,null,null,null,null,null,null,"INVESTENDO UN CAPITALE ANNUALE CONOSCIUTO, CON O SENZA CAPITALE INIZIALE A UN TASSO DI RIV CONOSCIUTO CHE MONTANTE AVRO' TRA X ANNI?",null,null,null,null,null,null,null,null,null,null,null,null,null,null,null,"INVESTENDO UN CAPITALE ANNUALE CONOSCIUTO, CON O SENZA CAPITALE INIZIALE A UN TASSO DI RIV CONOSCIUTO CHE MONTANTE AVRO' TRA X ANNI?",null,null,null,null,null,null,null,null,null,null,null,null,null,null,null,"INVESTENDO UN CAPITALE ANNUALE CONOSCIUTO, CON O SENZA CAPITALE INIZIALE A UN TASSO DI RIV CONOSCIUTO CHE MONTANTE AVRO' TRA X ANNI?",null,null,null,null,null,null,null,null,null,null,null,null,null,null,null,"INVESTENDO UN CAPITALE ANNUALE CONOSCIUTO, CON O SENZA CAPITALE INIZIALE A UN TASSO DI RIV CONOSCIUTO CHE MONTANTE AVRO' TRA X ANNI?",null,null,null,null,null,null,null,null,null,null,null,null,null,null,null,"INVESTENDO UN CAPITALE ANNUALE CONOSCIUTO, CON O SENZA CAPITALE INIZIALE A UN TASSO DI RIV CONOSCIUTO CHE MONTANTE AVRO' TRA X ANNI?",null,null,null,null,null,null,null,null,null,null,null,null,null,null,null,"INVESTENDO UN CAPITALE ANNUALE CONOSCIUTO, CON O SENZA CAPITALE INIZIALE A UN TASSO DI RIV CONOSCIUTO CHE MONTANTE AVRO' TRA X ANNI?",null,null,null,null,null,null,null,null,null,null,null,null,null,null,null,"INVESTENDO UN CAPITALE ANNUALE CONOSCIUTO, CON O SENZA CAPITALE INIZIALE A UN TASSO DI RIV CONOSCIUTO CHE MONTANTE AVRO' TRA X ANNI?",null,null,null,null,null,null,null,null,null,null,null,null,null,null,null,"INVESTENDO UN CAPITALE ANNUALE CONOSCIUTO, CON O SENZA CAPITALE INIZIALE A UN TASSO DI RIV CONOSCIUTO CHE MONTANTE AVRO' TRA X ANNI?",null,null,null,null,null,null,null,null,null,null,null,null,null,null,null,"INVESTENDO UN CAPITALE ANNUALE CONOSCIUTO, CON O SENZA CAPITALE INIZIALE A UN TASSO DI RIV CONOSCIUTO CHE MONTANTE AVRO' TRA X ANNI?",null,null,null,null,null,null,null,null,null,null,null,null,null,null,null,"INVESTENDO UN CAPITALE ANNUALE CONOSCIUTO, CON O SENZA CAPITALE INIZIALE A UN TASSO DI RIV CONOSCIUTO CHE MONTANTE AVRO' TRA X ANNI?",null,null,null,null,null,null,null,null,null,null,null,null,null,null,null,"INVESTENDO UN CAPITALE ANNUALE CONOSCIUTO, CON O SENZA CAPITALE INIZIALE A UN TASSO DI RIV CONOSCIUTO CHE MONTANTE AVRO' TRA X ANNI?",null,null,null,null,null,null,null,null,null,null,null,null,null,null,null,"INVESTENDO UN CAPITALE ANNUALE CONOSCIUTO, CON O SENZA CAPITALE INIZIALE A UN TASSO DI RIV CONOSCIUTO CHE MONTANTE AVRO' TRA X ANNI?",null,null,null,null,null,null,null,null,null,null,null,null,null,null,null,"INVESTENDO UN CAPITALE ANNUALE CONOSCIUTO, CON O SENZA CAPITALE INIZIALE A UN TASSO DI RIV CONOSCIUTO CHE MONTANTE AVRO' TRA X ANNI?",null,null,null,null,null,null,null,null,null,null,null,null,null,null,null,"INVESTENDO UN CAPITALE ANNUALE CONOSCIUTO, CON O SENZA CAPITALE INIZIALE A UN TASSO DI RIV CONOSCIUTO CHE MONTANTE AVRO' TRA X ANNI?",null,null,null,null,null,null,null,null,null,null,null,null,null,null,null,"INVESTENDO UN CAPITALE ANNUALE CONOSCIUTO, CON O SENZA CAPITALE INIZIALE A UN TASSO DI RIV CONOSCIUTO CHE MONTANTE AVRO' TRA X ANNI?",null,null,null,null,null,null,null,null,null,null,null,null,null,null,null,"INVESTENDO UN CAPITALE ANNUALE CONOSCIUTO, CON O SENZA CAPITALE INIZIALE A UN TASSO DI RIV CONOSCIUTO CHE MONTANTE AVRO' TRA X ANNI?",null,null,null,null,null,null,null,null,null,null,null,null,null,null,null,"INVESTENDO UN CAPITALE ANNUALE CONOSCIUTO, CON O SENZA CAPITALE INIZIALE A UN TASSO DI RIV CONOSCIUTO CHE MONTANTE AVRO' TRA X ANNI?",null,null,null,null,null,null,null,null,null,null,null,null,null,null,null,"INVESTENDO UN CAPITALE ANNUALE CONOSCIUTO, CON O SENZA CAPITALE INIZIALE A UN TASSO DI RIV CONOSCIUTO CHE MONTANTE AVRO' TRA X ANNI?",null,null,null,null,null,null,null,null,null,null,null,null,null,null,null,"INVESTENDO UN CAPITALE ANNUALE CONOSCIUTO, CON O SENZA CAPITALE INIZIALE A UN TASSO DI RIV CONOSCIUTO CHE MONTANTE AVRO' TRA X ANNI?",null,null,null,null,null,null,null,null,null,null,null,null,null,null,null,"INVESTENDO UN CAPITALE ANNUALE CONOSCIUTO, CON O SENZA CAPITALE INIZIALE A UN TASSO DI RIV CONOSCIUTO CHE MONTANTE AVRO' TRA X ANNI?",null,null,null,null,null,null,null,null,null,null,null,null,null,null,null,"INVESTENDO UN CAPITALE ANNUALE CONOSCIUTO, CON O SENZA CAPITALE INIZIALE A UN TASSO DI RIV CONOSCIUTO CHE MONTANTE AVRO' TRA X ANNI?",null,null,null,null,null,null,null,null,null,null,null,null,null,null,null,"INVESTENDO UN CAPITALE ANNUALE CONOSCIUTO, CON O SENZA CAPITALE INIZIALE A UN TASSO DI RIV CONOSCIUTO CHE MONTANTE AVRO' TRA X ANNI?",null,null,null,null,null,null,null,null,null,null,null,null,null,null,null,"INVESTENDO UN CAPITALE ANNUALE CONOSCIUTO, CON O SENZA CAPITALE INIZIALE A UN TASSO DI RIV CONOSCIUTO CHE MONTANTE AVRO' TRA X ANNI?",null,null,null,null,null,null,null,null,null,null,null,null,null,null,null,"INVESTENDO UN CAPITALE ANNUALE CONOSCIUTO, CON O SENZA CAPITALE INIZIALE A UN TASSO DI RIV CONOSCIUTO CHE MONTANTE AVRO' TRA X ANNI?",null,null,null,null,null,null,null,null,null,null,null,null,null,null,null,"INVESTENDO UN CAPITALE ANNUALE CONOSCIUTO, CON O SENZA CAPITALE INIZIALE A UN TASSO DI RIV CONOSCIUTO CHE MONTANTE AVRO' TRA X ANNI?",null,null,null,null,null,null,null,null,null,null,null,null,null,null,null,"INVESTENDO UN CAPITALE ANNUALE CONOSCIUTO, CON O SENZA CAPITALE INIZIALE A UN TASSO DI RIV CONOSCIUTO CHE MONTANTE AVRO' TRA X ANNI?",null,null,null,null,null,null,null,null,null,null,null,null,null,null,null,"INVESTENDO UN CAPITALE ANNUALE CONOSCIUTO, CON O SENZA CAPITALE INIZIALE A UN TASSO DI RIV CONOSCIUTO CHE MONTANTE AVRO' TRA X ANNI?",null,null,null,null,null,null,null,null,null,null,null,null,null,null,null,"INVESTENDO UN CAPITALE ANNUALE CONOSCIUTO, CON O SENZA CAPITALE INIZIALE A UN TASSO DI RIV CONOSCIUTO CHE MONTANTE AVRO' TRA X ANNI?",null,null,null,null,null,null,null,null,null,null,null,null,null,null,null,"INVESTENDO UN CAPITALE ANNUALE CONOSCIUTO, CON O SENZA CAPITALE INIZIALE A UN TASSO DI RIV CONOSCIUTO CHE MONTANTE AVRO' TRA X ANNI?",null,null,null,null,null,null,null,null,null,null,null,null,null,null,null,"INVESTENDO UN CAPITALE ANNUALE CONOSCIUTO, CON O SENZA CAPITALE INIZIALE A UN TASSO DI RIV CONOSCIUTO CHE MONTANTE AVRO' TRA X ANNI?",null,null,null,null,null,null,null,null,null,null,null,null,null,null,null,"INVESTENDO UN CAPITALE ANNUALE CONOSCIUTO, CON O SENZA CAPITALE INIZIALE A UN TASSO DI RIV CONOSCIUTO CHE MONTANTE AVRO' TRA X ANNI?",null,null,null,null,null,null,null,null,null,null,null,null,null,null,null,"INVESTENDO UN CAPITALE ANNUALE CONOSCIUTO, CON O SENZA CAPITALE INIZIALE A UN TASSO DI RIV CONOSCIUTO CHE MONTANTE AVRO' TRA X ANNI?",null,null,null,null,null,null,null,null,null,null,null,null,null,null,null,"INVESTENDO UN CAPITALE ANNUALE CONOSCIUTO, CON O SENZA CAPITALE INIZIALE A UN TASSO DI RIV CONOSCIUTO CHE MONTANTE AVRO' TRA X ANNI?",null,null,null,null,null,null,null,null,null,null,null,null,null,null,null,"INVESTENDO UN CAPITALE ANNUALE CONOSCIUTO, CON O SENZA CAPITALE INIZIALE A UN TASSO DI RIV CONOSCIUTO CHE MONTANTE AVRO' TRA X ANNI?",null,null,null,null,null,null,null,null,null,null,null,null,null,null,null,"INVESTENDO UN CAPITALE ANNUALE CONOSCIUTO, CON O SENZA CAPITALE INIZIALE A UN TASSO DI RIV CONOSCIUTO CHE MONTANTE AVRO' TRA X ANNI?",null,null,null,null,null,null,null,null,null,null,null,null,null,null,null,"INVESTENDO UN CAPITALE ANNUALE CONOSCIUTO, CON O SENZA CAPITALE INIZIALE A UN TASSO DI RIV CONOSCIUTO CHE MONTANTE AVRO' TRA X ANNI?",null,null,null,null,null,null,null,null,null,null,null,null,null,null,null,"INVESTENDO UN CAPITALE ANNUALE CONOSCIUTO, CON O SENZA CAPITALE INIZIALE A UN TASSO DI RIV CONOSCIUTO CHE MONTANTE AVRO' TRA X ANNI?",null,null,null,null,null,null,null,null,null,null,null,null,null,null,null,"INVESTENDO UN CAPITALE ANNUALE CONOSCIUTO, CON O SENZA CAPITALE INIZIALE A UN TASSO DI RIV CONOSCIUTO CHE MONTANTE AVRO' TRA X ANNI?",null,null,null,null,null,null,null,null,null,null,null,null,null,null,null,"INVESTENDO UN CAPITALE ANNUALE CONOSCIUTO, CON O SENZA CAPITALE INIZIALE A UN TASSO DI RIV CONOSCIUTO CHE MONTANTE AVRO' TRA X ANNI?",null,null,null,null,null,null,null,null,null,null,null,null,null,null,null,"INVESTENDO UN CAPITALE ANNUALE CONOSCIUTO, CON O SENZA CAPITALE INIZIALE A UN TASSO DI RIV CONOSCIUTO CHE MONTANTE AVRO' TRA X ANNI?",null,null,null,null,null,null,null,null,null,null,null,null,null,null,null,"INVESTENDO UN CAPITALE ANNUALE CONOSCIUTO, CON O SENZA CAPITALE INIZIALE A UN TASSO DI RIV CONOSCIUTO CHE MONTANTE AVRO' TRA X ANNI?",null,null,null,null,null,null,null,null,null,null,null,null,null,null,null,"INVESTENDO UN CAPITALE ANNUALE CONOSCIUTO, CON O SENZA CAPITALE INIZIALE A UN TASSO DI RIV CONOSCIUTO CHE MONTANTE AVRO' TRA X ANNI?",null,null,null,null,null,null,null,null,null,null,null,null,null,null,null,"INVESTENDO UN CAPITALE ANNUALE CONOSCIUTO, CON O SENZA CAPITALE INIZIALE A UN TASSO DI RIV CONOSCIUTO CHE MONTANTE AVRO' TRA X ANNI?",null,null,null,null,null,null,null,null,null,null,null,null,null,null,null,"INVESTENDO UN CAPITALE ANNUALE CONOSCIUTO, CON O SENZA CAPITALE INIZIALE A UN TASSO DI RIV CONOSCIUTO CHE MONTANTE AVRO' TRA X ANNI?",null,null,null,null,null,null,null,null,null,null,null,null,null,null,null,"INVESTENDO UN CAPITALE ANNUALE CONOSCIUTO, CON O SENZA CAPITALE INIZIALE A UN TASSO DI RIV CONOSCIUTO CHE MONTANTE AVRO' TRA X ANNI?",null,null,null,null,null,null,null,null,null,null,null,null,null,null,null,"INVESTENDO UN CAPITALE ANNUALE CONOSCIUTO, CON O SENZA CAPITALE INIZIALE A UN TASSO DI RIV CONOSCIUTO CHE MONTANTE AVRO' TRA X ANNI?",null,null,null,null,null,null,null,null,null,null,null,null,null,null,null,"INVESTENDO UN CAPITALE ANNUALE CONOSCIUTO, CON O SENZA CAPITALE INIZIALE A UN TASSO DI RIV CONOSCIUTO CHE MONTANTE AVRO' TRA X ANNI?",null,null,null,null,null,null,null,null,null,null,null,null,null,null,null,"INVESTENDO UN CAPITALE ANNUALE CONOSCIUTO, CON O SENZA CAPITALE INIZIALE A UN TASSO DI RIV CONOSCIUTO CHE MONTANTE AVRO' TRA X ANNI?",null,null,null,null,null,null,null,null,null,null,null,null,null,null,null,"INVESTENDO UN CAPITALE ANNUALE CONOSCIUTO, CON O SENZA CAPITALE INIZIALE A UN TASSO DI RIV CONOSCIUTO CHE MONTANTE AVRO' TRA X ANNI?",null,null,null,null,null,null,null,null,null,null,null,null,null,null,null,"INVESTENDO UN CAPITALE ANNUALE CONOSCIUTO, CON O SENZA CAPITALE INIZIALE A UN TASSO DI RIV CONOSCIUTO CHE MONTANTE AVRO' TRA X ANNI?",null,null,null,null,null,null,null,null,null,null,null,null,null,null,null,"INVESTENDO UN CAPITALE ANNUALE CONOSCIUTO, CON O SENZA CAPITALE INIZIALE A UN TASSO DI RIV CONOSCIUTO CHE MONTANTE AVRO' TRA X ANNI?",null,null,null,null,null,null,null,null,null,null,null,null,null,null,null,"INVESTENDO UN CAPITALE ANNUALE CONOSCIUTO, CON O SENZA CAPITALE INIZIALE A UN TASSO DI RIV CONOSCIUTO CHE MONTANTE AVRO' TRA X ANNI?",null,null,null,null,null,null,null,null,null,null,null,null,null,null,null,"INVESTENDO UN CAPITALE ANNUALE CONOSCIUTO, CON O SENZA CAPITALE INIZIALE A UN TASSO DI RIV CONOSCIUTO CHE MONTANTE AVRO' TRA X ANNI?",null,null,null,null,null,null,null,null,null,null,null,null,null,null,null,"INVESTENDO UN CAPITALE ANNUALE CONOSCIUTO, CON O SENZA CAPITALE INIZIALE A UN TASSO DI RIV CONOSCIUTO CHE MONTANTE AVRO' TRA X ANNI?",null,null,null,null,null,null,null,null,null,null,null,null,null,null,null,"INVESTENDO UN CAPITALE ANNUALE CONOSCIUTO, CON O SENZA CAPITALE INIZIALE A UN TASSO DI RIV CONOSCIUTO CHE MONTANTE AVRO' TRA X ANNI?",null,null,null,null,null,null,null,null,null,null,null,null,null,null,null,"INVESTENDO UN CAPITALE ANNUALE CONOSCIUTO, CON O SENZA CAPITALE INIZIALE A UN TASSO DI RIV CONOSCIUTO CHE MONTANTE AVRO' TRA X ANNI?",null,null,null,null,null,null,null,null,null,null,null,null,null,null,null,"INVESTENDO UN CAPITALE ANNUALE CONOSCIUTO, CON O SENZA CAPITALE INIZIALE A UN TASSO DI RIV CONOSCIUTO CHE MONTANTE AVRO' TRA X ANNI?",null,null,null,null,null,null,null,null,null,null,null,null,null,null,null,"INVESTENDO UN CAPITALE ANNUALE CONOSCIUTO, CON O SENZA CAPITALE INIZIALE A UN TASSO DI RIV CONOSCIUTO CHE MONTANTE AVRO' TRA X ANNI?",null,null,null,null,null,null,null,null,null,null,null,null,null,null,null,"INVESTENDO UN CAPITALE ANNUALE CONOSCIUTO, CON O SENZA CAPITALE INIZIALE A UN TASSO DI RIV CONOSCIUTO CHE MONTANTE AVRO' TRA X ANNI?",null,null,null,null,null,null,null,null,null,null,null,null,null,null,null,"INVESTENDO UN CAPITALE ANNUALE CONOSCIUTO, CON O SENZA CAPITALE INIZIALE A UN TASSO DI RIV CONOSCIUTO CHE MONTANTE AVRO' TRA X ANNI?",null,null,null,null,null,null,null,null,null,null,null,null,null,null,null,"INVESTENDO UN CAPITALE ANNUALE CONOSCIUTO, CON O SENZA CAPITALE INIZIALE A UN TASSO DI RIV CONOSCIUTO CHE MONTANTE AVRO' TRA X ANNI?",null,null,null,null,null,null,null,null,null,null,null,null,null,null,null,"INVESTENDO UN CAPITALE ANNUALE CONOSCIUTO, CON O SENZA CAPITALE INIZIALE A UN TASSO DI RIV CONOSCIUTO CHE MONTANTE AVRO' TRA X ANNI?",null,null,null,null,null,null,null,null,null,null,null,null,null,null,null,"INVESTENDO UN CAPITALE ANNUALE CONOSCIUTO, CON O SENZA CAPITALE INIZIALE A UN TASSO DI RIV CONOSCIUTO CHE MONTANTE AVRO' TRA X ANNI?",null,null,null,null,null,null,null,null,null,null,null,null,null,null,null,"INVESTENDO UN CAPITALE ANNUALE CONOSCIUTO, CON O SENZA CAPITALE INIZIALE A UN TASSO DI RIV CONOSCIUTO CHE MONTANTE AVRO' TRA X ANNI?",null,null,null,null,null,null,null,null,null,null,null,null,null,null,null,"INVESTENDO UN CAPITALE ANNUALE CONOSCIUTO, CON O SENZA CAPITALE INIZIALE A UN TASSO DI RIV CONOSCIUTO CHE MONTANTE AVRO' TRA X ANNI?",null,null,null,null,null,null,null,null,null,null,null,null,null,null,null,"INVESTENDO UN CAPITALE ANNUALE CONOSCIUTO, CON O SENZA CAPITALE INIZIALE A UN TASSO DI RIV CONOSCIUTO CHE MONTANTE AVRO' TRA X ANNI?",null,null,null,null,null,null,null,null,null,null,null,null,null,null,null,"INVESTENDO UN CAPITALE ANNUALE CONOSCIUTO, CON O SENZA CAPITALE INIZIALE A UN TASSO DI RIV CONOSCIUTO CHE MONTANTE AVRO' TRA X ANNI?",null,null,null,null,null,null,null,null,null,null,null,null,null,null,null,"INVESTENDO UN CAPITALE ANNUALE CONOSCIUTO, CON O SENZA CAPITALE INIZIALE A UN TASSO DI RIV CONOSCIUTO CHE MONTANTE AVRO' TRA X ANNI?",null,null,null,null,null,null,null,null,null,null,null,null,null,null,null,"INVESTENDO UN CAPITALE ANNUALE CONOSCIUTO, CON O SENZA CAPITALE INIZIALE A UN TASSO DI RIV CONOSCIUTO CHE MONTANTE AVRO' TRA X ANNI?",null,null,null,null,null,null,null,null,null,null,null,null,null,null,null,"INVESTENDO UN CAPITALE ANNUALE CONOSCIUTO, CON O SENZA CAPITALE INIZIALE A UN TASSO DI RIV CONOSCIUTO CHE MONTANTE AVRO' TRA X ANNI?",null,null,null,null,null,null,null,null,null,null,null,null,null,null,null,"INVESTENDO UN CAPITALE ANNUALE CONOSCIUTO, CON O SENZA CAPITALE INIZIALE A UN TASSO DI RIV CONOSCIUTO CHE MONTANTE AVRO' TRA X ANNI?",null,null,null,null,null,null,null,null,null,null,null,null,null,null,null,"INVESTENDO UN CAPITALE ANNUALE CONOSCIUTO, CON O SENZA CAPITALE INIZIALE A UN TASSO DI RIV CONOSCIUTO CHE MONTANTE AVRO' TRA X ANNI?",null,null,null,null,null,null,null,null,null,null,null,null,null,null,null,"INVESTENDO UN CAPITALE ANNUALE CONOSCIUTO, CON O SENZA CAPITALE INIZIALE A UN TASSO DI RIV CONOSCIUTO CHE MONTANTE AVRO' TRA X ANNI?",null,null,null,null,null,null,null,null,null,null,null,null,null,null,null,"INVESTENDO UN CAPITALE ANNUALE CONOSCIUTO, CON O SENZA CAPITALE INIZIALE A UN TASSO DI RIV CONOSCIUTO CHE MONTANTE AVRO' TRA X ANNI?",null,null,null,null,null,null,null,null,null,null,null,null,null,null,null,"INVESTENDO UN CAPITALE ANNUALE CONOSCIUTO, CON O SENZA CAPITALE INIZIALE A UN TASSO DI RIV CONOSCIUTO CHE MONTANTE AVRO' TRA X ANNI?",null,null,null,null,null,null,null,null,null,null,null,null,null,null,null,"INVESTENDO UN CAPITALE ANNUALE CONOSCIUTO, CON O SENZA CAPITALE INIZIALE A UN TASSO DI RIV CONOSCIUTO CHE MONTANTE AVRO' TRA X ANNI?",null,null,null,null,null,null,null,null,null,null,null,null,null,null,null,"INVESTENDO UN CAPITALE ANNUALE CONOSCIUTO, CON O SENZA CAPITALE INIZIALE A UN TASSO DI RIV CONOSCIUTO CHE MONTANTE AVRO' TRA X ANNI?",null,null,null,null,null,null,null,null,null,null,null,null,null,null,null,"INVESTENDO UN CAPITALE ANNUALE CONOSCIUTO, CON O SENZA CAPITALE INIZIALE A UN TASSO DI RIV CONOSCIUTO CHE MONTANTE AVRO' TRA X ANNI?",null,null,null,null,null,null,null,null,null,null,null,null,null,null,null,"INVESTENDO UN CAPITALE ANNUALE CONOSCIUTO, CON O SENZA CAPITALE INIZIALE A UN TASSO DI RIV CONOSCIUTO CHE MONTANTE AVRO' TRA X ANNI?",null,null,null,null,null,null,null,null,null,null,null,null,null,null,null,"INVESTENDO UN CAPITALE ANNUALE CONOSCIUTO, CON O SENZA CAPITALE INIZIALE A UN TASSO DI RIV CONOSCIUTO CHE MONTANTE AVRO' TRA X ANNI?",null,null,null,null,null,null,null,null,null,null,null,null,null,null,null,"INVESTENDO UN CAPITALE ANNUALE CONOSCIUTO, CON O SENZA CAPITALE INIZIALE A UN TASSO DI RIV CONOSCIUTO CHE MONTANTE AVRO' TRA X ANNI?",null,null,null,null,null,null,null,null,null,null,null,null,null,null,null,"INVESTENDO UN CAPITALE ANNUALE CONOSCIUTO, CON O SENZA CAPITALE INIZIALE A UN TASSO DI RIV CONOSCIUTO CHE MONTANTE AVRO' TRA X ANNI?",null,null,null,null,null,null,null,null,null,null,null,null,null,null,null,"INVESTENDO UN CAPITALE ANNUALE CONOSCIUTO, CON O SENZA CAPITALE INIZIALE A UN TASSO DI RIV CONOSCIUTO CHE MONTANTE AVRO' TRA X ANNI?",null,null,null,null,null,null,null,null,null,null,null,null,null,null,null,"INVESTENDO UN CAPITALE ANNUALE CONOSCIUTO, CON O SENZA CAPITALE INIZIALE A UN TASSO DI RIV CONOSCIUTO CHE MONTANTE AVRO' TRA X ANNI?",null,null,null,null,null,null,null,null,null,null,null,null,null,null,null,"INVESTENDO UN CAPITALE ANNUALE CONOSCIUTO, CON O SENZA CAPITALE INIZIALE A UN TASSO DI RIV CONOSCIUTO CHE MONTANTE AVRO' TRA X ANNI?",null,null,null,null,null,null,null,null,null,null,null,null,null,null,null,"INVESTENDO UN CAPITALE ANNUALE CONOSCIUTO, CON O SENZA CAPITALE INIZIALE A UN TASSO DI RIV CONOSCIUTO CHE MONTANTE AVRO' TRA X ANNI?",null,null,null,null,null,null,null,null,null,null,null,null,null,null,null,"INVESTENDO UN CAPITALE ANNUALE CONOSCIUTO, CON O SENZA CAPITALE INIZIALE A UN TASSO DI RIV CONOSCIUTO CHE MONTANTE AVRO' TRA X ANNI?",null,null,null,null,null,null,null,null,null,null,null,null,null,null,null,"INVESTENDO UN CAPITALE ANNUALE CONOSCIUTO, CON O SENZA CAPITALE INIZIALE A UN TASSO DI RIV CONOSCIUTO CHE MONTANTE AVRO' TRA X ANNI?",null,null,null,null,null,null,null,null,null,null,null,null,null,null,null,"INVESTENDO UN CAPITALE ANNUALE CONOSCIUTO, CON O SENZA CAPITALE INIZIALE A UN TASSO DI RIV CONOSCIUTO CHE MONTANTE AVRO' TRA X ANNI?",null,null,null,null,null,null,null,null,null,null,null,null,null,null,null,"INVESTENDO UN CAPITALE ANNUALE CONOSCIUTO, CON O SENZA CAPITALE INIZIALE A UN TASSO DI RIV CONOSCIUTO CHE MONTANTE AVRO' TRA X ANNI?",null,null,null,null,null,null,null,null,null,null,null,null,null,null,null,"INVESTENDO UN CAPITALE ANNUALE CONOSCIUTO, CON O SENZA CAPITALE INIZIALE A UN TASSO DI RIV CONOSCIUTO CHE MONTANTE AVRO' TRA X ANNI?",null,null,null,null,null,null,null,null,null,null,null,null,null,null,null,"INVESTENDO UN CAPITALE ANNUALE CONOSCIUTO, CON O SENZA CAPITALE INIZIALE A UN TASSO DI RIV CONOSCIUTO CHE MONTANTE AVRO' TRA X ANNI?",null,null,null,null,null,null,null,null,null,null,null,null,null,null,null,"INVESTENDO UN CAPITALE ANNUALE CONOSCIUTO, CON O SENZA CAPITALE INIZIALE A UN TASSO DI RIV CONOSCIUTO CHE MONTANTE AVRO' TRA X ANNI?",null,null,null,null,null,null,null,null,null,null,null,null,null,null,null,"INVESTENDO UN CAPITALE ANNUALE CONOSCIUTO, CON O SENZA CAPITALE INIZIALE A UN TASSO DI RIV CONOSCIUTO CHE MONTANTE AVRO' TRA X ANNI?",null,null,null,null,null,null,null,null,null,null,null,null,null,null,null,"INVESTENDO UN CAPITALE ANNUALE CONOSCIUTO, CON O SENZA CAPITALE INIZIALE A UN TASSO DI RIV CONOSCIUTO CHE MONTANTE AVRO' TRA X ANNI?",null,null,null,null,null,null,null,null,null,null,null,null,null,null,null,"INVESTENDO UN CAPITALE ANNUALE CONOSCIUTO, CON O SENZA CAPITALE INIZIALE A UN TASSO DI RIV CONOSCIUTO CHE MONTANTE AVRO' TRA X ANNI?",null,null,null,null,null,null,null,null,null,null,null,null,null,null,null,"INVESTENDO UN CAPITALE ANNUALE CONOSCIUTO, CON O SENZA CAPITALE INIZIALE A UN TASSO DI RIV CONOSCIUTO CHE MONTANTE AVRO' TRA X ANNI?",null,null,null,null,null,null,null,null,null,null,null,null,null,null,null,"INVESTENDO UN CAPITALE ANNUALE CONOSCIUTO, CON O SENZA CAPITALE INIZIALE A UN TASSO DI RIV CONOSCIUTO CHE MONTANTE AVRO' TRA X ANNI?",null,null,null,null,null,null,null,null,null,null,null,null,null,null,null,"INVESTENDO UN CAPITALE ANNUALE CONOSCIUTO, CON O SENZA CAPITALE INIZIALE A UN TASSO DI RIV CONOSCIUTO CHE MONTANTE AVRO' TRA X ANNI?",null,null,null,null,null,null,null,null,null,null,null,null,null,null,null,"INVESTENDO UN CAPITALE ANNUALE CONOSCIUTO, CON O SENZA CAPITALE INIZIALE A UN TASSO DI RIV CONOSCIUTO CHE MONTANTE AVRO' TRA X ANNI?",null,null,null,null,null,null,null,null,null,null,null,null,null,null,null,"INVESTENDO UN CAPITALE ANNUALE CONOSCIUTO, CON O SENZA CAPITALE INIZIALE A UN TASSO DI RIV CONOSCIUTO CHE MONTANTE AVRO' TRA X ANNI?",null,null,null,null,null,null,null,null,null,null,null,null,null,null,null,"INVESTENDO UN CAPITALE ANNUALE CONOSCIUTO, CON O SENZA CAPITALE INIZIALE A UN TASSO DI RIV CONOSCIUTO CHE MONTANTE AVRO' TRA X ANNI?",null,null,null,null,null,null,null,null,null,null,null,null,null,null,null,"INVESTENDO UN CAPITALE ANNUALE CONOSCIUTO, CON O SENZA CAPITALE INIZIALE A UN TASSO DI RIV CONOSCIUTO CHE MONTANTE AVRO' TRA X ANNI?",null,null,null,null,null,null,null,null,null,null,null,null,null,null,null,"INVESTENDO UN CAPITALE ANNUALE CONOSCIUTO, CON O SENZA CAPITALE INIZIALE A UN TASSO DI RIV CONOSCIUTO CHE MONTANTE AVRO' TRA X ANNI?",null,null,null,null,null,null,null,null,null,null,null,null,null,null,null,"INVESTENDO UN CAPITALE ANNUALE CONOSCIUTO, CON O SENZA CAPITALE INIZIALE A UN TASSO DI RIV CONOSCIUTO CHE MONTANTE AVRO' TRA X ANNI?",null,null,null,null,null,null,null,null,null,null,null,null,null,null,null,"INVESTENDO UN CAPITALE ANNUALE CONOSCIUTO, CON O SENZA CAPITALE INIZIALE A UN TASSO DI RIV CONOSCIUTO CHE MONTANTE AVRO' TRA X ANNI?",null,null,null,null,null,null,null,null,null,null,null,null,null,null,null,"INVESTENDO UN CAPITALE ANNUALE CONOSCIUTO, CON O SENZA CAPITALE INIZIALE A UN TASSO DI RIV CONOSCIUTO CHE MONTANTE AVRO' TRA X ANNI?",null,null,null,null,null,null,null,null,null,null,null,null,null,null,null,"INVESTENDO UN CAPITALE ANNUALE CONOSCIUTO, CON O SENZA CAPITALE INIZIALE A UN TASSO DI RIV CONOSCIUTO CHE MONTANTE AVRO' TRA X ANNI?",null,null,null,null,null,null,null,null,null,null,null,null,null,null,null,"INVESTENDO UN CAPITALE ANNUALE CONOSCIUTO, CON O SENZA CAPITALE INIZIALE A UN TASSO DI RIV CONOSCIUTO CHE MONTANTE AVRO' TRA X ANNI?",null,null,null,null,null,null,null,null,null,null,null,null,null,null,null,"INVESTENDO UN CAPITALE ANNUALE CONOSCIUTO, CON O SENZA CAPITALE INIZIALE A UN TASSO DI RIV CONOSCIUTO CHE MONTANTE AVRO' TRA X ANNI?",null,null,null,null,null,null,null,null,null,null,null,null,null,null,null,"INVESTENDO UN CAPITALE ANNUALE CONOSCIUTO, CON O SENZA CAPITALE INIZIALE A UN TASSO DI RIV CONOSCIUTO CHE MONTANTE AVRO' TRA X ANNI?",null,null,null,null,null,null,null,null,null,null,null,null,null,null,null,"INVESTENDO UN CAPITALE ANNUALE CONOSCIUTO, CON O SENZA CAPITALE INIZIALE A UN TASSO DI RIV CONOSCIUTO CHE MONTANTE AVRO' TRA X ANNI?",null,null,null,null,null,null,null,null,null,null,null,null,null,null,null,"INVESTENDO UN CAPITALE ANNUALE CONOSCIUTO, CON O SENZA CAPITALE INIZIALE A UN TASSO DI RIV CONOSCIUTO CHE MONTANTE AVRO' TRA X ANNI?",null,null,null,null,null,null,null,null,null,null,null,null,null,null,null,"INVESTENDO UN CAPITALE ANNUALE CONOSCIUTO, CON O SENZA CAPITALE INIZIALE A UN TASSO DI RIV CONOSCIUTO CHE MONTANTE AVRO' TRA X ANNI?",null,null,null,null,null,null,null,null,null,null,null,null,null,null,null,"INVESTENDO UN CAPITALE ANNUALE CONOSCIUTO, CON O SENZA CAPITALE INIZIALE A UN TASSO DI RIV CONOSCIUTO CHE MONTANTE AVRO' TRA X ANNI?",null,null,null,null,null,null,null,null,null,null,null,null,null,null,null,"INVESTENDO UN CAPITALE ANNUALE CONOSCIUTO, CON O SENZA CAPITALE INIZIALE A UN TASSO DI RIV CONOSCIUTO CHE MONTANTE AVRO' TRA X ANNI?",null,null,null,null,null,null,null,null,null,null,null,null,null,null,null,"INVESTENDO UN CAPITALE ANNUALE CONOSCIUTO, CON O SENZA CAPITALE INIZIALE A UN TASSO DI RIV CONOSCIUTO CHE MONTANTE AVRO' TRA X ANNI?",null,null,null,null,null,null,null,null,null,null,null,null,null,null,null,"INVESTENDO UN CAPITALE ANNUALE CONOSCIUTO, CON O SENZA CAPITALE INIZIALE A UN TASSO DI RIV CONOSCIUTO CHE MONTANTE AVRO' TRA X ANNI?",null,null,null,null,null,null,null,null,null,null,null,null,null,null,null,"INVESTENDO UN CAPITALE ANNUALE CONOSCIUTO, CON O SENZA CAPITALE INIZIALE A UN TASSO DI RIV CONOSCIUTO CHE MONTANTE AVRO' TRA X ANNI?",null,null,null,null,null,null,null,null,null,null,null,null,null,null,null,"INVESTENDO UN CAPITALE ANNUALE CONOSCIUTO, CON O SENZA CAPITALE INIZIALE A UN TASSO DI RIV CONOSCIUTO CHE MONTANTE AVRO' TRA X ANNI?",null,null,null,null,null,null,null,null,null,null,null,null,null,null,null,"INVESTENDO UN CAPITALE ANNUALE CONOSCIUTO, CON O SENZA CAPITALE INIZIALE A UN TASSO DI RIV CONOSCIUTO CHE MONTANTE AVRO' TRA X ANNI?",null,null,null,null,null,null,null,null,null,null,null,null,null,null,null,"INVESTENDO UN CAPITALE ANNUALE CONOSCIUTO, CON O SENZA CAPITALE INIZIALE A UN TASSO DI RIV CONOSCIUTO CHE MONTANTE AVRO' TRA X ANNI?",null,null,null,null,null,null,null,null,null,null,null,null,null,null,null,"INVESTENDO UN CAPITALE ANNUALE CONOSCIUTO, CON O SENZA CAPITALE INIZIALE A UN TASSO DI RIV CONOSCIUTO CHE MONTANTE AVRO' TRA X ANNI?",null,null,null,null,null,null,null,null,null,null,null,null,null,null,null,"INVESTENDO UN CAPITALE ANNUALE CONOSCIUTO, CON O SENZA CAPITALE INIZIALE A UN TASSO DI RIV CONOSCIUTO CHE MONTANTE AVRO' TRA X ANNI?",null,null,null,null,null,null,null,null,null,null,null,null,null,null,null,"INVESTENDO UN CAPITALE ANNUALE CONOSCIUTO, CON O SENZA CAPITALE INIZIALE A UN TASSO DI RIV CONOSCIUTO CHE MONTANTE AVRO' TRA X ANNI?",null,null,null,null,null,null,null,null,null,null,null,null,null,null,null,"INVESTENDO UN CAPITALE ANNUALE CONOSCIUTO, CON O SENZA CAPITALE INIZIALE A UN TASSO DI RIV CONOSCIUTO CHE MONTANTE AVRO' TRA X ANNI?",null,null,null,null,null,null,null,null,null,null,null,null,null,null,null,"INVESTENDO UN CAPITALE ANNUALE CONOSCIUTO, CON O SENZA CAPITALE INIZIALE A UN TASSO DI RIV CONOSCIUTO CHE MONTANTE AVRO' TRA X ANNI?",null,null,null,null,null,null,null,null,null,null,null,null,null,null,null,"INVESTENDO UN CAPITALE ANNUALE CONOSCIUTO, CON O SENZA CAPITALE INIZIALE A UN TASSO DI RIV CONOSCIUTO CHE MONTANTE AVRO' TRA X ANNI?",null,null,null,null,null,null,null,null,null,null,null,null,null,null,null,"INVESTENDO UN CAPITALE ANNUALE CONOSCIUTO, CON O SENZA CAPITALE INIZIALE A UN TASSO DI RIV CONOSCIUTO CHE MONTANTE AVRO' TRA X ANNI?",null,null,null,null,null,null,null,null,null,null,null,null,null,null,null,"INVESTENDO UN CAPITALE ANNUALE CONOSCIUTO, CON O SENZA CAPITALE INIZIALE A UN TASSO DI RIV CONOSCIUTO CHE MONTANTE AVRO' TRA X ANNI?",null,null,null,null,null,null,null,null,null,null,null,null,null,null,null,"INVESTENDO UN CAPITALE ANNUALE CONOSCIUTO, CON O SENZA CAPITALE INIZIALE A UN TASSO DI RIV CONOSCIUTO CHE MONTANTE AVRO' TRA X ANNI?",null,null,null,null,null,null,null,null,null,null,null,null,null,null,null,"INVESTENDO UN CAPITALE ANNUALE CONOSCIUTO, CON O SENZA CAPITALE INIZIALE A UN TASSO DI RIV CONOSCIUTO CHE MONTANTE AVRO' TRA X ANNI?",null,null,null,null,null,null,null,null,null,null,null,null,null,null,null,"INVESTENDO UN CAPITALE ANNUALE CONOSCIUTO, CON O SENZA CAPITALE INIZIALE A UN TASSO DI RIV CONOSCIUTO CHE MONTANTE AVRO' TRA X ANNI?",null,null,null,null,null,null,null,null,null,null,null,null,null,null,null,"INVESTENDO UN CAPITALE ANNUALE CONOSCIUTO, CON O SENZA CAPITALE INIZIALE A UN TASSO DI RIV CONOSCIUTO CHE MONTANTE AVRO' TRA X ANNI?",null,null,null,null,null,null,null,null,null,null,null,null,null,null,null,"INVESTENDO UN CAPITALE ANNUALE CONOSCIUTO, CON O SENZA CAPITALE INIZIALE A UN TASSO DI RIV CONOSCIUTO CHE MONTANTE AVRO' TRA X ANNI?",null,null,null,null,null,null,null,null,null,null,null,null,null,null,null,"INVESTENDO UN CAPITALE ANNUALE CONOSCIUTO, CON O SENZA CAPITALE INIZIALE A UN TASSO DI RIV CONOSCIUTO CHE MONTANTE AVRO' TRA X ANNI?",null,null,null,null,null,null,null,null,null,null,null,null,null,null,null,"INVESTENDO UN CAPITALE ANNUALE CONOSCIUTO, CON O SENZA CAPITALE INIZIALE A UN TASSO DI RIV CONOSCIUTO CHE MONTANTE AVRO' TRA X ANNI?",null,null,null,null,null,null,null,null,null,null,null,null,null,null,null,"INVESTENDO UN CAPITALE ANNUALE CONOSCIUTO, CON O SENZA CAPITALE INIZIALE A UN TASSO DI RIV CONOSCIUTO CHE MONTANTE AVRO' TRA X ANNI?",null,null,null,null,null,null,null,null,null,null,null,null,null,null,null,"INVESTENDO UN CAPITALE ANNUALE CONOSCIUTO, CON O SENZA CAPITALE INIZIALE A UN TASSO DI RIV CONOSCIUTO CHE MONTANTE AVRO' TRA X ANNI?",null,null,null,null,null,null,null,null,null,null,null,null,null,null,null,"INVESTENDO UN CAPITALE ANNUALE CONOSCIUTO, CON O SENZA CAPITALE INIZIALE A UN TASSO DI RIV CONOSCIUTO CHE MONTANTE AVRO' TRA X ANNI?",null,null,null,null,null,null,null,null,null,null,null,null,null,null,null,"INVESTENDO UN CAPITALE ANNUALE CONOSCIUTO, CON O SENZA CAPITALE INIZIALE A UN TASSO DI RIV CONOSCIUTO CHE MONTANTE AVRO' TRA X ANNI?",null,null,null,null,null,null,null,null,null,null,null,null,null,null,null,"INVESTENDO UN CAPITALE ANNUALE CONOSCIUTO, CON O SENZA CAPITALE INIZIALE A UN TASSO DI RIV CONOSCIUTO CHE MONTANTE AVRO' TRA X ANNI?",null,null,null,null,null,null,null,null,null,null,null,null,null,null,null,"INVESTENDO UN CAPITALE ANNUALE CONOSCIUTO, CON O SENZA CAPITALE INIZIALE A UN TASSO DI RIV CONOSCIUTO CHE MONTANTE AVRO' TRA X ANNI?",null,null,null,null,null,null,null,null,null,null,null,null,null,null,null,"INVESTENDO UN CAPITALE ANNUALE CONOSCIUTO, CON O SENZA CAPITALE INIZIALE A UN TASSO DI RIV CONOSCIUTO CHE MONTANTE AVRO' TRA X ANNI?",null,null,null,null,null,null,null,null,null,null,null,null,null,null,null,"INVESTENDO UN CAPITALE ANNUALE CONOSCIUTO, CON O SENZA CAPITALE INIZIALE A UN TASSO DI RIV CONOSCIUTO CHE MONTANTE AVRO' TRA X ANNI?",null,null,null,null,null,null,null,null,null,null,null,null,null,null,null,"INVESTENDO UN CAPITALE ANNUALE CONOSCIUTO, CON O SENZA CAPITALE INIZIALE A UN TASSO DI RIV CONOSCIUTO CHE MONTANTE AVRO' TRA X ANNI?",null,null,null,null,null,null,null,null,null,null,null,null,null,null,null,"INVESTENDO UN CAPITALE ANNUALE CONOSCIUTO, CON O SENZA CAPITALE INIZIALE A UN TASSO DI RIV CONOSCIUTO CHE MONTANTE AVRO' TRA X ANNI?",null,null,null,null,null,null,null,null,null,null,null,null,null,null,null,"INVESTENDO UN CAPITALE ANNUALE CONOSCIUTO, CON O SENZA CAPITALE INIZIALE A UN TASSO DI RIV CONOSCIUTO CHE MONTANTE AVRO' TRA X ANNI?",null,null,null,null,null,null,null,null,null,null,null,null,null,null,null,"INVESTENDO UN CAPITALE ANNUALE CONOSCIUTO, CON O SENZA CAPITALE INIZIALE A UN TASSO DI RIV CONOSCIUTO CHE MONTANTE AVRO' TRA X ANNI?",null,null,null,null,null,null,null,null,null,null,null,null,null,null,null,"INVESTENDO UN CAPITALE ANNUALE CONOSCIUTO, CON O SENZA CAPITALE INIZIALE A UN TASSO DI RIV CONOSCIUTO CHE MONTANTE AVRO' TRA X ANNI?",null,null,null,null,null,null,null,null,null,null,null,null,null,null,null,"INVESTENDO UN CAPITALE ANNUALE CONOSCIUTO, CON O SENZA CAPITALE INIZIALE A UN TASSO DI RIV CONOSCIUTO CHE MONTANTE AVRO' TRA X ANNI?",null,null,null,null,null,null,null,null,null,null,null,null,null,null,null,"INVESTENDO UN CAPITALE ANNUALE CONOSCIUTO, CON O SENZA CAPITALE INIZIALE A UN TASSO DI RIV CONOSCIUTO CHE MONTANTE AVRO' TRA X ANNI?",null,null,null,null,null,null,null,null,null,null,null,null,null,null,null,"INVESTENDO UN CAPITALE ANNUALE CONOSCIUTO, CON O SENZA CAPITALE INIZIALE A UN TASSO DI RIV CONOSCIUTO CHE MONTANTE AVRO' TRA X ANNI?",null,null,null,null,null,null,null,null,null,null,null,null,null,null,null,"INVESTENDO UN CAPITALE ANNUALE CONOSCIUTO, CON O SENZA CAPITALE INIZIALE A UN TASSO DI RIV CONOSCIUTO CHE MONTANTE AVRO' TRA X ANNI?",null,null,null,null,null,null,null,null,null,null,null,null,null,null,null,"INVESTENDO UN CAPITALE ANNUALE CONOSCIUTO, CON O SENZA CAPITALE INIZIALE A UN TASSO DI RIV CONOSCIUTO CHE MONTANTE AVRO' TRA X ANNI?",null,null,null,null,null,null,null,null,null,null,null,null,null,null,null,"INVESTENDO UN CAPITALE ANNUALE CONOSCIUTO, CON O SENZA CAPITALE INIZIALE A UN TASSO DI RIV CONOSCIUTO CHE MONTANTE AVRO' TRA X ANNI?",null,null,null,null,null,null,null,null,null,null,null,null,null,null,null,"INVESTENDO UN CAPITALE ANNUALE CONOSCIUTO, CON O SENZA CAPITALE INIZIALE A UN TASSO DI RIV CONOSCIUTO CHE MONTANTE AVRO' TRA X ANNI?",null,null,null,null,null,null,null,null,null,null,null,null,null,null,null,"INVESTENDO UN CAPITALE ANNUALE CONOSCIUTO, CON O SENZA CAPITALE INIZIALE A UN TASSO DI RIV CONOSCIUTO CHE MONTANTE AVRO' TRA X ANNI?",null,null,null,null,null,null,null,null,null,null,null,null,null,null,null,"INVESTENDO UN CAPITALE ANNUALE CONOSCIUTO, CON O SENZA CAPITALE INIZIALE A UN TASSO DI RIV CONOSCIUTO CHE MONTANTE AVRO' TRA X ANNI?",null,null,null,null,null,null,null,null,null,null,null,null,null,null,null,"INVESTENDO UN CAPITALE ANNUALE CONOSCIUTO, CON O SENZA CAPITALE INIZIALE A UN TASSO DI RIV CONOSCIUTO CHE MONTANTE AVRO' TRA X ANNI?",null,null,null,null,null,null,null,null,null,null,null,null,null,null,null,"INVESTENDO UN CAPITALE ANNUALE CONOSCIUTO, CON O SENZA CAPITALE INIZIALE A UN TASSO DI RIV CONOSCIUTO CHE MONTANTE AVRO' TRA X ANNI?",null,null,null,null,null,null,null,null,null,null,null,null,null,null,null,"INVESTENDO UN CAPITALE ANNUALE CONOSCIUTO, CON O SENZA CAPITALE INIZIALE A UN TASSO DI RIV CONOSCIUTO CHE MONTANTE AVRO' TRA X ANNI?",null,null,null,null,null,null,null,null,null,null,null,null,null,null,null,"INVESTENDO UN CAPITALE ANNUALE CONOSCIUTO, CON O SENZA CAPITALE INIZIALE A UN TASSO DI RIV CONOSCIUTO CHE MONTANTE AVRO' TRA X ANNI?",null,null,null,null,null,null,null,null,null,null,null,null,null,null,null,"INVESTENDO UN CAPITALE ANNUALE CONOSCIUTO, CON O SENZA CAPITALE INIZIALE A UN TASSO DI RIV CONOSCIUTO CHE MONTANTE AVRO' TRA X ANNI?",null,null,null,null,null,null,null,null,null,null,null,null,null,null,null,"INVESTENDO UN CAPITALE ANNUALE CONOSCIUTO, CON O SENZA CAPITALE INIZIALE A UN TASSO DI RIV CONOSCIUTO CHE MONTANTE AVRO' TRA X ANNI?",null,null,null,null,null,null,null,null,null,null,null,null,null,null,null,"INVESTENDO UN CAPITALE ANNUALE CONOSCIUTO, CON O SENZA CAPITALE INIZIALE A UN TASSO DI RIV CONOSCIUTO CHE MONTANTE AVRO' TRA X ANNI?",null,null,null,null,null,null,null,null,null,null,null,null,null,null,null,"INVESTENDO UN CAPITALE ANNUALE CONOSCIUTO, CON O SENZA CAPITALE INIZIALE A UN TASSO DI RIV CONOSCIUTO CHE MONTANTE AVRO' TRA X ANNI?",null,null,null,null,null,null,null,null,null,null,null,null,null,null,null,"INVESTENDO UN CAPITALE ANNUALE CONOSCIUTO, CON O SENZA CAPITALE INIZIALE A UN TASSO DI RIV CONOSCIUTO CHE MONTANTE AVRO' TRA X ANNI?",null,null,null,null,null,null,null,null,null,null,null,null,null,null,null,"INVESTENDO UN CAPITALE ANNUALE CONOSCIUTO, CON O SENZA CAPITALE INIZIALE A UN TASSO DI RIV CONOSCIUTO CHE MONTANTE AVRO' TRA X ANNI?",null,null,null,null,null,null,null,null,null,null,null,null,null,null,null,"INVESTENDO UN CAPITALE ANNUALE CONOSCIUTO, CON O SENZA CAPITALE INIZIALE A UN TASSO DI RIV CONOSCIUTO CHE MONTANTE AVRO' TRA X ANNI?",null,null,null,null,null,null,null,null,null,null,null,null,null,null,null,"INVESTENDO UN CAPITALE ANNUALE CONOSCIUTO, CON O SENZA CAPITALE INIZIALE A UN TASSO DI RIV CONOSCIUTO CHE MONTANTE AVRO' TRA X ANNI?",null,null,null,null,null,null,null,null,null,null,null,null,null,null,null,"INVESTENDO UN CAPITALE ANNUALE CONOSCIUTO, CON O SENZA CAPITALE INIZIALE A UN TASSO DI RIV CONOSCIUTO CHE MONTANTE AVRO' TRA X ANNI?",null,null,null,null,null,null,null,null,null,null,null,null,null,null,null,"INVESTENDO UN CAPITALE ANNUALE CONOSCIUTO, CON O SENZA CAPITALE INIZIALE A UN TASSO DI RIV CONOSCIUTO CHE MONTANTE AVRO' TRA X ANNI?",null,null,null,null,null,null,null,null,null,null,null,null,null,null,null,"INVESTENDO UN CAPITALE ANNUALE CONOSCIUTO, CON O SENZA CAPITALE INIZIALE A UN TASSO DI RIV CONOSCIUTO CHE MONTANTE AVRO' TRA X ANNI?",null,null,null,null,null,null,null,null,null,null,null,null,null,null,null,"INVESTENDO UN CAPITALE ANNUALE CONOSCIUTO, CON O SENZA CAPITALE INIZIALE A UN TASSO DI RIV CONOSCIUTO CHE MONTANTE AVRO' TRA X ANNI?",null,null,null,null,null,null,null,null,null,null,null,null,null,null,null,"INVESTENDO UN CAPITALE ANNUALE CONOSCIUTO, CON O SENZA CAPITALE INIZIALE A UN TASSO DI RIV CONOSCIUTO CHE MONTANTE AVRO' TRA X ANNI?",null,null,null,null,null,null,null,null,null,null,null,null,null,null,null,"INVESTENDO UN CAPITALE ANNUALE CONOSCIUTO, CON O SENZA CAPITALE INIZIALE A UN TASSO DI RIV CONOSCIUTO CHE MONTANTE AVRO' TRA X ANNI?",null,null,null,null,null,null,null,null,null,null,null,null,null,null,null,"INVESTENDO UN CAPITALE ANNUALE CONOSCIUTO, CON O SENZA CAPITALE INIZIALE A UN TASSO DI RIV CONOSCIUTO CHE MONTANTE AVRO' TRA X ANNI?",null,null,null,null,null,null,null,null,null,null,null,null,null,null,null,"INVESTENDO UN CAPITALE ANNUALE CONOSCIUTO, CON O SENZA CAPITALE INIZIALE A UN TASSO DI RIV CONOSCIUTO CHE MONTANTE AVRO' TRA X ANNI?",null,null,null,null,null,null,null,null,null,null,null,null,null,null,null,"INVESTENDO UN CAPITALE ANNUALE CONOSCIUTO, CON O SENZA CAPITALE INIZIALE A UN TASSO DI RIV CONOSCIUTO CHE MONTANTE AVRO' TRA X ANNI?",null,null,null,null,null,null,null,null,null,null,null,null,null,null,null,"INVESTENDO UN CAPITALE ANNUALE CONOSCIUTO, CON O SENZA CAPITALE INIZIALE A UN TASSO DI RIV CONOSCIUTO CHE MONTANTE AVRO' TRA X ANNI?",null,null,null,null,null,null,null,null,null,null,null,null,null,null,null,"INVESTENDO UN CAPITALE ANNUALE CONOSCIUTO, CON O SENZA CAPITALE INIZIALE A UN TASSO DI RIV CONOSCIUTO CHE MONTANTE AVRO' TRA X ANNI?",null,null,null,null,null,null,null,null,null,null,null,null,null,null,null,"INVESTENDO UN CAPITALE ANNUALE CONOSCIUTO, CON O SENZA CAPITALE INIZIALE A UN TASSO DI RIV CONOSCIUTO CHE MONTANTE AVRO' TRA X ANNI?",null,null,null,null,null,null,null,null,null,null,null,null,null,null,null,"INVESTENDO UN CAPITALE ANNUALE CONOSCIUTO, CON O SENZA CAPITALE INIZIALE A UN TASSO DI RIV CONOSCIUTO CHE MONTANTE AVRO' TRA X ANNI?",null,null,null,null,null,null,null,null,null,null,null,null,null,null,null,"INVESTENDO UN CAPITALE ANNUALE CONOSCIUTO, CON O SENZA CAPITALE INIZIALE A UN TASSO DI RIV CONOSCIUTO CHE MONTANTE AVRO' TRA X ANNI?",null,null,null,null,null,null,null,null,null,null,null,null,null,null,null,"INVESTENDO UN CAPITALE ANNUALE CONOSCIUTO, CON O SENZA CAPITALE INIZIALE A UN TASSO DI RIV CONOSCIUTO CHE MONTANTE AVRO' TRA X ANNI?",null,null,null,null,null,null,null,null,null,null,null,null,null,null,null,"INVESTENDO UN CAPITALE ANNUALE CONOSCIUTO, CON O SENZA CAPITALE INIZIALE A UN TASSO DI RIV CONOSCIUTO CHE MONTANTE AVRO' TRA X ANNI?",null,null,null,null,null,null,null,null,null,null,null,null,null,null,null,"INVESTENDO UN CAPITALE ANNUALE CONOSCIUTO, CON O SENZA CAPITALE INIZIALE A UN TASSO DI RIV CONOSCIUTO CHE MONTANTE AVRO' TRA X ANNI?",null,null,null,null,null,null,null,null,null,null,null,null,null,null,null,"INVESTENDO UN CAPITALE ANNUALE CONOSCIUTO, CON O SENZA CAPITALE INIZIALE A UN TASSO DI RIV CONOSCIUTO CHE MONTANTE AVRO' TRA X ANNI?",null,null,null,null,null,null,null,null,null,null,null,null,null,null,null,"INVESTENDO UN CAPITALE ANNUALE CONOSCIUTO, CON O SENZA CAPITALE INIZIALE A UN TASSO DI RIV CONOSCIUTO CHE MONTANTE AVRO' TRA X ANNI?",null,null,null,null,null,null,null,null,null,null,null,null,null,null,null,"INVESTENDO UN CAPITALE ANNUALE CONOSCIUTO, CON O SENZA CAPITALE INIZIALE A UN TASSO DI RIV CONOSCIUTO CHE MONTANTE AVRO' TRA X ANNI?",null,null,null,null,null,null,null,null,null,null,null,null,null,null,null,"INVESTENDO UN CAPITALE ANNUALE CONOSCIUTO, CON O SENZA CAPITALE INIZIALE A UN TASSO DI RIV CONOSCIUTO CHE MONTANTE AVRO' TRA X ANNI?",null,null,null,null,null,null,null,null,null,null,null,null,null,null,null,"INVESTENDO UN CAPITALE ANNUALE CONOSCIUTO, CON O SENZA CAPITALE INIZIALE A UN TASSO DI RIV CONOSCIUTO CHE MONTANTE AVRO' TRA X ANNI?",null,null,null,null,null,null,null,null,null,null,null,null,null,null,null,"INVESTENDO UN CAPITALE ANNUALE CONOSCIUTO, CON O SENZA CAPITALE INIZIALE A UN TASSO DI RIV CONOSCIUTO CHE MONTANTE AVRO' TRA X ANNI?",null,null,null,null,null,null,null,null,null,null,null,null,null,null,null,"INVESTENDO UN CAPITALE ANNUALE CONOSCIUTO, CON O SENZA CAPITALE INIZIALE A UN TASSO DI RIV CONOSCIUTO CHE MONTANTE AVRO' TRA X ANNI?",null,null,null,null,null,null,null,null,null,null,null,null,null,null,null,"INVESTENDO UN CAPITALE ANNUALE CONOSCIUTO, CON O SENZA CAPITALE INIZIALE A UN TASSO DI RIV CONOSCIUTO CHE MONTANTE AVRO' TRA X ANNI?",null,null,null,null,null,null,null,null,null,null,null,null,null,null,null,"INVESTENDO UN CAPITALE ANNUALE CONOSCIUTO, CON O SENZA CAPITALE INIZIALE A UN TASSO DI RIV CONOSCIUTO CHE MONTANTE AVRO' TRA X ANNI?",null,null,null,null,null,null,null,null,null,null,null,null,null,null,null,"INVESTENDO UN CAPITALE ANNUALE CONOSCIUTO, CON O SENZA CAPITALE INIZIALE A UN TASSO DI RIV CONOSCIUTO CHE MONTANTE AVRO' TRA X ANNI?",null,null,null,null,null,null,null,null,null,null,null,null,null,null,null,"INVESTENDO UN CAPITALE ANNUALE CONOSCIUTO, CON O SENZA CAPITALE INIZIALE A UN TASSO DI RIV CONOSCIUTO CHE MONTANTE AVRO' TRA X ANNI?",null,null,null,null,null,null,null,null,null,null,null,null,null,null,null,"INVESTENDO UN CAPITALE ANNUALE CONOSCIUTO, CON O SENZA CAPITALE INIZIALE A UN TASSO DI RIV CONOSCIUTO CHE MONTANTE AVRO' TRA X ANNI?",null,null,null,null,null,null,null,null,null,null,null,null,null,null,null,"INVESTENDO UN CAPITALE ANNUALE CONOSCIUTO, CON O SENZA CAPITALE INIZIALE A UN TASSO DI RIV CONOSCIUTO CHE MONTANTE AVRO' TRA X ANNI?",null,null,null,null,null,null,null,null,null,null,null,null,null,null,null,"INVESTENDO UN CAPITALE ANNUALE CONOSCIUTO, CON O SENZA CAPITALE INIZIALE A UN TASSO DI RIV CONOSCIUTO CHE MONTANTE AVRO' TRA X ANNI?",null,null,null,null,null,null,null,null,null,null,null,null,null,null,null,"INVESTENDO UN CAPITALE ANNUALE CONOSCIUTO, CON O SENZA CAPITALE INIZIALE A UN TASSO DI RIV CONOSCIUTO CHE MONTANTE AVRO' TRA X ANNI?",null,null,null,null,null,null,null,null,null,null,null,null,null,null,null,"INVESTENDO UN CAPITALE ANNUALE CONOSCIUTO, CON O SENZA CAPITALE INIZIALE A UN TASSO DI RIV CONOSCIUTO CHE MONTANTE AVRO' TRA X ANNI?",null,null,null,null,null,null,null,null,null,null,null,null,null,null,null,"INVESTENDO UN CAPITALE ANNUALE CONOSCIUTO, CON O SENZA CAPITALE INIZIALE A UN TASSO DI RIV CONOSCIUTO CHE MONTANTE AVRO' TRA X ANNI?",null,null,null,null,null,null,null,null,null,null,null,null,null,null,null,"INVESTENDO UN CAPITALE ANNUALE CONOSCIUTO, CON O SENZA CAPITALE INIZIALE A UN TASSO DI RIV CONOSCIUTO CHE MONTANTE AVRO' TRA X ANNI?",null,null,null,null,null,null,null,null,null,null,null,null,null,null,null,"INVESTENDO UN CAPITALE ANNUALE CONOSCIUTO, CON O SENZA CAPITALE INIZIALE A UN TASSO DI RIV CONOSCIUTO CHE MONTANTE AVRO' TRA X ANNI?",null,null,null,null,null,null,null,null,null,null,null,null,null,null,null,"INVESTENDO UN CAPITALE ANNUALE CONOSCIUTO, CON O SENZA CAPITALE INIZIALE A UN TASSO DI RIV CONOSCIUTO CHE MONTANTE AVRO' TRA X ANNI?",null,null,null,null,null,null,null,null,null,null,null,null,null,null,null,"INVESTENDO UN CAPITALE ANNUALE CONOSCIUTO, CON O SENZA CAPITALE INIZIALE A UN TASSO DI RIV CONOSCIUTO CHE MONTANTE AVRO' TRA X ANNI?",null,null,null,null,null,null,null,null,null,null,null,null,null,null,null,"INVESTENDO UN CAPITALE ANNUALE CONOSCIUTO, CON O SENZA CAPITALE INIZIALE A UN TASSO DI RIV CONOSCIUTO CHE MONTANTE AVRO' TRA X ANNI?",null,null,null,null,null,null,null,null,null,null,null,null,null,null,null,"INVESTENDO UN CAPITALE ANNUALE CONOSCIUTO, CON O SENZA CAPITALE INIZIALE A UN TASSO DI RIV CONOSCIUTO CHE MONTANTE AVRO' TRA X ANNI?",null,null,null,null,null,null,null,null,null,null,null,null,null,null,null,"INVESTENDO UN CAPITALE ANNUALE CONOSCIUTO, CON O SENZA CAPITALE INIZIALE A UN TASSO DI RIV CONOSCIUTO CHE MONTANTE AVRO' TRA X ANNI?",null,null,null,null,null,null,null,null,null,null,null,null,null,null,null,"INVESTENDO UN CAPITALE ANNUALE CONOSCIUTO, CON O SENZA CAPITALE INIZIALE A UN TASSO DI RIV CONOSCIUTO CHE MONTANTE AVRO' TRA X ANNI?",null,null,null,null,null,null,null,null,null,null,null,null,null,null,null,"INVESTENDO UN CAPITALE ANNUALE CONOSCIUTO, CON O SENZA CAPITALE INIZIALE A UN TASSO DI RIV CONOSCIUTO CHE MONTANTE AVRO' TRA X ANNI?",null,null,null,null,null,null,null,null,null,null,null,null,null,null,null,"INVESTENDO UN CAPITALE ANNUALE CONOSCIUTO, CON O SENZA CAPITALE INIZIALE A UN TASSO DI RIV CONOSCIUTO CHE MONTANTE AVRO' TRA X ANNI?",null,null,null,null,null,null,null,null,null,null,null,null,null,null,null,"INVESTENDO UN CAPITALE ANNUALE CONOSCIUTO, CON O SENZA CAPITALE INIZIALE A UN TASSO DI RIV CONOSCIUTO CHE MONTANTE AVRO' TRA X ANNI?",null,null,null,null,null,null,null,null,null,null,null,null,null,null,null,"INVESTENDO UN CAPITALE ANNUALE CONOSCIUTO, CON O SENZA CAPITALE INIZIALE A UN TASSO DI RIV CONOSCIUTO CHE MONTANTE AVRO' TRA X ANNI?",null,null,null,null,null,null,null,null,null,null,null,null,null,null,null,"INVESTENDO UN CAPITALE ANNUALE CONOSCIUTO, CON O SENZA CAPITALE INIZIALE A UN TASSO DI RIV CONOSCIUTO CHE MONTANTE AVRO' TRA X ANNI?",null,null,null,null,null,null,null,null,null,null,null,null,null,null,null,"INVESTENDO UN CAPITALE ANNUALE CONOSCIUTO, CON O SENZA CAPITALE INIZIALE A UN TASSO DI RIV CONOSCIUTO CHE MONTANTE AVRO' TRA X ANNI?",null,null,null,null,null,null,null,null,null,null,null,null,null,null,null,"INVESTENDO UN CAPITALE ANNUALE CONOSCIUTO, CON O SENZA CAPITALE INIZIALE A UN TASSO DI RIV CONOSCIUTO CHE MONTANTE AVRO' TRA X ANNI?",null,null,null,null,null,null,null,null,null,null,null,null,null,null,null,"INVESTENDO UN CAPITALE ANNUALE CONOSCIUTO, CON O SENZA CAPITALE INIZIALE A UN TASSO DI RIV CONOSCIUTO CHE MONTANTE AVRO' TRA X ANNI?",null,null,null,null,null,null,null,null,null,null,null,null,null,null,null,"INVESTENDO UN CAPITALE ANNUALE CONOSCIUTO, CON O SENZA CAPITALE INIZIALE A UN TASSO DI RIV CONOSCIUTO CHE MONTANTE AVRO' TRA X ANNI?",null,null,null,null,null,null,null,null,null,null,null,null,null,null,null,"INVESTENDO UN CAPITALE ANNUALE CONOSCIUTO, CON O SENZA CAPITALE INIZIALE A UN TASSO DI RIV CONOSCIUTO CHE MONTANTE AVRO' TRA X ANNI?",null,null,null,null,null,null,null,null,null,null,null,null,null,null,null,"INVESTENDO UN CAPITALE ANNUALE CONOSCIUTO, CON O SENZA CAPITALE INIZIALE A UN TASSO DI RIV CONOSCIUTO CHE MONTANTE AVRO' TRA X ANNI?",null,null,null,null,null,null,null,null,null,null,null,null,null,null,null,"INVESTENDO UN CAPITALE ANNUALE CONOSCIUTO, CON O SENZA CAPITALE INIZIALE A UN TASSO DI RIV CONOSCIUTO CHE MONTANTE AVRO' TRA X ANNI?",null,null,null,null,null,null,null,null,null,null,null,null,null,null,null,"INVESTENDO UN CAPITALE ANNUALE CONOSCIUTO, CON O SENZA CAPITALE INIZIALE A UN TASSO DI RIV CONOSCIUTO CHE MONTANTE AVRO' TRA X ANNI?",null,null,null,null,null,null,null,null,null,null,null,null,null,null,null,"INVESTENDO UN CAPITALE ANNUALE CONOSCIUTO, CON O SENZA CAPITALE INIZIALE A UN TASSO DI RIV CONOSCIUTO CHE MONTANTE AVRO' TRA X ANNI?",null,null,null,null,null,null,null,null,null,null,null,null,null,null,null,"INVESTENDO UN CAPITALE ANNUALE CONOSCIUTO, CON O SENZA CAPITALE INIZIALE A UN TASSO DI RIV CONOSCIUTO CHE MONTANTE AVRO' TRA X ANNI?",null,null,null,null,null,null,null,null,null,null,null,null,null,null,null,"INVESTENDO UN CAPITALE ANNUALE CONOSCIUTO, CON O SENZA CAPITALE INIZIALE A UN TASSO DI RIV CONOSCIUTO CHE MONTANTE AVRO' TRA X ANNI?",null,null,null,null,null,null,null,null,null,null,null,null,null,null,null,"INVESTENDO UN CAPITALE ANNUALE CONOSCIUTO, CON O SENZA CAPITALE INIZIALE A UN TASSO DI RIV CONOSCIUTO CHE MONTANTE AVRO' TRA X ANNI?",null,null,null,null,null,null,null,null,null,null,null,null,null,null,null,"INVESTENDO UN CAPITALE ANNUALE CONOSCIUTO, CON O SENZA CAPITALE INIZIALE A UN TASSO DI RIV CONOSCIUTO CHE MONTANTE AVRO' TRA X ANNI?",null,null,null,null,null,null,null,null,null,null,null,null,null,null,null,"INVESTENDO UN CAPITALE ANNUALE CONOSCIUTO, CON O SENZA CAPITALE INIZIALE A UN TASSO DI RIV CONOSCIUTO CHE MONTANTE AVRO' TRA X ANNI?",null,null,null,null,null,null,null,null,null,null,null,null,null,null,null,"INVESTENDO UN CAPITALE ANNUALE CONOSCIUTO, CON O SENZA CAPITALE INIZIALE A UN TASSO DI RIV CONOSCIUTO CHE MONTANTE AVRO' TRA X ANNI?",null,null,null,null,null,null,null,null,null,null,null,null,null,null,null,"INVESTENDO UN CAPITALE ANNUALE CONOSCIUTO, CON O SENZA CAPITALE INIZIALE A UN TASSO DI RIV CONOSCIUTO CHE MONTANTE AVRO' TRA X ANNI?",null,null,null,null,null,null,null,null,null,null,null,null,null,null,null,"INVESTENDO UN CAPITALE ANNUALE CONOSCIUTO, CON O SENZA CAPITALE INIZIALE A UN TASSO DI RIV CONOSCIUTO CHE MONTANTE AVRO' TRA X ANNI?",null,null,null,null,null,null,null,null,null,null,null,null,null,null,null,"INVESTENDO UN CAPITALE ANNUALE CONOSCIUTO, CON O SENZA CAPITALE INIZIALE A UN TASSO DI RIV CONOSCIUTO CHE MONTANTE AVRO' TRA X ANNI?",null,null,null,null,null,null,null,null,null,null,null,null,null,null,null,"INVESTENDO UN CAPITALE ANNUALE CONOSCIUTO, CON O SENZA CAPITALE INIZIALE A UN TASSO DI RIV CONOSCIUTO CHE MONTANTE AVRO' TRA X ANNI?",null,null,null,null,null,null,null,null,null,null,null,null,null,null,null,"INVESTENDO UN CAPITALE ANNUALE CONOSCIUTO, CON O SENZA CAPITALE INIZIALE A UN TASSO DI RIV CONOSCIUTO CHE MONTANTE AVRO' TRA X ANNI?",null,null,null,null,null,null,null,null,null,null,null,null,null,null,null,"INVESTENDO UN CAPITALE ANNUALE CONOSCIUTO, CON O SENZA CAPITALE INIZIALE A UN TASSO DI RIV CONOSCIUTO CHE MONTANTE AVRO' TRA X ANNI?",null,null,null,null,null,null,null,null,null,null,null,null,null,null,null,"INVESTENDO UN CAPITALE ANNUALE CONOSCIUTO, CON O SENZA CAPITALE INIZIALE A UN TASSO DI RIV CONOSCIUTO CHE MONTANTE AVRO' TRA X ANNI?",null,null,null,null,null,null,null,null,null,null,null,null,null,null,null,"INVESTENDO UN CAPITALE ANNUALE CONOSCIUTO, CON O SENZA CAPITALE INIZIALE A UN TASSO DI RIV CONOSCIUTO CHE MONTANTE AVRO' TRA X ANNI?",null,null,null,null,null,null,null,null,null,null,null,null,null,null,null,"INVESTENDO UN CAPITALE ANNUALE CONOSCIUTO, CON O SENZA CAPITALE INIZIALE A UN TASSO DI RIV CONOSCIUTO CHE MONTANTE AVRO' TRA X ANNI?",null,null,null,null,null,null,null,null,null,null,null,null,null,null,null,"INVESTENDO UN CAPITALE ANNUALE CONOSCIUTO, CON O SENZA CAPITALE INIZIALE A UN TASSO DI RIV CONOSCIUTO CHE MONTANTE AVRO' TRA X ANNI?",null,null,null,null,null,null,null,null,null,null,null,null,null,null,null,"INVESTENDO UN CAPITALE ANNUALE CONOSCIUTO, CON O SENZA CAPITALE INIZIALE A UN TASSO DI RIV CONOSCIUTO CHE MONTANTE AVRO' TRA X ANNI?",null,null,null,null,null,null,null,null,null,null,null,null,null,null,null,"INVESTENDO UN CAPITALE ANNUALE CONOSCIUTO, CON O SENZA CAPITALE INIZIALE A UN TASSO DI RIV CONOSCIUTO CHE MONTANTE AVRO' TRA X ANNI?",null,null,null,null,null,null,null,null,null,null,null,null,null,null,null,"INVESTENDO UN CAPITALE ANNUALE CONOSCIUTO, CON O SENZA CAPITALE INIZIALE A UN TASSO DI RIV CONOSCIUTO CHE MONTANTE AVRO' TRA X ANNI?",null,null,null,null,null,null,null,null,null,null,null,null,null,null,null,"INVESTENDO UN CAPITALE ANNUALE CONOSCIUTO, CON O SENZA CAPITALE INIZIALE A UN TASSO DI RIV CONOSCIUTO CHE MONTANTE AVRO' TRA X ANNI?",null,null,null,null,null,null,null,null,null,null,null,null,null,null,null,"INVESTENDO UN CAPITALE ANNUALE CONOSCIUTO, CON O SENZA CAPITALE INIZIALE A UN TASSO DI RIV CONOSCIUTO CHE MONTANTE AVRO' TRA X ANNI?",null,null,null,null,null,null,null,null,null,null,null,null,null,null,null,"INVESTENDO UN CAPITALE ANNUALE CONOSCIUTO, CON O SENZA CAPITALE INIZIALE A UN TASSO DI RIV CONOSCIUTO CHE MONTANTE AVRO' TRA X ANNI?",null,null,null,null,null,null,null,null,null,null,null,null,null,null,null,"INVESTENDO UN CAPITALE ANNUALE CONOSCIUTO, CON O SENZA CAPITALE INIZIALE A UN TASSO DI RIV CONOSCIUTO CHE MONTANTE AVRO' TRA X ANNI?",null,null,null,null,null,null,null,null,null,null,null,null,null,null,null,"INVESTENDO UN CAPITALE ANNUALE CONOSCIUTO, CON O SENZA CAPITALE INIZIALE A UN TASSO DI RIV CONOSCIUTO CHE MONTANTE AVRO' TRA X ANNI?",null,null,null,null,null,null,null,null,null,null,null,null,null,null,null,"INVESTENDO UN CAPITALE ANNUALE CONOSCIUTO, CON O SENZA CAPITALE INIZIALE A UN TASSO DI RIV CONOSCIUTO CHE MONTANTE AVRO' TRA X ANNI?",null,null,null,null,null,null,null,null,null,null,null,null,null,null,null,"INVESTENDO UN CAPITALE ANNUALE CONOSCIUTO, CON O SENZA CAPITALE INIZIALE A UN TASSO DI RIV CONOSCIUTO CHE MONTANTE AVRO' TRA X ANNI?",null,null,null,null,null,null,null,null,null,null,null,null,null,null,null,"INVESTENDO UN CAPITALE ANNUALE CONOSCIUTO, CON O SENZA CAPITALE INIZIALE A UN TASSO DI RIV CONOSCIUTO CHE MONTANTE AVRO' TRA X ANNI?",null,null,null,null,null,null,null,null,null,null,null,null,null,null,null,"INVESTENDO UN CAPITALE ANNUALE CONOSCIUTO, CON O SENZA CAPITALE INIZIALE A UN TASSO DI RIV CONOSCIUTO CHE MONTANTE AVRO' TRA X ANNI?",null,null,null,null,null,null,null,null,null,null,null,null,null,null,null,"INVESTENDO UN CAPITALE ANNUALE CONOSCIUTO, CON O SENZA CAPITALE INIZIALE A UN TASSO DI RIV CONOSCIUTO CHE MONTANTE AVRO' TRA X ANNI?",null,null,null,null,null,null,null,null,null,null,null,null,null,null,null,"INVESTENDO UN CAPITALE ANNUALE CONOSCIUTO, CON O SENZA CAPITALE INIZIALE A UN TASSO DI RIV CONOSCIUTO CHE MONTANTE AVRO' TRA X ANNI?",null,null,null,null,null,null,null,null,null,null,null,null,null,null,null,"INVESTENDO UN CAPITALE ANNUALE CONOSCIUTO, CON O SENZA CAPITALE INIZIALE A UN TASSO DI RIV CONOSCIUTO CHE MONTANTE AVRO' TRA X ANNI?",null,null,null,null,null,null,null,null,null,null,null,null,null,null,null,"INVESTENDO UN CAPITALE ANNUALE CONOSCIUTO, CON O SENZA CAPITALE INIZIALE A UN TASSO DI RIV CONOSCIUTO CHE MONTANTE AVRO' TRA X ANNI?",null,null,null,null,null,null,null,null,null,null,null,null,null,null,null,"INVESTENDO UN CAPITALE ANNUALE CONOSCIUTO, CON O SENZA CAPITALE INIZIALE A UN TASSO DI RIV CONOSCIUTO CHE MONTANTE AVRO' TRA X ANNI?",null,null,null,null,null,null,null,null,null,null,null,null,null,null,null,"INVESTENDO UN CAPITALE ANNUALE CONOSCIUTO, CON O SENZA CAPITALE INIZIALE A UN TASSO DI RIV CONOSCIUTO CHE MONTANTE AVRO' TRA X ANNI?",null,null,null,null,null,null,null,null,null,null,null,null,null,null,null,"INVESTENDO UN CAPITALE ANNUALE CONOSCIUTO, CON O SENZA CAPITALE INIZIALE A UN TASSO DI RIV CONOSCIUTO CHE MONTANTE AVRO' TRA X ANNI?",null,null,null,null,null,null,null,null,null,null,null,null,null,null,null,"INVESTENDO UN CAPITALE ANNUALE CONOSCIUTO, CON O SENZA CAPITALE INIZIALE A UN TASSO DI RIV CONOSCIUTO CHE MONTANTE AVRO' TRA X ANNI?",null,null,null,null,null,null,null,null,null,null,null,null,null,null,null,"INVESTENDO UN CAPITALE ANNUALE CONOSCIUTO, CON O SENZA CAPITALE INIZIALE A UN TASSO DI RIV CONOSCIUTO CHE MONTANTE AVRO' TRA X ANNI?",null,null,null,null,null,null,null,null,null,null,null,null,null,null,null,"INVESTENDO UN CAPITALE ANNUALE CONOSCIUTO, CON O SENZA CAPITALE INIZIALE A UN TASSO DI RIV CONOSCIUTO CHE MONTANTE AVRO' TRA X ANNI?",null,null,null,null,null,null,null,null,null,null,null,null,null,null,null,"INVESTENDO UN CAPITALE ANNUALE CONOSCIUTO, CON O SENZA CAPITALE INIZIALE A UN TASSO DI RIV CONOSCIUTO CHE MONTANTE AVRO' TRA X ANNI?",null,null,null,null,null,null,null,null,null,null,null,null,null,null,null,"INVESTENDO UN CAPITALE ANNUALE CONOSCIUTO, CON O SENZA CAPITALE INIZIALE A UN TASSO DI RIV CONOSCIUTO CHE MONTANTE AVRO' TRA X ANNI?",null,null,null,null,null,null,null,null,null,null,null,null,null,null,null,"INVESTENDO UN CAPITALE ANNUALE CONOSCIUTO, CON O SENZA CAPITALE INIZIALE A UN TASSO DI RIV CONOSCIUTO CHE MONTANTE AVRO' TRA X ANNI?",null,null,null,null,null,null,null,null,null,null,null,null,null,null,null,"INVESTENDO UN CAPITALE ANNUALE CONOSCIUTO, CON O SENZA CAPITALE INIZIALE A UN TASSO DI RIV CONOSCIUTO CHE MONTANTE AVRO' TRA X ANNI?",null,null,null,null,null,null,null,null,null,null,null,null,null,null,null,"INVESTENDO UN CAPITALE ANNUALE CONOSCIUTO, CON O SENZA CAPITALE INIZIALE A UN TASSO DI RIV CONOSCIUTO CHE MONTANTE AVRO' TRA X ANNI?",null,null,null,null,null,null,null,null,null,null,null,null,null,null,null,"INVESTENDO UN CAPITALE ANNUALE CONOSCIUTO, CON O SENZA CAPITALE INIZIALE A UN TASSO DI RIV CONOSCIUTO CHE MONTANTE AVRO' TRA X ANNI?",null,null,null,null,null,null,null,null,null,null,null,null,null,null,null,"INVESTENDO UN CAPITALE ANNUALE CONOSCIUTO, CON O SENZA CAPITALE INIZIALE A UN TASSO DI RIV CONOSCIUTO CHE MONTANTE AVRO' TRA X ANNI?",null,null,null,null,null,null,null,null,null,null,null,null,null,null,null,"INVESTENDO UN CAPITALE ANNUALE CONOSCIUTO, CON O SENZA CAPITALE INIZIALE A UN TASSO DI RIV CONOSCIUTO CHE MONTANTE AVRO' TRA X ANNI?",null,null,null,null,null,null,null,null,null,null,null,null,null,null,null,"INVESTENDO UN CAPITALE ANNUALE CONOSCIUTO, CON O SENZA CAPITALE INIZIALE A UN TASSO DI RIV CONOSCIUTO CHE MONTANTE AVRO' TRA X ANNI?",null,null,null,null,null,null,null,null,null,null,null,null,null,null,null,"INVESTENDO UN CAPITALE ANNUALE CONOSCIUTO, CON O SENZA CAPITALE INIZIALE A UN TASSO DI RIV CONOSCIUTO CHE MONTANTE AVRO' TRA X ANNI?",null,null,null,null,null,null,null,null,null,null,null,null,null,null,null,"INVESTENDO UN CAPITALE ANNUALE CONOSCIUTO, CON O SENZA CAPITALE INIZIALE A UN TASSO DI RIV CONOSCIUTO CHE MONTANTE AVRO' TRA X ANNI?",null,null,null,null,null,null,null,null,null,null,null,null,null,null,null,"INVESTENDO UN CAPITALE ANNUALE CONOSCIUTO, CON O SENZA CAPITALE INIZIALE A UN TASSO DI RIV CONOSCIUTO CHE MONTANTE AVRO' TRA X ANNI?",null,null,null,null,null,null,null,null,null,null,null,null,null,null,null,"INVESTENDO UN CAPITALE ANNUALE CONOSCIUTO, CON O SENZA CAPITALE INIZIALE A UN TASSO DI RIV CONOSCIUTO CHE MONTANTE AVRO' TRA X ANNI?",null,null,null,null,null,null,null,null,null,null,null,null,null,null,null,"INVESTENDO UN CAPITALE ANNUALE CONOSCIUTO, CON O SENZA CAPITALE INIZIALE A UN TASSO DI RIV CONOSCIUTO CHE MONTANTE AVRO' TRA X ANNI?",null,null,null,null,null,null,null,null,null,null,null,null,null,null,null,"INVESTENDO UN CAPITALE ANNUALE CONOSCIUTO, CON O SENZA CAPITALE INIZIALE A UN TASSO DI RIV CONOSCIUTO CHE MONTANTE AVRO' TRA X ANNI?",null,null,null,null,null,null,null,null,null,null,null,null,null,null,null,"INVESTENDO UN CAPITALE ANNUALE CONOSCIUTO, CON O SENZA CAPITALE INIZIALE A UN TASSO DI RIV CONOSCIUTO CHE MONTANTE AVRO' TRA X ANNI?",null,null,null,null,null,null,null,null,null,null,null,null,null,null,null,"INVESTENDO UN CAPITALE ANNUALE CONOSCIUTO, CON O SENZA CAPITALE INIZIALE A UN TASSO DI RIV CONOSCIUTO CHE MONTANTE AVRO' TRA X ANNI?",null,null,null,null,null,null,null,null,null,null,null,null,null,null,null,"INVESTENDO UN CAPITALE ANNUALE CONOSCIUTO, CON O SENZA CAPITALE INIZIALE A UN TASSO DI RIV CONOSCIUTO CHE MONTANTE AVRO' TRA X ANNI?",null,null,null,null,null,null,null,null,null,null,null,null,null,null,null,"INVESTENDO UN CAPITALE ANNUALE CONOSCIUTO, CON O SENZA CAPITALE INIZIALE A UN TASSO DI RIV CONOSCIUTO CHE MONTANTE AVRO' TRA X ANNI?",null,null,null,null,null,null,null,null,null,null,null,null,null,null,null,"INVESTENDO UN CAPITALE ANNUALE CONOSCIUTO, CON O SENZA CAPITALE INIZIALE A UN TASSO DI RIV CONOSCIUTO CHE MONTANTE AVRO' TRA X ANNI?",null,null,null,null,null,null,null,null,null,null,null,null,null,null,null,"INVESTENDO UN CAPITALE ANNUALE CONOSCIUTO, CON O SENZA CAPITALE INIZIALE A UN TASSO DI RIV CONOSCIUTO CHE MONTANTE AVRO' TRA X ANNI?",null,null,null,null,null,null,null,null,null,null,null,null,null,null,null,"INVESTENDO UN CAPITALE ANNUALE CONOSCIUTO, CON O SENZA CAPITALE INIZIALE A UN TASSO DI RIV CONOSCIUTO CHE MONTANTE AVRO' TRA X ANNI?",null,null,null,null,null,null,null,null,null,null,null,null,null,null,null,"INVESTENDO UN CAPITALE ANNUALE CONOSCIUTO, CON O SENZA CAPITALE INIZIALE A UN TASSO DI RIV CONOSCIUTO CHE MONTANTE AVRO' TRA X ANNI?",null,null,null,null,null,null,null,null,null,null,null,null,null,null,null,"INVESTENDO UN CAPITALE ANNUALE CONOSCIUTO, CON O SENZA CAPITALE INIZIALE A UN TASSO DI RIV CONOSCIUTO CHE MONTANTE AVRO' TRA X ANNI?",null,null,null,null,null,null,null,null,null,null,null,null,null,null,null,"INVESTENDO UN CAPITALE ANNUALE CONOSCIUTO, CON O SENZA CAPITALE INIZIALE A UN TASSO DI RIV CONOSCIUTO CHE MONTANTE AVRO' TRA X ANNI?",null,null,null,null,null,null,null,null,null,null,null,null,null,null,null,"INVESTENDO UN CAPITALE ANNUALE CONOSCIUTO, CON O SENZA CAPITALE INIZIALE A UN TASSO DI RIV CONOSCIUTO CHE MONTANTE AVRO' TRA X ANNI?",null,null,null,null,null,null,null,null,null,null,null,null,null,null,null,"INVESTENDO UN CAPITALE ANNUALE CONOSCIUTO, CON O SENZA CAPITALE INIZIALE A UN TASSO DI RIV CONOSCIUTO CHE MONTANTE AVRO' TRA X ANNI?",null,null,null,null,null,null,null,null,null,null,null,null,null,null,null,"INVESTENDO UN CAPITALE ANNUALE CONOSCIUTO, CON O SENZA CAPITALE INIZIALE A UN TASSO DI RIV CONOSCIUTO CHE MONTANTE AVRO' TRA X ANNI?",null,null,null,null,null,null,null,null,null,null,null,null,null,null,null,"INVESTENDO UN CAPITALE ANNUALE CONOSCIUTO, CON O SENZA CAPITALE INIZIALE A UN TASSO DI RIV CONOSCIUTO CHE MONTANTE AVRO' TRA X ANNI?",null,null,null,null,null,null,null,null,null,null,null,null,null,null,null,"INVESTENDO UN CAPITALE ANNUALE CONOSCIUTO, CON O SENZA CAPITALE INIZIALE A UN TASSO DI RIV CONOSCIUTO CHE MONTANTE AVRO' TRA X ANNI?",null,null,null,null,null,null,null,null,null,null,null,null,null,null,null,"INVESTENDO UN CAPITALE ANNUALE CONOSCIUTO, CON O SENZA CAPITALE INIZIALE A UN TASSO DI RIV CONOSCIUTO CHE MONTANTE AVRO' TRA X ANNI?",null,null,null,null,null,null,null,null,null,null,null,null,null,null,null,"INVESTENDO UN CAPITALE ANNUALE CONOSCIUTO, CON O SENZA CAPITALE INIZIALE A UN TASSO DI RIV CONOSCIUTO CHE MONTANTE AVRO' TRA X ANNI?",null,null,null,null,null,null,null,null,null,null,null,null,null,null,null,"INVESTENDO UN CAPITALE ANNUALE CONOSCIUTO, CON O SENZA CAPITALE INIZIALE A UN TASSO DI RIV CONOSCIUTO CHE MONTANTE AVRO' TRA X ANNI?",null,null,null,null,null,null,null,null,null,null,null,null,null,null,null,"INVESTENDO UN CAPITALE ANNUALE CONOSCIUTO, CON O SENZA CAPITALE INIZIALE A UN TASSO DI RIV CONOSCIUTO CHE MONTANTE AVRO' TRA X ANNI?",null,null,null,null,null,null,null,null,null,null,null,null,null,null,null,"INVESTENDO UN CAPITALE ANNUALE CONOSCIUTO, CON O SENZA CAPITALE INIZIALE A UN TASSO DI RIV CONOSCIUTO CHE MONTANTE AVRO' TRA X ANNI?",null,null,null,null,null,null,null,null,null,null,null,null,null,null,null,"INVESTENDO UN CAPITALE ANNUALE CONOSCIUTO, CON O SENZA CAPITALE INIZIALE A UN TASSO DI RIV CONOSCIUTO CHE MONTANTE AVRO' TRA X ANNI?",null,null,null,null,null,null,null,null,null,null,null,null,null,null,null,"INVESTENDO UN CAPITALE ANNUALE CONOSCIUTO, CON O SENZA CAPITALE INIZIALE A UN TASSO DI RIV CONOSCIUTO CHE MONTANTE AVRO' TRA X ANNI?",null,null,null,null,null,null,null,null,null,null,null,null,null,null,null,"INVESTENDO UN CAPITALE ANNUALE CONOSCIUTO, CON O SENZA CAPITALE INIZIALE A UN TASSO DI RIV CONOSCIUTO CHE MONTANTE AVRO' TRA X ANNI?",null,null,null,null,null,null,null,null,null,null,null,null,null,null,null,"INVESTENDO UN CAPITALE ANNUALE CONOSCIUTO, CON O SENZA CAPITALE INIZIALE A UN TASSO DI RIV CONOSCIUTO CHE MONTANTE AVRO' TRA X ANNI?",null,null,null,null,null,null,null,null,null,null,null,null,null,null,null,"INVESTENDO UN CAPITALE ANNUALE CONOSCIUTO, CON O SENZA CAPITALE INIZIALE A UN TASSO DI RIV CONOSCIUTO CHE MONTANTE AVRO' TRA X ANNI?",null,null,null,null,null,null,null,null,null,null,null,null,null,null,null,"INVESTENDO UN CAPITALE ANNUALE CONOSCIUTO, CON O SENZA CAPITALE INIZIALE A UN TASSO DI RIV CONOSCIUTO CHE MONTANTE AVRO' TRA X ANNI?",null,null,null,null,null,null,null,null,null,null,null,null,null,null,null,"INVESTENDO UN CAPITALE ANNUALE CONOSCIUTO, CON O SENZA CAPITALE INIZIALE A UN TASSO DI RIV CONOSCIUTO CHE MONTANTE AVRO' TRA X ANNI?",null,null,null,null,null,null,null,null,null,null,null,null,null,null,null,"INVESTENDO UN CAPITALE ANNUALE CONOSCIUTO, CON O SENZA CAPITALE INIZIALE A UN TASSO DI RIV CONOSCIUTO CHE MONTANTE AVRO' TRA X ANNI?",null,null,null,null,null,null,null,null,null,null,null,null,null,null,null,"INVESTENDO UN CAPITALE ANNUALE CONOSCIUTO, CON O SENZA CAPITALE INIZIALE A UN TASSO DI RIV CONOSCIUTO CHE MONTANTE AVRO' TRA X ANNI?",null,null,null,null,null,null,null,null,null,null,null,null,null,null,null,"INVESTENDO UN CAPITALE ANNUALE CONOSCIUTO, CON O SENZA CAPITALE INIZIALE A UN TASSO DI RIV CONOSCIUTO CHE MONTANTE AVRO' TRA X ANNI?",null,null,null,null,null,null,null,null,null,null,null,null,null,null,null,"INVESTENDO UN CAPITALE ANNUALE CONOSCIUTO, CON O SENZA CAPITALE INIZIALE A UN TASSO DI RIV CONOSCIUTO CHE MONTANTE AVRO' TRA X ANNI?",null,null,null,null,null,null,null,null,null,null,null,null,null,null,null,"INVESTENDO UN CAPITALE ANNUALE CONOSCIUTO, CON O SENZA CAPITALE INIZIALE A UN TASSO DI RIV CONOSCIUTO CHE MONTANTE AVRO' TRA X ANNI?",null,null,null,null,null,null,null,null,null,null,null,null,null,null,null,"INVESTENDO UN CAPITALE ANNUALE CONOSCIUTO, CON O SENZA CAPITALE INIZIALE A UN TASSO DI RIV CONOSCIUTO CHE MONTANTE AVRO' TRA X ANNI?",null,null,null,null,null,null,null,null,null,null,null,null,null,null,null,"INVESTENDO UN CAPITALE ANNUALE CONOSCIUTO, CON O SENZA CAPITALE INIZIALE A UN TASSO DI RIV CONOSCIUTO CHE MONTANTE AVRO' TRA X ANNI?",null,null,null,null,null,null,null,null,null,null,null,null,null,null,null,"INVESTENDO UN CAPITALE ANNUALE CONOSCIUTO, CON O SENZA CAPITALE INIZIALE A UN TASSO DI RIV CONOSCIUTO CHE MONTANTE AVRO' TRA X ANNI?",null,null,null,null,null,null,null,null,null,null,null,null,null,null,null,"INVESTENDO UN CAPITALE ANNUALE CONOSCIUTO, CON O SENZA CAPITALE INIZIALE A UN TASSO DI RIV CONOSCIUTO CHE MONTANTE AVRO' TRA X ANNI?",null,null,null,null,null,null,null,null,null,null,null,null,null,null,null,"INVESTENDO UN CAPITALE ANNUALE CONOSCIUTO, CON O SENZA CAPITALE INIZIALE A UN TASSO DI RIV CONOSCIUTO CHE MONTANTE AVRO' TRA X ANNI?",null,null,null,null,null,null,null,null,null,null,null,null,null,null,null,"INVESTENDO UN CAPITALE ANNUALE CONOSCIUTO, CON O SENZA CAPITALE INIZIALE A UN TASSO DI RIV CONOSCIUTO CHE MONTANTE AVRO' TRA X ANNI?",null,null,null,null,null,null,null,null,null,null,null,null,null,null,null,"INVESTENDO UN CAPITALE ANNUALE CONOSCIUTO, CON O SENZA CAPITALE INIZIALE A UN TASSO DI RIV CONOSCIUTO CHE MONTANTE AVRO' TRA X ANNI?",null,null,null,null,null,null,null,null,null,null,null,null,null,null,null,"INVESTENDO UN CAPITALE ANNUALE CONOSCIUTO, CON O SENZA CAPITALE INIZIALE A UN TASSO DI RIV CONOSCIUTO CHE MONTANTE AVRO' TRA X ANNI?",null,null,null,null,null,null,null,null,null,null,null,null,null,null,null,"INVESTENDO UN CAPITALE ANNUALE CONOSCIUTO, CON O SENZA CAPITALE INIZIALE A UN TASSO DI RIV CONOSCIUTO CHE MONTANTE AVRO' TRA X ANNI?",null,null,null,null,null,null,null,null,null,null,null,null,null,null,null,"INVESTENDO UN CAPITALE ANNUALE CONOSCIUTO, CON O SENZA CAPITALE INIZIALE A UN TASSO DI RIV CONOSCIUTO CHE MONTANTE AVRO' TRA X ANNI?",null,null,null,null,null,null,null,null,null,null,null,null,null,null,null,"INVESTENDO UN CAPITALE ANNUALE CONOSCIUTO, CON O SENZA CAPITALE INIZIALE A UN TASSO DI RIV CONOSCIUTO CHE MONTANTE AVRO' TRA X ANNI?",null,null,null,null,null,null,null,null,null,null,null,null,null,null,null,"INVESTENDO UN CAPITALE ANNUALE CONOSCIUTO, CON O SENZA CAPITALE INIZIALE A UN TASSO DI RIV CONOSCIUTO CHE MONTANTE AVRO' TRA X ANNI?",null,null,null,null,null,null,null,null,null,null,null,null,null,null,null,"INVESTENDO UN CAPITALE ANNUALE CONOSCIUTO, CON O SENZA CAPITALE INIZIALE A UN TASSO DI RIV CONOSCIUTO CHE MONTANTE AVRO' TRA X ANNI?",null,null,null,null,null,null,null,null,null,null,null,null,null,null,null,"INVESTENDO UN CAPITALE ANNUALE CONOSCIUTO, CON O SENZA CAPITALE INIZIALE A UN TASSO DI RIV CONOSCIUTO CHE MONTANTE AVRO' TRA X ANNI?",null,null,null,null,null,null,null,null,null,null,null,null,null,null,null,"INVESTENDO UN CAPITALE ANNUALE CONOSCIUTO, CON O SENZA CAPITALE INIZIALE A UN TASSO DI RIV CONOSCIUTO CHE MONTANTE AVRO' TRA X ANNI?",null,null,null,null,null,null,null,null,null,null,null,null,null,null,null,"INVESTENDO UN CAPITALE ANNUALE CONOSCIUTO, CON O SENZA CAPITALE INIZIALE A UN TASSO DI RIV CONOSCIUTO CHE MONTANTE AVRO' TRA X ANNI?",null,null,null,null,null,null,null,null,null,null,null,null,null,null,null,"INVESTENDO UN CAPITALE ANNUALE CONOSCIUTO, CON O SENZA CAPITALE INIZIALE A UN TASSO DI RIV CONOSCIUTO CHE MONTANTE AVRO' TRA X ANNI?",null,null,null,null,null,null,null,null,null,null,null,null,null,null,null,"INVESTENDO UN CAPITALE ANNUALE CONOSCIUTO, CON O SENZA CAPITALE INIZIALE A UN TASSO DI RIV CONOSCIUTO CHE MONTANTE AVRO' TRA X ANNI?",null,null,null,null,null,null,null,null,null,null,null,null,null,null,null,"INVESTENDO UN CAPITALE ANNUALE CONOSCIUTO, CON O SENZA CAPITALE INIZIALE A UN TASSO DI RIV CONOSCIUTO CHE MONTANTE AVRO' TRA X ANNI?",null,null,null,null,null,null,null,null,null,null,null,null,null,null,null,"INVESTENDO UN CAPITALE ANNUALE CONOSCIUTO, CON O SENZA CAPITALE INIZIALE A UN TASSO DI RIV CONOSCIUTO CHE MONTANTE AVRO' TRA X ANNI?",null,null,null,null,null,null,null,null,null,null,null,null,null,null,null,"INVESTENDO UN CAPITALE ANNUALE CONOSCIUTO, CON O SENZA CAPITALE INIZIALE A UN TASSO DI RIV CONOSCIUTO CHE MONTANTE AVRO' TRA X ANNI?",null,null,null,null,null,null,null,null,null,null,null,null,null,null,null,"INVESTENDO UN CAPITALE ANNUALE CONOSCIUTO, CON O SENZA CAPITALE INIZIALE A UN TASSO DI RIV CONOSCIUTO CHE MONTANTE AVRO' TRA X ANNI?",null,null,null,null,null,null,null,null,null,null,null,null,null,null,null,"INVESTENDO UN CAPITALE ANNUALE CONOSCIUTO, CON O SENZA CAPITALE INIZIALE A UN TASSO DI RIV CONOSCIUTO CHE MONTANTE AVRO' TRA X ANNI?",null,null,null,null,null,null,null,null,null,null,null,null,null,null,null,"INVESTENDO UN CAPITALE ANNUALE CONOSCIUTO, CON O SENZA CAPITALE INIZIALE A UN TASSO DI RIV CONOSCIUTO CHE MONTANTE AVRO' TRA X ANNI?",null,null,null,null,null,null,null,null,null,null,null,null,null,null,null,"INVESTENDO UN CAPITALE ANNUALE CONOSCIUTO, CON O SENZA CAPITALE INIZIALE A UN TASSO DI RIV CONOSCIUTO CHE MONTANTE AVRO' TRA X ANNI?",null,null,null,null,null,null,null,null,null,null,null,null,null,null,null,"INVESTENDO UN CAPITALE ANNUALE CONOSCIUTO, CON O SENZA CAPITALE INIZIALE A UN TASSO DI RIV CONOSCIUTO CHE MONTANTE AVRO' TRA X ANNI?",null,null,null,null,null,null,null,null,null,null,null,null,null,null,null,"INVESTENDO UN CAPITALE ANNUALE CONOSCIUTO, CON O SENZA CAPITALE INIZIALE A UN TASSO DI RIV CONOSCIUTO CHE MONTANTE AVRO' TRA X ANNI?",null,null,null,null,null,null,null,null,null,null,null,null,null,null,null,"INVESTENDO UN CAPITALE ANNUALE CONOSCIUTO, CON O SENZA CAPITALE INIZIALE A UN TASSO DI RIV CONOSCIUTO CHE MONTANTE AVRO' TRA X ANNI?",null,null,null,null,null,null,null,null,null,null,null,null,null,null,null,"INVESTENDO UN CAPITALE ANNUALE CONOSCIUTO, CON O SENZA CAPITALE INIZIALE A UN TASSO DI RIV CONOSCIUTO CHE MONTANTE AVRO' TRA X ANNI?",null,null,null,null,null,null,null,null,null,null,null,null,null,null,null,"INVESTENDO UN CAPITALE ANNUALE CONOSCIUTO, CON O SENZA CAPITALE INIZIALE A UN TASSO DI RIV CONOSCIUTO CHE MONTANTE AVRO' TRA X ANNI?",null,null,null,null,null,null,null,null,null,null,null,null,null,null,null,"INVESTENDO UN CAPITALE ANNUALE CONOSCIUTO, CON O SENZA CAPITALE INIZIALE A UN TASSO DI RIV CONOSCIUTO CHE MONTANTE AVRO' TRA X ANNI?",null,null,null,null,null,null,null,null,null,null,null,null,null,null,null,"INVESTENDO UN CAPITALE ANNUALE CONOSCIUTO, CON O SENZA CAPITALE INIZIALE A UN TASSO DI RIV CONOSCIUTO CHE MONTANTE AVRO' TRA X ANNI?",null,null,null,null,null,null,null,null,null,null,null,null,null,null,null,"INVESTENDO UN CAPITALE ANNUALE CONOSCIUTO, CON O SENZA CAPITALE INIZIALE A UN TASSO DI RIV CONOSCIUTO CHE MONTANTE AVRO' TRA X ANNI?",null,null,null,null,null,null,null,null,null,null,null,null,null,null,null,"INVESTENDO UN CAPITALE ANNUALE CONOSCIUTO, CON O SENZA CAPITALE INIZIALE A UN TASSO DI RIV CONOSCIUTO CHE MONTANTE AVRO' TRA X ANNI?",null,null,null,null,null,null,null,null,null,null,null,null,null,null,null,"INVESTENDO UN CAPITALE ANNUALE CONOSCIUTO, CON O SENZA CAPITALE INIZIALE A UN TASSO DI RIV CONOSCIUTO CHE MONTANTE AVRO' TRA X ANNI?",null,null,null,null,null,null,null,null,null,null,null,null,null,null,null,"INVESTENDO UN CAPITALE ANNUALE CONOSCIUTO, CON O SENZA CAPITALE INIZIALE A UN TASSO DI RIV CONOSCIUTO CHE MONTANTE AVRO' TRA X ANNI?",null,null,null,null,null,null,null,null,null,null,null,null,null,null,null,"INVESTENDO UN CAPITALE ANNUALE CONOSCIUTO, CON O SENZA CAPITALE INIZIALE A UN TASSO DI RIV CONOSCIUTO CHE MONTANTE AVRO' TRA X ANNI?",null,null,null,null,null,null,null,null,null,null,null,null,null,null,null,"INVESTENDO UN CAPITALE ANNUALE CONOSCIUTO, CON O SENZA CAPITALE INIZIALE A UN TASSO DI RIV CONOSCIUTO CHE MONTANTE AVRO' TRA X ANNI?",null,null,null,null,null,null,null,null,null,null,null,null,null,null,null,"INVESTENDO UN CAPITALE ANNUALE CONOSCIUTO, CON O SENZA CAPITALE INIZIALE A UN TASSO DI RIV CONOSCIUTO CHE MONTANTE AVRO' TRA X ANNI?",null,null,null,null,null,null,null,null,null,null,null,null,null,null,null,"INVESTENDO UN CAPITALE ANNUALE CONOSCIUTO, CON O SENZA CAPITALE INIZIALE A UN TASSO DI RIV CONOSCIUTO CHE MONTANTE AVRO' TRA X ANNI?",null,null,null,null,null,null,null,null,null,null,null,null,null,null,null,"INVESTENDO UN CAPITALE ANNUALE CONOSCIUTO, CON O SENZA CAPITALE INIZIALE A UN TASSO DI RIV CONOSCIUTO CHE MONTANTE AVRO' TRA X ANNI?",null,null,null,null,null,null,null,null,null,null,null,null,null,null,null,"INVESTENDO UN CAPITALE ANNUALE CONOSCIUTO, CON O SENZA CAPITALE INIZIALE A UN TASSO DI RIV CONOSCIUTO CHE MONTANTE AVRO' TRA X ANNI?",null,null,null,null,null,null,null,null,null,null,null,null,null,null,null,"INVESTENDO UN CAPITALE ANNUALE CONOSCIUTO, CON O SENZA CAPITALE INIZIALE A UN TASSO DI RIV CONOSCIUTO CHE MONTANTE AVRO' TRA X ANNI?",null,null,null,null,null,null,null,null,null,null,null,null,null,null,null,"INVESTENDO UN CAPITALE ANNUALE CONOSCIUTO, CON O SENZA CAPITALE INIZIALE A UN TASSO DI RIV CONOSCIUTO CHE MONTANTE AVRO' TRA X ANNI?",null,null,null,null,null,null,null,null,null,null,null,null,null,null,null,"INVESTENDO UN CAPITALE ANNUALE CONOSCIUTO, CON O SENZA CAPITALE INIZIALE A UN TASSO DI RIV CONOSCIUTO CHE MONTANTE AVRO' TRA X ANNI?",null,null,null,null,null,null,null,null,null,null,null,null,null,null,null,"INVESTENDO UN CAPITALE ANNUALE CONOSCIUTO, CON O SENZA CAPITALE INIZIALE A UN TASSO DI RIV CONOSCIUTO CHE MONTANTE AVRO' TRA X ANNI?",null,null,null,null,null,null,null,null,null,null,null,null,null,null,null,"INVESTENDO UN CAPITALE ANNUALE CONOSCIUTO, CON O SENZA CAPITALE INIZIALE A UN TASSO DI RIV CONOSCIUTO CHE MONTANTE AVRO' TRA X ANNI?",null,null,null,null,null,null,null,null,null,null,null,null,null,null,null,"INVESTENDO UN CAPITALE ANNUALE CONOSCIUTO, CON O SENZA CAPITALE INIZIALE A UN TASSO DI RIV CONOSCIUTO CHE MONTANTE AVRO' TRA X ANNI?",null,null,null,null,null,null,null,null,null,null,null,null,null,null,null,"INVESTENDO UN CAPITALE ANNUALE CONOSCIUTO, CON O SENZA CAPITALE INIZIALE A UN TASSO DI RIV CONOSCIUTO CHE MONTANTE AVRO' TRA X ANNI?",null,null,null,null,null,null,null,null,null,null,null,null,null,null,null,"INVESTENDO UN CAPITALE ANNUALE CONOSCIUTO, CON O SENZA CAPITALE INIZIALE A UN TASSO DI RIV CONOSCIUTO CHE MONTANTE AVRO' TRA X ANNI?",null,null,null,null,null,null,null,null,null,null,null,null,null,null,null,"INVESTENDO UN CAPITALE ANNUALE CONOSCIUTO, CON O SENZA CAPITALE INIZIALE A UN TASSO DI RIV CONOSCIUTO CHE MONTANTE AVRO' TRA X ANNI?",null,null,null,null,null,null,null,null,null,null,null,null,null,null,null,"INVESTENDO UN CAPITALE ANNUALE CONOSCIUTO, CON O SENZA CAPITALE INIZIALE A UN TASSO DI RIV CONOSCIUTO CHE MONTANTE AVRO' TRA X ANNI?",null,null,null,null,null,null,null,null,null,null,null,null,null,null,null,"INVESTENDO UN CAPITALE ANNUALE CONOSCIUTO, CON O SENZA CAPITALE INIZIALE A UN TASSO DI RIV CONOSCIUTO CHE MONTANTE AVRO' TRA X ANNI?",null,null,null,null,null,null,null,null,null,null,null,null,null,null,null,"INVESTENDO UN CAPITALE ANNUALE CONOSCIUTO, CON O SENZA CAPITALE INIZIALE A UN TASSO DI RIV CONOSCIUTO CHE MONTANTE AVRO' TRA X ANNI?",null,null,null,null,null,null,null,null,null,null,null,null,null,null,null,"INVESTENDO UN CAPITALE ANNUALE CONOSCIUTO, CON O SENZA CAPITALE INIZIALE A UN TASSO DI RIV CONOSCIUTO CHE MONTANTE AVRO' TRA X ANNI?",null,null,null,null,null,null,null,null,null,null,null,null,null,null,null,"INVESTENDO UN CAPITALE ANNUALE CONOSCIUTO, CON O SENZA CAPITALE INIZIALE A UN TASSO DI RIV CONOSCIUTO CHE MONTANTE AVRO' TRA X ANNI?",null,null,null,null,null,null,null,null,null,null,null,null,null,null,null,"INVESTENDO UN CAPITALE ANNUALE CONOSCIUTO, CON O SENZA CAPITALE INIZIALE A UN TASSO DI RIV CONOSCIUTO CHE MONTANTE AVRO' TRA X ANNI?",null,null,null,null,null,null,null,null,null,null,null,null,null,null,null,"INVESTENDO UN CAPITALE ANNUALE CONOSCIUTO, CON O SENZA CAPITALE INIZIALE A UN TASSO DI RIV CONOSCIUTO CHE MONTANTE AVRO' TRA X ANNI?",null,null,null,null,null,null,null,null,null,null,null,null,null,null,null,"INVESTENDO UN CAPITALE ANNUALE CONOSCIUTO, CON O SENZA CAPITALE INIZIALE A UN TASSO DI RIV CONOSCIUTO CHE MONTANTE AVRO' TRA X ANNI?",null,null,null,null,null,null,null,null,null,null,null,null,null,null,null,"INVESTENDO UN CAPITALE ANNUALE CONOSCIUTO, CON O SENZA CAPITALE INIZIALE A UN TASSO DI RIV CONOSCIUTO CHE MONTANTE AVRO' TRA X ANNI?",null,null,null,null,null,null,null,null,null,null,null,null,null,null,null,"INVESTENDO UN CAPITALE ANNUALE CONOSCIUTO, CON O SENZA CAPITALE INIZIALE A UN TASSO DI RIV CONOSCIUTO CHE MONTANTE AVRO' TRA X ANNI?",null,null,null,null,null,null,null,null,null,null,null,null,null,null,null,"INVESTENDO UN CAPITALE ANNUALE CONOSCIUTO, CON O SENZA CAPITALE INIZIALE A UN TASSO DI RIV CONOSCIUTO CHE MONTANTE AVRO' TRA X ANNI?",null,null,null,null,null,null,null,null,null,null,null,null,null,null,null,"INVESTENDO UN CAPITALE ANNUALE CONOSCIUTO, CON O SENZA CAPITALE INIZIALE A UN TASSO DI RIV CONOSCIUTO CHE MONTANTE AVRO' TRA X ANNI?",null,null,null,null,null,null,null,null,null,null,null,null,null,null,null,"INVESTENDO UN CAPITALE ANNUALE CONOSCIUTO, CON O SENZA CAPITALE INIZIALE A UN TASSO DI RIV CONOSCIUTO CHE MONTANTE AVRO' TRA X ANNI?",null,null,null,null,null,null,null,null,null,null,null,null,null,null,null,"INVESTENDO UN CAPITALE ANNUALE CONOSCIUTO, CON O SENZA CAPITALE INIZIALE A UN TASSO DI RIV CONOSCIUTO CHE MONTANTE AVRO' TRA X ANNI?",null,null,null,null,null,null,null,null,null,null,null,null,null,null,null,"INVESTENDO UN CAPITALE ANNUALE CONOSCIUTO, CON O SENZA CAPITALE INIZIALE A UN TASSO DI RIV CONOSCIUTO CHE MONTANTE AVRO' TRA X ANNI?",null,null,null,null,null,null,null,null,null,null,null,null,null,null,null,"INVESTENDO UN CAPITALE ANNUALE CONOSCIUTO, CON O SENZA CAPITALE INIZIALE A UN TASSO DI RIV CONOSCIUTO CHE MONTANTE AVRO' TRA X ANNI?",null,null,null,null,null,null,null,null,null,null,null,null,null,null,null,"INVESTENDO UN CAPITALE ANNUALE CONOSCIUTO, CON O SENZA CAPITALE INIZIALE A UN TASSO DI RIV CONOSCIUTO CHE MONTANTE AVRO' TRA X ANNI?",null,null,null,null,null,null,null,null,null,null,null,null,null,null,null,"INVESTENDO UN CAPITALE ANNUALE CONOSCIUTO, CON O SENZA CAPITALE INIZIALE A UN TASSO DI RIV CONOSCIUTO CHE MONTANTE AVRO' TRA X ANNI?",null,null,null,null,null,null,null,null,null,null,null,null,null,null,null,"INVESTENDO UN CAPITALE ANNUALE CONOSCIUTO, CON O SENZA CAPITALE INIZIALE A UN TASSO DI RIV CONOSCIUTO CHE MONTANTE AVRO' TRA X ANNI?",null,null,null,null,null,null,null,null,null,null,null,null,null,null,null,"INVESTENDO UN CAPITALE ANNUALE CONOSCIUTO, CON O SENZA CAPITALE INIZIALE A UN TASSO DI RIV CONOSCIUTO CHE MONTANTE AVRO' TRA X ANNI?",null,null,null,null,null,null,null,null,null,null,null,null,null,null,null,"INVESTENDO UN CAPITALE ANNUALE CONOSCIUTO, CON O SENZA CAPITALE INIZIALE A UN TASSO DI RIV CONOSCIUTO CHE MONTANTE AVRO' TRA X ANNI?",null,null,null,null,null,null,null,null,null,null,null,null,null,null,null,"INVESTENDO UN CAPITALE ANNUALE CONOSCIUTO, CON O SENZA CAPITALE INIZIALE A UN TASSO DI RIV CONOSCIUTO CHE MONTANTE AVRO' TRA X ANNI?",null,null,null,null,null,null,null,null,null,null,null,null,null,null,null,"INVESTENDO UN CAPITALE ANNUALE CONOSCIUTO, CON O SENZA CAPITALE INIZIALE A UN TASSO DI RIV CONOSCIUTO CHE MONTANTE AVRO' TRA X ANNI?",null,null,null,null,null,null,null,null,null,null,null,null,null,null,null,"INVESTENDO UN CAPITALE ANNUALE CONOSCIUTO, CON O SENZA CAPITALE INIZIALE A UN TASSO DI RIV CONOSCIUTO CHE MONTANTE AVRO' TRA X ANNI?",null,null,null,null,null,null,null,null,null,null,null,null,null,null,null,"INVESTENDO UN CAPITALE ANNUALE CONOSCIUTO, CON O SENZA CAPITALE INIZIALE A UN TASSO DI RIV CONOSCIUTO CHE MONTANTE AVRO' TRA X ANNI?",null,null,null,null,null,null,null,null,null,null,null,null,null,null,null,"INVESTENDO UN CAPITALE ANNUALE CONOSCIUTO, CON O SENZA CAPITALE INIZIALE A UN TASSO DI RIV CONOSCIUTO CHE MONTANTE AVRO' TRA X ANNI?",null,null,null,null,null,null,null,null,null,null,null,null,null,null,null,"INVESTENDO UN CAPITALE ANNUALE CONOSCIUTO, CON O SENZA CAPITALE INIZIALE A UN TASSO DI RIV CONOSCIUTO CHE MONTANTE AVRO' TRA X ANNI?",null,null,null,null,null,null,null,null,null,null,null,null,null,null,null,"INVESTENDO UN CAPITALE ANNUALE CONOSCIUTO, CON O SENZA CAPITALE INIZIALE A UN TASSO DI RIV CONOSCIUTO CHE MONTANTE AVRO' TRA X ANNI?",null,null,null,null,null,null,null,null,null,null,null,null,null,null,null,"INVESTENDO UN CAPITALE ANNUALE CONOSCIUTO, CON O SENZA CAPITALE INIZIALE A UN TASSO DI RIV CONOSCIUTO CHE MONTANTE AVRO' TRA X ANNI?",null,null,null,null,null,null,null,null,null,null,null,null,null,null,null,"INVESTENDO UN CAPITALE ANNUALE CONOSCIUTO, CON O SENZA CAPITALE INIZIALE A UN TASSO DI RIV CONOSCIUTO CHE MONTANTE AVRO' TRA X ANNI?",null,null,null,null,null,null,null,null,null,null,null,null,null,null,null,"INVESTENDO UN CAPITALE ANNUALE CONOSCIUTO, CON O SENZA CAPITALE INIZIALE A UN TASSO DI RIV CONOSCIUTO CHE MONTANTE AVRO' TRA X ANNI?",null,null,null,null,null,null,null,null,null,null,null,null,null,null,null,"INVESTENDO UN CAPITALE ANNUALE CONOSCIUTO, CON O SENZA CAPITALE INIZIALE A UN TASSO DI RIV CONOSCIUTO CHE MONTANTE AVRO' TRA X ANNI?",null,null,null,null,null,null,null,null,null,null,null,null,null,null,null,"INVESTENDO UN CAPITALE ANNUALE CONOSCIUTO, CON O SENZA CAPITALE INIZIALE A UN TASSO DI RIV CONOSCIUTO CHE MONTANTE AVRO' TRA X ANNI?",null,null,null,null,null,null,null,null,null,null,null,null,null,null,null,"INVESTENDO UN CAPITALE ANNUALE CONOSCIUTO, CON O SENZA CAPITALE INIZIALE A UN TASSO DI RIV CONOSCIUTO CHE MONTANTE AVRO' TRA X ANNI?",null,null,null,null,null,null,null,null,null,null,null,null,null,null,null,"INVESTENDO UN CAPITALE ANNUALE CONOSCIUTO, CON O SENZA CAPITALE INIZIALE A UN TASSO DI RIV CONOSCIUTO CHE MONTANTE AVRO' TRA X ANNI?",null,null,null,null,null,null,null,null,null,null,null,null,null,null,null,"INVESTENDO UN CAPITALE ANNUALE CONOSCIUTO, CON O SENZA CAPITALE INIZIALE A UN TASSO DI RIV CONOSCIUTO CHE MONTANTE AVRO' TRA X ANNI?",null,null,null,null,null,null,null,null,null,null,null,null,null,null,null,"INVESTENDO UN CAPITALE ANNUALE CONOSCIUTO, CON O SENZA CAPITALE INIZIALE A UN TASSO DI RIV CONOSCIUTO CHE MONTANTE AVRO' TRA X ANNI?",null,null,null,null,null,null,null,null,null,null,null,null,null,null,null,"INVESTENDO UN CAPITALE ANNUALE CONOSCIUTO, CON O SENZA CAPITALE INIZIALE A UN TASSO DI RIV CONOSCIUTO CHE MONTANTE AVRO' TRA X ANNI?",null,null,null,null,null,null,null,null,null,null,null,null,null,null,null,"INVESTENDO UN CAPITALE ANNUALE CONOSCIUTO, CON O SENZA CAPITALE INIZIALE A UN TASSO DI RIV CONOSCIUTO CHE MONTANTE AVRO' TRA X ANNI?",null,null,null,null,null,null,null,null,null,null,null,null,null,null,null,"INVESTENDO UN CAPITALE ANNUALE CONOSCIUTO, CON O SENZA CAPITALE INIZIALE A UN TASSO DI RIV CONOSCIUTO CHE MONTANTE AVRO' TRA X ANNI?",null,null,null,null,null,null,null,null,null,null,null,null,null,null,null,"INVESTENDO UN CAPITALE ANNUALE CONOSCIUTO, CON O SENZA CAPITALE INIZIALE A UN TASSO DI RIV CONOSCIUTO CHE MONTANTE AVRO' TRA X ANNI?",null,null,null,null,null,null,null,null,null,null,null,null,null,null,null,"INVESTENDO UN CAPITALE ANNUALE CONOSCIUTO, CON O SENZA CAPITALE INIZIALE A UN TASSO DI RIV CONOSCIUTO CHE MONTANTE AVRO' TRA X ANNI?",null,null,null,null,null,null,null,null,null,null,null,null,null,null,null,"INVESTENDO UN CAPITALE ANNUALE CONOSCIUTO, CON O SENZA CAPITALE INIZIALE A UN TASSO DI RIV CONOSCIUTO CHE MONTANTE AVRO' TRA X ANNI?",null,null,null,null,null,null,null,null,null,null,null,null,null,null,null,"INVESTENDO UN CAPITALE ANNUALE CONOSCIUTO, CON O SENZA CAPITALE INIZIALE A UN TASSO DI RIV CONOSCIUTO CHE MONTANTE AVRO' TRA X ANNI?",null,null,null,null,null,null,null,null,null,null,null,null,null,null,null,"INVESTENDO UN CAPITALE ANNUALE CONOSCIUTO, CON O SENZA CAPITALE INIZIALE A UN TASSO DI RIV CONOSCIUTO CHE MONTANTE AVRO' TRA X ANNI?",null,null,null,null,null,null,null,null,null,null,null,null,null,null,null,"INVESTENDO UN CAPITALE ANNUALE CONOSCIUTO, CON O SENZA CAPITALE INIZIALE A UN TASSO DI RIV CONOSCIUTO CHE MONTANTE AVRO' TRA X ANNI?",null,null,null,null,null,null,null,null,null,null,null,null,null,null,null,"INVESTENDO UN CAPITALE ANNUALE CONOSCIUTO, CON O SENZA CAPITALE INIZIALE A UN TASSO DI RIV CONOSCIUTO CHE MONTANTE AVRO' TRA X ANNI?",null,null,null,null,null,null,null,null,null,null,null,null,null,null,null,"INVESTENDO UN CAPITALE ANNUALE CONOSCIUTO, CON O SENZA CAPITALE INIZIALE A UN TASSO DI RIV CONOSCIUTO CHE MONTANTE AVRO' TRA X ANNI?",null,null,null,null,null,null,null,null,null,null,null,null,null,null,null,"INVESTENDO UN CAPITALE ANNUALE CONOSCIUTO, CON O SENZA CAPITALE INIZIALE A UN TASSO DI RIV CONOSCIUTO CHE MONTANTE AVRO' TRA X ANNI?",null,null,null,null,null,null,null,null,null,null,null,null,null,null,null,"INVESTENDO UN CAPITALE ANNUALE CONOSCIUTO, CON O SENZA CAPITALE INIZIALE A UN TASSO DI RIV CONOSCIUTO CHE MONTANTE AVRO' TRA X ANNI?",null,null,null,null,null,null,null,null,null,null,null,null,null,null,null,"INVESTENDO UN CAPITALE ANNUALE CONOSCIUTO, CON O SENZA CAPITALE INIZIALE A UN TASSO DI RIV CONOSCIUTO CHE MONTANTE AVRO' TRA X ANNI?",null,null,null,null,null,null,null,null,null,null,null,null,null,null,null,"INVESTENDO UN CAPITALE ANNUALE CONOSCIUTO, CON O SENZA CAPITALE INIZIALE A UN TASSO DI RIV CONOSCIUTO CHE MONTANTE AVRO' TRA X ANNI?",null,null,null,null,null,null,null,null,null,null,null,null,null,null,null,"INVESTENDO UN CAPITALE ANNUALE CONOSCIUTO, CON O SENZA CAPITALE INIZIALE A UN TASSO DI RIV CONOSCIUTO CHE MONTANTE AVRO' TRA X ANNI?",null,null,null,null,null,null,null,null,null,null,null,null,null,null,null,"INVESTENDO UN CAPITALE ANNUALE CONOSCIUTO, CON O SENZA CAPITALE INIZIALE A UN TASSO DI RIV CONOSCIUTO CHE MONTANTE AVRO' TRA X ANNI?",null,null,null,null,null,null,null,null,null,null,null,null,null,null,null,"INVESTENDO UN CAPITALE ANNUALE CONOSCIUTO, CON O SENZA CAPITALE INIZIALE A UN TASSO DI RIV CONOSCIUTO CHE MONTANTE AVRO' TRA X ANNI?",null,null,null,null,null,null,null,null,null,null,null,null,null,null,null,"INVESTENDO UN CAPITALE ANNUALE CONOSCIUTO, CON O SENZA CAPITALE INIZIALE A UN TASSO DI RIV CONOSCIUTO CHE MONTANTE AVRO' TRA X ANNI?",null,null,null,null,null,null,null,null,null,null,null,null,null,null,null,"INVESTENDO UN CAPITALE ANNUALE CONOSCIUTO, CON O SENZA CAPITALE INIZIALE A UN TASSO DI RIV CONOSCIUTO CHE MONTANTE AVRO' TRA X ANNI?",null,null,null,null,null,null,null,null,null,null,null,null,null,null,null,"INVESTENDO UN CAPITALE ANNUALE CONOSCIUTO, CON O SENZA CAPITALE INIZIALE A UN TASSO DI RIV CONOSCIUTO CHE MONTANTE AVRO' TRA X ANNI?",null,null,null,null,null,null,null,null,null,null,null,null,null,null,null,"INVESTENDO UN CAPITALE ANNUALE CONOSCIUTO, CON O SENZA CAPITALE INIZIALE A UN TASSO DI RIV CONOSCIUTO CHE MONTANTE AVRO' TRA X ANNI?",null,null,null,null,null,null,null,null,null,null,null,null,null,null,null,"INVESTENDO UN CAPITALE ANNUALE CONOSCIUTO, CON O SENZA CAPITALE INIZIALE A UN TASSO DI RIV CONOSCIUTO CHE MONTANTE AVRO' TRA X ANNI?",null,null,null,null,null,null,null,null,null,null,null,null,null,null,null,"INVESTENDO UN CAPITALE ANNUALE CONOSCIUTO, CON O SENZA CAPITALE INIZIALE A UN TASSO DI RIV CONOSCIUTO CHE MONTANTE AVRO' TRA X ANNI?",null,null,null,null,null,null,null,null,null,null,null,null,null,null,null,"INVESTENDO UN CAPITALE ANNUALE CONOSCIUTO, CON O SENZA CAPITALE INIZIALE A UN TASSO DI RIV CONOSCIUTO CHE MONTANTE AVRO' TRA X ANNI?",null,null,null,null,null,null,null,null,null,null,null,null,null,null,null,"INVESTENDO UN CAPITALE ANNUALE CONOSCIUTO, CON O SENZA CAPITALE INIZIALE A UN TASSO DI RIV CONOSCIUTO CHE MONTANTE AVRO' TRA X ANNI?",null,null,null,null,null,null,null,null,null,null,null,null,null,null,null,"INVESTENDO UN CAPITALE ANNUALE CONOSCIUTO, CON O SENZA CAPITALE INIZIALE A UN TASSO DI RIV CONOSCIUTO CHE MONTANTE AVRO' TRA X ANNI?",null,null,null,null,null,null,null,null,null,null,null,null,null,null,null,"INVESTENDO UN CAPITALE ANNUALE CONOSCIUTO, CON O SENZA CAPITALE INIZIALE A UN TASSO DI RIV CONOSCIUTO CHE MONTANTE AVRO' TRA X ANNI?",null,null,null,null,null,null,null,null,null,null,null,null,null,null,null,"INVESTENDO UN CAPITALE ANNUALE CONOSCIUTO, CON O SENZA CAPITALE INIZIALE A UN TASSO DI RIV CONOSCIUTO CHE MONTANTE AVRO' TRA X ANNI?",null,null,null,null,null,null,null,null,null,null,null,null,null,null,null,"INVESTENDO UN CAPITALE ANNUALE CONOSCIUTO, CON O SENZA CAPITALE INIZIALE A UN TASSO DI RIV CONOSCIUTO CHE MONTANTE AVRO' TRA X ANNI?",null,null,null,null,null,null,null,null,null,null,null,null,null,null,null,"INVESTENDO UN CAPITALE ANNUALE CONOSCIUTO, CON O SENZA CAPITALE INIZIALE A UN TASSO DI RIV CONOSCIUTO CHE MONTANTE AVRO' TRA X ANNI?",null,null,null,null,null,null,null,null,null,null,null,null,null,null,null,"INVESTENDO UN CAPITALE ANNUALE CONOSCIUTO, CON O SENZA CAPITALE INIZIALE A UN TASSO DI RIV CONOSCIUTO CHE MONTANTE AVRO' TRA X ANNI?",null,null,null,null,null,null,null,null,null,null,null,null,null,null,null,"INVESTENDO UN CAPITALE ANNUALE CONOSCIUTO, CON O SENZA CAPITALE INIZIALE A UN TASSO DI RIV CONOSCIUTO CHE MONTANTE AVRO' TRA X ANNI?",null,null,null,null,null,null,null,null,null,null,null,null,null,null,null,"INVESTENDO UN CAPITALE ANNUALE CONOSCIUTO, CON O SENZA CAPITALE INIZIALE A UN TASSO DI RIV CONOSCIUTO CHE MONTANTE AVRO' TRA X ANNI?",null,null,null,null,null,null,null,null,null,null,null,null,null,null,null,"INVESTENDO UN CAPITALE ANNUALE CONOSCIUTO, CON O SENZA CAPITALE INIZIALE A UN TASSO DI RIV CONOSCIUTO CHE MONTANTE AVRO' TRA X ANNI?",null,null,null,null,null,null,null,null,null,null,null,null,null,null,null,"INVESTENDO UN CAPITALE ANNUALE CONOSCIUTO, CON O SENZA CAPITALE INIZIALE A UN TASSO DI RIV CONOSCIUTO CHE MONTANTE AVRO' TRA X ANNI?",null,null,null,null,null,null,null,null,null,null,null,null,null,null,null,"INVESTENDO UN CAPITALE ANNUALE CONOSCIUTO, CON O SENZA CAPITALE INIZIALE A UN TASSO DI RIV CONOSCIUTO CHE MONTANTE AVRO' TRA X ANNI?",null,null,null,null,null,null,null,null,null,null,null,null,null,null,null,"INVESTENDO UN CAPITALE ANNUALE CONOSCIUTO, CON O SENZA CAPITALE INIZIALE A UN TASSO DI RIV CONOSCIUTO CHE MONTANTE AVRO' TRA X ANNI?",null,null,null,null,null,null,null,null,null,null,null,null,null,null,null,"INVESTENDO UN CAPITALE ANNUALE CONOSCIUTO, CON O SENZA CAPITALE INIZIALE A UN TASSO DI RIV CONOSCIUTO CHE MONTANTE AVRO' TRA X ANNI?",null,null,null,null,null,null,null,null,null,null,null,null,null,null,null,"INVESTENDO UN CAPITALE ANNUALE CONOSCIUTO, CON O SENZA CAPITALE INIZIALE A UN TASSO DI RIV CONOSCIUTO CHE MONTANTE AVRO' TRA X ANNI?",null,null,null,null,null,null,null,null,null,null,null,null,null,null,null,"INVESTENDO UN CAPITALE ANNUALE CONOSCIUTO, CON O SENZA CAPITALE INIZIALE A UN TASSO DI RIV CONOSCIUTO CHE MONTANTE AVRO' TRA X ANNI?",null,null,null,null,null,null,null,null,null,null,null,null,null,null,null,"INVESTENDO UN CAPITALE ANNUALE CONOSCIUTO, CON O SENZA CAPITALE INIZIALE A UN TASSO DI RIV CONOSCIUTO CHE MONTANTE AVRO' TRA X ANNI?",null,null,null,null,null,null,null,null,null,null,null,null,null,null,null,"INVESTENDO UN CAPITALE ANNUALE CONOSCIUTO, CON O SENZA CAPITALE INIZIALE A UN TASSO DI RIV CONOSCIUTO CHE MONTANTE AVRO' TRA X ANNI?",null,null,null,null,null,null,null,null,null,null,null,null,null,null,null,"INVESTENDO UN CAPITALE ANNUALE CONOSCIUTO, CON O SENZA CAPITALE INIZIALE A UN TASSO DI RIV CONOSCIUTO CHE MONTANTE AVRO' TRA X ANNI?",null,null,null,null,null,null,null,null,null,null,null,null,null,null,null,"INVESTENDO UN CAPITALE ANNUALE CONOSCIUTO, CON O SENZA CAPITALE INIZIALE A UN TASSO DI RIV CONOSCIUTO CHE MONTANTE AVRO' TRA X ANNI?",null,null,null,null,null,null,null,null,null,null,null,null,null,null,null,"INVESTENDO UN CAPITALE ANNUALE CONOSCIUTO, CON O SENZA CAPITALE INIZIALE A UN TASSO DI RIV CONOSCIUTO CHE MONTANTE AVRO' TRA X ANNI?",null,null,null,null,null,null,null,null,null,null,null,null,null,null,null,"INVESTENDO UN CAPITALE ANNUALE CONOSCIUTO, CON O SENZA CAPITALE INIZIALE A UN TASSO DI RIV CONOSCIUTO CHE MONTANTE AVRO' TRA X ANNI?",null,null,null,null,null,null,null,null,null,null,null,null,null,null,null,"INVESTENDO UN CAPITALE ANNUALE CONOSCIUTO, CON O SENZA CAPITALE INIZIALE A UN TASSO DI RIV CONOSCIUTO CHE MONTANTE AVRO' TRA X ANNI?",null,null,null,null,null,null,null,null,null,null,null,null,null,null,null,"INVESTENDO UN CAPITALE ANNUALE CONOSCIUTO, CON O SENZA CAPITALE INIZIALE A UN TASSO DI RIV CONOSCIUTO CHE MONTANTE AVRO' TRA X ANNI?",null,null,null,null,null,null,null,null,null,null,null,null,null,null,null,"INVESTENDO UN CAPITALE ANNUALE CONOSCIUTO, CON O SENZA CAPITALE INIZIALE A UN TASSO DI RIV CONOSCIUTO CHE MONTANTE AVRO' TRA X ANNI?",null,null,null,null,null,null,null,null,null,null,null,null,null,null,null,"INVESTENDO UN CAPITALE ANNUALE CONOSCIUTO, CON O SENZA CAPITALE INIZIALE A UN TASSO DI RIV CONOSCIUTO CHE MONTANTE AVRO' TRA X ANNI?",null,null,null,null,null,null,null,null,null,null,null,null,null,null,null,"INVESTENDO UN CAPITALE ANNUALE CONOSCIUTO, CON O SENZA CAPITALE INIZIALE A UN TASSO DI RIV CONOSCIUTO CHE MONTANTE AVRO' TRA X ANNI?",null,null,null,null,null,null,null,null,null,null,null,null,null,null,null,"INVESTENDO UN CAPITALE ANNUALE CONOSCIUTO, CON O SENZA CAPITALE INIZIALE A UN TASSO DI RIV CONOSCIUTO CHE MONTANTE AVRO' TRA X ANNI?",null,null,null,null,null,null,null,null,null,null,null,null,null,null,null,"INVESTENDO UN CAPITALE ANNUALE CONOSCIUTO, CON O SENZA CAPITALE INIZIALE A UN TASSO DI RIV CONOSCIUTO CHE MONTANTE AVRO' TRA X ANNI?",null,null,null,null,null,null,null,null,null,null,null,null,null,null,null,"INVESTENDO UN CAPITALE ANNUALE CONOSCIUTO, CON O SENZA CAPITALE INIZIALE A UN TASSO DI RIV CONOSCIUTO CHE MONTANTE AVRO' TRA X ANNI?",null,null,null,null,null,null,null,null,null,null,null,null,null,null,null,"INVESTENDO UN CAPITALE ANNUALE CONOSCIUTO, CON O SENZA CAPITALE INIZIALE A UN TASSO DI RIV CONOSCIUTO CHE MONTANTE AVRO' TRA X ANNI?",null,null,null,null,null,null,null,null,null,null,null,null,null,null,null,"INVESTENDO UN CAPITALE ANNUALE CONOSCIUTO, CON O SENZA CAPITALE INIZIALE A UN TASSO DI RIV CONOSCIUTO CHE MONTANTE AVRO' TRA X ANNI?",null,null,null,null,null,null,null,null,null,null,null,null,null,null,null,"INVESTENDO UN CAPITALE ANNUALE CONOSCIUTO, CON O SENZA CAPITALE INIZIALE A UN TASSO DI RIV CONOSCIUTO CHE MONTANTE AVRO' TRA X ANNI?",null,null,null,null,null,null,null,null,null,null,null,null,null,null,null,"INVESTENDO UN CAPITALE ANNUALE CONOSCIUTO, CON O SENZA CAPITALE INIZIALE A UN TASSO DI RIV CONOSCIUTO CHE MONTANTE AVRO' TRA X ANNI?",null,null,null,null,null,null,null,null,null,null,null,null,null,null,null,"INVESTENDO UN CAPITALE ANNUALE CONOSCIUTO, CON O SENZA CAPITALE INIZIALE A UN TASSO DI RIV CONOSCIUTO CHE MONTANTE AVRO' TRA X ANNI?",null,null,null,null,null,null,null,null,null,null,null,null,null,null,null,"INVESTENDO UN CAPITALE ANNUALE CONOSCIUTO, CON O SENZA CAPITALE INIZIALE A UN TASSO DI RIV CONOSCIUTO CHE MONTANTE AVRO' TRA X ANNI?",null,null,null,null,null,null,null,null,null,null,null,null,null,null,null,"INVESTENDO UN CAPITALE ANNUALE CONOSCIUTO, CON O SENZA CAPITALE INIZIALE A UN TASSO DI RIV CONOSCIUTO CHE MONTANTE AVRO' TRA X ANNI?",null,null,null,null,null,null,null,null,null,null,null,null,null,null,null,"INVESTENDO UN CAPITALE ANNUALE CONOSCIUTO, CON O SENZA CAPITALE INIZIALE A UN TASSO DI RIV CONOSCIUTO CHE MONTANTE AVRO' TRA X ANNI?",null,null,null,null,null,null,null,null,null,null,null,null,null,null,null,"INVESTENDO UN CAPITALE ANNUALE CONOSCIUTO, CON O SENZA CAPITALE INIZIALE A UN TASSO DI RIV CONOSCIUTO CHE MONTANTE AVRO' TRA X ANNI?",null,null,null,null,null,null,null,null,null,null,null,null,null,null,null,"INVESTENDO UN CAPITALE ANNUALE CONOSCIUTO, CON O SENZA CAPITALE INIZIALE A UN TASSO DI RIV CONOSCIUTO CHE MONTANTE AVRO' TRA X ANNI?",null,null,null,null,null,null,null,null,null,null,null,null,null,null,null,"INVESTENDO UN CAPITALE ANNUALE CONOSCIUTO, CON O SENZA CAPITALE INIZIALE A UN TASSO DI RIV CONOSCIUTO CHE MONTANTE AVRO' TRA X ANNI?",null,null,null,null,null,null,null,null,null,null,null,null,null,null,null,"INVESTENDO UN CAPITALE ANNUALE CONOSCIUTO, CON O SENZA CAPITALE INIZIALE A UN TASSO DI RIV CONOSCIUTO CHE MONTANTE AVRO' TRA X ANNI?",null,null,null,null,null,null,null,null,null,null,null,null,null,null,null,"INVESTENDO UN CAPITALE ANNUALE CONOSCIUTO, CON O SENZA CAPITALE INIZIALE A UN TASSO DI RIV CONOSCIUTO CHE MONTANTE AVRO' TRA X ANNI?",null,null,null,null,null,null,null,null,null,null,null,null,null,null,null,"INVESTENDO UN CAPITALE ANNUALE CONOSCIUTO, CON O SENZA CAPITALE INIZIALE A UN TASSO DI RIV CONOSCIUTO CHE MONTANTE AVRO' TRA X ANNI?",null,null,null,null,null,null,null,null,null,null,null,null,null,null,null,"INVESTENDO UN CAPITALE ANNUALE CONOSCIUTO, CON O SENZA CAPITALE INIZIALE A UN TASSO DI RIV CONOSCIUTO CHE MONTANTE AVRO' TRA X ANNI?",null,null,null,null,null,null,null,null,null,null,null,null,null,null,null,"INVESTENDO UN CAPITALE ANNUALE CONOSCIUTO, CON O SENZA CAPITALE INIZIALE A UN TASSO DI RIV CONOSCIUTO CHE MONTANTE AVRO' TRA X ANNI?",null,null,null,null,null,null,null,null,null,null,null,null,null,null,null,"INVESTENDO UN CAPITALE ANNUALE CONOSCIUTO, CON O SENZA CAPITALE INIZIALE A UN TASSO DI RIV CONOSCIUTO CHE MONTANTE AVRO' TRA X ANNI?",null,null,null,null,null,null,null,null,null,null,null,null,null,null,null,"INVESTENDO UN CAPITALE ANNUALE CONOSCIUTO, CON O SENZA CAPITALE INIZIALE A UN TASSO DI RIV CONOSCIUTO CHE MONTANTE AVRO' TRA X ANNI?",null,null,null,null,null,null,null,null,null,null,null,null,null,null,null,"INVESTENDO UN CAPITALE ANNUALE CONOSCIUTO, CON O SENZA CAPITALE INIZIALE A UN TASSO DI RIV CONOSCIUTO CHE MONTANTE AVRO' TRA X ANNI?",null,null,null,null,null,null,null,null,null,null,null,null,null,null,null,"INVESTENDO UN CAPITALE ANNUALE CONOSCIUTO, CON O SENZA CAPITALE INIZIALE A UN TASSO DI RIV CONOSCIUTO CHE MONTANTE AVRO' TRA X ANNI?",null,null,null,null,null,null,null,null,null,null,null,null,null,null,null,"INVESTENDO UN CAPITALE ANNUALE CONOSCIUTO, CON O SENZA CAPITALE INIZIALE A UN TASSO DI RIV CONOSCIUTO CHE MONTANTE AVRO' TRA X ANNI?",null,null,null,null,null,null,null,null,null,null,null,null,null,null,null,"INVESTENDO UN CAPITALE ANNUALE CONOSCIUTO, CON O SENZA CAPITALE INIZIALE A UN TASSO DI RIV CONOSCIUTO CHE MONTANTE AVRO' TRA X ANNI?",null,null,null,null,null,null,null,null,null,null,null,null,null,null,null,"INVESTENDO UN CAPITALE ANNUALE CONOSCIUTO, CON O SENZA CAPITALE INIZIALE A UN TASSO DI RIV CONOSCIUTO CHE MONTANTE AVRO' TRA X ANNI?",null,null,null,null,null,null,null,null,null,null,null,null,null,null,null,"INVESTENDO UN CAPITALE ANNUALE CONOSCIUTO, CON O SENZA CAPITALE INIZIALE A UN TASSO DI RIV CONOSCIUTO CHE MONTANTE AVRO' TRA X ANNI?",null,null,null,null,null,null,null,null,null,null,null,null,null,null,null,"INVESTENDO UN CAPITALE ANNUALE CONOSCIUTO, CON O SENZA CAPITALE INIZIALE A UN TASSO DI RIV CONOSCIUTO CHE MONTANTE AVRO' TRA X ANNI?",null,null,null,null,null,null,null,null,null,null,null,null,null,null,null,"INVESTENDO UN CAPITALE ANNUALE CONOSCIUTO, CON O SENZA CAPITALE INIZIALE A UN TASSO DI RIV CONOSCIUTO CHE MONTANTE AVRO' TRA X ANNI?",null,null,null,null,null,null,null,null,null,null,null,null,null,null,null,"INVESTENDO UN CAPITALE ANNUALE CONOSCIUTO, CON O SENZA CAPITALE INIZIALE A UN TASSO DI RIV CONOSCIUTO CHE MONTANTE AVRO' TRA X ANNI?",null,null,null,null,null,null,null,null,null,null,null,null,null,null,null,"INVESTENDO UN CAPITALE ANNUALE CONOSCIUTO, CON O SENZA CAPITALE INIZIALE A UN TASSO DI RIV CONOSCIUTO CHE MONTANTE AVRO' TRA X ANNI?",null,null,null,null,null,null,null,null,null,null,null,null,null,null,null,"INVESTENDO UN CAPITALE ANNUALE CONOSCIUTO, CON O SENZA CAPITALE INIZIALE A UN TASSO DI RIV CONOSCIUTO CHE MONTANTE AVRO' TRA X ANNI?",null,null,null,null,null,null,null,null,null,null,null,null,null,null,null,"INVESTENDO UN CAPITALE ANNUALE CONOSCIUTO, CON O SENZA CAPITALE INIZIALE A UN TASSO DI RIV CONOSCIUTO CHE MONTANTE AVRO' TRA X ANNI?",null,null,null,null,null,null,null,null,null,null,null,null,null,null,null,"INVESTENDO UN CAPITALE ANNUALE CONOSCIUTO, CON O SENZA CAPITALE INIZIALE A UN TASSO DI RIV CONOSCIUTO CHE MONTANTE AVRO' TRA X ANNI?",null,null,null,null,null,null,null,null,null,null,null,null,null,null,null,"INVESTENDO UN CAPITALE ANNUALE CONOSCIUTO, CON O SENZA CAPITALE INIZIALE A UN TASSO DI RIV CONOSCIUTO CHE MONTANTE AVRO' TRA X ANNI?",null,null,null,null,null,null,null,null,null,null,null,null,null,null,null,"INVESTENDO UN CAPITALE ANNUALE CONOSCIUTO, CON O SENZA CAPITALE INIZIALE A UN TASSO DI RIV CONOSCIUTO CHE MONTANTE AVRO' TRA X ANNI?",null,null,null,null,null,null,null,null,null,null,null,null,null,null,null,"INVESTENDO UN CAPITALE ANNUALE CONOSCIUTO, CON O SENZA CAPITALE INIZIALE A UN TASSO DI RIV CONOSCIUTO CHE MONTANTE AVRO' TRA X ANNI?",null,null,null,null,null,null,null,null,null,null,null,null,null,null,null,"INVESTENDO UN CAPITALE ANNUALE CONOSCIUTO, CON O SENZA CAPITALE INIZIALE A UN TASSO DI RIV CONOSCIUTO CHE MONTANTE AVRO' TRA X ANNI?",null,null,null,null,null,null,null,null,null,null,null,null,null,null,null,"INVESTENDO UN CAPITALE ANNUALE CONOSCIUTO, CON O SENZA CAPITALE INIZIALE A UN TASSO DI RIV CONOSCIUTO CHE MONTANTE AVRO' TRA X ANNI?",null,null,null,null,null,null,null,null,null,null,null,null,null,null,null,"INVESTENDO UN CAPITALE ANNUALE CONOSCIUTO, CON O SENZA CAPITALE INIZIALE A UN TASSO DI RIV CONOSCIUTO CHE MONTANTE AVRO' TRA X ANNI?",null,null,null,null,null,null,null,null,null,null,null,null,null,null,null,"INVESTENDO UN CAPITALE ANNUALE CONOSCIUTO, CON O SENZA CAPITALE INIZIALE A UN TASSO DI RIV CONOSCIUTO CHE MONTANTE AVRO' TRA X ANNI?",null,null,null,null,null,null,null,null,null,null,null,null,null,null,null,"INVESTENDO UN CAPITALE ANNUALE CONOSCIUTO, CON O SENZA CAPITALE INIZIALE A UN TASSO DI RIV CONOSCIUTO CHE MONTANTE AVRO' TRA X ANNI?",null,null,null,null,null,null,null,null,null,null,null,null,null,null,null,"INVESTENDO UN CAPITALE ANNUALE CONOSCIUTO, CON O SENZA CAPITALE INIZIALE A UN TASSO DI RIV CONOSCIUTO CHE MONTANTE AVRO' TRA X ANNI?",null,null,null,null,null,null,null,null,null,null,null,null,null,null,null,"INVESTENDO UN CAPITALE ANNUALE CONOSCIUTO, CON O SENZA CAPITALE INIZIALE A UN TASSO DI RIV CONOSCIUTO CHE MONTANTE AVRO' TRA X ANNI?",null,null,null,null,null,null,null,null,null,null,null,null,null,null,null,"INVESTENDO UN CAPITALE ANNUALE CONOSCIUTO, CON O SENZA CAPITALE INIZIALE A UN TASSO DI RIV CONOSCIUTO CHE MONTANTE AVRO' TRA X ANNI?",null,null,null,null,null,null,null,null,null,null,null,null,null,null,null,"INVESTENDO UN CAPITALE ANNUALE CONOSCIUTO, CON O SENZA CAPITALE INIZIALE A UN TASSO DI RIV CONOSCIUTO CHE MONTANTE AVRO' TRA X ANNI?",null,null,null,null,null,null,null,null,null,null,null,null,null,null,null,"INVESTENDO UN CAPITALE ANNUALE CONOSCIUTO, CON O SENZA CAPITALE INIZIALE A UN TASSO DI RIV CONOSCIUTO CHE MONTANTE AVRO' TRA X ANNI?",null,null,null,null,null,null,null,null,null,null,null,null,null,null,null,"INVESTENDO UN CAPITALE ANNUALE CONOSCIUTO, CON O SENZA CAPITALE INIZIALE A UN TASSO DI RIV CONOSCIUTO CHE MONTANTE AVRO' TRA X ANNI?",null,null,null,null,null,null,null,null,null,null,null,null,null,null,null,"INVESTENDO UN CAPITALE ANNUALE CONOSCIUTO, CON O SENZA CAPITALE INIZIALE A UN TASSO DI RIV CONOSCIUTO CHE MONTANTE AVRO' TRA X ANNI?",null,null,null,null,null,null,null,null,null,null,null,null,null,null,null,"INVESTENDO UN CAPITALE ANNUALE CONOSCIUTO, CON O SENZA CAPITALE INIZIALE A UN TASSO DI RIV CONOSCIUTO CHE MONTANTE AVRO' TRA X ANNI?",null,null,null,null,null,null,null,null,null,null,null,null,null,null,null,"INVESTENDO UN CAPITALE ANNUALE CONOSCIUTO, CON O SENZA CAPITALE INIZIALE A UN TASSO DI RIV CONOSCIUTO CHE MONTANTE AVRO' TRA X ANNI?",null,null,null,null,null,null,null,null,null,null,null,null,null,null,null,"INVESTENDO UN CAPITALE ANNUALE CONOSCIUTO, CON O SENZA CAPITALE INIZIALE A UN TASSO DI RIV CONOSCIUTO CHE MONTANTE AVRO' TRA X ANNI?",null,null,null,null,null,null,null,null,null,null,null,null,null,null,null,"INVESTENDO UN CAPITALE ANNUALE CONOSCIUTO, CON O SENZA CAPITALE INIZIALE A UN TASSO DI RIV CONOSCIUTO CHE MONTANTE AVRO' TRA X ANNI?",null,null,null,null,null,null,null,null,null,null,null,null,null,null,null,"INVESTENDO UN CAPITALE ANNUALE CONOSCIUTO, CON O SENZA CAPITALE INIZIALE A UN TASSO DI RIV CONOSCIUTO CHE MONTANTE AVRO' TRA X ANNI?",null,null,null,null,null,null,null,null,null,null,null,null,null,null,null,"INVESTENDO UN CAPITALE ANNUALE CONOSCIUTO, CON O SENZA CAPITALE INIZIALE A UN TASSO DI RIV CONOSCIUTO CHE MONTANTE AVRO' TRA X ANNI?",null,null,null,null,null,null,null,null,null,null,null,null,null,null,null,"INVESTENDO UN CAPITALE ANNUALE CONOSCIUTO, CON O SENZA CAPITALE INIZIALE A UN TASSO DI RIV CONOSCIUTO CHE MONTANTE AVRO' TRA X ANNI?",null,null,null,null,null,null,null,null,null,null,null,null,null,null,null,"INVESTENDO UN CAPITALE ANNUALE CONOSCIUTO, CON O SENZA CAPITALE INIZIALE A UN TASSO DI RIV CONOSCIUTO CHE MONTANTE AVRO' TRA X ANNI?",null,null,null,null,null,null,null,null,null,null,null,null,null,null,null,"INVESTENDO UN CAPITALE ANNUALE CONOSCIUTO, CON O SENZA CAPITALE INIZIALE A UN TASSO DI RIV CONOSCIUTO CHE MONTANTE AVRO' TRA X ANNI?",null,null,null,null,null,null,null,null,null,null,null,null,null,null,null,"INVESTENDO UN CAPITALE ANNUALE CONOSCIUTO, CON O SENZA CAPITALE INIZIALE A UN TASSO DI RIV CONOSCIUTO CHE MONTANTE AVRO' TRA X ANNI?",null,null,null,null,null,null,null,null,null,null,null,null,null,null,null,"INVESTENDO UN CAPITALE ANNUALE CONOSCIUTO, CON O SENZA CAPITALE INIZIALE A UN TASSO DI RIV CONOSCIUTO CHE MONTANTE AVRO' TRA X ANNI?",null,null,null,null,null,null,null,null,null,null,null,null,null,null,null,"INVESTENDO UN CAPITALE ANNUALE CONOSCIUTO, CON O SENZA CAPITALE INIZIALE A UN TASSO DI RIV CONOSCIUTO CHE MONTANTE AVRO' TRA X ANNI?",null,null,null,null,null,null,null,null,null,null,null,null,null,null,null,"INVESTENDO UN CAPITALE ANNUALE CONOSCIUTO, CON O SENZA CAPITALE INIZIALE A UN TASSO DI RIV CONOSCIUTO CHE MONTANTE AVRO' TRA X ANNI?",null,null,null,null,null,null,null,null,null,null,null,null,null,null,null,"INVESTENDO UN CAPITALE ANNUALE CONOSCIUTO, CON O SENZA CAPITALE INIZIALE A UN TASSO DI RIV CONOSCIUTO CHE MONTANTE AVRO' TRA X ANNI?",null,null,null,null,null,null,null,null,null,null,null,null,null,null,null,"INVESTENDO UN CAPITALE ANNUALE CONOSCIUTO, CON O SENZA CAPITALE INIZIALE A UN TASSO DI RIV CONOSCIUTO CHE MONTANTE AVRO' TRA X ANNI?",null,null,null,null,null,null,null,null,null,null,null,null,null,null,null,"INVESTENDO UN CAPITALE ANNUALE CONOSCIUTO, CON O SENZA CAPITALE INIZIALE A UN TASSO DI RIV CONOSCIUTO CHE MONTANTE AVRO' TRA X ANNI?",null,null,null,null,null,null,null,null,null,null,null,null,null,null,null,"INVESTENDO UN CAPITALE ANNUALE CONOSCIUTO, CON O SENZA CAPITALE INIZIALE A UN TASSO DI RIV CONOSCIUTO CHE MONTANTE AVRO' TRA X ANNI?",null,null,null,null,null,null,null,null,null,null,null,null,null,null,null,"INVESTENDO UN CAPITALE ANNUALE CONOSCIUTO, CON O SENZA CAPITALE INIZIALE A UN TASSO DI RIV CONOSCIUTO CHE MONTANTE AVRO' TRA X ANNI?",null,null,null,null,null,null,null,null,null,null,null,null,null,null,null,"INVESTENDO UN CAPITALE ANNUALE CONOSCIUTO, CON O SENZA CAPITALE INIZIALE A UN TASSO DI RIV CONOSCIUTO CHE MONTANTE AVRO' TRA X ANNI?",null,null,null,null,null,null,null,null,null,null,null,null,null,null,null,"INVESTENDO UN CAPITALE ANNUALE CONOSCIUTO, CON O SENZA CAPITALE INIZIALE A UN TASSO DI RIV CONOSCIUTO CHE MONTANTE AVRO' TRA X ANNI?",null,null,null,null,null,null,null,null,null,null,null,null,null,null,null,"INVESTENDO UN CAPITALE ANNUALE CONOSCIUTO, CON O SENZA CAPITALE INIZIALE A UN TASSO DI RIV CONOSCIUTO CHE MONTANTE AVRO' TRA X ANNI?",null,null,null,null,null,null,null,null,null,null,null,null,null,null,null,"INVESTENDO UN CAPITALE ANNUALE CONOSCIUTO, CON O SENZA CAPITALE INIZIALE A UN TASSO DI RIV CONOSCIUTO CHE MONTANTE AVRO' TRA X ANNI?",null,null,null,null,null,null,null,null,null,null,null,null,null,null,null,"INVESTENDO UN CAPITALE ANNUALE CONOSCIUTO, CON O SENZA CAPITALE INIZIALE A UN TASSO DI RIV CONOSCIUTO CHE MONTANTE AVRO' TRA X ANNI?",null,null,null,null,null,null,null,null,null,null,null,null,null,null,null,"INVESTENDO UN CAPITALE ANNUALE CONOSCIUTO, CON O SENZA CAPITALE INIZIALE A UN TASSO DI RIV CONOSCIUTO CHE MONTANTE AVRO' TRA X ANNI?",null,null,null,null,null,null,null,null,null,null,null,null,null,null,null,"INVESTENDO UN CAPITALE ANNUALE CONOSCIUTO, CON O SENZA CAPITALE INIZIALE A UN TASSO DI RIV CONOSCIUTO CHE MONTANTE AVRO' TRA X ANNI?",null,null,null,null,null,null,null,null,null,null,null,null,null,null,null,"INVESTENDO UN CAPITALE ANNUALE CONOSCIUTO, CON O SENZA CAPITALE INIZIALE A UN TASSO DI RIV CONOSCIUTO CHE MONTANTE AVRO' TRA X ANNI?",null,null,null,null,null,null,null,null,null,null,null,null,null,null,null,"INVESTENDO UN CAPITALE ANNUALE CONOSCIUTO, CON O SENZA CAPITALE INIZIALE A UN TASSO DI RIV CONOSCIUTO CHE MONTANTE AVRO' TRA X ANNI?",null,null,null,null,null,null,null,null,null,null,null,null,null,null,null,"INVESTENDO UN CAPITALE ANNUALE CONOSCIUTO, CON O SENZA CAPITALE INIZIALE A UN TASSO DI RIV CONOSCIUTO CHE MONTANTE AVRO' TRA X ANNI?",null,null,null,null,null,null,null,null,null,null,null,null,null,null,null,"INVESTENDO UN CAPITALE ANNUALE CONOSCIUTO, CON O SENZA CAPITALE INIZIALE A UN TASSO DI RIV CONOSCIUTO CHE MONTANTE AVRO' TRA X ANNI?",null,null,null,null,null,null,null,null,null,null,null,null,null,null,null,"INVESTENDO UN CAPITALE ANNUALE CONOSCIUTO, CON O SENZA CAPITALE INIZIALE A UN TASSO DI RIV CONOSCIUTO CHE MONTANTE AVRO' TRA X ANNI?",null,null,null,null,null,null,null,null,null,null,null,null,null,null,null,"INVESTENDO UN CAPITALE ANNUALE CONOSCIUTO, CON O SENZA CAPITALE INIZIALE A UN TASSO DI RIV CONOSCIUTO CHE MONTANTE AVRO' TRA X ANNI?",null,null,null,null,null,null,null,null,null,null,null,null,null,null,null,"INVESTENDO UN CAPITALE ANNUALE CONOSCIUTO, CON O SENZA CAPITALE INIZIALE A UN TASSO DI RIV CONOSCIUTO CHE MONTANTE AVRO' TRA X ANNI?",null,null,null,null,null,null,null,null,null,null,null,null,null,null,null,"INVESTENDO UN CAPITALE ANNUALE CONOSCIUTO, CON O SENZA CAPITALE INIZIALE A UN TASSO DI RIV CONOSCIUTO CHE MONTANTE AVRO' TRA X ANNI?",null,null,null,null,null,null,null,null,null,null,null,null,null,null,null,"INVESTENDO UN CAPITALE ANNUALE CONOSCIUTO, CON O SENZA CAPITALE INIZIALE A UN TASSO DI RIV CONOSCIUTO CHE MONTANTE AVRO' TRA X ANNI?",null,null,null,null,null,null,null,null,null,null,null,null,null,null,null,"INVESTENDO UN CAPITALE ANNUALE CONOSCIUTO, CON O SENZA CAPITALE INIZIALE A UN TASSO DI RIV CONOSCIUTO CHE MONTANTE AVRO' TRA X ANNI?",null,null,null,null,null,null,null,null,null,null,null,null,null,null,null,"INVESTENDO UN CAPITALE ANNUALE CONOSCIUTO, CON O SENZA CAPITALE INIZIALE A UN TASSO DI RIV CONOSCIUTO CHE MONTANTE AVRO' TRA X ANNI?",null,null,null,null,null,null,null,null,null,null,null,null,null,null,null,"INVESTENDO UN CAPITALE ANNUALE CONOSCIUTO, CON O SENZA CAPITALE INIZIALE A UN TASSO DI RIV CONOSCIUTO CHE MONTANTE AVRO' TRA X ANNI?",null,null,null,null,null,null,null,null,null,null,null,null,null,null,null,"INVESTENDO UN CAPITALE ANNUALE CONOSCIUTO, CON O SENZA CAPITALE INIZIALE A UN TASSO DI RIV CONOSCIUTO CHE MONTANTE AVRO' TRA X ANNI?",null,null,null,null,null,null,null,null,null,null,null,null,null,null,null,"INVESTENDO UN CAPITALE ANNUALE CONOSCIUTO, CON O SENZA CAPITALE INIZIALE A UN TASSO DI RIV CONOSCIUTO CHE MONTANTE AVRO' TRA X ANNI?",null,null,null,null,null,null,null,null,null,null,null,null,null,null,null,"INVESTENDO UN CAPITALE ANNUALE CONOSCIUTO, CON O SENZA CAPITALE INIZIALE A UN TASSO DI RIV CONOSCIUTO CHE MONTANTE AVRO' TRA X ANNI?",null,null,null,null,null,null,null,null,null,null,null,null,null,null,null,"INVESTENDO UN CAPITALE ANNUALE CONOSCIUTO, CON O SENZA CAPITALE INIZIALE A UN TASSO DI RIV CONOSCIUTO CHE MONTANTE AVRO' TRA X ANNI?",null,null,null,null,null,null,null,null,null,null,null,null,null,null,null,"INVESTENDO UN CAPITALE ANNUALE CONOSCIUTO, CON O SENZA CAPITALE INIZIALE A UN TASSO DI RIV CONOSCIUTO CHE MONTANTE AVRO' TRA X ANNI?",null,null,null,null,null,null,null,null,null,null,null,null,null,null,null,"INVESTENDO UN CAPITALE ANNUALE CONOSCIUTO, CON O SENZA CAPITALE INIZIALE A UN TASSO DI RIV CONOSCIUTO CHE MONTANTE AVRO' TRA X ANNI?",null,null,null,null,null,null,null,null,null,null,null,null,null,null,null,"INVESTENDO UN CAPITALE ANNUALE CONOSCIUTO, CON O SENZA CAPITALE INIZIALE A UN TASSO DI RIV CONOSCIUTO CHE MONTANTE AVRO' TRA X ANNI?",null,null,null,null,null,null,null,null,null,null,null,null,null,null,null,"INVESTENDO UN CAPITALE ANNUALE CONOSCIUTO, CON O SENZA CAPITALE INIZIALE A UN TASSO DI RIV CONOSCIUTO CHE MONTANTE AVRO' TRA X ANNI?",null,null,null,null,null,null,null,null,null,null,null,null,null,null,null,"INVESTENDO UN CAPITALE ANNUALE CONOSCIUTO, CON O SENZA CAPITALE INIZIALE A UN TASSO DI RIV CONOSCIUTO CHE MONTANTE AVRO' TRA X ANNI?",null,null,null,null,null,null,null,null,null,null,null,null,null,null,null,"INVESTENDO UN CAPITALE ANNUALE CONOSCIUTO, CON O SENZA CAPITALE INIZIALE A UN TASSO DI RIV CONOSCIUTO CHE MONTANTE AVRO' TRA X ANNI?",null,null,null,null,null,null,null,null,null,null,null,null,null,null,null,"INVESTENDO UN CAPITALE ANNUALE CONOSCIUTO, CON O SENZA CAPITALE INIZIALE A UN TASSO DI RIV CONOSCIUTO CHE MONTANTE AVRO' TRA X ANNI?",null,null,null,null,null,null,null,null,null,null,null,null,null,null,null,"INVESTENDO UN CAPITALE ANNUALE CONOSCIUTO, CON O SENZA CAPITALE INIZIALE A UN TASSO DI RIV CONOSCIUTO CHE MONTANTE AVRO' TRA X ANNI?",null,null,null,null,null,null,null,null,null,null,null,null,null,null,null,"INVESTENDO UN CAPITALE ANNUALE CONOSCIUTO, CON O SENZA CAPITALE INIZIALE A UN TASSO DI RIV CONOSCIUTO CHE MONTANTE AVRO' TRA X ANNI?",null,null,null,null,null,null,null,null,null,null,null,null,null,null,null,"INVESTENDO UN CAPITALE ANNUALE CONOSCIUTO, CON O SENZA CAPITALE INIZIALE A UN TASSO DI RIV CONOSCIUTO CHE MONTANTE AVRO' TRA X ANNI?",null,null,null,null,null,null,null,null,null,null,null,null,null,null,null,"INVESTENDO UN CAPITALE ANNUALE CONOSCIUTO, CON O SENZA CAPITALE INIZIALE A UN TASSO DI RIV CONOSCIUTO CHE MONTANTE AVRO' TRA X ANNI?",null,null,null,null,null,null,null,null,null,null,null,null,null,null,null,"INVESTENDO UN CAPITALE ANNUALE CONOSCIUTO, CON O SENZA CAPITALE INIZIALE A UN TASSO DI RIV CONOSCIUTO CHE MONTANTE AVRO' TRA X ANNI?",null,null,null,null,null,null,null,null,null,null,null,null,null,null,null,"INVESTENDO UN CAPITALE ANNUALE CONOSCIUTO, CON O SENZA CAPITALE INIZIALE A UN TASSO DI RIV CONOSCIUTO CHE MONTANTE AVRO' TRA X ANNI?",null,null,null,null,null,null,null,null,null,null,null,null,null,null,null,"INVESTENDO UN CAPITALE ANNUALE CONOSCIUTO, CON O SENZA CAPITALE INIZIALE A UN TASSO DI RIV CONOSCIUTO CHE MONTANTE AVRO' TRA X ANNI?",null,null,null,null,null,null,null,null,null,null,null,null,null,null,null,"INVESTENDO UN CAPITALE ANNUALE CONOSCIUTO, CON O SENZA CAPITALE INIZIALE A UN TASSO DI RIV CONOSCIUTO CHE MONTANTE AVRO' TRA X ANNI?",null,null,null,null,null,null,null,null,null,null,null,null,null,null,null,"INVESTENDO UN CAPITALE ANNUALE CONOSCIUTO, CON O SENZA CAPITALE INIZIALE A UN TASSO DI RIV CONOSCIUTO CHE MONTANTE AVRO' TRA X ANNI?",null,null,null,null,null,null,null,null,null,null,null,null,null,null,null,"INVESTENDO UN CAPITALE ANNUALE CONOSCIUTO, CON O SENZA CAPITALE INIZIALE A UN TASSO DI RIV CONOSCIUTO CHE MONTANTE AVRO' TRA X ANNI?",null,null,null,null,null,null,null,null,null,null,null,null,null,null,null,"INVESTENDO UN CAPITALE ANNUALE CONOSCIUTO, CON O SENZA CAPITALE INIZIALE A UN TASSO DI RIV CONOSCIUTO CHE MONTANTE AVRO' TRA X ANNI?",null,null,null,null,null,null,null,null,null,null,null,null,null,null,null,"INVESTENDO UN CAPITALE ANNUALE CONOSCIUTO, CON O SENZA CAPITALE INIZIALE A UN TASSO DI RIV CONOSCIUTO CHE MONTANTE AVRO' TRA X ANNI?",null,null,null,null,null,null,null,null,null,null,null,null,null,null,null,"INVESTENDO UN CAPITALE ANNUALE CONOSCIUTO, CON O SENZA CAPITALE INIZIALE A UN TASSO DI RIV CONOSCIUTO CHE MONTANTE AVRO' TRA X ANNI?",null,null,null,null,null,null,null,null,null,null,null,null,null,null,null,"INVESTENDO UN CAPITALE ANNUALE CONOSCIUTO, CON O SENZA CAPITALE INIZIALE A UN TASSO DI RIV CONOSCIUTO CHE MONTANTE AVRO' TRA X ANNI?",null,null,null,null,null,null,null,null,null,null,null,null,null,null,null,"INVESTENDO UN CAPITALE ANNUALE CONOSCIUTO, CON O SENZA CAPITALE INIZIALE A UN TASSO DI RIV CONOSCIUTO CHE MONTANTE AVRO' TRA X ANNI?",null,null,null,null,null,null,null,null,null,null,null,null,null,null,null,"INVESTENDO UN CAPITALE ANNUALE CONOSCIUTO, CON O SENZA CAPITALE INIZIALE A UN TASSO DI RIV CONOSCIUTO CHE MONTANTE AVRO' TRA X ANNI?",null,null,null,null,null,null,null,null,null,null,null,null,null,null,null,"INVESTENDO UN CAPITALE ANNUALE CONOSCIUTO, CON O SENZA CAPITALE INIZIALE A UN TASSO DI RIV CONOSCIUTO CHE MONTANTE AVRO' TRA X ANNI?",null,null,null,null,null,null,null,null,null,null,null,null,null,null,null,"INVESTENDO UN CAPITALE ANNUALE CONOSCIUTO, CON O SENZA CAPITALE INIZIALE A UN TASSO DI RIV CONOSCIUTO CHE MONTANTE AVRO' TRA X ANNI?",null,null,null,null,null,null,null,null,null,null,null,null,null,null,null,"INVESTENDO UN CAPITALE ANNUALE CONOSCIUTO, CON O SENZA CAPITALE INIZIALE A UN TASSO DI RIV CONOSCIUTO CHE MONTANTE AVRO' TRA X ANNI?",null,null,null,null,null,null,null,null,null,null,null,null,null,null,null,"INVESTENDO UN CAPITALE ANNUALE CONOSCIUTO, CON O SENZA CAPITALE INIZIALE A UN TASSO DI RIV CONOSCIUTO CHE MONTANTE AVRO' TRA X ANNI?",null,null,null,null,null,null,null,null,null,null,null,null,null,null,null,"INVESTENDO UN CAPITALE ANNUALE CONOSCIUTO, CON O SENZA CAPITALE INIZIALE A UN TASSO DI RIV CONOSCIUTO CHE MONTANTE AVRO' TRA X ANNI?",null,null,null,null,null,null,null,null,null,null,null,null,null,null,null,"INVESTENDO UN CAPITALE ANNUALE CONOSCIUTO, CON O SENZA CAPITALE INIZIALE A UN TASSO DI RIV CONOSCIUTO CHE MONTANTE AVRO' TRA X ANNI?",null,null,null,null,null,null,null,null,null,null,null,null,null,null,null,"INVESTENDO UN CAPITALE ANNUALE CONOSCIUTO, CON O SENZA CAPITALE INIZIALE A UN TASSO DI RIV CONOSCIUTO CHE MONTANTE AVRO' TRA X ANNI?",null,null,null,null,null,null,null,null,null,null,null,null,null,null,null,"INVESTENDO UN CAPITALE ANNUALE CONOSCIUTO, CON O SENZA CAPITALE INIZIALE A UN TASSO DI RIV CONOSCIUTO CHE MONTANTE AVRO' TRA X ANNI?",null,null,null,null,null,null,null,null,null,null,null,null,null,null,null,"INVESTENDO UN CAPITALE ANNUALE CONOSCIUTO, CON O SENZA CAPITALE INIZIALE A UN TASSO DI RIV CONOSCIUTO CHE MONTANTE AVRO' TRA X ANNI?",null,null,null,null,null,null,null,null,null,null,null,null,null,null,null,"INVESTENDO UN CAPITALE ANNUALE CONOSCIUTO, CON O SENZA CAPITALE INIZIALE A UN TASSO DI RIV CONOSCIUTO CHE MONTANTE AVRO' TRA X ANNI?",null,null,null,null,null,null,null,null,null,null,null,null,null,null,null,"INVESTENDO UN CAPITALE ANNUALE CONOSCIUTO, CON O SENZA CAPITALE INIZIALE A UN TASSO DI RIV CONOSCIUTO CHE MONTANTE AVRO' TRA X ANNI?",null,null,null,null,null,null,null,null,null,null,null,null,null,null,null,"INVESTENDO UN CAPITALE ANNUALE CONOSCIUTO, CON O SENZA CAPITALE INIZIALE A UN TASSO DI RIV CONOSCIUTO CHE MONTANTE AVRO' TRA X ANNI?",null,null,null,null,null,null,null,null,null,null,null,null,null,null,null,"INVESTENDO UN CAPITALE ANNUALE CONOSCIUTO, CON O SENZA CAPITALE INIZIALE A UN TASSO DI RIV CONOSCIUTO CHE MONTANTE AVRO' TRA X ANNI?",null,null,null,null,null,null,null,null,null,null,null,null,null,null,null,"INVESTENDO UN CAPITALE ANNUALE CONOSCIUTO, CON O SENZA CAPITALE INIZIALE A UN TASSO DI RIV CONOSCIUTO CHE MONTANTE AVRO' TRA X ANNI?",null,null,null,null,null,null,null,null,null,null,null,null,null,null,null,"INVESTENDO UN CAPITALE ANNUALE CONOSCIUTO, CON O SENZA CAPITALE INIZIALE A UN TASSO DI RIV CONOSCIUTO CHE MONTANTE AVRO' TRA X ANNI?",null,null,null,null,null,null,null,null,null,null,null,null,null,null,null,"INVESTENDO UN CAPITALE ANNUALE CONOSCIUTO, CON O SENZA CAPITALE INIZIALE A UN TASSO DI RIV CONOSCIUTO CHE MONTANTE AVRO' TRA X ANNI?",null,null,null,null,null,null,null,null,null,null,null,null,null,null,null,"INVESTENDO UN CAPITALE ANNUALE CONOSCIUTO, CON O SENZA CAPITALE INIZIALE A UN TASSO DI RIV CONOSCIUTO CHE MONTANTE AVRO' TRA X ANNI?",null,null,null,null,null,null,null,null,null,null,null,null,null,null,null,"INVESTENDO UN CAPITALE ANNUALE CONOSCIUTO, CON O SENZA CAPITALE INIZIALE A UN TASSO DI RIV CONOSCIUTO CHE MONTANTE AVRO' TRA X ANNI?",null,null,null,null,null,null,null,null,null,null,null,null,null,null,null,"INVESTENDO UN CAPITALE ANNUALE CONOSCIUTO, CON O SENZA CAPITALE INIZIALE A UN TASSO DI RIV CONOSCIUTO CHE MONTANTE AVRO' TRA X ANNI?",null,null,null,null,null,null,null,null,null,null,null,null,null,null,null,"INVESTENDO UN CAPITALE ANNUALE CONOSCIUTO, CON O SENZA CAPITALE INIZIALE A UN TASSO DI RIV CONOSCIUTO CHE MONTANTE AVRO' TRA X ANNI?",null,null,null,null,null,null,null,null,null,null,null,null,null,null,null,"INVESTENDO UN CAPITALE ANNUALE CONOSCIUTO, CON O SENZA CAPITALE INIZIALE A UN TASSO DI RIV CONOSCIUTO CHE MONTANTE AVRO' TRA X ANNI?",null,null,null,null,null,null,null,null,null,null,null,null,null,null,null,"INVESTENDO UN CAPITALE ANNUALE CONOSCIUTO, CON O SENZA CAPITALE INIZIALE A UN TASSO DI RIV CONOSCIUTO CHE MONTANTE AVRO' TRA X ANNI?",null,null,null,null,null,null,null,null,null,null,null,null,null,null,null,"INVESTENDO UN CAPITALE ANNUALE CONOSCIUTO, CON O SENZA CAPITALE INIZIALE A UN TASSO DI RIV CONOSCIUTO CHE MONTANTE AVRO' TRA X ANNI?",null,null,null,null,null,null,null,null,null,null,null,null,null,null,null,"INVESTENDO UN CAPITALE ANNUALE CONOSCIUTO, CON O SENZA CAPITALE INIZIALE A UN TASSO DI RIV CONOSCIUTO CHE MONTANTE AVRO' TRA X ANNI?",null,null,null,null,null,null,null,null,null,null,null,null,null,null,null,"INVESTENDO UN CAPITALE ANNUALE CONOSCIUTO, CON O SENZA CAPITALE INIZIALE A UN TASSO DI RIV CONOSCIUTO CHE MONTANTE AVRO' TRA X ANNI?",null,null,null,null,null,null,null,null,null,null,null,null,null,null,null,"INVESTENDO UN CAPITALE ANNUALE CONOSCIUTO, CON O SENZA CAPITALE INIZIALE A UN TASSO DI RIV CONOSCIUTO CHE MONTANTE AVRO' TRA X ANNI?",null,null,null,null,null,null,null,null,null,null,null,null,null,null,null,"INVESTENDO UN CAPITALE ANNUALE CONOSCIUTO, CON O SENZA CAPITALE INIZIALE A UN TASSO DI RIV CONOSCIUTO CHE MONTANTE AVRO' TRA X ANNI?",null,null,null,null,null,null,null,null,null,null,null,null,null,null,null,"INVESTENDO UN CAPITALE ANNUALE CONOSCIUTO, CON O SENZA CAPITALE INIZIALE A UN TASSO DI RIV CONOSCIUTO CHE MONTANTE AVRO' TRA X ANNI?",null,null,null,null,null,null,null,null,null,null,null,null,null,null,null,"INVESTENDO UN CAPITALE ANNUALE CONOSCIUTO, CON O SENZA CAPITALE INIZIALE A UN TASSO DI RIV CONOSCIUTO CHE MONTANTE AVRO' TRA X ANNI?",null,null,null,null,null,null,null,null,null,null,null,null,null,null,null,"INVESTENDO UN CAPITALE ANNUALE CONOSCIUTO, CON O SENZA CAPITALE INIZIALE A UN TASSO DI RIV CONOSCIUTO CHE MONTANTE AVRO' TRA X ANNI?",null,null,null,null,null,null,null,null,null,null,null,null,null,null,null,"INVESTENDO UN CAPITALE ANNUALE CONOSCIUTO, CON O SENZA CAPITALE INIZIALE A UN TASSO DI RIV CONOSCIUTO CHE MONTANTE AVRO' TRA X ANNI?",null,null,null,null,null,null,null,null,null,null,null,null,null,null,null,"INVESTENDO UN CAPITALE ANNUALE CONOSCIUTO, CON O SENZA CAPITALE INIZIALE A UN TASSO DI RIV CONOSCIUTO CHE MONTANTE AVRO' TRA X ANNI?",null,null,null,null,null,null,null,null,null,null,null,null,null,null,null,"INVESTENDO UN CAPITALE ANNUALE CONOSCIUTO, CON O SENZA CAPITALE INIZIALE A UN TASSO DI RIV CONOSCIUTO CHE MONTANTE AVRO' TRA X ANNI?",null,null,null,null,null,null,null,null,null,null,null,null,null,null,null,"INVESTENDO UN CAPITALE ANNUALE CONOSCIUTO, CON O SENZA CAPITALE INIZIALE A UN TASSO DI RIV CONOSCIUTO CHE MONTANTE AVRO' TRA X ANNI?",null,null,null,null,null,null,null,null,null,null,null,null,null,null,null,"INVESTENDO UN CAPITALE ANNUALE CONOSCIUTO, CON O SENZA CAPITALE INIZIALE A UN TASSO DI RIV CONOSCIUTO CHE MONTANTE AVRO' TRA X ANNI?",null,null,null,null,null,null,null,null,null,null,null,null,null,null,null,"INVESTENDO UN CAPITALE ANNUALE CONOSCIUTO, CON O SENZA CAPITALE INIZIALE A UN TASSO DI RIV CONOSCIUTO CHE MONTANTE AVRO' TRA X ANNI?",null,null,null,null,null,null,null,null,null,null,null,null,null,null,null,"INVESTENDO UN CAPITALE ANNUALE CONOSCIUTO, CON O SENZA CAPITALE INIZIALE A UN TASSO DI RIV CONOSCIUTO CHE MONTANTE AVRO' TRA X ANNI?",null,null,null,null,null,null,null,null,null,null,null,null,null,null,null,"INVESTENDO UN CAPITALE ANNUALE CONOSCIUTO, CON O SENZA CAPITALE INIZIALE A UN TASSO DI RIV CONOSCIUTO CHE MONTANTE AVRO' TRA X ANNI?",null,null,null,null,null,null,null,null,null,null,null,null,null,null,null,"INVESTENDO UN CAPITALE ANNUALE CONOSCIUTO, CON O SENZA CAPITALE INIZIALE A UN TASSO DI RIV CONOSCIUTO CHE MONTANTE AVRO' TRA X ANNI?",null,null,null,null,null,null,null,null,null,null,null,null,null,null,null,"INVESTENDO UN CAPITALE ANNUALE CONOSCIUTO, CON O SENZA CAPITALE INIZIALE A UN TASSO DI RIV CONOSCIUTO CHE MONTANTE AVRO' TRA X ANNI?",null,null,null,null,null,null,null,null,null,null,null,null,null,null,null,"INVESTENDO UN CAPITALE ANNUALE CONOSCIUTO, CON O SENZA CAPITALE INIZIALE A UN TASSO DI RIV CONOSCIUTO CHE MONTANTE AVRO' TRA X ANNI?",null,null,null,null,null,null,null,null,null,null,null,null,null,null,null,"INVESTENDO UN CAPITALE ANNUALE CONOSCIUTO, CON O SENZA CAPITALE INIZIALE A UN TASSO DI RIV CONOSCIUTO CHE MONTANTE AVRO' TRA X ANNI?",null,null,null,null,null,null,null,null,null,null,null,null,null,null,null,"INVESTENDO UN CAPITALE ANNUALE CONOSCIUTO, CON O SENZA CAPITALE INIZIALE A UN TASSO DI RIV CONOSCIUTO CHE MONTANTE AVRO' TRA X ANNI?",null,null,null,null,null,null,null,null,null,null,null,null,null,null,null,"INVESTENDO UN CAPITALE ANNUALE CONOSCIUTO, CON O SENZA CAPITALE INIZIALE A UN TASSO DI RIV CONOSCIUTO CHE MONTANTE AVRO' TRA X ANNI?",null,null,null,null,null,null,null,null,null,null,null,null,null,null,null,"INVESTENDO UN CAPITALE ANNUALE CONOSCIUTO, CON O SENZA CAPITALE INIZIALE A UN TASSO DI RIV CONOSCIUTO CHE MONTANTE AVRO' TRA X ANNI?",null,null,null,null,null,null,null,null,null,null,null,null,null,null,null,"INVESTENDO UN CAPITALE ANNUALE CONOSCIUTO, CON O SENZA CAPITALE INIZIALE A UN TASSO DI RIV CONOSCIUTO CHE MONTANTE AVRO' TRA X ANNI?",null,null,null,null,null,null,null,null,null,null,null,null,null,null,null,"INVESTENDO UN CAPITALE ANNUALE CONOSCIUTO, CON O SENZA CAPITALE INIZIALE A UN TASSO DI RIV CONOSCIUTO CHE MONTANTE AVRO' TRA X ANNI?",null,null,null,null,null,null,null,null,null,null,null,null,null,null,null,"INVESTENDO UN CAPITALE ANNUALE CONOSCIUTO, CON O SENZA CAPITALE INIZIALE A UN TASSO DI RIV CONOSCIUTO CHE MONTANTE AVRO' TRA X ANNI?",null,null,null,null,null,null,null,null,null,null,null,null,null,null,null,"INVESTENDO UN CAPITALE ANNUALE CONOSCIUTO, CON O SENZA CAPITALE INIZIALE A UN TASSO DI RIV CONOSCIUTO CHE MONTANTE AVRO' TRA X ANNI?",null,null,null,null,null,null,null,null,null,null,null,null,null,null,null,"INVESTENDO UN CAPITALE ANNUALE CONOSCIUTO, CON O SENZA CAPITALE INIZIALE A UN TASSO DI RIV CONOSCIUTO CHE MONTANTE AVRO' TRA X ANNI?",null,null,null,null,null,null,null,null,null,null,null,null,null,null,null,"INVESTENDO UN CAPITALE ANNUALE CONOSCIUTO, CON O SENZA CAPITALE INIZIALE A UN TASSO DI RIV CONOSCIUTO CHE MONTANTE AVRO' TRA X ANNI?",null,null,null,null,null,null,null,null,null,null,null,null,null,null,null,"INVESTENDO UN CAPITALE ANNUALE CONOSCIUTO, CON O SENZA CAPITALE INIZIALE A UN TASSO DI RIV CONOSCIUTO CHE MONTANTE AVRO' TRA X ANNI?",null,null,null,null,null,null,null,null,null,null,null,null,null,null,null,"INVESTENDO UN CAPITALE ANNUALE CONOSCIUTO, CON O SENZA CAPITALE INIZIALE A UN TASSO DI RIV CONOSCIUTO CHE MONTANTE AVRO' TRA X ANNI?",null,null,null,null,null,null,null,null,null,null,null,null,null,null,null,"INVESTENDO UN CAPITALE ANNUALE CONOSCIUTO, CON O SENZA CAPITALE INIZIALE A UN TASSO DI RIV CONOSCIUTO CHE MONTANTE AVRO' TRA X ANNI?",null,null,null,null,null,null,null,null,null,null,null,null,null,null,null,"INVESTENDO UN CAPITALE ANNUALE CONOSCIUTO, CON O SENZA CAPITALE INIZIALE A UN TASSO DI RIV CONOSCIUTO CHE MONTANTE AVRO' TRA X ANNI?",null,null,null,null,null,null,null,null,null,null,null,null,null,null,null,"INVESTENDO UN CAPITALE ANNUALE CONOSCIUTO, CON O SENZA CAPITALE INIZIALE A UN TASSO DI RIV CONOSCIUTO CHE MONTANTE AVRO' TRA X ANNI?",null,null,null,null,null,null,null,null,null,null,null,null,null,null,null,"INVESTENDO UN CAPITALE ANNUALE CONOSCIUTO, CON O SENZA CAPITALE INIZIALE A UN TASSO DI RIV CONOSCIUTO CHE MONTANTE AVRO' TRA X ANNI?",null,null,null,null,null,null,null,null,null,null,null,null,null,null,null,"INVESTENDO UN CAPITALE ANNUALE CONOSCIUTO, CON O SENZA CAPITALE INIZIALE A UN TASSO DI RIV CONOSCIUTO CHE MONTANTE AVRO' TRA X ANNI?",null,null,null,null,null,null,null,null,null,null,null,null,null,null,null,"INVESTENDO UN CAPITALE ANNUALE CONOSCIUTO, CON O SENZA CAPITALE INIZIALE A UN TASSO DI RIV CONOSCIUTO CHE MONTANTE AVRO' TRA X ANNI?",null,null,null,null,null,null,null,null,null,null,null,null,null,null,null,"INVESTENDO UN CAPITALE ANNUALE CONOSCIUTO, CON O SENZA CAPITALE INIZIALE A UN TASSO DI RIV CONOSCIUTO CHE MONTANTE AVRO' TRA X ANNI?",null,null,null,null,null,null,null,null,null,null,null,null,null,null,null,"INVESTENDO UN CAPITALE ANNUALE CONOSCIUTO, CON O SENZA CAPITALE INIZIALE A UN TASSO DI RIV CONOSCIUTO CHE MONTANTE AVRO' TRA X ANNI?",null,null,null,null,null,null,null,null,null,null,null,null,null,null,null,"INVESTENDO UN CAPITALE ANNUALE CONOSCIUTO, CON O SENZA CAPITALE INIZIALE A UN TASSO DI RIV CONOSCIUTO CHE MONTANTE AVRO' TRA X ANNI?",null,null,null,null,null,null,null,null,null,null,null,null,null,null,null,"INVESTENDO UN CAPITALE ANNUALE CONOSCIUTO, CON O SENZA CAPITALE INIZIALE A UN TASSO DI RIV CONOSCIUTO CHE MONTANTE AVRO' TRA X ANNI?",null,null,null,null,null,null,null,null,null,null,null,null,null,null,null,"INVESTENDO UN CAPITALE ANNUALE CONOSCIUTO, CON O SENZA CAPITALE INIZIALE A UN TASSO DI RIV CONOSCIUTO CHE MONTANTE AVRO' TRA X ANNI?",null,null,null,null,null,null,null,null,null,null,null,null,null,null,null,"INVESTENDO UN CAPITALE ANNUALE CONOSCIUTO, CON O SENZA CAPITALE INIZIALE A UN TASSO DI RIV CONOSCIUTO CHE MONTANTE AVRO' TRA X ANNI?",null,null,null,null,null,null,null,null,null,null,null,null,null,null,null,"INVESTENDO UN CAPITALE ANNUALE CONOSCIUTO, CON O SENZA CAPITALE INIZIALE A UN TASSO DI RIV CONOSCIUTO CHE MONTANTE AVRO' TRA X ANNI?",null,null,null,null,null,null,null,null,null,null,null,null,null,null,null,"INVESTENDO UN CAPITALE ANNUALE CONOSCIUTO, CON O SENZA CAPITALE INIZIALE A UN TASSO DI RIV CONOSCIUTO CHE MONTANTE AVRO' TRA X ANNI?",null,null,null,null,null,null,null,null,null,null,null,null,null,null,null,"INVESTENDO UN CAPITALE ANNUALE CONOSCIUTO, CON O SENZA CAPITALE INIZIALE A UN TASSO DI RIV CONOSCIUTO CHE MONTANTE AVRO' TRA X ANNI?",null,null,null,null,null,null,null,null,null,null,null,null,null,null,null,"INVESTENDO UN CAPITALE ANNUALE CONOSCIUTO, CON O SENZA CAPITALE INIZIALE A UN TASSO DI RIV CONOSCIUTO CHE MONTANTE AVRO' TRA X ANNI?",null,null,null,null,null,null,null,null,null,null,null,null,null,null,null,"INVESTENDO UN CAPITALE ANNUALE CONOSCIUTO, CON O SENZA CAPITALE INIZIALE A UN TASSO DI RIV CONOSCIUTO CHE MONTANTE AVRO' TRA X ANNI?",null,null,null,null,null,null,null,null,null,null,null,null,null,null,null,"INVESTENDO UN CAPITALE ANNUALE CONOSCIUTO, CON O SENZA CAPITALE INIZIALE A UN TASSO DI RIV CONOSCIUTO CHE MONTANTE AVRO' TRA X ANNI?",null,null,null,null,null,null,null,null,null,null,null,null,null,null,null,"INVESTENDO UN CAPITALE ANNUALE CONOSCIUTO, CON O SENZA CAPITALE INIZIALE A UN TASSO DI RIV CONOSCIUTO CHE MONTANTE AVRO' TRA X ANNI?",null,null,null,null,null,null,null,null,null,null,null,null,null,null,null,"INVESTENDO UN CAPITALE ANNUALE CONOSCIUTO, CON O SENZA CAPITALE INIZIALE A UN TASSO DI RIV CONOSCIUTO CHE MONTANTE AVRO' TRA X ANNI?",null,null,null,null,null,null,null,null,null,null,null,null,null,null,null,"INVESTENDO UN CAPITALE ANNUALE CONOSCIUTO, CON O SENZA CAPITALE INIZIALE A UN TASSO DI RIV CONOSCIUTO CHE MONTANTE AVRO' TRA X ANNI?",null,null,null,null,null,null,null,null,null,null,null,null,null,null,null,"INVESTENDO UN CAPITALE ANNUALE CONOSCIUTO, CON O SENZA CAPITALE INIZIALE A UN TASSO DI RIV CONOSCIUTO CHE MONTANTE AVRO' TRA X ANNI?",null,null,null,null,null,null,null,null,null,null,null,null,null,null,null,"INVESTENDO UN CAPITALE ANNUALE CONOSCIUTO, CON O SENZA CAPITALE INIZIALE A UN TASSO DI RIV CONOSCIUTO CHE MONTANTE AVRO' TRA X ANNI?",null,null,null,null,null,null,null,null,null,null,null,null,null,null,null,"INVESTENDO UN CAPITALE ANNUALE CONOSCIUTO, CON O SENZA CAPITALE INIZIALE A UN TASSO DI RIV CONOSCIUTO CHE MONTANTE AVRO' TRA X ANNI?",null,null,null,null,null,null,null,null,null,null,null,null,null,null,null,"INVESTENDO UN CAPITALE ANNUALE CONOSCIUTO, CON O SENZA CAPITALE INIZIALE A UN TASSO DI RIV CONOSCIUTO CHE MONTANTE AVRO' TRA X ANNI?",null,null,null,null,null,null,null,null,null,null,null,null,null,null,null,"INVESTENDO UN CAPITALE ANNUALE CONOSCIUTO, CON O SENZA CAPITALE INIZIALE A UN TASSO DI RIV CONOSCIUTO CHE MONTANTE AVRO' TRA X ANNI?",null,null,null,null,null,null,null,null,null,null,null,null,null,null,null,"INVESTENDO UN CAPITALE ANNUALE CONOSCIUTO, CON O SENZA CAPITALE INIZIALE A UN TASSO DI RIV CONOSCIUTO CHE MONTANTE AVRO' TRA X ANNI?",null,null,null,null,null,null,null,null,null,null,null,null,null,null,null,"INVESTENDO UN CAPITALE ANNUALE CONOSCIUTO, CON O SENZA CAPITALE INIZIALE A UN TASSO DI RIV CONOSCIUTO CHE MONTANTE AVRO' TRA X ANNI?",null,null,null,null,null,null,null,null,null,null,null,null,null,null,null,"INVESTENDO UN CAPITALE ANNUALE CONOSCIUTO, CON O SENZA CAPITALE INIZIALE A UN TASSO DI RIV CONOSCIUTO CHE MONTANTE AVRO' TRA X ANNI?",null,null,null,null,null,null,null,null,null,null,null,null,null,null,null,"INVESTENDO UN CAPITALE ANNUALE CONOSCIUTO, CON O SENZA CAPITALE INIZIALE A UN TASSO DI RIV CONOSCIUTO CHE MONTANTE AVRO' TRA X ANNI?",null,null,null,null,null,null,null,null,null,null,null,null,null,null,null,"INVESTENDO UN CAPITALE ANNUALE CONOSCIUTO, CON O SENZA CAPITALE INIZIALE A UN TASSO DI RIV CONOSCIUTO CHE MONTANTE AVRO' TRA X ANNI?",null,null,null,null,null,null,null,null,null,null,null,null,null,null,null,"INVESTENDO UN CAPITALE ANNUALE CONOSCIUTO, CON O SENZA CAPITALE INIZIALE A UN TASSO DI RIV CONOSCIUTO CHE MONTANTE AVRO' TRA X ANNI?",null,null,null,null,null,null,null,null,null,null,null,null,null,null,null,"INVESTENDO UN CAPITALE ANNUALE CONOSCIUTO, CON O SENZA CAPITALE INIZIALE A UN TASSO DI RIV CONOSCIUTO CHE MONTANTE AVRO' TRA X ANNI?",null,null,null,null,null,null,null,null,null,null,null,null,null,null,null,"INVESTENDO UN CAPITALE ANNUALE CONOSCIUTO, CON O SENZA CAPITALE INIZIALE A UN TASSO DI RIV CONOSCIUTO CHE MONTANTE AVRO' TRA X ANNI?",null,null,null,null,null,null,null,null,null,null,null,null,null,null,null,"INVESTENDO UN CAPITALE ANNUALE CONOSCIUTO, CON O SENZA CAPITALE INIZIALE A UN TASSO DI RIV CONOSCIUTO CHE MONTANTE AVRO' TRA X ANNI?",null,null,null,null,null,null,null,null,null,null,null,null,null,null,null,"INVESTENDO UN CAPITALE ANNUALE CONOSCIUTO, CON O SENZA CAPITALE INIZIALE A UN TASSO DI RIV CONOSCIUTO CHE MONTANTE AVRO' TRA X ANNI?",null,null,null,null,null,null,null,null,null,null,null,null,null,null,null,"INVESTENDO UN CAPITALE ANNUALE CONOSCIUTO, CON O SENZA CAPITALE INIZIALE A UN TASSO DI RIV CONOSCIUTO CHE MONTANTE AVRO' TRA X ANNI?",null,null,null,null,null,null,null,null,null,null,null,null,null,null,null,"INVESTENDO UN CAPITALE ANNUALE CONOSCIUTO, CON O SENZA CAPITALE INIZIALE A UN TASSO DI RIV CONOSCIUTO CHE MONTANTE AVRO' TRA X ANNI?",null,null,null,null,null,null,null,null,null,null,null,null,null,null,null,"INVESTENDO UN CAPITALE ANNUALE CONOSCIUTO, CON O SENZA CAPITALE INIZIALE A UN TASSO DI RIV CONOSCIUTO CHE MONTANTE AVRO' TRA X ANNI?",null,null,null,null,null,null,null,null,null,null,null,null,null,null,null,"INVESTENDO UN CAPITALE ANNUALE CONOSCIUTO, CON O SENZA CAPITALE INIZIALE A UN TASSO DI RIV CONOSCIUTO CHE MONTANTE AVRO' TRA X ANNI?",null,null,null,null,null,null,null,null,null,null,null,null,null,null,null,"INVESTENDO UN CAPITALE ANNUALE CONOSCIUTO, CON O SENZA CAPITALE INIZIALE A UN TASSO DI RIV CONOSCIUTO CHE MONTANTE AVRO' TRA X ANNI?",null,null,null,null,null,null,null,null,null,null,null,null,null,null,null,"INVESTENDO UN CAPITALE ANNUALE CONOSCIUTO, CON O SENZA CAPITALE INIZIALE A UN TASSO DI RIV CONOSCIUTO CHE MONTANTE AVRO' TRA X ANNI?",null,null,null,null,null,null,null,null,null,null,null,null,null,null,null,"INVESTENDO UN CAPITALE ANNUALE CONOSCIUTO, CON O SENZA CAPITALE INIZIALE A UN TASSO DI RIV CONOSCIUTO CHE MONTANTE AVRO' TRA X ANNI?",null,null,null,null,null,null,null,null,null,null,null,null,null,null,null,"INVESTENDO UN CAPITALE ANNUALE CONOSCIUTO, CON O SENZA CAPITALE INIZIALE A UN TASSO DI RIV CONOSCIUTO CHE MONTANTE AVRO' TRA X ANNI?",null,null,null,null,null,null,null,null,null,null,null,null,null,null,null,"INVESTENDO UN CAPITALE ANNUALE CONOSCIUTO, CON O SENZA CAPITALE INIZIALE A UN TASSO DI RIV CONOSCIUTO CHE MONTANTE AVRO' TRA X ANNI?",null,null,null,null,null,null,null,null,null,null,null,null,null,null,null,"INVESTENDO UN CAPITALE ANNUALE CONOSCIUTO, CON O SENZA CAPITALE INIZIALE A UN TASSO DI RIV CONOSCIUTO CHE MONTANTE AVRO' TRA X ANNI?",null,null,null,null,null,null,null,null,null,null,null,null,null,null,null,"INVESTENDO UN CAPITALE ANNUALE CONOSCIUTO, CON O SENZA CAPITALE INIZIALE A UN TASSO DI RIV CONOSCIUTO CHE MONTANTE AVRO' TRA X ANNI?",null,null,null,null,null,null,null,null,null,null,null,null,null,null,null,"INVESTENDO UN CAPITALE ANNUALE CONOSCIUTO, CON O SENZA CAPITALE INIZIALE A UN TASSO DI RIV CONOSCIUTO CHE MONTANTE AVRO' TRA X ANNI?",null,null,null,null,null,null,null,null,null,null,null,null,null,null,null,"INVESTENDO UN CAPITALE ANNUALE CONOSCIUTO, CON O SENZA CAPITALE INIZIALE A UN TASSO DI RIV CONOSCIUTO CHE MONTANTE AVRO' TRA X ANNI?",null,null,null,null,null,null,null,null,null,null,null,null,null,null,null,"INVESTENDO UN CAPITALE ANNUALE CONOSCIUTO, CON O SENZA CAPITALE INIZIALE A UN TASSO DI RIV CONOSCIUTO CHE MONTANTE AVRO' TRA X ANNI?",null,null,null,null,null,null,null,null,null,null,null,null,null,null,null,"INVESTENDO UN CAPITALE ANNUALE CONOSCIUTO, CON O SENZA CAPITALE INIZIALE A UN TASSO DI RIV CONOSCIUTO CHE MONTANTE AVRO' TRA X ANNI?",null,null,null,null,null,null,null,null,null,null,null,null,null,null,null,"INVESTENDO UN CAPITALE ANNUALE CONOSCIUTO, CON O SENZA CAPITALE INIZIALE A UN TASSO DI RIV CONOSCIUTO CHE MONTANTE AVRO' TRA X ANNI?",null,null,null,null,null,null,null,null,null,null,null,null,null,null,null,"INVESTENDO UN CAPITALE ANNUALE CONOSCIUTO, CON O SENZA CAPITALE INIZIALE A UN TASSO DI RIV CONOSCIUTO CHE MONTANTE AVRO' TRA X ANNI?",null,null,null,null,null,null,null,null,null,null,null,null,null,null,null,"INVESTENDO UN CAPITALE ANNUALE CONOSCIUTO, CON O SENZA CAPITALE INIZIALE A UN TASSO DI RIV CONOSCIUTO CHE MONTANTE AVRO' TRA X ANNI?",null,null,null,null,null,null,null,null,null,null,null,null,null,null,null,"INVESTENDO UN CAPITALE ANNUALE CONOSCIUTO, CON O SENZA CAPITALE INIZIALE A UN TASSO DI RIV CONOSCIUTO CHE MONTANTE AVRO' TRA X ANNI?",null,null,null,null,null,null,null,null,null,null,null,null,null,null,null,"INVESTENDO UN CAPITALE ANNUALE CONOSCIUTO, CON O SENZA CAPITALE INIZIALE A UN TASSO DI RIV CONOSCIUTO CHE MONTANTE AVRO' TRA X ANNI?",null,null,null,null,null,null,null,null,null,null,null,null,null,null,null,"INVESTENDO UN CAPITALE ANNUALE CONOSCIUTO, CON O SENZA CAPITALE INIZIALE A UN TASSO DI RIV CONOSCIUTO CHE MONTANTE AVRO' TRA X ANNI?",null,null,null,null,null,null,null,null,null,null,null,null,null,null,null,"INVESTENDO UN CAPITALE ANNUALE CONOSCIUTO, CON O SENZA CAPITALE INIZIALE A UN TASSO DI RIV CONOSCIUTO CHE MONTANTE AVRO' TRA X ANNI?",null,null,null,null,null,null,null,null,null,null,null,null,null,null,null,"INVESTENDO UN CAPITALE ANNUALE CONOSCIUTO, CON O SENZA CAPITALE INIZIALE A UN TASSO DI RIV CONOSCIUTO CHE MONTANTE AVRO' TRA X ANNI?",null,null,null,null,null,null,null,null,null,null,null,null,null,null,null,"INVESTENDO UN CAPITALE ANNUALE CONOSCIUTO, CON O SENZA CAPITALE INIZIALE A UN TASSO DI RIV CONOSCIUTO CHE MONTANTE AVRO' TRA X ANNI?",null,null,null,null,null,null,null,null,null,null,null,null,null,null,null,"INVESTENDO UN CAPITALE ANNUALE CONOSCIUTO, CON O SENZA CAPITALE INIZIALE A UN TASSO DI RIV CONOSCIUTO CHE MONTANTE AVRO' TRA X ANNI?",null,null,null,null,null,null,null,null,null,null,null,null,null,null,null,"INVESTENDO UN CAPITALE ANNUALE CONOSCIUTO, CON O SENZA CAPITALE INIZIALE A UN TASSO DI RIV CONOSCIUTO CHE MONTANTE AVRO' TRA X ANNI?",null,null,null,null,null,null,null,null,null,null,null,null,null,null,null,"INVESTENDO UN CAPITALE ANNUALE CONOSCIUTO, CON O SENZA CAPITALE INIZIALE A UN TASSO DI RIV CONOSCIUTO CHE MONTANTE AVRO' TRA X ANNI?",null,null,null,null,null,null,null,null,null,null,null,null,null,null,null,"INVESTENDO UN CAPITALE ANNUALE CONOSCIUTO, CON O SENZA CAPITALE INIZIALE A UN TASSO DI RIV CONOSCIUTO CHE MONTANTE AVRO' TRA X ANNI?",null,null,null,null,null,null,null,null,null,null,null,null,null,null,null,"INVESTENDO UN CAPITALE ANNUALE CONOSCIUTO, CON O SENZA CAPITALE INIZIALE A UN TASSO DI RIV CONOSCIUTO CHE MONTANTE AVRO' TRA X ANNI?",null,null,null,null,null,null,null,null,null,null,null,null,null,null,null,"INVESTENDO UN CAPITALE ANNUALE CONOSCIUTO, CON O SENZA CAPITALE INIZIALE A UN TASSO DI RIV CONOSCIUTO CHE MONTANTE AVRO' TRA X ANNI?",null,null,null,null,null,null,null,null,null,null,null,null,null,null,null,"INVESTENDO UN CAPITALE ANNUALE CONOSCIUTO, CON O SENZA CAPITALE INIZIALE A UN TASSO DI RIV CONOSCIUTO CHE MONTANTE AVRO' TRA X ANNI?",null,null,null,null,null,null,null,null,null,null,null,null,null,null,null,"INVESTENDO UN CAPITALE ANNUALE CONOSCIUTO, CON O SENZA CAPITALE INIZIALE A UN TASSO DI RIV CONOSCIUTO CHE MONTANTE AVRO' TRA X ANNI?",null,null,null,null,null,null,null,null,null,null,null,null,null,null,null,"INVESTENDO UN CAPITALE ANNUALE CONOSCIUTO, CON O SENZA CAPITALE INIZIALE A UN TASSO DI RIV CONOSCIUTO CHE MONTANTE AVRO' TRA X ANNI?",null,null,null,null,null,null,null,null,null,null,null,null,null,null,null,"INVESTENDO UN CAPITALE ANNUALE CONOSCIUTO, CON O SENZA CAPITALE INIZIALE A UN TASSO DI RIV CONOSCIUTO CHE MONTANTE AVRO' TRA X ANNI?",null,null,null,null,null,null,null,null,null,null,null,null,null,null,null,"INVESTENDO UN CAPITALE ANNUALE CONOSCIUTO, CON O SENZA CAPITALE INIZIALE A UN TASSO DI RIV CONOSCIUTO CHE MONTANTE AVRO' TRA X ANNI?",null,null,null,null,null,null,null,null,null,null,null,null,null,null,null,"INVESTENDO UN CAPITALE ANNUALE CONOSCIUTO, CON O SENZA CAPITALE INIZIALE A UN TASSO DI RIV CONOSCIUTO CHE MONTANTE AVRO' TRA X ANNI?",null,null,null,null,null,null,null,null,null,null,null,null,null,null,null,"INVESTENDO UN CAPITALE ANNUALE CONOSCIUTO, CON O SENZA CAPITALE INIZIALE A UN TASSO DI RIV CONOSCIUTO CHE MONTANTE AVRO' TRA X ANNI?",null,null,null,null,null,null,null,null,null,null,null,null,null,null,null,"INVESTENDO UN CAPITALE ANNUALE CONOSCIUTO, CON O SENZA CAPITALE INIZIALE A UN TASSO DI RIV CONOSCIUTO CHE MONTANTE AVRO' TRA X ANNI?",null,null,null,null,null,null,null,null,null,null,null,null,null,null,null,"INVESTENDO UN CAPITALE ANNUALE CONOSCIUTO, CON O SENZA CAPITALE INIZIALE A UN TASSO DI RIV CONOSCIUTO CHE MONTANTE AVRO' TRA X ANNI?",null,null,null,null,null,null,null,null,null,null,null,null,null,null,null,"INVESTENDO UN CAPITALE ANNUALE CONOSCIUTO, CON O SENZA CAPITALE INIZIALE A UN TASSO DI RIV CONOSCIUTO CHE MONTANTE AVRO' TRA X ANNI?",null,null,null,null,null,null,null,null,null,null,null,null,null,null,null,"INVESTENDO UN CAPITALE ANNUALE CONOSCIUTO, CON O SENZA CAPITALE INIZIALE A UN TASSO DI RIV CONOSCIUTO CHE MONTANTE AVRO' TRA X ANNI?",null,null,null,null,null,null,null,null,null,null,null,null,null,null,null,"INVESTENDO UN CAPITALE ANNUALE CONOSCIUTO, CON O SENZA CAPITALE INIZIALE A UN TASSO DI RIV CONOSCIUTO CHE MONTANTE AVRO' TRA X ANNI?",null,null,null,null,null,null,null,null,null,null,null,null,null,null,null,"INVESTENDO UN CAPITALE ANNUALE CONOSCIUTO, CON O SENZA CAPITALE INIZIALE A UN TASSO DI RIV CONOSCIUTO CHE MONTANTE AVRO' TRA X ANNI?",null,null,null,null,null,null,null,null,null,null,null,null,null,null,null,"INVESTENDO UN CAPITALE ANNUALE CONOSCIUTO, CON O SENZA CAPITALE INIZIALE A UN TASSO DI RIV CONOSCIUTO CHE MONTANTE AVRO' TRA X ANNI?",null,null,null,null,null,null,null,null,null,null,null,null,null,null,null,"INVESTENDO UN CAPITALE ANNUALE CONOSCIUTO, CON O SENZA CAPITALE INIZIALE A UN TASSO DI RIV CONOSCIUTO CHE MONTANTE AVRO' TRA X ANNI?",null,null,null,null,null,null,null,null,null,null,null,null,null,null,null,"INVESTENDO UN CAPITALE ANNUALE CONOSCIUTO, CON O SENZA CAPITALE INIZIALE A UN TASSO DI RIV CONOSCIUTO CHE MONTANTE AVRO' TRA X ANNI?",null,null,null,null,null,null,null,null,null,null,null,null,null,null,null,"INVESTENDO UN CAPITALE ANNUALE CONOSCIUTO, CON O SENZA CAPITALE INIZIALE A UN TASSO DI RIV CONOSCIUTO CHE MONTANTE AVRO' TRA X ANNI?",null,null,null,null,null,null,null,null,null,null,null,null,null,null,null,"INVESTENDO UN CAPITALE ANNUALE CONOSCIUTO, CON O SENZA CAPITALE INIZIALE A UN TASSO DI RIV CONOSCIUTO CHE MONTANTE AVRO' TRA X ANNI?",null,null,null,null,null,null,null,null,null,null,null,null,null,null,null,"INVESTENDO UN CAPITALE ANNUALE CONOSCIUTO, CON O SENZA CAPITALE INIZIALE A UN TASSO DI RIV CONOSCIUTO CHE MONTANTE AVRO' TRA X ANNI?",null,null,null,null,null,null,null,null,null,null,null,null,null,null,null,"INVESTENDO UN CAPITALE ANNUALE CONOSCIUTO, CON O SENZA CAPITALE INIZIALE A UN TASSO DI RIV CONOSCIUTO CHE MONTANTE AVRO' TRA X ANNI?",null,null,null,null,null,null,null,null,null,null,null,null,null,null,null,"INVESTENDO UN CAPITALE ANNUALE CONOSCIUTO, CON O SENZA CAPITALE INIZIALE A UN TASSO DI RIV CONOSCIUTO CHE MONTANTE AVRO' TRA X ANNI?",null,null,null,null,null,null,null,null,null,null,null,null,null,null,null,"INVESTENDO UN CAPITALE ANNUALE CONOSCIUTO, CON O SENZA CAPITALE INIZIALE A UN TASSO DI RIV CONOSCIUTO CHE MONTANTE AVRO' TRA X ANNI?",null,null,null,null,null,null,null,null,null,null,null,null,null,null,null,"INVESTENDO UN CAPITALE ANNUALE CONOSCIUTO, CON O SENZA CAPITALE INIZIALE A UN TASSO DI RIV CONOSCIUTO CHE MONTANTE AVRO' TRA X ANNI?",null,null,null,null,null,null,null,null,null,null,null,null,null,null,null,"INVESTENDO UN CAPITALE ANNUALE CONOSCIUTO, CON O SENZA CAPITALE INIZIALE A UN TASSO DI RIV CONOSCIUTO CHE MONTANTE AVRO' TRA X ANNI?",null,null,null,null,null,null,null,null,null,null,null,null,null,null,null,"INVESTENDO UN CAPITALE ANNUALE CONOSCIUTO, CON O SENZA CAPITALE INIZIALE A UN TASSO DI RIV CONOSCIUTO CHE MONTANTE AVRO' TRA X ANNI?",null,null,null,null,null,null,null,null,null,null,null,null,null,null,null,"INVESTENDO UN CAPITALE ANNUALE CONOSCIUTO, CON O SENZA CAPITALE INIZIALE A UN TASSO DI RIV CONOSCIUTO CHE MONTANTE AVRO' TRA X ANNI?",null,null,null,null,null,null,null,null,null,null,null,null,null,null,null,"INVESTENDO UN CAPITALE ANNUALE CONOSCIUTO, CON O SENZA CAPITALE INIZIALE A UN TASSO DI RIV CONOSCIUTO CHE MONTANTE AVRO' TRA X ANNI?",null,null,null,null,null,null,null,null,null,null,null,null,null,null,null,"INVESTENDO UN CAPITALE ANNUALE CONOSCIUTO, CON O SENZA CAPITALE INIZIALE A UN TASSO DI RIV CONOSCIUTO CHE MONTANTE AVRO' TRA X ANNI?",null,null,null,null,null,null,null,null,null,null,null,null,null,null,null,"INVESTENDO UN CAPITALE ANNUALE CONOSCIUTO, CON O SENZA CAPITALE INIZIALE A UN TASSO DI RIV CONOSCIUTO CHE MONTANTE AVRO' TRA X ANNI?",null,null,null,null,null,null,null,null,null,null,null,null,null,null,null,"INVESTENDO UN CAPITALE ANNUALE CONOSCIUTO, CON O SENZA CAPITALE INIZIALE A UN TASSO DI RIV CONOSCIUTO CHE MONTANTE AVRO' TRA X ANNI?",null,null,null,null,null,null,null,null,null,null,null,null,null,null,null,"INVESTENDO UN CAPITALE ANNUALE CONOSCIUTO, CON O SENZA CAPITALE INIZIALE A UN TASSO DI RIV CONOSCIUTO CHE MONTANTE AVRO' TRA X ANNI?",null,null,null,null,null,null,null,null,null,null,null,null,null,null,null,"INVESTENDO UN CAPITALE ANNUALE CONOSCIUTO, CON O SENZA CAPITALE INIZIALE A UN TASSO DI RIV CONOSCIUTO CHE MONTANTE AVRO' TRA X ANNI?",null,null,null,null,null,null,null,null,null,null,null,null,null,null,null,"INVESTENDO UN CAPITALE ANNUALE CONOSCIUTO, CON O SENZA CAPITALE INIZIALE A UN TASSO DI RIV CONOSCIUTO CHE MONTANTE AVRO' TRA X ANNI?",null,null,null,null,null,null,null,null,null,null,null,null,null,null,null,"INVESTENDO UN CAPITALE ANNUALE CONOSCIUTO, CON O SENZA CAPITALE INIZIALE A UN TASSO DI RIV CONOSCIUTO CHE MONTANTE AVRO' TRA X ANNI?",null,null,null,null,null,null,null,null,null,null,null,null,null,null,null,"INVESTENDO UN CAPITALE ANNUALE CONOSCIUTO, CON O SENZA CAPITALE INIZIALE A UN TASSO DI RIV CONOSCIUTO CHE MONTANTE AVRO' TRA X ANNI?",null,null,null,null,null,null,null,null,null,null,null,null,null,null,null,"INVESTENDO UN CAPITALE ANNUALE CONOSCIUTO, CON O SENZA CAPITALE INIZIALE A UN TASSO DI RIV CONOSCIUTO CHE MONTANTE AVRO' TRA X ANNI?",null,null,null,null,null,null,null,null,null,null,null,null,null,null,null,"INVESTENDO UN CAPITALE ANNUALE CONOSCIUTO, CON O SENZA CAPITALE INIZIALE A UN TASSO DI RIV CONOSCIUTO CHE MONTANTE AVRO' TRA X ANNI?",null,null,null,null,null,null,null,null,null,null,null,null,null,null,null,"INVESTENDO UN CAPITALE ANNUALE CONOSCIUTO, CON O SENZA CAPITALE INIZIALE A UN TASSO DI RIV CONOSCIUTO CHE MONTANTE AVRO' TRA X ANNI?",null,null,null,null,null,null,null,null,null,null,null,null,null,null,null,"INVESTENDO UN CAPITALE ANNUALE CONOSCIUTO, CON O SENZA CAPITALE INIZIALE A UN TASSO DI RIV CONOSCIUTO CHE MONTANTE AVRO' TRA X ANNI?",null,null,null,null,null,null,null,null,null,null,null,null,null,null,null,"INVESTENDO UN CAPITALE ANNUALE CONOSCIUTO, CON O SENZA CAPITALE INIZIALE A UN TASSO DI RIV CONOSCIUTO CHE MONTANTE AVRO' TRA X ANNI?",null,null,null,null,null,null,null,null,null,null,null,null,null,null,null,"INVESTENDO UN CAPITALE ANNUALE CONOSCIUTO, CON O SENZA CAPITALE INIZIALE A UN TASSO DI RIV CONOSCIUTO CHE MONTANTE AVRO' TRA X ANNI?",null,null,null,null,null,null,null,null,null,null,null,null,null,null,null,"INVESTENDO UN CAPITALE ANNUALE CONOSCIUTO, CON O SENZA CAPITALE INIZIALE A UN TASSO DI RIV CONOSCIUTO CHE MONTANTE AVRO' TRA X ANNI?",null,null,null,null,null,null,null,null,null,null,null,null,null,null,null,"INVESTENDO UN CAPITALE ANNUALE CONOSCIUTO, CON O SENZA CAPITALE INIZIALE A UN TASSO DI RIV CONOSCIUTO CHE MONTANTE AVRO' TRA X ANNI?",null,null,null,null,null,null,null,null,null,null,null,null,null,null,null,"INVESTENDO UN CAPITALE ANNUALE CONOSCIUTO, CON O SENZA CAPITALE INIZIALE A UN TASSO DI RIV CONOSCIUTO CHE MONTANTE AVRO' TRA X ANNI?",null,null,null,null,null,null,null,null,null,null,null,null,null,null,null,"INVESTENDO UN CAPITALE ANNUALE CONOSCIUTO, CON O SENZA CAPITALE INIZIALE A UN TASSO DI RIV CONOSCIUTO CHE MONTANTE AVRO' TRA X ANNI?",null,null,null,null,null,null,null,null,null,null,null,null,null,null,null,"INVESTENDO UN CAPITALE ANNUALE CONOSCIUTO, CON O SENZA CAPITALE INIZIALE A UN TASSO DI RIV CONOSCIUTO CHE MONTANTE AVRO' TRA X ANNI?",null,null,null,null,null,null,null,null,null,null,null,null,null,null,null,"INVESTENDO UN CAPITALE ANNUALE CONOSCIUTO, CON O SENZA CAPITALE INIZIALE A UN TASSO DI RIV CONOSCIUTO CHE MONTANTE AVRO' TRA X ANNI?",null,null,null,null,null,null,null,null,null,null,null,null,null,null,null,"INVESTENDO UN CAPITALE ANNUALE CONOSCIUTO, CON O SENZA CAPITALE INIZIALE A UN TASSO DI RIV CONOSCIUTO CHE MONTANTE AVRO' TRA X ANNI?",null,null,null,null,null,null,null,null,null,null,null,null,null,null,null,"INVESTENDO UN CAPITALE ANNUALE CONOSCIUTO, CON O SENZA CAPITALE INIZIALE A UN TASSO DI RIV CONOSCIUTO CHE MONTANTE AVRO' TRA X ANNI?",null,null,null,null,null,null,null,null,null,null,null,null,null,null,null,"INVESTENDO UN CAPITALE ANNUALE CONOSCIUTO, CON O SENZA CAPITALE INIZIALE A UN TASSO DI RIV CONOSCIUTO CHE MONTANTE AVRO' TRA X ANNI?",null,null,null,null,null,null,null,null,null,null,null,null,null,null,null,"INVESTENDO UN CAPITALE ANNUALE CONOSCIUTO, CON O SENZA CAPITALE INIZIALE A UN TASSO DI RIV CONOSCIUTO CHE MONTANTE AVRO' TRA X ANNI?",null,null,null,null,null,null,null,null,null,null,null,null,null,null,null,"INVESTENDO UN CAPITALE ANNUALE CONOSCIUTO, CON O SENZA CAPITALE INIZIALE A UN TASSO DI RIV CONOSCIUTO CHE MONTANTE AVRO' TRA X ANNI?",null,null,null,null,null,null,null,null,null,null,null,null,null,null,null,"INVESTENDO UN CAPITALE ANNUALE CONOSCIUTO, CON O SENZA CAPITALE INIZIALE A UN TASSO DI RIV CONOSCIUTO CHE MONTANTE AVRO' TRA X ANNI?",null,null,null,null,null,null,null,null,null,null,null,null,null,null,null,"INVESTENDO UN CAPITALE ANNUALE CONOSCIUTO, CON O SENZA CAPITALE INIZIALE A UN TASSO DI RIV CONOSCIUTO CHE MONTANTE AVRO' TRA X ANNI?",null,null,null,null,null,null,null,null,null,null,null,null,null,null,null,"INVESTENDO UN CAPITALE ANNUALE CONOSCIUTO, CON O SENZA CAPITALE INIZIALE A UN TASSO DI RIV CONOSCIUTO CHE MONTANTE AVRO' TRA X ANNI?",null,null,null,null,null,null,null,null,null,null,null,null,null,null,null,"INVESTENDO UN CAPITALE ANNUALE CONOSCIUTO, CON O SENZA CAPITALE INIZIALE A UN TASSO DI RIV CONOSCIUTO CHE MONTANTE AVRO' TRA X ANNI?",null,null,null,null,null,null,null,null,null,null,null,null,null,null,null,"INVESTENDO UN CAPITALE ANNUALE CONOSCIUTO, CON O SENZA CAPITALE INIZIALE A UN TASSO DI RIV CONOSCIUTO CHE MONTANTE AVRO' TRA X ANNI?",null,null,null,null,null,null,null,null,null,null,null,null,null,null,null,"INVESTENDO UN CAPITALE ANNUALE CONOSCIUTO, CON O SENZA CAPITALE INIZIALE A UN TASSO DI RIV CONOSCIUTO CHE MONTANTE AVRO' TRA X ANNI?",null,null,null,null,null,null,null,null,null,null,null,null,null,null,null,"INVESTENDO UN CAPITALE ANNUALE CONOSCIUTO, CON O SENZA CAPITALE INIZIALE A UN TASSO DI RIV CONOSCIUTO CHE MONTANTE AVRO' TRA X ANNI?",null,null,null,null,null,null,null,null,null,null,null,null,null,null,null,"INVESTENDO UN CAPITALE ANNUALE CONOSCIUTO, CON O SENZA CAPITALE INIZIALE A UN TASSO DI RIV CONOSCIUTO CHE MONTANTE AVRO' TRA X ANNI?",null,null,null,null,null,null,null,null,null,null,null,null,null,null,null,"INVESTENDO UN CAPITALE ANNUALE CONOSCIUTO, CON O SENZA CAPITALE INIZIALE A UN TASSO DI RIV CONOSCIUTO CHE MONTANTE AVRO' TRA X ANNI?",null,null,null,null,null,null,null,null,null,null,null,null,null,null,null,"INVESTENDO UN CAPITALE ANNUALE CONOSCIUTO, CON O SENZA CAPITALE INIZIALE A UN TASSO DI RIV CONOSCIUTO CHE MONTANTE AVRO' TRA X ANNI?",null,null,null,null,null,null,null,null,null,null,null,null,null,null,null,"INVESTENDO UN CAPITALE ANNUALE CONOSCIUTO, CON O SENZA CAPITALE INIZIALE A UN TASSO DI RIV CONOSCIUTO CHE MONTANTE AVRO' TRA X ANNI?",null,null,null,null,null,null,null,null,null,null,null,null,null,null,null,"INVESTENDO UN CAPITALE ANNUALE CONOSCIUTO, CON O SENZA CAPITALE INIZIALE A UN TASSO DI RIV CONOSCIUTO CHE MONTANTE AVRO' TRA X ANNI?",null,null,null,null,null,null,null,null,null,null,null,null,null,null,null,"INVESTENDO UN CAPITALE ANNUALE CONOSCIUTO, CON O SENZA CAPITALE INIZIALE A UN TASSO DI RIV CONOSCIUTO CHE MONTANTE AVRO' TRA X ANNI?",null,null,null,null,null,null,null,null,null,null,null,null,null,null,null,"INVESTENDO UN CAPITALE ANNUALE CONOSCIUTO, CON O SENZA CAPITALE INIZIALE A UN TASSO DI RIV CONOSCIUTO CHE MONTANTE AVRO' TRA X ANNI?",null,null,null,null,null,null,null,null,null,null,null,null,null,null,null,"INVESTENDO UN CAPITALE ANNUALE CONOSCIUTO, CON O SENZA CAPITALE INIZIALE A UN TASSO DI RIV CONOSCIUTO CHE MONTANTE AVRO' TRA X ANNI?"]
[]
[]
[]
["Avvertenza: I risultati di calcolo sono basati su procedure che utilizzano dati stimati dall'aderente e pertanto potrebbero non trovare conferma nel corso del rapporto. Quindi la posizione"]
["individuale maturata e la prestazione pensionistica corrispondente potrebbero risultare differenti da quelle riportate nel progetto esemplificativo individuale."]
[]
[null,null,null,null,null,null,null,"PROGETTO ESEMPLIFICATIVO INDIVIDUALE"]
[]
[]
[null,null,null,null,null,null,null,"CALCOLO RENDITE VITALIZIE"]
[]
[null,null,null,null,"PROPRIETA' INTELLETTUALE E REALIZZAZIONE DI GIUSEPPE NICOLETTI - E' VIETATA LA RIPRODUZIONE E/O COMMERCIALIZZAZIONE ANCHE PARZIALE "]

{"sheet":"TFR","index":1,"n_rows":23,"n_cols":16,"rows_kept":23,"cut":false,"hidden":false,"merged":[[22,2,22,15],[18,16,18,19],[18,8,18,10],[2,4,2,11],[15,2,15,6],[10,11,10,13],[9,12,9,14],[10,14,10,15],[5,2,5,6],[7,2,7,6],[9,2,9,6],[10,2,10,6],[12,2,12,6],[13,2,13,6]]}
[]
[]
[null,null,null,null,"CONVIENE INVESTIRE IL TFR IN UN FONDO O LASCIARLO IN AZIENDA?"]
[]
[]
[null,null,"RETRIBUZIONE ANNUALE INIZIALE",null,null,null,null,30000]
[]
[null,null,"% INCREMENTO ANNUO RETRIBUZIONE",null,null,null,null,2,"la percentuale inserita può essere modificata secondo stime individuali"]
[null,null,null,null,null,null,null,null,null,null,"ANNI"]
[null,null,"ANNO INIZIO INVESTIMENTO TFR NEL FONDO ",null,null,null,null,2014,null,null,{"$f":"+H11-H10+1","v":21},null,"TASSAZIONE"]
[null,null,"ANNO FINE INVESTIMENTO NEL FONDO",null,null,null,null,2034,null,null,null,"RISCATTO",null,null,"PENSIONAMENTO"]
[null,null,null,null,null,null,null,null,"O/W RIV","SOLO TFR",null,"FONDO","AZIENDA",null,"FONDO","AZIENDA"]
[null,null,"TFR YTD NEL FONDO",null,null,null,null,{"$f":"VLOOKUP(H11,CALCOLI1!$H$29:$U$59,5)","v":80101.606330570285},{"$f":"VLOOKUP(H11,CALCOLI1!$H$29:$U$59,14)","v":22805.345897467902},{"$f":"+H13-I13","v":57296.260433102383},null,0.23,{"$f":"+CALCOLI1!Q69/100","v":0.25058818558826434},null,{"$f":"VLOOKUP(K10,CALCOLI1!$H$72:$J$113,3)/100","v":0.13199999999999995},{"$f":"+M13","v":0.25058818558826434}]
[null,null,"TFR YTD IN AZIENDA",null,null,null,null,{"$f":"VLOOKUP(H11,CALCOLI1!$H$29:$U$59,4)","v":77983.756287311233},{"$f":"VLOOKUP(H11,CALCOLI1!$H$29:$U$59,13)","v":20687.49585420885},{"$f":"+H14-I14","v":57296.260433102383}]
[]
[null,null,"DELTA FONDO - AZIENDA",null,null,null,null,{"$f":"+H13-H14","v":2117.8500432590517},null,null,null,{"$f":"+M13-L13","v":2.0588185588264335E-2},null,null,{"$f":"+P13-O13","v":0.11858818558826439}]
[]
[]
[null,null,null,"<===== campi modificabili"]
[null,null,null,"<===== risultato",null,null,null,null,"<===== modifica facoltativa"]
[]
["ATTENZIONE: LE PERCENTUALI DI RIVALUTAZIONE DOPO IL 2013 SONO STIMATE CON INFLAZIONE CHE SI INCREMENTA DEL 2% ALL'ANNO E FONDO CHE SI MANTIENE STABILE AL 4% ANNUO"]
[null,null,"PROPRIETA' INTELLETTUALE E REALIZZAZIONE DI GIUSEPPE NICOLETTI - E' VIETATA LA RIPRODUZIONE E/O COMMERCIALIZZAZIONE ANCHE PARZIALE "]

{"sheet":"TCM","index":2,"n_rows":28,"n_cols":17,"rows_kept":28,"cut":false,"hidden":false,"merged":[[27,3,27,16],[24,10,24,12],[22,2,22,4],[18,2,18,17],[20,2,20,4],[21,2,21,4],[23,2,23,4],[20,10,20,12],[21,10,21,12],[22,10,22,12],[23,10,23,12],[4,2,4,4],[5,2,5,4],[6,2,6,4],[10,2,10,4],[11,2,11,4],[12,16,12,19],[8,16,8,19],[10,16,10,19],[15,16,15,19],[13,2,13,4]]}
[]
[]
[null,null,"TRA QUANTO TEMPO INVESTENDO UN CAPITALE NOTO A UN TASSO ANNUO DI RENDIMENTO NOTO POTRO' AVERE IL MONTANTE CHE MI SERVE?"]
[]
[null,null,"CAPITALE INVESTITO",null,null,5000,null,"anni","mesi","giorni"]
[null,null,"MONTANTE DESIDERATO",null,null,20000,null,{"$f":"+CALCOLI!H8","v":35},{"$f":"+CALCOLI!I8","v":4},{"$f":"+CALCOLI!J8","v":4}]
[null,null,"TASSO ANNUO RENDIMENTO",null,null,4]
[]
[null,null,"QUANTO CAPITALE DEVO INVESTIRE PER OTTENERE TRA X ANNI UN MONTANTE DESIDERATO?",null,null,null,null,null,null,null,null,null,null,null,null,null,"<===== dati modificabili"]
[]
[null,null,"MONTANTE DESIDERATO",null,null,20000,null,null,null,null,null,null,null,null,null,null,"<===== dati fissi"]
[null,null,"TASSO ANNUO RENDIMENTO",null,null,3]
[null,null,"PERIODO INVESTIMENTO ANNI",null,null,12,null,null,null,null,null,null,null,null,null,null,"<===== risultato"]
[null,null,"CAPITALE DA INVESTIRE",null,null,{"$f":"+CALCOLI!M8","v":14027.597603859465}]
[]
[null,null,null,null,null,null,null,null,null,null,null,null,null,null,null,null,"<===== modifica facoltativa"]
[]
[]
[null,null,"INVESTENDO UN CAPITALE ANNUALE CONOSCIUTO, CON O SENZA CAPITALE INIZIALE A UN TASSO DI RIV CONOSCIUTO CHE MONTANTE AVRO' TRA X ANNI?"]
[]
[null,null,"EVENTUALE CAPITALE INIZIALE",null,null,1000,null,null,null,{"$f":"IF(F26=0,0,VLOOKUP(F26,CALCOLI1!$L$74:$U$123,5))","v":4975.2995609129066},"MONTANTE FINALE"]
[null,null,"VERSAMENTO ANNUO",null,null,300,null,null,null,{"$f":"IF(F26=0,0,VLOOKUP(F26,CALCOLI1!$L$74:$V$123,11))","v":975.2995609129074},"RIVALUTAZIONE"]
[null,null,"INCREM VERSAMENTO ANNUO",null,null,0,"(*)",null,null,{"$f":"IF(F26=0,0,VLOOKUP(F26,CALCOLI1!$L$74:$W$123,12))","v":4000},"CAPITALE INVESTITO"]
[null,null,"TASSO ANNUO RENDIMENTO",null,null,3.5,null,null,null,0,"% CARICAMENTO"]
[null,null,"INCREMENTO ANNUO RIV",null,null,1,null,null,null,0.4,"% NON RETROC. SU RIV."]
[null,null,"ANNI INVESTIMENTO",null,null,10,null,null,null,"(*) la percentuale inserita può essere modificata secondo stime personali"]
[]
[null,null,null,"PROPRIETA' INTELLETTUALE E REALIZZAZIONE DI GIUSEPPE NICOLETTI - E' VIETATA LA RIPRODUZIONE E/O COMMERCIALIZZAZIONE ANCHE PARZIALE "]

{"sheet":"M&R","index":3,"n_rows":25,"n_cols":18,"rows_kept":25,"cut":false,"hidden":false,"merged":[[24,1,24,14],[13,6,13,7],[13,9,13,10],[7,9,7,10],[5,17,5,19],[19,15,19,18],[20,15,20,18],[21,15,21,18],[18,15,18,18],[15,10,15,11],[16,10,16,11],[1,1,1,3],[5,6,5,7],[5,9,5,10],[5,12,5,13],[11,17,11,19],[3,3,3,11]]}
[]
[]
[]
[null,null,null,"PROGETTO ESEMPLIFICATIVO PERSONALIZZATO",null,null,null,null,null,null,null,null,null,null,null,null,{"$f":"IF(O6-I6>0,O6-I6,0)","v":60},"< === età"]
[]
[null,"SESSO",null,"F","(M o F)",null,"ANNO DI NASCITA",null,1978,"ANNO INIZIO VERSAMENTI",null,2007,"ANNO FINE VERSAMENTI",null,2038,null,{"$f":"IF(O6-L6>0,O6-L6,0)","v":31},"< === anni versamenti"]
[]
[null,"RETRIBUZIONE ANNUALE",null,30000,null,null,"% INCR. RETRIB. ANNUA ",null,2,"TFR ANNUALE",null,{"$f":"+CALCOLI1!E11","v":2222.2222222222222},"% TFR ACCANTONATO",null,100,null,null,"<== campi modificabili"]
[]
[null,"CODICE AZIENDA",null,1,"(**)",null,"ANZIANITA' DI SERVIZIO ANNI",null,8,"CONTR VOLONTARIO INIZIO €",null,0,"% CONTRIB. SOLO PER EX S3 ",null,1.6,null,null,"<== modifica facoltativa"]
[]
[null,"% RIV FONDO",null,4,"(°)",null,"% CARICAMENTO",null,0.05,"% NON RETROCESSA SU RIV",null,{"$f":"0.4+CALCOLI1!AT5","v":0.55000000000000004},null,null,null,null,null,"<===== dati fissi"]
[]
[null,"CONTRIBUTI YTD",null,{"$f":"+CALCOLI1!E22","v":47199.766608847043},null,null,"TFR YTD",null,{"$f":"+CALCOLI1!E23","v":93234.769736396309},"TOT YTD CON RIV",null,{"$f":"+CALCOLI1!E24","v":190802.31627433709},"SOLO RIVALUTAZIONE",null,{"$f":"+CALCOLI1!E25","v":50367.77992909374},null,null,"<===== risultato"]
[null,"ULTIMA RETRIB PERCEPITA",null,{"$f":"+CALCOLI1!U7","v":96500.90554015922}]
[]
[]
[]
[null,"(**) 1=IBM/IBM SERV FIN/TOSHIBA/ACG/ SEM/Modis/HCL/DB2I; 3=ex S3"]
[null,"(*) valore calcolato su superstite di età UGUALE a quella dell'aderente "]
[null,"(^) tasso di sostituzione calcolato sull'ultima retribuzione lorda percepita"]
[null,"(°) percentuale modificabile in funzione del comparto da 1% a 4%"]
[]
[]
[null,"PROPRIETA' INTELLETTUALE E REALIZZAZIONE DI GIUSEPPE NICOLETTI - E' VIETATA LA RIPRODUZIONE E/O COMMERCIALIZZAZIONE ANCHE PARZIALE "]

{"sheet":"CALCOLI1","index":4,"n_rows":123,"n_cols":46,"rows_kept":123,"cut":false,"hidden":true,"merged":[[7,7,7,8],[61,7,61,9],[11,23,11,24],[11,26,11,27]]}
[]
[]
[null,null,"DETERMINAZIONE DELLA RENDITA IMMEDIATA, REVERSIBILE, CERTA PER 5 E 10 ANNI, CONTROASSICURATA CASO MORTE  ",null,null,null,null,null,null,null,null,null,null,null,null,null,"ETA' ALLA PENSIONE",null,{"$f":"IF($E$7-$E$5>0,$E$7-$E$5,0)","v":60},null,{"$f":"IF($E$4=\"M\",VLOOKUP($S$3,CALCOLI1!$X$13:$Y$102,2),VLOOKUP($S$3,CALCOLI1!$AA$13:$AB$100,2))","v":0},null,null,null,null,null,null,null,null,null,null,null,null,null,null,null,null,null,null,null,null,null,"calcolo over performance per M&R"]
[null,null,"SESSO",null,{"$f":"+'M&R'!D6","v":"F"},null,null,null,null,null,null,null,null,null,null,null,"RENDITA IMMEDIATA",null,null,null,"RETRIBUZIONE","TASSO SOST"]
[null,null,"ANNO DI NASCITA",null,{"$f":"IF('M&R'!I6>0,'M&R'!I6,0)","v":1978},null,null,{"$f":"TODAY()","v":"2018-05-02"},{"$f":"YEAR(H5)","v":2018},{"$f":"+I5-E5","v":40},"<=ETA'",null,null,null,null,null,"ETA' ALLA PENS+AGE SHIFTING",null,{"$f":"IF($E$7-$E$5>0,$E$7-$E$5+U3,0)","v":60},null,null,null,null,null,null,"RENDITA","VALORE","TASSO SOST.(^)",null,null,null,null,null,null,null,null,null,null,null,null,null,null,{"$f":"+'M&R'!D12","v":4},{"$f":"IF(AQ5>2.5,AQ5-2.5,0)","v":1.5},{"$f":"+AR5*10","v":15},{"$f":"+AS5*0.01","v":0.15}]
[null,null,"ANNO INIZIO VERSAMENTI",null,{"$f":"IF('M&R'!L6>0,'M&R'!L6,0)","v":2007},null,null,null,null,null,null,null,null,null,null,null,"PENSIONE COEFF",null,null,{"$f":"IF($E$4=\"M\",VLOOKUP($S$5,CALCOLI!$F$16:$H$36,2),VLOOKUP($S$5,CALCOLI!$F$16:$H$36,3))","v":3.27E-2},null,null,null,null,null,"ORDINARIA",{"$f":"+T7","v":6239.235742170823},{"$f":"+V7","v":6.4654685956022875E-2}]
[null,null,"ANNO FINE VERSAMENTI",null,{"$f":"IF('M&R'!O6>0,'M&R'!O6,0)","v":2038},null,null,{"$f":"+E7-E6","v":31},null,null,null,null,null,null,null,null,"VALORE PENSIONE ANNUA",null,null,{"$f":"+E24*T6","v":6239.235742170823},{"$f":"IF($S$5>0,VLOOKUP($S$5,CALCOLI!$A$41:$J$110,10),0)","v":96500.90554015922},{"$f":"+T7/U7","v":6.4654685956022875E-2},null,null,{"$f":"+AA6*73.53%","v":4587.7100412182062},"REVERSIBILE",{"$f":"+Y7","v":4587.7100412182062},{"$f":"+V11","v":4.7540590583463625E-2}]
[null,null,"ANZIANITA' DI SERVIZIO",null,{"$f":"+'M&R'!I10","v":8},null,null,"% INCR RETR ANNUALE",null,null,null,"% RIV FONDO",null,"% CARIC","% SU RIV",null,"RENDITA REVERSIBILE",null,null,null,null,null,null,null,null,"AL SUPERSTITE *",{"$f":"+U11","v":2752.6260247309237},{"$f":"+W11","v":2.8524354350078177E-2}]
[null,null,"RETRIBUZIONE ANNUALE",null,{"$f":"+'M&R'!D8","v":30000},null,null,{"$f":"+'M&R'!I8","v":2},{"$f":"IF(E9>46031,46031,E9)","v":30000},{"$f":"IF(I9<46031,0,E9-I9)","v":0},null,{"$f":"+'M&R'!D12","v":4},null,{"$f":"+'M&R'!I12","v":0.05},{"$f":"+'M&R'!L12+M12","v":0.70000000000000007},null,"ETA' ALLA PENS+AGE SHIFTING",null,{"$f":"+S5","v":60},null,"AL SUPERSTITE",null,null,null,{"$f":"+T15*99.29%","v":6189.2537398065469},"CERTA 5 ANNI",{"$f":"+Y9","v":6189.2537398065469},{"$f":"+V15","v":6.4136742605289496E-2}]
[null,null,"% INCREMENTO RETRIB",null,null,null,null,null,2,7,null,null,null,null,null,null,"PENSIONE COEFF",null,null,{"$f":"IF($E$4=\"M\",VLOOKUP($S$5,CALCOLI!$Z$5:$AB$25,2),VLOOKUP($S$5,CALCOLI!$Z$5:AJ$25,3))","v":2.9389999999999999E-2},null,null,null,null,{"$f":"+T19*97.11%","v":6031.1286098219844},"CERTA 10 ANNI",{"$f":"+Y10","v":6031.1286098219844},{"$f":"+V19","v":6.2498155598261274E-2}]
[null,null,"TFR ANNUALE",null,{"$f":"+E9/13.5","v":2222.2222222222222},null,null,null,{"$f":"+I9*I10%","v":600},{"$f":"+J9*J10%","v":0},{"$f":"+I11+J11","v":600},{"$f":"+L9-2.5","v":1.5},{"$f":"IF(L11>0,L11,0)","v":1.5},null,null,null,"VALORE PENSIONE ANNUA",null,null,{"$f":"+E24*T10","v":5607.6800753027674},{"$f":"+Y7*60%","v":2752.6260247309237},{"$f":"+Y7/U7","v":4.7540590583463625E-2},{"$f":"+U11/U7","v":2.8524354350078177E-2},null,{"$f":"+T23*85.56%","v":5015.0541866287977},"CONTROASSICURATA",{"$f":"+Y11","v":5015.0541866287977},{"$f":"+V23","v":5.1968985768136279E-2}]
[null,null,"% TFR ACCANTONATO",null,{"$f":"+'M&R'!O8","v":100},null,null,null,null,null,{"$f":"+K11/E9%","v":2},"over perf===>",{"$f":"+M11*10*0.01","v":0.15},null,"CTR DIR","CTR AZ","RENDITA CERTA 5 ANNI",null,null,null,null,null,null,"maschi",null,null,"femmine"]
[null,null,"TFR ACCANTONATO",null,{"$f":"+E11*E12%","v":2222.2222222222222},null,null,null,null,null,null,null,null,null,null,null,"ETA' ALLA PENS+AGE SHIFTING",null,{"$f":"+S9","v":60},null,null,null,null,0,-2,null,0,-2]
[null,null,"% CONTR DIP AL FONDO",null,{"$f":"+O19","v":3.25},null,null,null,0,null,63000,{"$f":"+K14-I14","v":63000},{"$f":"IF(E9>L14,L14,E9)","v":30000},{"$f":"+E9-M14","v":0},{"$f":"+M14*3.25%","v":975},{"$f":"+M14*2.89%","v":867.00000000000011},"PENSIONE COEFF",null,null,{"$f":"IF($E$4=\"M\",VLOOKUP($S$5,CALCOLI!$J$16:$L$36,2),VLOOKUP($S$5,CALCOLI!$J$16:$L$36,3))","v":3.2669999999999998E-2},null,null,null,{"$f":"1+X13","v":1},-2,null,{"$f":"1+AA13","v":1},-2]
[null,null,"%CONTR AZ AL FONDO",null,{"$f":"+P19","v":2.8900000000000006},null,null,null,63000.01,null,76411.460000000006,{"$f":"+K15-I15","v":13411.450000000004},{"$f":"IF(N14>=L15,L15,N14)","v":0},{"$f":"+N14-M15","v":0},{"$f":"+M15*5.95%","v":0},{"$f":"+M15*4.46%","v":0},"VALORE PENSIONE ANNUA",null,null,{"$f":"+E24*T14","v":6233.5116726825927},null,{"$f":"+Y9/U7","v":6.4136742605289496E-2},null,{"$f":"1+X14","v":2},-2,null,{"$f":"1+AA14","v":2},-2]
[null,null,"CONTRIBUTO DIPENDENTE",null,{"$f":"+O18","v":975},null,null,null,76411.47,null,87458.9,11047.429999999993,{"$f":"IF(N15>=L16,L16,N15)","v":0},{"$f":"+N15-M16","v":0},{"$f":"+M16*6.7%","v":0},{"$f":"+M16*5.03%","v":0},"RENDITA CERTA 10 ANNI",null,null,null,null,null,null,3,-2,null,3,-2]
[null,null,"CONTRIBUTO AZIENDA",null,{"$f":"+P18","v":867.00000000000011},null,null,null,87458.91,null,999999,912540.09,{"$f":"+N16","v":0},null,{"$f":"+M17*7.3%","v":0},{"$f":"+M17*5.48%","v":0},"ETA' ALLA PENS+AGE SHIFTING",null,{"$f":"+S13","v":60},null,null,null,null,4,-2,null,4,-2]
[null,null,"IMPORTO CONTR VOL",null,null,null,null,null,null,null,null,null,null,null,{"$f":"SUM(O14:O17)","v":975},{"$f":"SUM(P14:P17)","v":867.00000000000011},"PENSIONE COEFF",null,null,{"$f":"IF($E$4=\"M\",VLOOKUP($S$5,CALCOLI!$N$16:$P$36,2),VLOOKUP($S$5,CALCOLI!$N$16:$P$36,3))","v":3.2550000000000003E-2},null,null,null,5,-2,null,5,-2]
[null,null,"TOTALE",null,{"$f":"+E13+E16+E17+E18","v":4064.2222222222222},null,null,null,null,null,null,"ALIQUOTA MEDIA IBM TOSHIBA",null,null,{"$f":"+O18/E9%","v":3.25},{"$f":"+P18/E9%","v":2.8900000000000006},"VALORE PENSIONE ANNUA",null,null,{"$f":"+E24*T18","v":6210.6153947296725},null,{"$f":"+Y10/U7","v":6.2498155598261274E-2},null,6,-2,null,6,-2]
[null,null,"VERSAMENTO INIZIALE",null,{"$f":"+'M&R'!L10*99%","v":0},null,null,null,null,null,null,null,null,null,null,null,"RENDITA CONTRASSICURATA",null,null,null,null,null,null,7,-2,null,7,-2]
[null,null,null,null,null,null,null,null,null,null,null,null,null,null,null,null,"ETA' ALLA PENS+AGE SHIFTING",null,{"$f":"+S17","v":60},null,null,null,null,8,-2,null,8,-2]
[null,null,"VERSAMENTI YTD",null,{"$f":"IF(H7>0,VLOOKUP(H7,CALCOLI!$A$41:$I$110,9),0)","v":47199.766608847043},null,null,null,null,null,null,null,null,null,null,null,"PENSIONE COEFF",null,null,{"$f":"IF($E$4=\"M\",VLOOKUP($S$5,CALCOLI!$R$16:$T$36,2),VLOOKUP($S$5,CALCOLI!$R$16:$T$36,3))","v":3.0720000000000001E-2},null,null,null,9,-2,null,9,-2]
[null,null,"TFR YTD",null,{"$f":"IF(H7>0,VLOOKUP(H7,CALCOLI!$A$41:$H$110,6),0)","v":93234.769736396309},null,null,null,null,null,null,null,null,null,null,null,"VALORE PENSIONE ANNUA",null,null,{"$f":"+E24*T22","v":5861.447155947636},null,{"$f":"+Y11/U7","v":5.1968985768136279E-2},null,10,-2,null,10,-2]
[null,null,"TOT YTD CON RIV",null,{"$f":"IF(H7>0,VLOOKUP(H7,CALCOLI!$A$41:$H$110,8),0)","v":190802.31627433709},null,null,null,null,null,null,null,null,null,null,null,null,null,null,null,null,null,null,11,-2,null,11,-2]
[null,null,"SOLO RIV",null,{"$f":"+E24-E23-E22","v":50367.77992909374},null,null,null,null,null,null,{"$f":"+TFR!H8+100","v":102},null,null,null,null,null,null,null,null,null,null,null,12,-2,null,12,-2]
[null,null,null,null,null,null,null,null,{"$f":"+TFR!H6","v":30000},null,null,null,null,null,null,null,null,null,null,null,null,null,null,13,-2,null,13,-2]
[null,null,"RETRIBUZIONE","IN","ANNI",null,null,"ANNI","RETR ANNUALE","TFR","TFRYTD ISTAT","TFRYTD FONDO","CAP+RIV","RIV ISTAT","RIV FONDO",null,"RIV ISTAT","RIV TFR",null,"ytd riv istat","ytd riv fondo",null,null,14,-2,null,14,-2]
[null,null,{"$f":"IF(D28<>0,0,$I$26)","v":0},{"$f":"+TFR!$H$10-E28","v":7},2007,null,null,null,{"$f":"+C28","v":0},{"$f":"+I28/13.5","v":0},{"$f":"+J28","v":0},null,null,null,null,null,null,null,null,null,null,null,null,15,-2,null,15,-2]
[null,null,{"$f":"IF(D29<>0,0,$I$26)","v":0},{"$f":"+TFR!$H$10-E29","v":6},2008,null,null,2008,{"$f":"IF(I28=0,C29,+I28*$L$25/100)","v":0},{"$f":"+I29/13.5","v":0},{"$f":"+J29+K28+Q29","v":0},{"$f":"+K28+J29+R29","v":0},null,3.03,4.3600000000000003,null,{"$f":"+K28*N29%","v":0},{"$f":"+K28*O29%","v":0},null,{"$f":"+Q29","v":0},{"$f":"+R29","v":0},null,null,16,-2,null,16,-2]
[null,null,{"$f":"IF(D30<>0,0,$I$26)","v":0},{"$f":"+TFR!$H$10-E30","v":5},2009,null,null,2009,{"$f":"IF(I29=0,C30,+I29*$L$25/100)","v":0},0,0,{"$f":"+L29+J30+R30","v":0},null,2.2200000000000002,4.24,null,0,{"$f":"+L29*O30%","v":0},null,{"$f":"+Q30+T29","v":0},{"$f":"+R30+U29","v":0},null,null,17,-2,null,17,-2]
[null,null,{"$f":"IF(D31<>0,0,$I$26)","v":0},{"$f":"+TFR!$H$10-E31","v":4},2010,null,null,2010,{"$f":"IF(I30=0,C31,+I30*$L$25/100)","v":0},0,0,{"$f":"+L30+J31+R31","v":0},null,2.93,3.8,null,0,{"$f":"+L30*O31%","v":0},null,{"$f":"+Q31+T30","v":0},{"$f":"+R31+U30","v":0},null,null,18,-2,null,18,-2]
[null,null,0,{"$f":"+TFR!$H$10-E32","v":3},2011,null,null,2011,0,0,0,{"$f":"+L31+J32+R32","v":0},null,3.88,4.01,null,0,{"$f":"+L31*O32%","v":0},null,0,0,null,null,19,-2,null,19,-2]
[null,null,0,{"$f":"+TFR!$H$10-E33","v":2},2012,null,null,2012,0,0,0,{"$f":"+L32+J33+R33","v":0},null,3.3,3.83,null,0,{"$f":"+L32*O33%","v":0},null,0,0,null,null,20,-2,null,20,-2]
[null,null,0,{"$f":"+TFR!$H$10-E34","v":1},2013,null,null,2013,0,0,0,{"$f":"+L33+J34+R34","v":0},null,1.92,3.91,null,0,{"$f":"+L33*O34%","v":0},null,0,0,null,null,21,-2,null,21,-2]
[null,null,30000,{"$f":"+TFR!$H$10-E35","v":0},2014,null,null,2014,30000,2222.2222222222222,{"$f":"+J35+K34+Q35","v":2222.2222222222222},{"$f":"+L34+J35+R35","v":2222.2222222222222},null,{"$f":"0.21+1.5","v":1.71},3.9,null,{"$f":"+K34*N35%","v":0},{"$f":"+L34*O35%","v":0},null,0,0,null,null,22,-2,null,22,-2]
[null,null,0,{"$f":"+TFR!$H$10-E36","v":-1},{"$f":"+E35+1","v":2015},null,null,{"$f":"+H35+1","v":2015},30600,2266.6666666666665,{"$f":"+J36+K35+Q36","v":4533.333333333333},4577.7777777777774,null,2,4,null,44.444444444444443,88.888888888888886,null,44.444444444444443,88.888888888888886,null,null,23,-2,null,23,-2]
[null,null,0,{"$f":"+TFR!$H$10-E37","v":-2},{"$f":"+E36+1","v":2016},null,null,{"$f":"+H36+1","v":2016},31212,2312,6954.1333333333332,7033.0622222222219,null,2.4,3.13,null,108.8,143.28444444444443,null,153.24444444444444,232.17333333333332,null,null,24,-2,null,24,-2]
[null,null,0,{"$f":"+TFR!$H$10-E38","v":-3},2017,null,null,2017,31836.240000000002,2358.2400000000002,9507.0890666666655,9609.3271511111107,null,2.8,3.1,null,194.7157333333333,218.02492888888887,null,347.96017777777774,450.19826222222218,null,null,25,-2,null,25,-2]
[null,null,0,{"$f":"+TFR!$H$10-E39","v":-4},2018,null,null,2018,32472.964800000002,2405.4048000000003,12216.720716799999,12346.253737824445,null,3.2,{"$f":"4-0.55","v":3.45},null,304.2268501333333,331.52178671333337,null,652.18702791111104,781.7200489355555,null,null,26,-2,null,26,-2]
[null,null,0,{"$f":"+TFR!$H$10-E40","v":-5},2019,null,null,2019,33122.424096000002,2453.5128960000002,15061.168675737599,15225.712387779389,null,3.2,{"$f":"4-0.55","v":3.45},null,390.93506293759998,425.94575395494337,null,1043.122090848711,1207.665802890499,null,null,27,-2,null,27,-2]
[null,null,0,{"$f":"+TFR!$H$10-E41","v":-6},2020,null,null,2020,33784.872577920003,2502.5831539200003,18045.709227281201,18253.582619077781,null,3.2,3.45,null,481.95739762360319,525.28707737838897,null,1525.0794884723141,1732.9528802688878,null,null,28,-2,null,28,-2]
[null,null,0,{"$f":"+TFR!$H$10-E42","v":-7},2021,null,null,2021,34460.570029478404,2552.6348169984003,21175.806739552601,21435.966036434365,null,3.2,3.45,null,577.46269527299842,629.74860035818347,null,2102.5421837453123,2362.7014806270713,null,null,29,-2,null,29,-2]
[null,null,0,{"$f":"+TFR!$H$10-E43","v":-8},2022,null,null,2022,35149.781430067967,2603.6875133383678,24457.120068556655,24779.194378029719,null,3.2,3.45,null,677.62581566568326,739.54082825698572,null,2780.1679994109954,3102.2423088840569,null,null,30,-2,null,30,-2]
[null,null,0,{"$f":"+TFR!$H$10-E44","v":-9},2023,null,null,2023,35852.77705866933,2655.7612636051354,27895.5091743556,28289.837847676878,null,3.2,3.45,null,782.62784219381297,854.88220604202536,null,3562.7958416048086,3957.1245149260822,null,null,31,-2,null,31,-2]
[null,null,0,{"$f":"+TFR!$H$10-E45","v":-10},2024,null,null,2024,36569.832599842717,2708.8764888772384,31497.04195681222,31974.713742298969,null,3.2,3.45,null,892.65629357937928,975.99940574485231,null,4455.4521351841877,4933.1239206709342,null,null,32,-2,null,32,-2]
[null,null,0,{"$f":"+TFR!$H$10-E46","v":-11},2025,null,null,2025,37301.22925183957,2763.0540186547828,35268.001318084993,35840.895385063064,null,3.2,3.45,null,1007.9053426179911,1103.1276241093144,null,5463.3574778021784,6036.2515447802489,null,null,33,-2,null,33,-2]
[null,null,0,{"$f":"+TFR!$H$10-E47","v":-12},2026,null,null,2026,38047.253836876356,2818.3150990278782,39214.892459291594,39895.721374875618,null,3.2,3.45,null,1128.5760421787197,1236.5108907846759,null,6591.9335199808984,7272.762435564925,null,null,34,-2,null,34,-2]
[null,null,0,{"$f":"+TFR!$H$10-E48","v":-13},2027,null,null,2027,38808.198913613887,2874.6814010084363,43344.45041899736,44146.805163317265,null,3.2,3.45,null,1254.8765586973311,1376.402387433209,null,7846.8100786782297,8649.1648229981347,null,null,35,-2,null,35,-2]
[null,null,0,{"$f":"+TFR!$H$10-E49","v":-14},2028,null,null,2028,39584.362891886165,2932.175029028605,47663.647861433885,48602.044970480318,null,3.2,3.45,null,1387.0224134079156,1523.0647781344458,null,9233.8324920861451,10172.22960113258,null,null,36,-2,null,36,-2]
[null,null,0,{"$f":"+TFR!$H$10-E50","v":-15},2029,null,null,2029,40376.050149723887,2990.8185296091769,52179.703122608946,53269.634051571062,null,3.2,3.45,null,1525.2367315658844,1676.7705514815711,null,10759.06922365203,11849.000152614151,null,null,37,-2,null,37,-2]
[null,null,0,{"$f":"+TFR!$H$10-E51","v":-16},2030,null,null,2030,41183.571152718367,3050.6349002013603,56900.088522733793,58158.071326551624,null,3.2,3.45,null,1669.7504999234864,1837.8023747792017,null,12428.819723575516,13686.802527393353,null,null,38,-2,null,38,-2]
[null,null,0,{"$f":"+TFR!$H$10-E52","v":-17},2031,null,null,2031,42007.242575772732,3111.6475982053876,61832.538953666663,63276.172385523045,null,3.2,3.45,null,1820.8028327274815,2006.4534607660312,null,14249.622556302998,15693.255988159384,null,null,39,-2,null,39,-2]
[null,null,0,{"$f":"+TFR!$H$10-E53","v":-18},2032,null,null,2032,42847.387427288195,3173.880550169496,66985.060750353485,68633.08088299309,null,3.2,3.45,null,1978.6412465173332,2183.0279473005453,null,16228.263802820331,17876.283935459931,null,null,40,-2,null,40,-2]
[null,null,0,{"$f":"+TFR!$H$10-E54","v":-19},2033,null,null,2033,43704.335175833963,3237.358161172886,72365.940855537687,74238.280334629235,null,3.2,3.45,null,2143.5219440113115,2367.8412904632619,null,18371.785746831643,20244.125225923191,null,null,41,-2,null,41,-2]
[null,null,0,{"$f":"+TFR!$H$10-E55","v":-20},2034,null,null,2034,44578.421879350644,3302.1053243963438,77983.756287311233,80101.606330570285,null,3.2,3.45,null,2315.710107377206,2561.2206715447087,null,20687.49585420885,22805.345897467902,null,null,42,-2,null,42,-2]
[null,null,0,{"$f":"+TFR!$H$10-E56","v":-21},2035,null,null,2035,45469.990316937656,3368.1474308842708,83847.383919389467,86233.259179859233,null,3.2,3.45,null,2495.4802011939596,2763.5054184046749,null,23182.976055402811,25568.851315872576,null,null,43,-2,null,43,-2]
[null,null,0,{"$f":"+TFR!$H$10-E57","v":-22},2036,null,null,2036,46379.390123276411,3435.5103795019563,89966.01058431188,92643.817001066331,null,3.2,3.45,null,2683.1162854204631,2975.0474417051437,null,25866.092340823274,28543.898757577721,null,null,44,-2,null,44,-2]
[null,null,0,{"$f":"+TFR!$H$10-E58","v":-23},2037,null,null,2037,47306.977925741943,3504.2205870919956,96349.143510101858,99344.249274695117,null,3.2,3.45,null,2878.9123386979804,3196.2116865367889,null,28745.004679521255,31740.110444114511,null,null,45,-2,null,45,-2]
[null,null,0,{"$f":"+TFR!$H$10-E59","v":-24},2038,null,null,2038,48253.117484256785,3574.3049988338357,103006.62110125895,106345.93087350593,null,3.2,3.45,null,3083.1725923232593,3427.3765999769817,null,31828.177271844514,35167.487044091489,null,null,46,-2,null,46,-1]
[null,null,null,null,null,null,null,null,null,null,null,null,null,null,null,null,null,null,null,null,null,null,null,47,-2,null,47,-1]
[null,null,null,null,null,null,null,null,null,null,null,null,"ANNI","TFR","RR",null,null,null,null,null,null,null,null,48,-1,null,48,-1]
[null,null,null,null,null,null,null,"SCAGLIONI",null,null,"ALIQUOTE","RESIDUI",null,null,null,null,"IMPOSTE",null,null,null,null,null,null,49,-1,null,49,-1]
[null,null,null,null,null,null,null,0,26000,26000,23,{"$f":"IF(O63>I63,I63,O63)","v":26000},{"$f":"+TFR!K10","v":21},{"$f":"+TFR!J13","v":57296.260433102383},{"$f":"+N63*144/(M63*12)","v":32740.720247487076},null,{"$f":"+L63*K63%","v":5980},null,null,null,null,null,null,50,-1,null,50,-1]
[null,null,null,null,null,null,null,26000.01,{"$f":"+J64-H64","v":28999.99},55000,33,{"$f":"IF(O64>I64,I64,O64)","v":6740.7202474870755},null,null,{"$f":"IF(O63>L63,O63-L63,0)","v":6740.7202474870755},null,{"$f":"+L64*K64%","v":2224.4376816707349},null,null,null,null,null,null,51,-1,null,51,-1]
[null,null,null,null,null,null,null,55000.01,{"$f":"+J65-H65","v":44999.99},100000,39,{"$f":"IF(O65>I65,I65,O65)","v":0},null,null,{"$f":"IF(O64>L64,O64-L64,0)","v":0},null,{"$f":"+L65*K65%","v":0},null,null,null,null,null,null,52,-1,null,52,-1]
[null,null,null,null,null,null,null,100000.01,{"$f":"+J66-H66","v":899998.99},999999,43,{"$f":"IF(O66>I66,I66,O66)","v":0},null,null,{"$f":"IF(O65>L65,O65-L65,0)","v":0},null,{"$f":"+L66*K66%","v":0},null,null,null,null,null,null,53,-1,null,53,-1]
[null,null,null,null,null,null,null,null,null,null,null,null,null,null,null,null,{"$f":"SUM(Q63:Q66)","v":8204.4376816707354},null,null,null,null,null,null,54,-1,null,54,-1]
[null,null,null,null,null,null,null,null,null,null,null,null,null,null,null,null,null,null,null,null,null,null,null,55,-1,null,55,-1]
[null,null,null,null,null,null,null,null,null,null,null,null,null,null,"% MEDIA",null,{"$f":"+Q67/O63*100","v":25.058818558826434},null,null,null,null,null,null,56,-1,null,56,0]
[null,null,null,null,null,null,null,null,"TASSAZIONE FONDO PER PENSIONAMENTO",null,null,null,null,null,null,null,null,null,null,null,null,null,null,57,-1,null,57,0]
[null,null,null,null,null,null,null,null,null,null,null,null,null,null,null,null,null,null,null,null,null,null,null,58,0,null,58,0]
[null,null,null,null,null,null,null,1,null,15,null,null,null,null,null,null,null,null,null,null,null,null,null,59,0,null,59,0]
[null,null,null,null,null,null,null,{"$f":"1+H72","v":2},null,15,null,"ANNI","EVENTUALE CAPITALE INIZIALE","VERSAMENTO ANNUALE","INCREMENTO ANNUALE DEL VERSAMENTO","MONTANTE ANNUALE","RIVALUTAZIONE ANNUALE","EVENTUALE INCREMENTO RIVALUTAZIONE ANNUALE",null,"VERSAMENTO INCREMENTATO","RIVALUTAZIONE",null,null,60,0,null,60,0]
[null,null,null,null,null,null,null,{"$f":"1+H73","v":3},null,15,null,1,{"$f":"+TCM!F21","v":1000},{"$f":"+TCM!F22","v":300},{"$f":"+TCM!F23/100","v":0},{"$f":"((+M74+N74)+U74)","v":1339.8969999999999},{"$f":"+TCM!F24/100-TCM!J25/100","v":3.1000000000000003E-2},{"$f":"+TCM!F25/100","v":0.01},null,{"$f":"N74+N74*O74","v":300},{"$f":"(N74+M74)*99%*Q74","v":39.897000000000006},null,{"$f":"+M74+N74","v":1300},61,0,null,61,0]
[null,null,null,null,null,null,null,4,null,15,null,{"$f":"+L74+1","v":2},null,{"$f":"+T74","v":300},null,{"$f":"+P74+U75+N75","v":1691.24217507},{"$f":"Q74+Q74*$R$74","v":3.1310000000000004E-2},null,null,{"$f":"N75+N75*$O$74","v":300},{"$f":"(N75+M75+P74)*Q75","v":51.345175070000003},{"$f":"+U75+U74","v":91.242175070000002},{"$f":"+M75+N75+W74","v":1600},62,0,null,62,0]
[null,null,null,null,null,null,null,5,null,15,null,{"$f":"+L75+1","v":3},null,{"$f":"+T75","v":300},null,{"$f":"+P75+U76+N76","v":2054.2114254964563},{"$f":"Q75+Q75*$R$74","v":3.1623100000000001E-2},null,null,{"$f":"N76+N76*$O$74","v":300},{"$f":"(N76+M76+P75)*Q76","v":62.969250426456121},{"$f":"+U76+V75","v":154.21142549645612},{"$f":"+M76+N76+W75","v":1900},63,0,null,63,0]
[null,null,null,null,null,null,null,6,null,15,null,4,null,300,null,2429.4033634593693,3.1939331000000001E-2,null,null,300,75.191937962913158,{"$f":"+U77+V76","v":229.40336345936927},2200,64,0,null,64,0]
[null,null,null,null,null,null,null,7,null,15,null,5,null,300,null,2817.4504340919916,3.225872431E-2,null,null,300,{"$f":"N78*Q78+M78*Q78+P77*Q78","v":88.047070632622521},317.45043409199178,2500,65,0,null,65,0]
[null,null,null,null,null,null,null,8,null,15,null,6,null,300,null,3219.0210579364898,3.2581311553099998E-2,null,null,300,101.57062384449802,419.0210579364898,2800,{"$f":"1+X78","v":66},0,null,{"$f":"1+AA78","v":66},0]
[null,null,null,null,null,null,null,9,null,15,null,7,null,300,null,3634.8219226015435,3.2907124668631001E-2,null,null,300,115.80086466505382,534.82192260154363,3100,67,0,null,67,0]
[null,null,null,null,null,null,null,10,null,15,null,8,null,300,null,4065.6004349130139,3.3236195915317311E-2,null,null,300,130.77851231147042,665.60043491301406,3400,68,0,null,68,0]
[null,null,null,null,null,null,null,11,null,15,null,9,null,300,null,4512.1473457692045,3.3568557874470481E-2,null,null,300,146.546910856191,812.147345769205,3700,69,0,null,69,1]
[null,null,null,null,null,null,null,12,null,15,null,10,null,300,null,4975.2995609129066,3.3904243453215188E-2,null,null,300,163.15221514370239,975.2995609129074,4000,70,0,null,70,1]
[null,null,null,null,null,null,null,13,null,15,null,11,null,300,null,5455.9431519207556,3.4243285887747339E-2,null,null,300,180.64359100784867,1155.943151920756,4300,71,1,null,71,1]
[null,null,null,null,null,null,null,14,null,15,null,12,null,300,null,5955.0165828946483,3.4585718746624812E-2,null,null,300,199.07343097389239,1355.0165828946483,4600,72,1,null,72,1]
[null,null,null,null,null,null,null,15,null,15,null,13,null,300,null,6473.5141696290311,3.4931575934091061E-2,null,null,300,218.49758673438322,1573.5141696290316,4900,73,1,null,73,1]
[null,null,null,null,null,null,null,16,null,{"$f":"+J86-0.3","v":14.7},null,14,null,300,null,7012.48978943164,3.5280891693431973E-2,null,null,300,238.97561980260866,1812.4897894316402,5200,74,1,null,74,1]
[null,null,null,null,null,null,null,17,null,{"$f":"+J87-0.3","v":14.399999999999999},null,15,null,300,null,7573.0608613046079,3.563370061036629E-2,null,null,300,260.57107187296748,2073.0608613046079,5500,75,1,null,75,1]
[null,null,null,null,null,null,null,18,null,14.099999999999998,null,16,null,300,null,8156.412617859718,3.5990037616469954E-2,null,null,300,283.35175655511017,2356.412617859718,5800,76,1,null,76,1]
[null,null,null,null,null,null,null,19,null,13.799999999999997,null,17,null,300,null,8763.8026921590517,3.6349937992634654E-2,null,null,300,307.390074299334,2663.8026921590522,6100,77,1,null,77,1]
[null,null,null,null,null,null,null,20,null,13.499999999999996,null,18,null,300,null,9396.5660446548827,3.6713437372560997E-2,null,null,300,332.76335249583116,2996.5660446548832,6400,78,1,null,78,2]
[null,null,null,null,null,null,null,21,null,13.199999999999996,null,19,null,300,null,10056.120257566316,3.7080571746286609E-2,null,null,300,359.55421291143193,3356.1202575663151,6700,79,1,null,79,2]
[null,null,null,null,null,null,null,22,null,12.899999999999995,null,20,null,300,null,10743.971226392414,3.7451377463749477E-2,null,null,300,387.85096882609855,3743.9712263924139,7000,80,2,null,80,2]
[null,null,null,null,null,null,null,23,null,12.599999999999994,null,21,null,300,null,11461.719280841808,3.782589123838697E-2,null,null,300,417.74805444939466,4161.7192808418085,7300,81,2,null,81,2]
[null,null,null,null,null,null,null,24,null,12.299999999999994,null,22,null,300,null,12211.065770278305,3.8204150150770839E-2,null,null,300,449.34648943649682,4611.0657702783055,7600,82,2,null,82,2]
[null,null,null,null,null,null,null,25,null,11.999999999999993,null,23,null,300,null,12993.820151864526,3.8586191652278549E-2,null,null,300,482.75438158622063,5093.8201518645265,7900,83,2,null,83,2]
[null,null,null,null,null,null,null,26,null,11.699999999999992,null,24,null,300,null,13811.907622957,3.8972053568801332E-2,null,null,300,518.08747109247497,5611.9076229570019,8200,84,2,null,84,2]
[null,null,null,null,null,null,null,27,null,11.399999999999991,null,25,null,300,null,14667.377342995254,3.9361774104489343E-2,null,null,300,555.46972003825465,6167.3773429952562,8500,85,2,null,85,2]
[null,null,null,null,null,null,null,28,null,11.099999999999991,null,26,null,300,null,15562.411294166002,3.9755391845534234E-2,null,null,300,595.0339511707474,6762.4112941660032,8800,86,2,null,86,2]
[null,null,null,null,null,null,null,29,null,10.79999999999999,null,27,null,300,null,16499.333834546745,4.0152945763989575E-2,null,null,300,636.92254038074316,7399.3338345467464,9100,87,2,null,87,2]
[null,null,null,null,null,null,null,30,null,10.499999999999989,null,28,null,300,null,17480.622002279753,4.0554475221629471E-2,null,null,300,681.28816773300764,8080.6220022797543,9400,88,2]
[null,null,null,null,null,null,null,31,null,10.199999999999989,null,29,null,300,null,18508.916634640533,4.0960019973845768E-2,null,null,300,728.29463236078027,8808.9166346405345,9700,89,2]
[null,null,null,null,null,null,null,32,null,9.8999999999999879,null,30,null,300,null,19587.034371692222,4.1369620173584226E-2,null,null,300,778.11773705168889,9587.0343716922234,10000]
[null,null,null,null,null,null,null,33,null,9.5999999999999872,null,31,null,300,null,20717.980620611503,4.1783316375320068E-2,null,null,300,830.94624891928072,10417.980620611504,10300]
[null,null,null,null,null,null,null,34,null,9.2999999999999865,null,32,null,300,null,21904.963563791272,4.2201149539073265E-2,null,null,300,886.98294317977002,11304.963563791274,10600]
[null,null,null,null,null,null,null,35,null,8.9999999999999858,null,33,null,300,null,23151.409301535154,4.2623161034464001E-2,null,null,300,946.44573774388107,12251.409301535155,10900]
[null,null,null,null,null,null,null,36,null,9,null,34,null,300,null,24460.978228631058,4.3049392644808643E-2,null,null,300,1009.5689270959044,13260.97822863106,11200]
[null,null,null,null,null,null,null,37,null,9,null,35,null,300,null,25837.582753405295,4.3479886571256732E-2,null,null,300,1076.6045247742359,14337.582753405295,11500]
[null,null,null,null,null,null,null,38,null,9,null,36,null,300,null,27285.406478103843,4.3914685436969296E-2,null,null,300,1147.8237246985475,15485.406478103843,11800]
[null,null,null,null,null,null,null,39,null,9,null,37,null,300,null,28808.924970722077,4.435383229133899E-2,null,null,300,1223.5184926182342,16708.924970722077,12100]
[null,null,null,null,null,null,null,40,null,9,null,38,null,300,null,30412.928270817978,4.4797370614252381E-2,null,null,300,1304.0033000959027,18012.928270817978,12400]
[null,null,null,null,null,null,null,41,null,9,null,39,null,300,null,32102.545285518729,4.5245344320394905E-2,null,null,300,1389.6170147007504,19402.545285518729,12700]
[null,null,null,null,null,null,null,42,null,9,null,40,null,300,null,33883.27024700222,4.5697797763598856E-2,null,null,300,1480.7249614834884,20883.270247002216,13000]
[null,null,null,null,null,null,null,null,null,null,null,41,null,300,null,35760.991419354636,4.6154775741234846E-2,null,null,300,1577.7211723524131,22460.991419354628,13300]
[null,null,null,null,null,null,null,null,null,null,null,42,null,300,null,37742.022261041209,4.6616323498647194E-2,null,null,300,1681.0308416865762,24142.022261041206,13600]
[null,null,null,null,null,null,null,null,null,null,null,43,null,300,null,39833.135269467275,4.7082486733633667E-2,null,null,300,1791.1130084260692,25933.135269467275,13900]
[null,null,null,null,null,null,null,null,null,null,null,44,null,300,null,42041.598756460131,4.7553311600970004E-2,null,null,300,1908.4634869928566,27841.598756460131,14200]
[null,null,null,null,null,null,null,null,null,null,null,45,null,300,null,44375.216828202814,4.8028844716979706E-2,null,null,300,2033.6180717426848,29875.216828202814,14500]
[null,null,null,null,null,null,null,null,null,null,null,46,null,300,null,46842.37287045936,4.8509133164149502E-2,null,null,300,2167.1560422565431,32042.372870459356,14800]
[null,null,null,null,null,null,null,null,null,null,null,47,null,300,null,49452.076870138932,4.8994224495790994E-2,null,null,300,2309.7039996795729,34352.076870138932,15100]
[null,null,null,null,null,null,null,null,null,null,null,48,null,300,null,52214.016937679444,4.9484166740748903E-2,null,null,300,2461.9400675405118,36814.016937679444,15400]
[null,null,null,null,null,null,null,null,null,null,null,49,null,300,null,55138.615431753795,4.9979008408156389E-2,null,null,300,2624.5984940743479,39438.615431753795,15700]
[null,null,null,null,null,null,null,null,null,null,null,50,null,300,null,58237.090128821968,5.047879849223795E-2,null,null,300,2798.4746970681726,42237.090128821968,16000]

{"sheet":"CALCOLI","index":5,"n_rows":113,"n_cols":56,"rows_kept":113,"cut":false,"hidden":true,"merged":[[1,24,1,29],[11,21,11,23],[0,14,0,16],[0,17,0,19],[37,2,37,5],[5,10,5,11],[6,10,6,11],[3,10,3,11],[4,10,4,11],[7,2,7,3],[8,2,8,3],[11,9,11,11],[11,13,11,15],[11,17,11,19],[34,2,34,3],[11,4,11,8]]}
[]
[null,null,null,null,null,null,null,null,null,null,null,null,null,null,null,null,null,null,null,null,null,null,null,null,"RENDITA REVERSIBILE SU ASSICURATO DI PARI ETA' E SESSO DIVERSO"]
[null,null,null,null,null,null,null,null,null,null,null,null,null,null,null,null,null,null,null,null,null,null,null,null,null,"Età","Maschi","Femmine"]
[null,null,"capitale iniziale",null,{"$f":"+TCM!F5","v":5000},null,{"$f":"+F8*F9","v":1.0255092110509951E-2},null,null,null,"capitale iniziale",null,{"$f":"+M8","v":14027.597603859465}]
[null,null,"montante desiderato",null,{"$f":"+TCM!F6","v":20000},null,null,null,{"$f":"+G8-H8","v":0.34597537025939573},{"$f":"+I6-I8","v":0.15170444311274878},"montante desiderato",null,{"$f":"+TCM!F11","v":20000},null,null,null,null,null,null,null,null,null,null,null,null,50,2.274E-2,2.274E-2]
[null,null,"% per int composto annuo",null,{"$f":"+TCM!F7","v":4},null,null,null,{"$f":"+I5*12","v":4.1517044431127488},{"$f":"+J5*30","v":4.5511332933824633},"interesse composto annuo",null,{"$f":"+TCM!F12","v":3},null,null,null,null,null,null,null,null,null,null,null,null,{"$f":"1+Z5","v":51},2.3269999999999999E-2,2.3269999999999999E-2]
[null,null,null,null,null,"log","periodo","anni","mesi","giorni","anni da oggi",null,{"$f":"+TCM!F13","v":12},null,null,null,null,null,null,null,null,null,null,null,null,{"$f":"1+Z6","v":52},2.383E-2,2.383E-2]
[null,null,"numeratore",null,{"$f":"IF(E5=0,0,E5/E4)","v":4},{"$f":"IF(E8=0,0,+LOG(E8))","v":0.6020599913279624},{"$f":"IF(G4=0,0,+F8/F9)","v":35.345975370259396},{"$f":"INT(G8)","v":35},{"$f":"INT(I6)","v":4},{"$f":"INT(J6)","v":4},null,null,{"$f":"+M5*(1+M6/100)^-M7","v":14027.597603859465},null,null,null,null,null,null,null,null,null,null,null,null,53,2.4410000000000001E-2,2.4410000000000001E-2]
[null,null,"denominatore",null,{"$f":"1+E6/100","v":1.04},{"$f":"+LOG(E9)","v":1.703333929878037E-2},null,null,null,null,null,null,null,null,null,null,null,null,null,null,null,null,null,null,null,54,2.5010000000000001E-2,2.5010000000000001E-2]
[null,null,null,null,null,null,null,null,null,null,null,null,null,null,null,null,null,null,null,null,null,null,null,null,null,55,2.5649999999999999E-2,2.5649999999999999E-2]
[null,null,null,null,null,null,null,null,null,null,null,null,null,null,null,null,null,null,null,null,null,null,null,null,null,56,2.632E-2,2.632E-2]
[null,null,null,null,"RENDITA VITALIZIA IMMEDIATA A PREMIO UNICO",null,null,null,null,"RENDITA VITALIZIA CERTA 5 ANNI",null,null,null,"RENDITA VITALIZIA CERTA 10 ANNI",null,null,null,"RENDITA CONTROASSICURATA",null,null,null,"RENDITA CON RADDOPPIO TLC",null,null,null,57,2.7029999999999998E-2,2.7029999999999998E-2]
[null,null,null,null,null,null,null,null,null,null,null,null,null,null,null,null,null,null,null,null,null,null,null,null,null,58,2.7779999999999999E-2,2.7779999999999999E-2]
[null,null,null,null,null,"Età","Maschi","Femmine",null,"Età","Maschi","Femmine",null,"Età","Maschi","Femmine",null,"Età","Maschi","Femmine",null,"Età","Maschi","Femmine",null,59,2.8559999999999999E-2,2.8559999999999999E-2]
[null,null,null,null,null,null,null,null,null,null,null,null,null,null,null,null,null,null,null,null,null,null,null,null,null,60,2.9389999999999999E-2,2.9389999999999999E-2]
[null,null,null,null,null,50,2.7609999999999999E-2,2.487E-2,null,50,2.759E-2,2.486E-2,null,50,2.7539999999999999E-2,2.4830000000000001E-2,null,50,2.6800000000000001E-2,2.5239999999999999E-2,null,50,2.6280000000000001E-2,2.317E-2,null,61,3.0269999999999998E-2,3.0269999999999998E-2]
[null,null,null,null,null,{"$f":"1+F16","v":51},2.836E-2,2.5489999999999999E-2,null,{"$f":"1+J16","v":51},2.385E-2,2.547E-2,null,{"$f":"1+N16","v":51},2.8289999999999999E-2,2.5440000000000001E-2,null,{"$f":"1+R16","v":51},2.7310000000000001E-2,2.571E-2,null,{"$f":"1+V16","v":51},2.6970000000000001E-2,2.3709999999999998E-2,null,62,3.1199999999999999E-2,3.1199999999999999E-2]
[null,null,null,null,null,{"$f":"1+F17","v":52},2.9159999999999998E-2,2.613E-2,null,{"$f":"1+J17","v":52},2.9139999999999999E-2,2.6120000000000001E-2,null,{"$f":"1+N17","v":52},2.9069999999999999E-2,2.6079999999999999E-2,null,{"$f":"1+R17","v":52},2.7830000000000001E-2,2.6179999999999998E-2,null,{"$f":"1+V17","v":52},2.7689999999999999E-2,2.426E-2,null,63,3.218E-2,3.218E-2]
[null,null,null,null,null,53,0.03,2.681E-2,null,53,2.998E-2,2.6790000000000001E-2,null,53,2.9899999999999999E-2,2.6749999999999999E-2,null,53,2.8369999999999999E-2,2.6669999999999999E-2,null,53,2.845E-2,2.4850000000000001E-2,null,64,3.3230000000000003E-2,3.3230000000000003E-2]
[null,null,null,null,null,54,3.0890000000000001E-2,2.7519999999999999E-2,null,54,3.0859999999999999E-2,2.75E-2,null,54,3.0769999999999999E-2,2.7459999999999998E-2,null,54,2.8930000000000001E-2,2.7189999999999999E-2,null,54,2.9239999999999999E-2,2.546E-2,null,65,3.4340000000000002E-2,3.4340000000000002E-2]
[null,null,null,null,null,55,3.1829999999999997E-2,2.827E-2,null,55,3.1800000000000002E-2,2.8250000000000001E-2,null,55,3.168E-2,2.8199999999999999E-2,null,55,2.9530000000000001E-2,2.7720000000000002E-2,null,55,3.0079999999999999E-2,2.6100000000000002E-2,null,66,3.5520000000000003E-2,3.5520000000000003E-2]
[null,null,null,null,null,56,3.2820000000000002E-2,2.9059999999999999E-2,null,56,3.2779999999999997E-2,2.904E-2,null,56,3.2640000000000002E-2,2.8979999999999999E-2,null,56,3.0130000000000001E-2,2.827E-2,null,56,3.0970000000000001E-2,2.6769999999999999E-2,null,67,3.6769999999999997E-2,3.6769999999999997E-2]
[null,null,null,null,null,57,3.3869999999999997E-2,2.989E-2,null,57,3.3820000000000003E-2,2.9870000000000001E-2,null,57,3.3660000000000002E-2,2.98E-2,null,57,3.0769999999999999E-2,2.8850000000000001E-2,null,57,3.1899999999999998E-2,2.7480000000000001E-2,null,68,3.8120000000000001E-2,3.8120000000000001E-2,null,{"$f":"+CALCOLI1!E8","v":8},"<=ANZIANITA' DI SERVIZIO"]
[null,null,null,null,null,58,3.4979999999999997E-2,3.0769999999999999E-2,null,58,3.4930000000000003E-2,3.075E-2,null,58,3.4729999999999997E-2,3.066E-2,null,58,3.143E-2,2.945E-2,null,58,3.2890000000000003E-2,2.8230000000000002E-2,null,69,3.9550000000000002E-2,3.9550000000000002E-2,null,{"$f":"+CALCOLI1!J5","v":40},"<=60 ANNI DI ETA'"]
[null,null,null,null,null,59,3.6170000000000001E-2,3.1710000000000002E-2,null,59,3.61E-2,3.168E-2,null,59,3.5869999999999999E-2,3.1579999999999997E-2,null,59,3.2120000000000003E-2,3.007E-2,null,59,3.3939999999999998E-2,2.9010000000000001E-2,null,70,4.1090000000000002E-2,4.1090000000000002E-2,null,null,null,null,null,null,null,null,null,null,{"$f":"+'M&R'!O10","v":1.6}]
[null,null,null,null,null,60,3.7429999999999998E-2,3.27E-2,null,60,3.7350000000000001E-2,3.2669999999999998E-2,null,60,3.7069999999999999E-2,3.2550000000000003E-2,null,60,3.2829999999999998E-2,3.0720000000000001E-2,null,60,3.5049999999999998E-2,2.9839999999999998E-2,null,null,null,null,null,null,null,null,null,"k314","GEST LABS","SIPRO",null,null,"EX S3"]
[null,null,null,null,null,61,3.8769999999999999E-2,3.3750000000000002E-2,null,61,3.8679999999999999E-2,3.3709999999999997E-2,null,61,3.8330000000000003E-2,3.3570000000000003E-2,null,61,3.3590000000000002E-2,3.141E-2,null,61,3.6229999999999998E-2,3.0720000000000001E-2,null,null,null,null,"IBM","toshiba","LENOVO",null,null,null,"dip","az",null,null,"DIP","AZ"]
[null,null,null,null,null,62,4.0189999999999997E-2,3.4869999999999998E-2,null,62,4.0079999999999998E-2,3.4819999999999997E-2,null,62,3.9660000000000001E-2,3.465E-2,null,62,3.4369999999999998E-2,3.2120000000000003E-2,null,62,3.7479999999999999E-2,3.1649999999999998E-2,null,null,null,null,"SERV FIN","ACG","SEM",null,null,null,null,null,null,null,1.2,2]
[null,null,null,null,null,63,4.1709999999999997E-2,3.6049999999999999E-2,null,63,4.1570000000000003E-2,3.5999999999999997E-2,null,63,4.1070000000000002E-2,3.5799999999999998E-2,null,63,3.5189999999999999E-2,3.2849999999999997E-2,null,63,3.8800000000000001E-2,3.2629999999999999E-2,null,null,null,0,46031,2,{"$f":"IF(AD24>=60,0,1.5)","v":1.5},null,0,46031,2,{"$f":"IF($AD$24>=60,0,1.2)","v":1.2},null,null,1.4,2]
[null,null,null,null,null,64,4.3319999999999997E-2,3.7319999999999999E-2,null,64,4.3159999999999997E-2,3.7249999999999998E-2,null,64,4.2549999999999998E-2,3.7010000000000001E-2,null,64,3.6049999999999999E-2,3.363E-2,null,64,4.02E-2,3.3660000000000002E-2,null,null,{"$f":"+AC30-AB30","v":1953968.99},46031.01,2000000,7,{"$f":"IF(AD24>=60,0,4)","v":4},{"$f":"+AH30-AG30","v":1953968.99},46031.01,2000000,7,{"$f":"IF($AD$24>=60,0,1.2)","v":1.2},null,null,1.6,2]
[null,null,null,null,null,65,4.505E-2,3.866E-2,null,65,4.4850000000000001E-2,3.8580000000000003E-2,null,65,4.4119999999999999E-2,3.8300000000000001E-2,null,65,3.6949999999999997E-2,3.4439999999999998E-2,null,65,4.1680000000000002E-2,3.4759999999999999E-2,null,null,null,null,null,"<10 ANNI ANZ"]
[null,null,null,null,null,66,4.6899999999999997E-2,4.0090000000000001E-2,null,66,4.666E-2,0.04,null,66,4.5769999999999998E-2,3.9660000000000001E-2,null,66,3.7879999999999997E-2,3.5279999999999999E-2,null,66,4.3270000000000003E-2,3.5920000000000001E-2,null,null,null,0,46031,2,{"$f":"IF(AD24>=60,0,1.6)","v":1.6},null,null,"<10 ANNI ANZ"]
[null,null,null,null,null,67,4.8869999999999997E-2,4.163E-2,null,67,4.8579999999999998E-2,4.1520000000000001E-2,null,67,4.752E-2,4.1110000000000001E-2,null,67,3.8879999999999998E-2,3.6179999999999997E-2,null,67,4.4949999999999997E-2,3.7159999999999999E-2,null,null,{"$f":"+AC33-AB33","v":1953968.99},46031.01,2000000,7,{"$f":"IF(AD24>=60,0,1.6)","v":1.6},null,0,46031,2,{"$f":"IF($AD$24>=60,0,1.4)","v":1.4}]
[null,null,null,null,null,68,5.0990000000000001E-2,4.3270000000000003E-2,null,68,5.0630000000000001E-2,4.3139999999999998E-2,null,68,4.9360000000000001E-2,4.2659999999999997E-2,null,68,3.9910000000000001E-2,3.7130000000000003E-2,null,68,4.6739999999999997E-2,3.848E-2,null,null,null,null,null,null,null,{"$f":"+AH34-AG34","v":1953968.99},46031.01,2000000,7,{"$f":"IF($AD$24>=60,0,1.4)","v":1.4}]
[null,{"$f":"+'M&R'!D10","v":1},"CODICE AZIENDA",null,null,69,5.3260000000000002E-2,4.5039999999999997E-2,null,69,5.2819999999999999E-2,4.4880000000000003E-2,null,69,5.1290000000000002E-2,4.4299999999999999E-2,null,69,4.0989999999999999E-2,3.8089999999999999E-2,null,69,4.8649999999999999E-2,3.9879999999999999E-2]
[null,null,null,null,null,70,5.57E-2,4.6940000000000003E-2,null,70,5.5169999999999997E-2,4.6739999999999997E-2,null,70,5.3310000000000003E-2,4.6039999999999998E-2,null,70,4.215E-2,3.9120000000000002E-2,null,70,5.0700000000000002E-2,4.138E-2]
[null,null,null,null,null,null,null,null,null,null,null,null,null,null,null,null,null,null,null,null,null,null,null,null,null,null,null,null,null,null,null,null,null,null,null,null,null,"IBM/TOSHIBA/ACG/LENOVO/ISF/SEM"]
[null,{"$f":"+CALCOLI1!H7","v":31},"NETTO CARICAMENTO",null,null,null,null,null,null,null,null,null,null,null,null,null,null,null,null,null,null,null,null,null,null,null,null,null,null,null,null,null,null,null,null,null,null,null,null,null,null,"k314/GEST LABS/SIPRO",null,null,null,"K314/GEST LABS/SIPRO",null,null,null,"EX S3","EX S3","EX S3","EX S3","EX S3","EX S3","EX S3"]
[null,"CONTR IN","VERS DIP","VERS AZ","VERS VOL","TFR","TOTALE C","TOT VER+TFR+RIV",null,"RETRIB",{"$f":"+CALCOLI1!H8","v":"% INCR RETR ANNUALE"},null,"RIV YTD",{"$f":"+CALCOLI1!L8","v":"% RIV FONDO"},"RIV FONDO","% DIP","% AZ","% TFR","TFR",null,"VERS DIP","VERS AZ","TFR","VER VOL","TOTALE C","TOT VER+TFR",null,null,null,null,null,null,null,null,null,null,null,"contr diP","contr az","totale",null,null,null,null,null,"contr dip","contr az","totale",null,null,null,null,null,"contr dip","contr az","totale"]
[null,null,null,null,null,null,null,null,null,null,null,null,null,"NETTO 0,5%"]
[1,{"$f":"+CALCOLI1!E20","v":0},{"$f":"IF($B$35=1,AL41*99%,IF($B$35=2,AT41*99%,BB41*99%))","v":594},{"$f":"IF($B$35=1,AM41*99%,IF($B$35=2,AU41*99%,BC41*99%))","v":475.2},{"$f":"+CALCOLI1!E18","v":0},{"$f":"+CALCOLI1!E13*99%","v":2200},{"$f":"+B41+C41+D41","v":1069.2},{"$f":"+G41+F41+O41","v":3383.6219999999998},{"$f":"+G41","v":1069.2},{"$f":"+CALCOLI1!E9","v":30000},{"$f":"+CALCOLI1!H9+100","v":102},null,{"$f":"+O41","v":114.42199999999998},{"$f":"+CALCOLI1!L9-0.5","v":3.5},{"$f":"+(G41+F41)*$N$41/100","v":114.42199999999998},{"$f":"+CALCOLI1!E14","v":3.25},{"$f":"+CALCOLI1!E15","v":2.8900000000000006},{"$f":"+CALCOLI1!E12","v":100},{"$f":"+J41/13.5","v":2222.2222222222222},null,null,null,null,null,null,null,null,{"$f":"+J41","v":30000},{"$f":"IF(AB41>=$AC$29,$AC$29,AB41)","v":30000},{"$f":"+AB41-AC41","v":0},{"$f":"IF(AD41>=$AA$30,$AA$30,AD41)","v":0},{"$f":"+AD41-AE41","v":0},{"$f":"IF(AF41>=$AA$31,$AA$31,AF41)","v":0},{"$f":"+AF41-AG41","v":0},{"$f":"IF(AH41>=$AA$32,$AA$32,AH41)","v":0},{"$f":"IF(AH41>=$AA$33,$AA$33,AH41)","v":0},null,{"$f":"+((AC41*$AD$29)+(AE41*$AD$30))/100","v":600},{"$f":"IF($AD$23>=10,((AC41*$AE$29)+(AE41*$AE$30)),(AC41*$AE$32)+(AE41*$AE$33))/100","v":480},{"$f":"+AL41+AM41","v":1080},null,{"$f":"+AB41","v":30000},{"$f":"IF(AP41>=$AH$29,$AH$29,AP41)","v":30000},{"$f":"+AP41-AQ41","v":0},null,{"$f":"+AQ41*$AI$29%+AR41*$AI$30%","v":600},{"$f":"IF($AD$23>=10,(AQ41*$AJ$29/100)+(AR41*$AJ$30/100),(AQ41*$AJ33/100+AR41*$AJ$34/100))","v":420},{"$f":"+AT41+AU41","v":1020},null,{"$f":"+J41","v":30000},null,null,null,{"$f":"+AX41*$AM$25%","v":480},{"$f":"+AX41*$AM$25%","v":480},{"$f":"+BB41+BC41","v":960}]
[{"$f":"1+A41","v":2},null,{"$f":"IF($B$35=1,AL42*99%,IF($B$35=2,AT42*99%,BB42*99%))","v":605.88},{"$f":"IF($B$35=1,AM42*99%,IF($B$35=2,AU42*99%,BC42*99%))","v":484.70400000000001},{"$f":"+E41+X42","v":0},{"$f":"+F41+W42","v":4444},{"$f":"+B42+C42+D42","v":1090.5840000000001},{"$f":"+I42+F42+M42","v":6915.9212099999995},{"$f":"+I41+G42","v":2159.7840000000001},{"$f":"+J41*$K$41/100","v":30600},null,null,{"$f":"+M41+O42","v":312.13720999999993},null,{"$f":"+(G42+F42+O41)*$N$41/100","v":197.71520999999996},null,null,null,{"$f":"+J42/13.5","v":2266.6666666666665},null,{"$f":"+J42*$P$41/100*99%","v":984.55499999999995},{"$f":"+J42*$Q$41*99%/100","v":875.49660000000017},{"$f":"+J42/13.5*$R$41/100*99%","v":2244},null,{"$f":"+U42+V42+X42","v":1860.0516000000002},{"$f":"+Y42+W42","v":4104.0516000000007},null,{"$f":"+J42","v":30600},{"$f":"IF(AB42>=$AC$29,$AC$29,AB42)","v":30600},{"$f":"+AB42-AC42","v":0},{"$f":"IF(AD42>=$AA$30,$AA$30,AD42)","v":0},{"$f":"+AD42-AE42","v":0},{"$f":"IF(AF42>=$AA$31,$AA$31,AF42)","v":0},{"$f":"+AF42-AG42","v":0},{"$f":"IF(AH42>=$AA$32,$AA$32,AH42)","v":0},{"$f":"IF(AH42>=$AA$33,$AA$33,AH42)","v":0},null,{"$f":"+((AC42*$AD$29)+(AE42*$AD$30))/100","v":612},{"$f":"IF($AD$23>=10,((AC42*$AE$29)+(AE42*$AE$30)),(AC42*$AE$32)+(AE42*$AE$33))/100","v":489.6},{"$f":"+AL42+AM42","v":1101.5999999999999},null,{"$f":"+AB42","v":30600},{"$f":"IF(AP42>=$AH$29,$AH$29,AP42)","v":30600},{"$f":"+AP42-AQ42","v":0},null,{"$f":"+AQ42*$AI$29%+AR42*$AI$30%","v":612},{"$f":"IF($AD$23>=10,(AQ42*$AJ$29/100)+(AR42*$AJ$30/100),(AQ42*$AJ34/100+AR42*$AJ$34/100))","v":428.4},{"$f":"+AT42+AU42","v":1040.4000000000001},null,{"$f":"+J42","v":30600},null,null,null,{"$f":"+AX42*$AM$25%","v":489.6},{"$f":"+AX42*$AM$25%","v":489.6},{"$f":"+BB42+BC42","v":979.2}]
[{"$f":"1+A42","v":3},null,617.99760000000003,494.39808000000005,{"$f":"+E42+X43","v":0},{"$f":"+F42+W43","v":6732.88},1112.3956800000001,{"$f":"+I43+F43+M43","v":10598.701571150001},{"$f":"+I42+G43","v":3272.1796800000002},{"$f":"+J42*$K$41/100","v":31212},null,null,{"$f":"+M42+O43","v":593.64189114999999},null,{"$f":"+(G43+F43+O42)*$N$41/100","v":281.50468115000001},null,null,null,2312,null,{"$f":"+J43*$P$41/100*99%","v":1004.2461},{"$f":"+J43*$Q$41*99%/100","v":893.00653200000011},{"$f":"+J43/13.5*$R$41/100*99%","v":2288.88},null,{"$f":"+U43+V43+X43","v":1897.2526320000002},{"$f":"+Y43+W43","v":4186.1326320000007},null,31212,31212,0,0,0,0,0,0,0,null,624.24,499.39200000000005,1123.6320000000001,null,31212,31212,0,null,624.24,0,624.24,null,31212,null,null,null,499.392,499.392,998.78399999999999]
[4,null,630.35755200000006,504.28604160000003,0,9067.5375999999997,1134.6435936,14434.931770366249,4406.8232736,31836.240000000002,null,null,960.57089676624992,null,366.92900561624998,null,null,null,2358.2400000000002,null,1024.3310219999998,910.86666264000019,2334.6576,null,1935.19768464,4269.8552846399998,null,31836.240000000002,31836.240000000002,0,0,0,0,0,0,0,null,636.72480000000007,509.37984000000006,1146.10464,null,31836.240000000002,31836.240000000002,0,null,636.72480000000007,0,636.72480000000007,null,31836.240000000002,null,null,null,509.37984000000006,509.37984000000006,1018.7596800000001]
[5,null,642.96470304000002,514.37176243200008,0,11448.888352,1157.3364654720001,18427.67937164634,5564.1597390719999,32472.964800000002,null,null,1414.6312805743387,null,454.06038380808883,null,null,null,2405.4048000000003,null,1044.8176424400001,929.0839958928002,2381.3507520000003,null,1973.9016383328003,4355.2523903328001,null,32472.964800000002,32472.964800000002,0,0,0,0,0,0,0,null,649.45929599999999,519.56743680000011,1169.0267328,null,32472.964800000002,32472.964800000002,0,null,649.45929599999999,0,649.45929599999999,null,32472.964800000002,null,null,null,519.5674368,519.5674368,1039.1348736]
[6,null,655.82399710080006,524.65919768064009,0,13877.86611904,1180.48319478144,22580.07467288481,6744.6429338534399,33122.424096000002,null,null,1957.5656199913724,null,542.93433941703358,null,null,null,2453.5128960000002,null,1065.7139952888001,947.66567581065624,2428.9777670400003,null,2013.3796710994563,4442.3574381394565,null,33122.424096000002,33122.424096000002,0,0,0,0,0,0,0,null,662.44848192000006,529.95878553600005,1192.4072674560002,null,33122.424096000002,33122.424096000002,0,null,662.44848192000006,0,662.44848192000006,null,33122.424096000002,null,null,null,529.95878553600005,529.95878553600005,1059.9175710720001]
[7,null,668.94047704281604,535.15238163425283,0,16355.4234414208,1204.0928586770688,26895.310626325703,7948.7357925305087,33784.872577920003,null,null,2591.1513923743942,null,633.58577238302155,null,null,null,2502.5831539200003,null,1087.0282751945761,966.6189893268695,2477.5573223808001,null,2053.6472645214453,4531.2045869022459,null,33784.872577920003,33784.872577920003,0,0,0,0,0,0,0,null,675.69745155840008,540.55796124672008,1216.2554128051202,null,33784.872577920003,33784.872577920003,0,null,675.69745155840008,0,675.69745155840008,null,33784.872577920003,null,null,null,540.55796124672008,540.55796124672008,1081.1159224934402]
[8,null,682.31928658367235,545.8554292669379,0,18882.531910249218,1228.1747158506103,31376.64404495163,9176.9105083811191,34460.570029478404,null,null,3317.201626321294,null,726.05023394689988,null,null,null,2552.6348169984003,null,1108.7688406984676,985.95136911340683,2527.1084688284163,null,2094.7202098118742,4621.8286786402905,null,34460.570029478404,34460.570029478404,0,0,0,0,0,0,0,null,689.21140058956803,551.36912047165447,1240.5805210612225,null,34460.570029478404,34460.570029478404,0,null,689.21140058956814,0,689.21140058956814,null,34460.570029478404,null,null,null,551.36912047165447,551.36912047165447,1102.7382409433089]
[9,null,695.96567231534584,556.77253785227663,0,21460.182548454202,1252.7382101676226,36027.396878064144,10429.648718548742,35149.781430067967,null,null,4137.565611061199,null,820.36398473990528,null,null,null,2603.6875133383678,null,1130.9442175124368,1005.6703964956748,2577.6506382049843,null,2136.6146140081119,4714.2652522130957,null,35149.781430067967,35149.781430067967,0,0,0,0,0,0,0,null,702.99562860135939,562.39650288108749,1265.392131482447,null,35149.781430067967,35149.781430067967,0,null,702.99562860135939,0,702.99562860135939,null,35149.781430067967,null,null,null,562.39650288108749,562.39650288108749,1124.793005762175]
[10,null,709.88498576165273,567.90798860932216,0,24089.386199423287,1277.7929743709749,40850.957513952897,11707.441692919718,35852.77705866933,null,null,5054.1296216098945,null,916.56401054869593,null,null,null,2655.7612636051354,null,1153.5631018626857,1025.7838044255884,2629.2036509690843,null,2179.3469062882741,4808.5505572573584,null,35852.77705866933,35852.77705866933,0,0,0,0,0,0,0,null,717.05554117338659,573.64443293870931,1290.6999741120958,null,35852.77705866933,35852.77705866933,0,null,717.05554117338659,0,717.05554117338659,null,35852.77705866933,null,null,null,573.64443293870931,573.64443293870931,1147.2888658774186]
[11,null,724.08268547688579,579.26614838150863,0,26771.173923411752,1303.3488338583943,45850.782108673418,13010.790526778112,36569.832599842717,null,null,6068.8176584835537,null,1014.6880368736596,null,null,null,2708.8764888772384,null,1176.6343638999392,1046.2994805141002,2681.787723988466,null,2222.9338444140394,4904.721568402505,null,36569.832599842717,36569.832599842717,0,0,0,0,0,0,0,null,731.3966519968543,585.11732159748351,1316.5139735943378,null,36569.832599842717,36569.832599842717,0,null,731.3966519968543,0,731.3966519968543,null,36569.832599842717,null,null,null,585.11732159748351,585.11732159748351,1170.234643194967]
[12,null,738.56433918642358,590.85147134913882,0,29506.597401879986,1329.4158105355623,51030.395941402334,14340.206337313673,37301.22925183957,null,null,7183.5922022086761,null,1114.7745437251224,null,null,null,2763.0540186547828,null,1200.167051177938,1067.2254701243821,2735.4234784682344,null,2267.3925213023203,5002.8159997705552,null,37301.22925183957,37301.22925183957,0,0,0,0,0,0,0,null,746.02458503679145,596.81966802943316,1342.8442530662246,null,37301.22925183957,37301.22925183957,0,null,746.02458503679145,0,746.02458503679145,null,37301.22925183957,null,null,null,596.81966802943316,596.81966802943316,1193.6393360588663]
[13,null,753.3356259701518,602.6685007761215,0,32296.729349917587,1356.0041267462734,56393.394796899818,15696.210464059946,38047.253836876356,null,null,8400.4549829222906,null,1216.8627807136143,null,null,null,2818.3150990278782,null,1224.1703922014967,1088.5699795268697,2790.1319480375996,null,2312.7403717283664,5102.8723197659656,null,38047.253836876356,38047.253836876356,0,0,0,0,0,0,0,null,760.94507673752707,608.75606139002173,1369.7011381275488,null,38047.253836876356,38047.253836876356,0,null,760.94507673752719,0,760.94507673752719,null,38047.253836876356,null,null,null,608.75606139002173,608.75606139002173,1217.5121227800435]
[14,null,768.40233848955495,614.72187079164394,0,35142.663936915938,1383.124209281199,61943.44637562125,17079.334673341145,38808.198913613887,null,null,9721.4477653641661,null,1320.9927824418764,null,null,null,2874.6814010084363,null,1248.6538000455269,1110.3413791174071,2845.9345869983517,null,2358.9951791629337,5204.9297661612854,null,38808.198913613887,38808.198913613887,0,0,0,0,0,0,0,null,776.16397827227775,620.93118261782217,1397.0951608901,null,38808.198913613887,38808.198913613887,0,null,776.16397827227775,0,776.16397827227775,null,38808.198913613887,null,null,null,620.93118261782217,620.93118261782217,1241.8623652356443]
[15,null,783.77038525934609,627.01630820747687,0,38045.517215654254,1410.786693466823,67684.291732031095,18490.121366807969,39584.362891886165,null,null,11148.653149568869,null,1427.2053842047033,null,null,null,2932.175029028605,null,1273.6268760464372,1132.5482066997554,2902.8532787383192,null,2406.1750827461929,5309.0283614845121,null,39584.362891886165,39584.362891886165,0,0,0,0,0,0,0,null,791.68725783772334,633.34980627017865,1425.0370641079021,null,39584.362891886165,39584.362891886165,0,null,791.68725783772334,0,791.68725783772334,null,39584.362891886165,null,null,null,633.34980627017865,633.34980627017865,1266.6996125403573]
[16,null,799.44579296453298,639.55663437162639,0,41006.427559967342,1439.0024273361594,73619.74674168312,19929.123794144129,40376.050149723887,null,null,12684.195387571655,null,1535.5422380027871,null,null,null,2990.8185296091769,null,1299.0994135673661,1155.1991708337503,2960.9103443130853,null,2454.2985844011164,5415.2089287142016,null,40376.050149723887,40376.050149723887,0,0,0,0,0,0,0,null,807.52100299447773,646.0168023955822,1453.5378053900599,null,40376.050149723887,40376.050149723887,0,null,807.52100299447773,0,807.52100299447773,null,40376.050149723887,null,null,null,646.0168023955822,646.0168023955822,1292.0336047911644]
[17,null,815.4347088238236,652.34776705905904,0,44026.55611116669,1467.7824758828826,79753.70359764219,21396.906270027011,41183.571152718367,null,null,14330.241216448489,null,1646.0458288768323,null,null,null,3050.6349002013603,null,1325.0814018387136,1178.3031542504255,3020.1285511993469,null,2503.3845560891391,5523.513107288486,null,41183.571152718367,41183.571152718367,0,0,0,0,0,0,0,null,823.67142305436732,658.93713844349395,1482.6085614978613,null,41183.571152718367,41183.571152718367,0,null,823.67142305436732,0,823.67142305436732,null,41183.571152718367,null,null,null,658.93713844349384,658.93713844349384,1317.8742768869877]
[18,null,831.74340300030008,665.39472240024008,0,47107.087233390026,1497.13812540054,86090.132336834416,22894.044395427551,42007.242575772732,null,null,16089.000708016847,null,1758.7594915683592,null,null,null,3111.6475982053876,null,1351.5830298754877,1201.8692173354339,3080.5311222233336,null,2553.4522472109215,5633.9833694342551,null,42007.242575772732,42007.242575772732,0,0,0,0,0,0,0,null,840.14485151545466,672.11588121236377,1512.2607327278183,null,42007.242575772732,42007.242575772732,0,null,840.14485151545466,0,840.14485151545466,null,42007.242575772732,null,null,null,672.11588121236377,672.11588121236377,1344.2317624247275]
[19,null,848.37827106030625,678.70261684824504,0,50249.228978057828,1527.0808879085512,92633.082396924496,24421.125283336103,42847.387427288195,null,null,17962.728135530564,null,1873.7274275137158,null,null,null,3173.880550169496,null,1378.6146904729976,1225.9066016821428,3142.141744667801,null,2604.5212921551401,5746.6630368229416,null,42847.387427288195,42847.387427288195,0,0,0,0,0,0,0,null,856.94774854576394,685.55819883661115,1542.5059473823751,null,42847.387427288195,42847.387427288195,0,null,856.94774854576394,0,856.94774854576394,null,42847.387427288195,null,null,null,685.55819883661115,685.55819883661115,1371.1163976732223]
[20,null,865.34583648151238,692.27666918521004,0,53454.213557618983,1557.6225056667224,99386.684204330348,25978.747789002824,43704.335175833963,null,null,19953.722857708544,null,1990.9947221779801,null,null,null,3237.358161172886,null,1406.1869842824576,1250.4247337157858,3204.9845795611573,null,2656.6117179982434,5861.5962975594011,null,43704.335175833963,43704.335175833963,0,0,0,0,0,0,0,null,874.08670351667922,699.26936281334349,1573.3560663300227,null,43704.335175833963,43704.335175833963,0,null,874.08670351667934,0,874.08670351667934,null,43704.335175833963,null,null,null,699.26936281334338,699.26936281334338,1398.5387256266868]
[21,null,882.65275321114279,706.12220256891419,0,56723.297828771363,1588.7749557800571,106355.15079399831,27567.52274478288,44578.421879350644,null,null,22064.330220444073,null,2110.607362735529,null,null,null,3302.1053243963438,null,1434.3107239681071,1275.4332283901015,3269.0842711523806,null,2709.7439523582088,5978.8282235105889,null,44578.421879350644,44578.421879350644,0,0,0,0,0,0,0,null,891.56843758701291,713.25475006961028,1604.8231876566233,null,44578.421879350644,44578.421879350644,0,null,891.56843758701291,0,891.56843758701291,null,44578.421879350644,null,null,null,713.25475006961028,713.25475006961028,1426.5095001392206]
[22,null,900.30580827536562,720.24464662029243,0,60057.76378534679,1620.550454895658,113542.77946157362,29188.07319967854,45469.990316937656,null,null,24296.942476548302,null,2232.6122561042293,null,null,null,3368.1474308842708,null,1462.9969384474691,1300.9418929579035,3334.4659565754282,null,2763.9388314053726,6098.4047879808004,null,45469.990316937656,45469.990316937656,0,0,0,0,0,0,0,null,909.39980633875314,727.51984507100246,1636.9196514097557,null,45469.990316937656,45469.990316937656,0,null,909.39980633875314,0,909.39980633875314,null,45469.990316937656,null,null,null,727.51984507100246,727.51984507100246,1455.0396901420049]
[23,null,935.55723554305519,734.64953955269846,0,63458.919061053726,1670.2067750957535,120971.8023456052,30858.279974774294,46379.390123276411,null,null,26654.603309777183,null,2357.6608332288802,null,null,null,3435.5103795019563,null,1492.2568772164184,1326.9607308170616,3401.1552757069362,null,2819.2176080334802,6220.372883740416,null,46379.390123276411,46031,348.39012327641103,348.39012327641103,0,0,0,0,0,null,945.0073086293487,742.07024197242265,1687.0775506017712,null,46379.390123276411,46031,348.39012327641103,null,945.00730862934881,4.8774617258697539,949.88477035521862,null,46379.390123276411,null,null,null,742.07024197242254,742.07024197242254,1484.1404839448451]
[24,null,999.8390702539167,749.3425303437524,0,66928.097442274797,1749.1816005976691,128676.38522308751,32607.461575371963,47306.977925741943,null,null,29140.826205440731,null,2486.2228956635472,null,null,null,3504.2205870919956,null,1522.1020147607471,1353.4999454334031,3469.1783812210751,null,2875.6019601941503,6344.7803414152258,null,47306.977925741943,46031,1275.9779257419432,1275.9779257419432,0,0,0,0,0,null,1009.938454801936,756.91164681187115,1766.8501016138071,null,47306.977925741943,46031,1275.9779257419432,null,1009.938454801936,17.863690960387203,1027.8021457623231,null,47306.977925741943,null,null,null,756.91164681187115,756.91164681187115,1513.8232936237423]
[25,null,1065.4065416589951,764.32938095062752,0,70466.659391120294,1829.7359226096228,136662.07473187137,34437.197497981586,48253.117484256785,null,null,31758.217842769503,null,2617.3916373287711,null,null,null,3574.3049988338357,null,1552.5440550559622,1380.569944342071,3538.5619488454972,null,2933.1139993980332,6471.67594824353,null,48253.117484256785,46031,2222.1174842567852,2222.1174842567852,0,0,0,0,0,null,1076.1682238979749,772.04987974810865,1848.2181036460836,null,48253.117484256785,46031,2222.1174842567852,null,1076.1682238979749,31.109644779594991,1107.27786867757,null,48253.117484256785,null,null,null,772.04987974810854,772.04987974810854,1544.0997594962171]
[26,null,1132.2853624921756,779.61596856964024,0,74075.992578942707,1911.9013310618159,144934.49424491229,36349.098829043403,49218.179833941926,null,null,34509.402836926165,null,2751.1849941566652,null,null,null,3645.7910988105132,null,1583.5949361570815,1408.1813432289127,3609.3331878224076,null,2991.7762793859943,6601.1094672084018,null,49218.179833941926,46031,3187.1798339419256,3187.1798339419256,0,0,0,0,0,null,1143.7225883759349,787.49087734307091,1931.2134657190059,null,49218.179833941926,46031,3187.1798339419256,null,1143.7225883759347,44.62051767518696,1188.3431060511216,null,49218.179833941926,null,null,null,787.49087734307079,787.49087734307079,1574.9817546861416]
[27,null,1200.5017597420192,795.20828794103306,0,77757.512430521558,1995.7100476830524,153499.37840570684,38344.808876726456,50202.543430620768,null,null,37397.057098458812,null,2887.6542615326448,null,null,null,3718.7069207867235,null,1615.2668348802233,1436.3449700934912,3681.5198515788561,null,3051.6118049737142,6733.1316565525703,null,50202.543430620768,46031,4171.543430620768,4171.543430620768,0,0,0,0,0,null,1212.6280401434537,803.24069488993234,2015.8687350333862,null,50202.543430620768,46031,4171.543430620768,null,1212.6280401434537,58.401608028690752,1271.0296481721446,null,50202.543430620768,null,null,null,803.24069488993234,803.24069488993234,1606.4813897798647]
[28,null,1270.0824849368596,811.11245369985363,0,81512.662679131987,2081.1949386367132,162362.57650872951,40426.003815363169,51206.594299233184,null,null,40423.91001423436,null,3026.852915775547,null,null,null,3793.0810592024582,null,1647.5721715778277,1465.0718694953612,3755.1502486104337,null,3112.6440410731889,6867.794289683623,null,51206.594299233184,46031,5175.5942992331838,5175.5942992331838,0,0,0,0,0,null,1282.9116009463228,819.3055087877309,2102.2171097340538,null,51206.594299233184,46031,5175.5942992331838,null,1282.9116009463228,72.458320189264569,1355.3699211355874,null,51206.594299233184,null,null,null,819.30550878773101,819.30550878773101,1638.611017575462]
[29,null,1341.0548246355963,827.33470277385072,0,85342.915932714634,2168.3895274094471,171530.05483287809,42594.393342772615,52230.726185217842,null,null,43592.745557390845,null,3168.8355431564869,null,null,null,3868.9426803865067,null,1680.523615009384,1494.373306885268,3830.2532535826417,null,3174.8969218946522,7005.1501754772944,null,52230.726185217842,46031,6199.7261852178417,6199.7261852178417,0,0,0,0,0,null,1354.6008329652489,835.69161896348555,2190.2924519287344,null,52230.726185217842,46031,6199.7261852178417,null,1354.6008329652491,86.79616659304979,1441.3969995582988,null,52230.726185217842,null,null,null,835.69161896348544,835.69161896348544,1671.3832379269709]
[30,null,1413.4466111283082,843.88139682932751,0,89249.77425136893,2257.3280079576357,181007.89898257691,44851.721350730251,53275.340708922195,null,null,46906.40338047775,null,3313.6578230869068,null,null,null,3946.3215339942367,null,1714.1340873095714,1524.2607730229731,3906.8583186542946,null,3238.3948603325443,7145.253178986839,null,53275.340708922195,46031,7244.3407089221946,7244.3407089221946,0,0,0,0,0,null,1427.7238496245536,852.4054513427551,2280.1293009673086,null,53275.340708922195,46031,7244.3407089221946,null,1427.7238496245536,101.42076992491072,1529.1446195494643,null,53275.340708922195,null,null,null,852.4054513427551,852.4054513427551,1704.8109026855102]
[31,null,1487.286233350874,860.75902476591409,0,93234.769736396309,2348.0452581167883,190802.31627433709,47199.766608847043,54340.847523100638,null,null,50367.779929093747,null,3461.376548616,null,null,null,4025.2479646741212,null,1748.4167690557631,1554.7459884834325,3984.9954850273798,null,3303.1627575391958,7288.1582425665756,null,54340.847523100638,46031,8309.8475231006378,8309.8475231006378,0,0,0,0,0,null,1502.3093266170445,869.45356036961016,2371.7628869866548,null,54340.847523100638,46031,8309.8475231006378,null,1502.3093266170447,116.33786532340892,1618.6471919404537,null,54340.847523100638,null,null,null,869.45356036961027,869.45356036961027,1738.9071207392205]
[32,null,1562.6026480178914,877.97420526123244,0,97299.465131124234,2440.576853279124,200919.63817099982,49640.343462126169,55427.664473562647,null,null,53979.829577749428,null,3612.0496486556776,null,null,null,4105.7529239676032,null,1783.385104436878,1585.8409082531011,4064.6953947279271,null,3369.2260126899791,7433.9214074179063,null,55427.664473562647,46031,9396.6644735626469,9396.6644735626469,0,0,0,0,0,null,1578.3865131493853,886.84263157700252,2465.2291447263879,null,55427.664473562647,46031,9396.6644735626469,null,1578.3865131493853,131.55330262987707,1709.9398157792625,null,55427.664473562647,null,null,null,886.84263157700241,886.84263157700241,1773.6852631540048]
[33,null,1639.4253909782492,895.533689366457,0,101445.45443374672,2534.9590803447063,211366.3227646632,52175.302542470876,56536.217763033899,null,null,57745.56578844558,null,3765.7362106961491,null,null,null,4187.8679824469555,null,1819.0528065256158,1617.5577264181632,4145.9893026224863,null,3436.6105329437787,7582.599835566265,null,56536.217763033899,46031,10505.217763033899,10505.217763033899,0,0,0,0,0,null,1655.9852434123729,904.57948420854245,2560.5647276209156,null,56536.217763033899,46031,10505.217763033899,null,1655.9852434123732,147.07304868247459,1803.0582920948477,null,56536.217763033899,null,null,null,904.57948420854245,904.57948420854245,1809.1589684170849]
[34,null,1717.784588797814,913.44436315378596,0,105674.36352242166,2631.2289519515998,222148.95730926713,54806.531494422474,57666.942118294573,null,null,61668.062292423012,null,3922.4965039774293,null,null,null,4271.6253420958947,null,1855.4338626561278,1649.9088809465266,4228.9090886749354,null,3505.3427436026541,7734.2518322775895,null,57666.942118294573,46031,11635.942118294573,11635.942118294573,0,0,0,0,0,null,1735.1359482806201,922.67107389271314,2657.8070221733333,null,57666.942118294573,46031,11635.942118294573,null,1735.1359482806201,162.90318965612403,1898.0391379367443,null,57666.942118294573,null,null,null,922.67107389271314,922.67107389271314,1845.3421477854263]
[35,null,1797.7109705737703,931.7132504168618,0,109987.85079287009,2729.424220990632,233274.26080383052,57535.955715413103,58820.280960660464,null,null,65750.454295547344,null,4082.3920031243351,null,null,null,4357.0578489378122,null,1892.5425399092503,1682.9070585654567,4313.4872704484342,null,3575.4495984747073,7888.9368689231414,null,58820.280960660464,46031,12789.280960660464,12789.280960660464,0,0,0,0,0,null,1815.8696672462327,941.1244953705675,2756.9941626168002,null,58820.280960660464,46031,12789.280960660464,null,1815.8696672462324,179.04993344924648,1994.9196006954789,null,58820.280960660464,null,null,null,941.1244953705675,941.1244953705675,1882.248990741135]
[36,null,1879.2358799852459,950.34751542519905,0,114387.60780872749,2829.5833954104451,244749.08662735258,60365.539110823549,59996.686579873676,null,null,69995.939707801532,null,4245.4854122541801,null,null,null,4444.1990059165682,null,1930.3933907074356,1716.5651997367663,4399.7570158574026,null,3646.9585904442019,8046.7156063016046,null,59996.686579873676,46031,13965.686579873676,13965.686579873676,0,0,0,0,0,null,1898.2180605911574,959.9469852779788,2858.1650458691361,null,59996.686579873676,46031,13965.686579873676,null,1898.2180605911574,195.51961211823146,2093.7376727093888,null,59996.686579873676,null,null,null,959.9469852779788,959.9469852779788,1919.8939705559576]
[37,null,1962.3912875849505,969.35446573370302,0,118875.35996490205,2931.7457533186534,256580.42522641239,63297.284864142202,61196.620311471146,null,null,74407.780397368158,null,4411.8406895666212,null,null,null,4533.0829860348995,null,1969.0012585215843,1750.8965037315013,4487.7521561745507,null,3719.8977622530856,8207.6499184276363,null,61196.620311471146,46031,15165.620311471146,15165.620311471146,0,0,0,0,0,null,1982.2134218029803,979.14592498353841,2961.3593467865185,null,61196.620311471146,46031,15165.620311471146,null,1982.2134218029805,212.31868436059602,2194.5321061635764,null,61196.620311471146,null,null,null,979.14592498353841,979.14592498353841,1958.2918499670768]
[38,null,2047.2098033366497,988.74155504837711,0,123452.86716420008,3035.9513583850267,268775.4068565208,66333.236222527223,62420.552717700572,null,null,78989.303469793464,null,4581.5230724253106,null,null,null,4623.744645755598,null,2008.3812836920158,1785.9144338061312,4577.507199298042,null,3794.295717498147,8371.8029167961886,null,62420.552717700572,46031,16389.552717700572,16389.552717700572,0,0,0,0,0,null,2067.88869023904,998.72884348320918,3066.6175337222494,null,62420.552717700572,46031,16389.552717700572,null,2067.88869023904,229.453738047808,2297.3424282868482,null,62420.552717700572,null,null,null,998.72884348320918,998.72884348320918,1997.4576869664184]
[39,null,2133.7246894033829,1008.5163861493448,0,128121.92450748409,3142.2410755527276,281341.30437829869,69475.477298079946,63668.963772054587,null,null,83743.902572734631,null,4754.5991029411744,null,null,null,4716.2195386707099,null,2048.5489093658562,1821.6327224822539,4669.0573432840029,null,3870.1816318481101,8539.2389751321134,null,63668.963772054587,46031,17637.963772054587,17637.963772054587,0,0,0,0,0,null,2155.2774640438211,1018.7034203528735,3173.9808843966948,null,63668.963772054587,46031,17637.963772054587,null,2155.2774640438211,246.9314928087642,2402.2089568525853,null,63668.963772054587,null,null,null,1018.7034203528734,1018.7034203528734,2037.4068407057468]
[40,null,2221.9698731914505,1028.6867138723317,0,132884.36299763378,3250.6565870637824,294285.53610957949,72726.133885143732,64942.343047495677,null,null,88675.039226801979,null,4931.1366540673553,null,null,null,4810.5439294441239,null,2089.5198875531732,1858.0653769318992,4762.4384901496824,null,3947.5852644850725,8710.0237546347544,null,64942.343047495677,46031,18911.343047495677,18911.343047495677,0,0,0,0,0,null,2244.4140133246974,1039.0774887599309,3283.4915020846283,null,64942.343047495677,46031,18911.343047495677,null,2244.4140133246974,264.75880266493948,2509.172815989637,null,64942.343047495677,null,null,null,1039.0774887599309,1039.0774887599309,2078.1549775198619]
[41,null,2311.9799606552797,1049.2604481497781,0,137742.05025758647,3361.240408805058,307615.66873455327,76087.374293948786,66241.189908445594,null,null,93786.244183018032,null,5111.2049562160601,null,null,null,4906.7548080330071,null,2131.3102853042374,1895.2266844705373,4857.6872599526769,null,4026.5369697747747,8884.2242297274515,null,66241.189908445594,46031,20210.189908445594,20210.189908445594,0,0,0,0,0,null,2335.3332935911917,1059.8590385351295,3395.1923321263212,null,66241.189908445594,46031,20210.189908445594,null,2335.3332935911917,282.94265871823831,2618.2759523094301,null,66241.189908445594,null,null,null,1059.8590385351295,1059.8590385351295,2119.7180770702589]
[42,null,2403.7902498683857,1070.2456571127741,0,142696.89126273821,3474.0359069811598,321339.4202710939,79561.410200929939,67566.013706614511,null,null,99081.118807425766,null,5294.8746244077392,null,null,null,5004.8899041936675,null,2173.9364910103218,1933.1312181599478,4954.8410051517303,null,4107.0677091702692,9061.9087143219986,null,67566.013706614511,46031,21535.013706614511,21535.013706614511,0,0,0,0,0,null,2428.0709594630157,1081.0562193058324,3509.1271787688484,null,67566.013706614511,46031,21535.013706614511,null,2428.0709594630157,301.49019189260315,2729.5611513556187,null,67566.013706614511,null,null,null,1081.0562193058322,1081.0562193058322,2162.1124386116644]
[43,null,2497.4367448657536,1091.6505702550294,0,147750.82908799298,3589.0873151207829,335464.6630974327,83150.497516050717,68917.3339807468,null,null,104563.33649338901,null,5482.2176859632527,null,null,null,5104.9877022775408,null,2217.4152208305281,1971.7938425231468,5053.9378252547658,null,4189.2090633536754,9243.1468886084403,null,68917.3339807468,46031,22886.3339807468,22886.3339807468,0,0,0,0,0,null,2522.6633786522762,1102.6773436919489,3625.340722344225,null,68917.3339807468,46031,22886.3339807468,null,2522.6633786522762,320.40867573045517,2843.0720543827315,null,68917.3339807468,null,null,null,1102.6773436919489,1102.6773436919489,2205.3546873838977]
[44,null,2592.9561697630688,1113.4835816601301,0,152905.84566975286,3706.4397514231987,349999.42703936563,86856.937267473913,70295.680660361744,null,null,110236.64410213889,null,5673.3076087498757,null,null,null,5207.0874563230918,null,2261.7635252471391,2011.2297193736104,5155.0165817598609,null,4272.9932446207495,9428.0098263806103,null,70295.680660361744,46031,24264.680660361744,24264.680660361744,0,0,0,0,0,null,2619.1476462253222,1124.7308905657881,3743.8785367911105,null,70295.680660361744,46031,24264.680660361744,null,2619.1476462253222,339.70552924506438,2958.8531754703868,null,70295.680660361744,null,null,null,1124.7308905657878,1124.7308905657878,2249.4617811315757]
[45,null,2690.38598315833,1135.7532532933328,0,158163.96258314792,3826.1392364516628,364951.90251920465,90683.076503925578,71701.594273568975,null,null,116104.86343213113,null,5868.2193299922301,null,null,null,5311.2292054495538,null,2306.9987957520816,2051.4543137610826,5258.116913395058,null,4358.4531095131642,9616.5700229082213,null,71701.594273568975,46031,25670.594273568975,25670.594273568975,0,0,0,0,0,null,2717.5615991498285,1147.2255083771038,3864.7871075269322,null,71701.594273568975,46031,25670.594273568975,null,2717.5615991498285,359.38831982996561,3076.9499189797939,null,71701.594273568975,null,null,null,1147.2255083771036,1147.2255083771036,2294.4510167542071]
[46,null,2789.7643928214957,1158.468318359199,0,163527.24183481088,3948.2327111806944,380330.44376770768,94631.309215106274,73135.626159040345,null,null,122171.89271779056,null,6067.0292856594324,null,null,null,5417.4537895585445,null,2353.1387716671234,2092.4834000363035,5363.2792516629588,null,4445.6221717034268,9808.9014233663856,null,73135.626159040345,46031,27104.626159040345,27104.626159040345,0,0,0,0,0,null,2817.943831132824,1170.1700185446455,3988.1138496774693,null,73135.626159040345,46031,27104.626159040345,null,2817.9438311328245,379.46476622656485,3197.4085973593892,null,73135.626159040345,null,null,null,1170.1700185446455,1170.1700185446455,2340.3400370892909]
[47,null,2891.1303706779267,1181.6376847263832,0,168997.78667150708,4072.76805540431,396143.57210024819,98704.077270510577,74598.338682221161,null,null,128441.70815823054,null,6269.8154404399793,null,null,null,5525.8028653497158,null,2400.2015471004661,2134.33306803703,5470.5448366962182,null,4534.5346151374961,10005.079451833713,null,74598.338682221161,46031,28567.338682221161,28567.338682221161,0,0,0,0,0,null,2920.3337077554816,1193.5734189155387,4113.9071266710198,null,74598.338682221161,46031,28567.338682221161,null,2920.3337077554816,399.94274155109628,3320.2764493065779,null,74598.338682221161,null,null,null,1193.5734189155387,1193.5734189155387,2387.1468378310774]
[48,null,2994.523668091485,1205.270438420911,0,174577.74240493722,4199.794106512396,412399.97925850691,102903.87137702297,76090.305455865586,null,null,134918.36547654666,null,6476.6573183161345,null,null,null,5636.3189226567101,null,2448.2055780424753,2177.0197293977708,5579.9557334301426,null,4625.2253074402461,10205.18104087039,null,76090.305455865586,46031,30059.305455865586,30059.305455865586,0,0,0,0,0,null,3024.7713819105911,1217.4448872938494,4242.2162692044403,null,76090.305455865586,46031,30059.305455865586,null,3024.7713819105911,420.8302763821182,3445.6016582927095,null,76090.305455865586,null,null,null,1217.4448872938494,1217.4448872938494,2434.8897745876989]
[49,null,3099.9848314533147,1229.3758471893293,0,180269.29725303597,4329.3606786426444,429108.53081899806,107233.23205566561,77612.111564982901,null,null,141606.00151029648,null,6687.6360337498154,null,null,null,5749.0453011098443,null,2497.1696896033245,2220.5601239857265,5691.5548480987454,null,4717.7298135890505,10409.284661687796,null,77612.111564982901,46031,31581.111564982901,31581.111564982901,0,0,0,0,0,null,3131.2978095488029,1241.7937850397266,4373.0915945885299,null,77612.111564982901,46031,31581.111564982901,null,3131.2978095488033,442.13556190976055,3573.4333714585637,null,77612.111564982901,null,null,null,1241.7937850397263,1241.7937850397263,2483.5875700794527]
[50,null,3207.555218082382,1253.9633641331159,0,186074.6831980967,4461.5185822154981,446278.26966976642,111694.75063788111,79164.353796282565,null,null,148508.83583378865,null,6902.8343234921713,null,null,null,5864.0262071320421,null,2547.1130833953916,2264.9713264654406,5805.3859450607224,null,4812.0844098608322,10617.470354921556,null,79164.353796282565,46031,33133.353796282565,33133.353796282565,0,0,0,0,0,null,3239.9547657397798,1266.6296607405211,4506.5844264803009,null,79164.353796282565,46031,33133.353796282565,null,3239.9547657397798,463.86695314795588,3703.8217188877356,null,79164.353796282565,null,null,null,1266.6296607405211,1266.6296607405211,2533.2593214810422]
[51,null,3317.277012444029,1279.042631415778,0,191996.17686205864,4596.319643859807,463918.41955661756,116291.07028174092,80747.640872208212,null,null,155631.17241281801,null,7122.3365790293719,null,null,null,5981.3067312746825,null,2598.0553450632988,2310.2707529947497,5921.4936639619355,null,4908.326098058049,10829.819762019984,null,80747.640872208212,46031,34716.640872208212,34716.640872208212,0,0,0,0,0,null,3350.7848610545748,1291.9622539553313,4642.7471150099063,null,80747.640872208212,46031,34716.640872208212,null,3350.7848610545748,486.03297221091498,3836.8178332654898,null,80747.640872208212,null,null,null,1291.9622539553313,1291.9622539553313,2583.9245079106627]
[52,null,3429.1932426929097,1304.6234840440939,0,198036.10039929982,4733.8167267370036,482038.38870027306,121024.88700847792,82362.593689652378,null,null,162977.40129249531,null,7346.2288796773173,null,null,null,6100.9328659001758,null,2650.016451964565,2356.4761680546449,6039.923537241174,null,5006.4926200192094,11046.416157260384,null,82362.593689652378,46031,36331.593689652378,36331.593689652378,0,0,0,0,0,null,3463.8315582756663,1317.8014990344382,4781.633057310104,null,82362.593689652378,46031,36331.593689652378,null,3463.8315582756668,508.64231165513326,3972.4738699308,null,82362.593689652378,null,null,null,1317.8014990344382,1317.8014990344382,2635.6029980688763]
[53,null,3543.3477975467686,1330.7159537249756,0,204196.8224072858,4874.063751271744,500647.77348586894,125898.95075974966,84009.845563445429,null,null,170552.00031883354,null,7574.5990263382209,null,null,null,6222.9515232181802,null,2703.016781003857,2403.6056914157375,6160.7220079859981,null,5106.6224724195945,11267.344480405593,null,84009.845563445429,46031,37978.845563445429,37978.845563445429,0,0,0,0,0,null,3579.1391894411804,1344.157529015127,4923.2967184563076,null,84009.845563445429,46031,37978.845563445429,null,3579.1391894411804,531.70383788823597,4110.8430273294161,null,84009.845563445429,null,null,null,1344.157529015127,1344.157529015127,2688.315058030254]
[54,null,3659.7854434977025,1357.3302727994751,0,210480.75885543152,5017.1157162971776,519756.3622262443,130916.06647604684,85690.042474714326,null,null,178359.53689476589,null,7807.5365759323422,null,null,null,6347.4105536825427,null,2757.0771166239333,2451.6778052440523,6283.9364481457169,null,5208.7549218679851,11492.691370013701,null,85690.042474714326,46031,39659.042474714326,39659.042474714326,0,0,0,0,0,null,3696.7529732300027,1371.0406795954293,5067.7936528254322,null,85690.042474714326,46031,39659.042474714326,null,3696.7529732300031,555.22659464600054,4251.9795678760038,null,85690.042474714326,null,null,null,1371.0406795954293,1371.0406795954293,2742.0813591908586]
[55,null,3778.5518423676567,1384.4768782554643,0,216890.37403254016,5163.0287206231205,539374.13900049438,136079.09519666995,87403.843324208618,null,null,186404.66977128424,null,8045.1328765183462,null,null,null,6474.3587647561935,null,2812.2186589564121,2500.7113613489332,6409.6151771086315,null,5312.9300203053454,11722.545197413976,null,87403.843324208618,46031,41372.843324208618,41372.843324208618,0,0,0,0,0,null,3816.7190326946029,1398.4614931873377,5215.1805258819404,null,87403.843324208618,46031,41372.843324208618,null,3816.7190326946034,579.21980653892058,4395.938839233524,null,87403.843324208618,null,null,null,1398.461493187338,1398.461493187338,2796.9229863746759]
[56,null,3899.6935692150105,1412.166415820574,0,223428.18151319097,5311.859985035584,559511.28756929678,141390.95518170553,89151.920190692792,null,null,194692.15087440031,null,8287.4811031160716,null,null,null,6603.8459400513175,null,2868.4630321355407,2550.7255885759118,6537.8074806508039,null,5419.188620711453,11956.996101362256,null,89151.920190692792,46031,43120.920190692792,43120.920190692792,0,0,0,0,0,null,3939.0844133484957,1426.4307230510849,5365.515136399581,null,89151.920190692792,46031,43120.920190692792,null,3939.0844133484957,603.69288266969897,4542.7772960181946,null,89151.920190692792,null,null,null,1426.4307230510847,1426.4307230510847,2852.8614461021693]
[57,null,4023.2581305993108,1440.4097441369852,0,230096.74514345478,5463.6678747362957,580178.19536854269,146854.62305644184,90934.95859450665,null,null,203226.82716864606,null,8534.6762942457499,null,null,null,6735.9228588523447,null,2925.832292778251,2601.7401003474301,6668.5636302638213,null,5527.5723931256816,12196.136023389503,null,90934.95859450665,46031,44903.95859450665,44903.95859450665,0,0,0,0,0,null,4063.8971016154655,1454.9593375121062,5518.8564391275722,null,90934.95859450665,46031,44903.95859450665,null,4063.8971016154655,628.65542032309304,4692.5525219385581,null,90934.95859450665,null,null,null,1454.9593375121065,1454.9593375121065,2909.9186750242129]
[58,null,4149.2939832112961,1469.217939019725,0,236898.68004632389,5618.5119222310213,601385.45758284081,152473.13497867287,92753.657766396776,null,null,212013.64255784408,null,8786.8153891980237,null,null,null,6870.6413160293905,null,2984.348938633816,2653.7749023543788,6801.9349028690976,null,5638.1238409881953,12440.058743857293,null,92753.657766396776,46031,46722.657766396776,46722.657766396776,0,0,0,0,0,null,4191.2060436477741,1484.0585242623486,5675.2645679101224,null,92753.657766396776,46031,46722.657766396776,null,4191.206043647775,654.11720872955482,4845.3232523773295,null,92753.657766396776,null,null,null,1484.0585242623486,1484.0585242623486,2968.1170485246971]
[59,null,4277.8505528755231,1498.6022978001197,0,243836.65364725038,5776.4528506756433,623143.88130049233,158249.58782934851,94608.730921724724,null,null,221057.63982389343,null,9043.9972660493422,null,null,null,7008.0541423499799,null,3044.0359174064929,2706.8504004014667,6937.9736009264789,null,5750.8863178079591,12688.859918734437,null,94608.730921724724,46031,48577.730921724724,48577.730921724724,0,0,0,0,0,null,4321.0611645207309,1513.7396947475956,5834.8008592683263,null,94608.730921724724,46031,48577.730921724724,null,4321.0611645207309,680.08823290414614,5001.149397424877,null,94608.730921724724,null,null,null,1513.7396947475956,1513.7396947475956,3027.4793894951913]
[60,null,4408.9782539330345,1528.5743437561221,0,250913.38672019538,5937.5525976891568,645464.48975156411,164187.14042703767,96500.90554015922,null,null,230363.96260433111,null,9306.3227804376857,null,null,null,7148.2152251969792,null,3104.9166357546228,2760.9874084094959,7076.7330729450096,null,5865.9040441641191,12942.637117109129,null,96500.90554015922,46031,50469.90554015922,50469.90554015922,0,0,0,0,0,null,4453.5133878111455,1544.0144886425476,5997.5278764536934,null,96500.90554015922,46031,50469.90554015922,null,4453.5133878111455,706.57867756222902,5160.0920653733747,null,96500.90554015922,null,null,null,1544.0144886425476,1544.0144886425476,3088.0289772850952]
[61,null,4542.7285090116957,1559.1458306312447,0,258131.65445459928,6101.87433964294,668358.52663072478,170289.0147666806,98430.923650962417,null,null,239937.85740944493,null,9573.8948051137995,null,null,null,7291.1795297009194,null,3167.0149684697158,2816.207156577686,7218.2677344039103,null,5983.2221250474013,13201.489859451311,null,98430.923650962417,46031,52399.923650962417,52399.923650962417,0,0,0,0,0,null,4588.6146555673695,1574.8947784153988,6163.5094339827683,null,98430.923650962417,46031,52399.923650962417,null,4588.6146555673695,733.59893111347378,5322.213586680843,null,98430.923650962417,null,null,null,1574.8947784153986,1574.8947784153986,3149.7895568307972]
[62,null,4679.1537691919302,1590.3287472438694,0,265494.28754369129,6269.4825164357999,691837.46050653607,176558.49728311639,100399.54212398166,null,null,249784.67567972836,null,9846.8182702834292,null,null,null,7437.0031202949385,null,3230.3552678391097,2872.5312997092401,7362.6330890919889,null,6102.8865675483503,13465.519656640339,null,100399.54212398166,46031,54368.542123981664,54368.542123981664,0,0,0,0,0,null,4726.417948678717,1606.3926739837066,6332.8106226624241,null,100399.54212398166,46031,54368.542123981664,null,4726.417948678717,761.15958973574322,5487.5775384144599,null,100399.54212398166,null,null,null,1606.3926739837066,1606.3926739837066,3212.7853479674131]
[63,null,4818.3075345757679,1622.1353221887468,0,273004.17329456512,6440.4428567645145,715912.98931893089,182998.9401398809,102407.53296646129,null,null,259909.87588448482,null,10125.200204756457,null,null,null,7585.7431827008368,null,3294.9623731958923,2929.9819257034251,7509.8857508738283,null,6224.9442988993178,13734.830049773147,null,102407.53296646129,46031,56376.532966461295,56376.532966461295,0,0,0,0,0,null,4866.9773076522906,1638.5205274633806,6505.4978351156715,null,102407.53296646129,46031,56376.532966461295,null,4866.9773076522915,789.27146153045805,5656.24876918275,null,102407.53296646129,null,null,null,1638.5205274633809,1638.5205274633809,3277.0410549267617]
[64,null,4960.2443752672816,1654.5780286325216,0,280664.25676045642,6614.8224038998032,740597.04496664088,189613.7625437807,104455.68362579051,null,null,270319.02566240379,null,10409.149777918945,null,null,null,7737.4580463548527,null,3360.8616206598094,2988.5815642174925,7660.0834658913045,null,6349.443184877302,14009.526650768606,null,104455.68362579051,46031,58424.683625790509,58424.683625790509,0,0,0,0,0,null,5010.347853805335,1671.2909380126482,6681.6387918179835,null,104455.68362579051,46031,58424.683625790509,null,5010.3478538053359,817.94557076106707,5828.2934245664028,null,104455.68362579051,null,null,null,1671.2909380126482,1671.2909380126482,3342.5818760252964]
[65,null,5105.0199527726281,1687.6695892051723,0,288477.54189566558,6792.6895419778002,765901.79798637261,196406.4520857585,106544.79729830632,null,null,281017.80400494847,null,10698.778342544681,null,null,null,7892.2072072819501,null,3428.078853073006,3048.3531955018429,7813.2851352091302,null,6476.4320485748485,14289.717183783978,null,106544.79729830632,46031,60513.797298306323,60513.797298306323,0,0,0,0,0,null,5156.5858108814427,1704.7167567729014,6861.3025676543439,null,106544.79729830632,46031,60513.797298306323,null,5156.5858108814427,847.19316217628841,6003.7789730577315,null,106544.79729830632,null,null,null,1704.7167567729011,1704.7167567729011,3409.4335135458023]
[66,null,{"$f":"IF($B$35=1,AL106*99%,IF($B$35=2,AT106*99%,BB106*99%))","v":5252.6910418280804},{"$f":"IF($B$35=1,AM106*99%,IF($B$35=2,AU106*99%,BC106*99%))","v":1721.4229809892759},0,296447.09273357887,{"$f":"+B106+C106+D106","v":6974.1140228173563},791839.66232556617,203380.56610857585,108675.69324427245,null,null,292012.00348341139,null,10994.199478462931,null,null,null,{"$f":"+J106/13.5","v":8050.051351427589},null,3496.640430134466,3109.3202594118793,7969.5508379133144,null,6605.9606895463457,14575.511527459661,null,{"$f":"+J106","v":108675.69324427245},{"$f":"IF(AB106>=$AC$29,$AC$29,AB106)","v":46031},{"$f":"+AB106-AC106","v":62644.69324427245},{"$f":"IF(AD106>=$AA$30,$AA$30,AD106)","v":62644.69324427245},{"$f":"+AD106-AE106","v":0},{"$f":"IF(AF106>=$AA$31,$AA$31,AF106)","v":0},{"$f":"+AF106-AG106","v":0},{"$f":"IF(AH106>=$AA$32,$AA$32,AH106)","v":0},{"$f":"IF(AH106>=$AA$33,$AA$33,AH106)","v":0},null,{"$f":"+((AC106*$AD$29)+(AE106*$AD$30))/100","v":5305.748527099071},{"$f":"IF($AD$23>=10,((AC106*$AE$29)+(AE106*$AE$30)),(AC106*$AE$32)+(AE106*$AE$33))/100","v":1738.8110919083595},{"$f":"+AL106+AM106","v":7044.5596190074302},null,{"$f":"+AB106","v":108675.69324427245},{"$f":"IF(AP106>=$AH$29,$AH$29,AP106)","v":46031},{"$f":"+AP106-AQ106","v":62644.69324427245},null,{"$f":"+AQ106*$AI$29%+AR106*$AI$30%","v":5305.7485270990719},{"$f":"IF($AD$23>=10,(AQ106*$AJ$29/100)+(AR106*$AJ$30/100),(AQ106*$AJ98/100+AR106*$AJ$34/100))","v":877.02570541981413},{"$f":"+AT106+AU106","v":6182.7742325188865},null,{"$f":"+J106","v":108675.69324427245},null,null,null,{"$f":"+AX106*$AM$25%","v":1738.8110919083592},{"$f":"+AX106*$AM$25%","v":1738.8110919083592},{"$f":"+BB106+BC106","v":3477.6221838167185}]
[{"$f":"1+A106","v":67},null,5403.3155526646424,1755.851440609061,{"$f":"+E106+X107","v":0},{"$f":"+F106+W107","v":304576.03458825045},7159.1669932737032,{"$f":"+I107+F107+M107","v":818423.30021061096},{"$f":"+I106+G107","v":210539.73310184956},{"$f":"+J106*$K$41/100","v":110849.20710915788},null,null,{"$f":"+M106+O107","v":303307.53252051095},null,{"$f":"+(G107+F107+O106)*$N$41/100","v":11295.529037099548},null,null,null,8211.0523784561392,null,{"$f":"+J107*$P$41/100*99%","v":3566.573238737155},{"$f":"+J107*$Q$41*99%/100","v":3171.5066646001169},{"$f":"+J107/13.5*$R$41/100*99%","v":8128.9418546715779},null,{"$f":"+U107+V107+X107","v":6738.0799033372714},{"$f":"+Y107+W107","v":14867.02175800885},null,110849.20710915788,46031,64818.207109157884,64818.207109157884,0,0,0,0,0,null,5457.894497641053,1773.5873137465262,7231.481811387579,null,110849.20710915788,46031,64818.207109157884,null,5457.8944976410521,907.45489952821038,6365.3493971692624,null,110849.20710915788,null,null,null,1773.5873137465262,1773.5873137465262,3547.1746274930524]
[68,null,5556.9525537179343,1790.9684694212424,0,312867.55528001545,7347.9210231391771,845665.627112424,217887.65412498874,113066.19125134105,null,null,314910.41770741984,null,11602.885186908898,null,null,null,8375.2734260252637,null,3637.9047035118983,3234.9367978921196,8291.5206917650103,null,6872.8415014040183,15164.362193169029,null,113066.19125134105,46031,67035.19125134105,67035.19125134105,0,0,0,0,0,null,5613.0833875938733,1809.0590600214571,7422.1424476153306,null,113066.19125134105,46031,67035.19125134105,null,5613.0833875938742,938.4926775187746,6551.5760651126493,null,113066.19125134105,null,null,null,1809.0590600214568,1809.0590600214568,3618.1181200429137]
[69,null,5713.6622947922933,1826.7878388096672,0,321324.90638561576,7540.4501336019603,873579.81681134063,225428.1042585907,115327.51507636787,null,null,326826.80616713426,null,11916.388459714432,null,null,null,8542.7788945457687,null,3710.6627975821361,3299.635533849962,8457.3511056003117,null,7010.2983314320982,15467.649437032411,null,115327.51507636787,46031,69296.515076367868,69296.515076367868,0,0,0,0,0,null,5771.3760553457505,1845.240241221886,7616.6162965676367,null,115327.51507636787,46031,69296.515076367868,null,5771.3760553457514,970.15121106915012,6741.5272664149015,null,115327.51507636787,null,null,null,1845.240241221886,1845.240241221886,3690.480482443772]
[70,null,5873.5062306881391,{"$f":"IF($B$35=1,AM110*99%,IF($B$35=2,AU110*99%,BC110*99%))","v":1863.3235955858604},0,329951.4045133281,7736.8298262739991,902179.30656330311,233164.93408486468,117634.06537789521,null,null,339062.96796511032,null,12236.161797976079,null,null,null,8713.6344724366827,null,3784.8760535337783,3365.6282445269603,8626.4981277123152,null,7150.5042980607386,15777.002425773055,null,117634.06537789521,46031,71603.065377895211,71603.065377895211,0,0,0,0,0,null,5932.8345764526657,1882.1450460463236,7814.9796224989896,null,117634.06537789521,46031,71603.065377895211,null,5932.8345764526648,1002.4429152905328,6935.277491743198,null,117634.06537789521,null,null,null,1882.1450460463234,1882.1450460463234,3764.2900920926468]
[]
[null,null,null,null,null,null,null,null,null,null,null,null,null,null,null,null,null,null,{"$f":"SUM(S41:S111)","v":333284.24698315957},null,{"$f":"SUM(U42:U111)","v":143800.92873022266},127872.21047087492,{"$f":"SUM(W42:W111)","v":327751.40451332799},null,{"$f":"SUM(Y42:Y111)","v":271673.1392010976},{"$f":"SUM(Z42:Z111)","v":599424.54371442588}]
[null,null,null,null,null,null,null,null,null,null,null,null,null,null,null,null,null,null,null,null,null,{"$f":"+V112+U112","v":271673.1392010976},null,null,null,{"$f":"+V113+W112","v":599424.54371442553}]

{"sheet":"CALCOLO PENSIONE","index":6,"n_rows":99,"n_cols":23,"rows_kept":99,"cut":false,"hidden":true,"merged":[[26,8,26,9],[2,5,2,11],[15,8,15,9],[4,5,4,6],[4,8,4,9],[6,8,6,9],[7,8,7,9],[8,8,8,9],[25,8,25,9],[22,8,22,9],[23,8,23,9],[24,8,24,9],[8,3,8,4],[8,6,8,7],[2,13,2,19],[21,14,21,16],[20,8,20,9],[21,8,21,9],[32,8,32,9],[9,8,9,9],[28,8,28,9],[29,8,29,9],[30,8,30,9],[31,8,31,9],[10,8,10,9],[11,8,11,9],[12,8,12,9],[13,8,13,9],[14,8,14,9],[27,8,27,9],[16,8,16,9],[17,8,17,9],[18,8,18,9],[19,8,19,9]]}
[]
[]
[]
[null,null,null,"SESSO",{"$f":"+'RENDITE VITALIZIE'!H10","v":"M"},{"$f":"IF($E$4=\"M\",VLOOKUP($E$5,$D$10:$E$99,2),VLOOKUP($E$5,$G$10:$H$97,2))","v":0}]
[null,null,null,"ETA'",{"$f":"+'RENDITE VITALIZIE'!H6","v":67},null,null,null,{"$f":"+E7*L5","v":4887},null,{"$f":"+E7*L5","v":4887},{"$f":"IF($E$4=\"M\",VLOOKUP($E$6,CALCOLI!$F$16:$H$36,2),VLOOKUP($E$6,CALCOLI!$F$16:$H$36,3))","v":4.8869999999999997E-2},"IMMEDIATA",null,null,{"$f":"+K5","v":4887}]
[null,null,null,"ETA' CORRETTA",{"$f":"+E5+F4","v":67}]
[null,null,null,"MONTANTE",{"$f":"+'RENDITE VITALIZIE'!H8","v":100000},null,null,null,null,null,{"$f":"+E7*L7","v":4858},{"$f":"IF($E$4=\"M\",VLOOKUP($E$6,CALCOLI!$J$16:$L$36,2),VLOOKUP($E$6,CALCOLI!$J$16:$L$36,3))","v":4.8579999999999998E-2},"CERTA 5 ANNI",null,null,{"$f":"+K7","v":4858}]
[]
[null,null,null,"maschi",null,null,"femmine",null,null,null,{"$f":"+E7*L9","v":4752},{"$f":"IF($E$4=\"M\",VLOOKUP($E$6,CALCOLI!$N$16:$P$36,2),VLOOKUP($E$6,CALCOLI!$N$16:$P$36,3))","v":4.752E-2},"CERTA 10 ANNI",null,null,{"$f":"+K9","v":4752}]
[null,null,null,0,-2,null,0,-2]
[null,null,null,{"$f":"1+D10","v":1},-2,null,{"$f":"1+G10","v":1},-2,null,null,{"$f":"+E7*L11","v":3888},{"$f":"IF($E$4=\"M\",VLOOKUP($E$6,CALCOLI!$R$16:$T$36,2),VLOOKUP($E$6,CALCOLI!$R$16:$T$36,3))","v":3.8879999999999998E-2},"CONTRASS TT0,5%",null,null,{"$f":"+K11","v":3888}]
[null,null,null,{"$f":"1+D11","v":2},-2,null,{"$f":"1+G11","v":2},-2]
[null,null,null,3,-2,null,3,-2,null,null,{"$f":"+E7*L13","v":3676.9999999999995},{"$f":"IF($E$4=\"M\",VLOOKUP($E$6,CALCOLI!$Z$5:$AB$25,2),VLOOKUP($E$6,CALCOLI!$Z$5:AB$25,3))","v":3.6769999999999997E-2},"REVERSIBILE",null,null,{"$f":"+K13","v":3676.9999999999995}]
[null,null,null,4,-2,null,4,-2]
[null,null,null,5,-2,null,5,-2]
[null,null,null,6,-2,null,6,-2]
[null,null,null,7,-2,null,7,-2,null,null,null,null,null,"% su"]
[null,null,null,8,-2,null,8,-2,null,null,null,null,null,"trimestrale"]
[null,null,null,9,-2,null,9,-2,null,null,100000,4.7750000000000001E-2,{"$f":"+K19*L19","v":4775},{"$f":"+M19/K5%","v":97.708205443012076},"annuale"]
[null,null,null,10,-2,null,10,-2,null,null,null,4.718E-2,{"$f":"+K19*L20","v":4718},{"$f":"+M20/K5%","v":96.54184571311643},"semestrale"]
[null,null,null,11,-2,null,11,-2,null,null,null,4.6710000000000002E-2,{"$f":"+K19*L21","v":4671},{"$f":"+M21/K5%","v":95.58011049723757},"mensile"]
[null,null,null,12,-2,null,12,-2]
[null,null,null,13,-2,null,13,-2]
[null,null,null,14,-2,null,14,-2]
[null,null,null,15,-2,null,15,-2,null,null,null,"età","montante","annuale","semestrale","trimestrale","mensile"]
[null,null,null,16,-2,null,16,-2,null,null,"rend ord",67,100000,4.9790000000000001E-2,4.9169999999999998E-2,4.8869999999999997E-2,4.8669999999999998E-2]
[null,null,null,17,-2,null,17,-2,null,null,null,null,null,{"$f":"+M26*N26","v":4979},{"$f":"+O26*M26","v":4917},{"$f":"+P26*M26","v":4887},{"$f":"+Q26*M26","v":4867},"m"]
[null,null,null,18,-2,null,18,-2,null,null,null,null,null,4.2299999999999997E-2,4.1849999999999998E-2,4.163E-2,4.1480000000000003E-2]
[null,null,null,19,-2,null,19,-2,null,null,null,null,null,{"$f":"+N28*M26","v":4230},{"$f":"+O28*M26","v":4185},{"$f":"+P28*M26","v":4163},{"$f":"+Q28*M26","v":4148},"f",null,null,{"$f":"+U32-T32","v":-62},{"$f":"+V32-T32","v":-92},{"$f":"+W32-T32","v":-112}]
[null,null,null,20,-2,null,20,-2,null,null,null,null,null,null,null,null,null,null,null,null,{"$f":"+U32/T32%","v":98.754770034143405},{"$f":"+V32/T32%","v":98.15223940550311},{"$f":"+W32/T32%","v":97.750552319742923}]
[null,null,null,21,-2,null,21,-2,null,null,null,null,null,null,null,null,null,null,null,"annuale","semestrale","trimestrale","mensile"]
[null,null,null,22,-2,null,22,-2,null,null,null,null,null,null,null,null,null,null,"M",{"$f":"+N27","v":4979},{"$f":"+O27","v":4917},{"$f":"+P27","v":4887},{"$f":"+Q27","v":4867}]
[null,null,null,23,-2,null,23,-2,null,null,null,null,null,null,null,null,null,null,"F",{"$f":"+N29","v":4230},{"$f":"+O29","v":4185},{"$f":"+P29","v":4163},{"$f":"+Q29","v":4148}]
[null,null,null,24,-2,null,24,-2,null,null,null,null,null,null,null,null,null,null,null,null,{"$f":"+U33-T33","v":-45},{"$f":"+V33-T33","v":-67},{"$f":"+W33-T33","v":-82}]
[null,null,null,25,-2,null,25,-2,null,null,null,null,null,null,null,null,null,null,null,null,{"$f":"+U33/T33%","v":98.936170212765958},{"$f":"+V33/T33%","v":98.416075650118216},{"$f":"+W33/T33%","v":98.061465721040193}]
[null,null,null,26,-2,null,26,-2]
[null,null,null,27,-2,null,27,-2]
[null,null,null,28,-2,null,28,-2]
[null,null,null,29,-2,null,29,-2]
[null,null,null,30,-2,null,30,-2]
[null,null,null,31,-2,null,31,-2]
[null,null,null,32,-2,null,32,-2]
[null,null,null,33,-2,null,33,-2]
[null,null,null,34,-2,null,34,-2]
[null,null,null,35,-2,null,35,-2]
[null,null,null,36,-2,null,36,-2]
[null,null,null,37,-2,null,37,-2]
[null,null,null,38,-2,null,38,-2]
[null,null,null,39,-2,null,39,-2]
[null,null,null,40,-2,null,40,-2]
[null,null,null,41,-2,null,41,-2]
[null,null,null,42,-2,null,42,-2]
[null,null,null,43,-2,null,43,-2]
[null,null,null,44,-2,null,44,-2]
[null,null,null,45,-2,null,45,-2]
[null,null,null,46,-2,null,46,-1]
[null,null,null,47,-2,null,47,-1]
[null,null,null,48,-1,null,48,-1]
[null,null,null,49,-1,null,49,-1]
[null,null,null,50,-1,null,50,-1]
[null,null,null,51,-1,null,51,-1]
[null,null,null,52,-1,null,52,-1]
[null,null,null,53,-1,null,53,-1]
[null,null,null,54,-1,null,54,-1]
[null,null,null,55,-1,null,55,-1]
[null,null,null,56,-1,null,56,0]
[null,null,null,57,-1,null,57,0]
[null,null,null,58,0,null,58,0]
[null,null,null,59,0,null,59,0]
[null,null,null,60,0,null,60,0]
[null,null,null,61,0,null,61,0]
[null,null,null,62,0,null,62,0]
[null,null,null,63,0,null,63,0]
[null,null,null,64,0,null,64,0]
[null,null,null,65,0,null,65,0]
[null,null,null,{"$f":"1+D75","v":66},0,null,{"$f":"1+G75","v":66},0]
[null,null,null,67,0,null,67,0]
[null,null,null,68,0,null,68,0]
[null,null,null,69,0,null,69,1]
[null,null,null,70,0,null,70,1]
[null,null,null,71,1,null,71,1]
[null,null,null,72,1,null,72,1]
[null,null,null,73,1,null,73,1]
[null,null,null,74,1,null,74,1]
[null,null,null,75,1,null,75,1]
[null,null,null,76,1,null,76,1]
[null,null,null,77,1,null,77,1]
[null,null,null,78,1,null,78,2]
[null,null,null,79,1,null,79,2]
[null,null,null,80,2,null,80,2]
[null,null,null,81,2,null,81,2]
[null,null,null,82,2,null,82,2]
[null,null,null,83,2,null,83,2]
[null,null,null,84,2,null,84,2]
[null,null,null,85,2,null,85,2]
[null,null,null,86,2,null,86,2]
[null,null,null,87,2,null,87,2]
[null,null,null,88,2]
[null,null,null,89,2]

{"sheet":"RENDITE VITALIZIE","index":7,"n_rows":23,"n_cols":10,"rows_kept":23,"cut":false,"hidden":false,"merged":[[3,12,3,13],[3,15,3,16],[22,4,22,17]]}
[]
[]
[null,null,null,null,null,null,null,null,null,"CALCOLO RENDITA VITALIZIA"]
[]
[]
[null,null,"ETA' AL MOMENTO DELLA RISCOSSIONE MINIMO 50",null,null,null,null,67]
[]
[null,null,"VALORE MONTANTE DA DESTINARE ALLA RENDITA",null,null,null,null,100000]
[]
[null,null,"SESSO",null,null,null,null,"M"]
[]
[]
[]
[]
[]
[]
[]
[]
[]
[]
[]
[]
[null,null,null,null,"PROPRIETA' INTELLETTUALE E REALIZZAZIONE DI GIUSEPPE NICOLETTI - E' VIETATA LA RIPRODUZIONE E/O COMMERCIALIZZAZIONE ANCHE PARZIALE "]